Workbook

Sheet Instructions
A1: Author: Milan Stanko. Contact info: milan.stanko@ntnu.no
A2: See the accompanying pdf for more details about this sheet.

Sheet Data_and_Model
A1: ECONOMIC DATA | E1: PRODUCTION SYSTEM DATA | I1: NPV CALCULATIONS
A2: Tax | B2: 0.25 | C2: [-] | E2: Max number of new producing wells per year (field) | F2: 4 | I2: CAPEX (except drillex) | J2: [1E06 NOK] | K2: =-B20*(AD7*(B7+B9/(1-F7)+F8*B8)+AJ7*(B7+B9/(1-F23)+F24*B8)+(Z5+AF5)*B6+B5) -> -12670.9619 | T2: Case nr | U2: 31
A3: Discount rate | B3: 0.12 | C3: [-] | E3: Reservoir 1 | I3: NPV | J3: [1E06 NOK] | K3: =SUM(U10:U35) -> 239.988885 | U3: from: | V3: to:
A4: DRILLEX well coeff | B4: 500 | C4: [1e06 NOK/well] | E4: Max number of new producing wells per year | F4: 6 | T4: Cases | U4: 598 | V4: 600
A5: CAPEX const | B5: 2150 | C5: [1E06 NOK] | E5: Maximum total number of producing wells | F5: 6 | I5: 56.25 | Y5: Max Nw= | Z5: =Z6+Z7 -> 6 | AE5: Max Nw= | AF5: =AF6+AF7 -> 4
A6: CAPEX well coeff | B6: 50 | C6: [1e06 NOK/well] | E6: Ratio of injectors/producers | F6: 0.5 | I6: 39.25 | Y6: Max Nw,inj= | Z6: =Z7*F6 -> 2 | AA6: MAX Np= | AB6: =AB35 -> 10.39515851 | AE6: Max Nw,inj= | AF6: =AF7*F22 -> 0.9999999999 | AG6: MAX Np= | AH6: =AH35 -> 5.909572143
A7: CAPEX oil rate coeff | B7: 0.856 | C7: [1e06 NOK/Sm3/d] | E7: WCmax | F7: 0.05 | G7: [-] | P7: if Cell B13 is changed CHECK!↓ | Y7: Max Nw,p= | Z7: 4 | AA7: Rfu - Res1 | AB7: =AB6*100/F11 -> 19.36096574 | AC7: MAX qo= | AD7: 5339.72224 | AE7: Max Nw,p= | AF7: 3 | AG7: Rfu - Res2 | AH7: =AH6*100/F27 -> 15.58154887 | AI7: MAX qo= | AJ7: 2569.268539
A8: CAPEX gas rate coeff | B8: 0.000234 | C8: [1e06 NOK/Sm3/d] | E8: GORmax | F8: 1000 | G8: [Sm3/Sm3] | I8: End of year | J8: Po | K8: Exhange rate | L8: CAPEX split | M8: CAPEX | N8: OPEX | O8: DRILLEX | P8: Depreciable exp | Q8: Depreciation | R8: HC sales | S8: Taxable income | T8: Tax | U8: DCF | V8: Nw,p - field | W8: delta Nw,p - field | X8: DeltaNp - field | Y8: qo - field | Z8: Nw,p - Res1 | AA8: delta Nw,p - Res1 | AB8: Np - Res1 | AC8: DeltaNp - Res1 | AD8: qo - Res1 | AE8: qpp_Res1 | AF8: Nw,p - Res2 | AG8: delta Nw,p - Res2 | AH8: Np - Res2 | AI8: DeltaNp - Res2 | AJ8: qo - Res2 | AK8: qpp_Res2
A9: CAPEX water rate coeff | B9: 0.0442 | C9: [1e06 NOK/Sm3/d] | E9: Production potential per well | F9: =4592.475 -> 4592.475 | G9: [Sm3/d] | J9: [USD/stb] | K9: [NOK/USD] | L9: [-] | M9: [1E06 NOK] | N9: [1E06 NOK] | O9: [1E06 NOK] | P9: [1E06 NOK] | Q9: [1E06 NOK] | R9: [1E06 NOK] | S9: [1E06 NOK] | T9: [1E06 NOK] | U9: [1e06 NOK] | V9: [-] | W9: [-] | X9: [1e06 Sm3] | Y9: [Sm3/d] | Z9: [-] | AA9: [-] | AB9: [1e06 Sm3] | AC9: [1e06 Sm3] | AD9: [Sm3/d] | AE9: [Sm3/d] | AF9: [-] | AG9: [-] | AH9: [1e06 Sm3] | AI9: [1e06 Sm3] | AJ9: [Sm3/d] | AK9: [Sm3/d]
A10: OPEX const | B10: 723 | C10: [1E06 NOK] | E10: Pancake factor for compounding well production | F10: 0.973 | I10: 1 | J10: 61.43648483 | K10: 9.3 | L10: 0.2 | M10: =L10*$K$2 -> -2534.192379 | N10: 0 | O10: =-(AA10*(1+$F$6)+AG10*(1+$F$22))*$B$4*$B$20 -> 0 | P10: =M10+O10 -> -2534.192379 | Q10: =SUM($P$10:P10)/$B$13 -> -633.5480948 | R10: =J10*X10*K10*6.2898105697751 -> 0 | S10: =R10+Q10+O10+N10+M10 -> -3167.740474 | T10: =(ABS(S10)/S10+1)*S10*$B$2*0.5*-1 -> 0 | U10: =(M10+N10+O10+R10+T10)/((1+$B$3)^I10) -> -2262.671767 | V10: =Z10+AF10 -> 0 | X10: =AC10+AI10 -> 0 | Y10: =AD10+AJ10 -> 0 | Z10: 0 | AB10: 0 | AC10: 0 | AD10: 0 | AE10: =$B$21*$F$9*($F$10^(Z10-1))*Z10*($F$14*(AB10/$F$11)^5+$F$15*(AB10/$F$11)^4+$F$16*(AB10/$F$11)^3+$F$17*(AB10/$F$11)^2+$F$18*(AB10/$F$11)+1) -> 0 | AF10: 0 | AH10: 0 | AI10: 0 | AJ10: 0 | AK10: =$B$22*$F$25*($F$26^(AF10-1))*AF10*($F$30*(AH10/$F$27)^5+$F$31*(AH10/$F$27)^4+$F$32*(AH10/$F$27)^3+$F$33*(AH10/$F$27)^2+$F$34*(AH10/$F$27)+1) -> 0
A11: OPEX well coeff | B11: 6.5 | C11: [1e06 NOK/well] | E11: Initial oil in place | F11: 53.69132228 | G11: [1e06 Sm3] | I11: 2 | J11: 49.36563952 | K11: 9.3 | L11: 0.3 | M11: -3801.288569 | N11: 0 | O11: 0 | P11: =M11+O11 -> -3801.288569 | Q11: =SUM($P$10:P11)/$B$13 -> -1583.870237 | R11: =J11*X11*K11*6.2898105697751 -> 0 | S11: =R11+Q11+O11+N11+M11 -> -5385.158806 | T11: =(ABS(S11)/S11+1)*S11*$B$2*0.5*-1 -> 0 | U11: =(M11+N11+O11+R11+T11)/((1+$B$3)^I11) -> -3030.363974 | V11: =Z11+AF11 -> 0 | W11: =V11-V10 -> 0 | X11: =AC11+AI11 -> 0 | Y11: =AD11+AJ11 -> 0 | Z11: 0 | AA11: =Z11-Z10 -> 0 | AB11: =AB10+AC11 -> 0 | AC11: 0 | AD11: 0 | AE11: =$B$21*$F$9*($F$10^(Z11-1))*Z11*($F$14*(AB11/$F$11)^5+$F$15*(AB11/$F$11)^4+$F$16*(AB11/$F$11)^3+$F$17*(AB11/$F$11)^2+$F$18*(AB11/$F$11)+1) -> 0 | AF11: 0 | AG11: =AF11-AF10 -> 0 | AH11: =AH10+AI11 -> 0 | AI11: 0 | AJ11: 0 | AK11: =$B$22*$F$25*($F$26^(AF11-1))*AF11*($F$30*(AH11/$F$27)^5+$F$31*(AH11/$F$27)^4+$F$32*(AH11/$F$27)^3+$F$33*(AH11/$F$27)^2+$F$34*(AH11/$F$27)+1) -> 0
A12: OPEX oil rate coeff | B12: 0.0236 | C12: [1e06 NOK/Sm3/d] | E12: Operational days per year | F12: 360 | G12: [d/y] | I12: 3 | J12: 62.5615826 | K12: 9.3 | L12: 0.3 | M12: -3801.288569 | N12: 0 | O12: 0 | P12: -3801.288569 | Q12: =SUM($P$10:P12)/$B$13 -> -2534.192379 | R12: 0 | S12: -6335.480948 | T12: 0 | U12: -2705.682119 | V12: 0 | W12: =V12-V11 -> 0 | X12: 0 | Y12: 0 | Z12: 0 | AA12: 0 | AB12: =AB11+AC12 -> 0 | AC12: 0 | AD12: 0 | AE12: 0 | AF12: 0 | AG12: 0 | AH12: =AH11+AI12 -> 0 | AI12: 0 | AJ12: 0 | AK12: 0
A13: Depreciation period | B13: 4 | C13: [years] | E13: Constants of dimensionless prod prot curve: | I13: 4 | J13: 50.63653656 | K13: 9.3 | L13: 0.2 | M13: -2534.192379 | N13: 0 | O13: -3084.607714 | P13: -5618.800094 | Q13: =SUM(P10:P13)/$B$13 -> -3938.892403 | R13: 0 | S13: -9557.692496 | T13: 0 | U13: -3570.849038 | V13: 4 | W13: 4 | X13: 0 | Y13: 7908.990779 | Z13: 2 | AA13: 2 | AB13: 0 | AC13: 0 | AD13: 5339.72224 | AE13: 9277.751236 | AF13: 2 | AG13: 2 | AH13: 0 | AI13: 0 | AJ13: 2569.268539 | AK13: 4474.667173
E14: a | F14: -39.413 | I14: 5 | J14: 66.02295029 | K14: 9.3 | L14: 0 | M14: 0 | N14: =-$B$20*($B$10+$B$11*(Z14*(1+$F$6)+AF14*(1+$F$22))+$B$12*Y14) -> -1030.424655 | O14: 0 | P14: 0 | Q14: -3305.344308 | R14: 10996.10838 | S14: =R14+Q14+O14+N14+M14 -> 6660.339418 | T14: -1665.084854 | U14: 4709.982718 | V14: 4 | W14: 0 | X14: 2.84723668 | Y14: 7908.990779 | Z14: 2 | AA14: 0 | AB14: 1.922300006 | AC14: =(AD13+AD14)*(I14-I13)*0.5*$F$12/1000000 -> 1.922300006 | AD14: 5339.72224 | AE14: 7199.352703 | AF14: 2 | AG14: 0 | AH14: 0.924936674 | AI14: =(AJ13+AJ14)*(I14-I13)*0.5*$F$28/1000000 -> 0.924936674 | AJ14: 2569.268539 | AK14: 3178.80953
A15: RED IS INPUT | E15: b | F15: -13.968 | I15: 6 | J15: 80.11341558 | K15: 9.3 | L15: 0 | M15: 0 | N15: =-$B$20*($B$10+$B$11*(Z15*(1+$F$6)+AF15*(1+$F$22))+$B$12*Y15) -> -1061.089285 | O15: -2358.817664 | P15: -2358.817664 | Q15: -2944.726582 | R15: 13342.87239 | S15: 6978.238859 | T15: -1744.559715 | U15: 4143.434862 | V15: 7 | W15: 3 | X15: 2.84723668 | Y15: 7908.990779 | Z15: 4 | AA15: 2 | AB15: 3.844600013 | AC15: 1.922300006 | AD15: 5339.72224 | AE15: 10291.03154 | AF15: 3 | AG15: 1 | AH15: 1.849873348 | AI15: 0.924936674 | AJ15: 2569.268539 | AK15: 3122.308278
A16: BLUE IS CALC | E16: c | F16: 6.2734 | I16: 7 | J16: 58.5970466 | K16: 9.3 | L16: 0 | M16: 0 | N16: -980.1375263 | O16: 0 | P16: 0 | Q16: -1994.404439 | R16: 7815.395066 | S16: 4840.8531 | T16: -1210.213275 | U16: 2544.484359 | V16: 7 | W16: 0 | X16: 2.2801042 | Y16: 4758.254775 | Z16: 4 | AA16: 0 | AB16: 5.362371282 | AC16: 1.517771269 | AD16: 3092.340365 | AE16: 8080.572578 | AF16: 3 | AG16: 0 | AH16: 2.612206279 | AI16: 0.7623329308 | AJ16: 1665.91441 | AK16: 2200.303328
A17: VIOLET IS OPT VAR | E17: d | F17: 12.684 | I17: 8 | J17: 25.91695766 | K17: 9.3 | L17: 0 | M17: 0 | N17: -948.2884277 | O17: 0 | P17: 0 | Q17: -589.704416 | R17: 2258.629793 | S17: 720.6369496 | T17: -180.1592374 | U17: 456.4616061 | V17: 7 | W17: 0 | X17: 1.489843048 | Y17: 3518.651049 | Z17: 4 | AA17: 0 | AB17: 6.327173433 | AC17: 0.9648021515 | AD17: 2267.671588 | AE17: 6870.27797 | AF17: 3 | AG17: 0 | AH17: 3.137247175 | AI17: 0.5250408968 | AJ17: 1250.979461 | AK17: 1726.707749
E18: e | F18: -6.7185 | I18: 9 | J18: 32.6020735 | K18: 9.3 | L18: 0 | M18: 0 | N18: -931.7591821 | O18: 0 | P18: 0 | Q18: -589.704416 | R18: 2194.86837 | S18: 673.4047716 | T18: -168.3511929 | U18: 394.7807078 | V18: 7 | W18: 0 | X18: 1.150913656 | Y18: 2875.313707 | Z18: 4 | AA18: 0 | AB18: 7.070528147 | AC18: 0.7433547135 | AD18: 1862.076821 | AE18: 6039.196682 | AF18: 3 | AG18: 0 | AH18: 3.544806118 | AI18: 0.4075589425 | AJ18: 1013.236886 | AK18: 1436.978193
A19: UNCERTAINTY | E19: Reservoir 2 | I19: 10 | J19: 34.15186511 | K19: 9.3 | L19: 0 | M19: 0 | N19: -921.3653419 | O19: 0 | P19: 0 | Q19: 0 | R19: 1922.398768 | S19: 1001.033426 | T19: -250.2583565 | U19: 241.7294791 | V19: 7 | W19: 0 | X19: 0.9622956852 | Y19: 2470.773433 | Z19: 4 | AA19: 0 | AB19: 7.69649854 | AC19: 0.6259703933 | AD19: 1615.536476 | AE19: 5406.314452 | AF19: 3 | AG19: 0 | AH19: 3.88113141 | AI19: 0.3363252918 | AJ19: 855.2369574 | AK19: 1240.86027
A20: Cost factor (Drillex,Capex,Opex) | B20: 1.088685076 | E20: Max number of new producing wells per year | F20: 6 | I20: 11 | J20: 23.40290299 | K20: 9.3 | L20: 0 | M20: 0 | N20: -913.4866172 | O20: 0 | P20: 0 | Q20: 0 | R20: 1142.096798 | S20: 228.6101808 | T20: -57.15254521 | U20: 49.28997311 | V20: 7 | W20: 0 | X20: 0.8342816033 | Y20: 2164.124363 | Z20: 4 | AA20: 0 | AB20: 8.243966276 | AC20: 0.5474677356 | AD20: 1425.950944 | AE20: 4901.768142 | AF20: 3 | AG20: 0 | AH20: 4.167945278 | AI20: 0.2868138677 | AJ20: 738.1734189 | AK20: 1099.015745
A21: Productivity factor Res 1 | B21: 1.038133216 | E21: Maximum total number of producing wells | F21: 3 | I21: 12 | J21: 22.11207635 | K21: 9.3 | L21: 0 | M21: 0 | N21: -906.419693 | O21: 0 | P21: 0 | Q21: 0 | R21: 943.669973 | S21: 37.25027996 | T21: -9.312569991 | U21: 7.170914304 | V21: 7 | W21: 0 | X21: 0.7295752564 | Y21: 1889.071506 | Z21: 4 | AA21: 0 | AB21: 8.724677597 | AC21: 0.4807113216 | AD21: 1244.667509 | AE21: 4495.434259 | AF21: 3 | AG21: 0 | AH21: 4.416809212 | AI21: 0.2488639348 | AJ21: 644.4039965 | AK21: 991.4544362
A22: Productivity factor Res 2 | B22: 0.8061861595 | E22: Ratio of injectors/producers | F22: 0.3333333333 | I22: 13 | J22: 27.6427767 | K22: 9.3 | L22: 0 | M22: 0 | N22: -899.4404041 | O22: 0 | P22: 0 | Q22: 0 | R22: 1020.583763 | S22: 121.1433591 | T22: -30.28583978 | U22: 20.82219841 | V22: 7 | W22: 0 | X22: 0.6311701835 | Y22: 1617.429514 | Z22: 4 | AA22: 0 | AB22: 9.138091899 | AC22: 0.4134143018 | AD22: 1052.078612 | AE22: 4172.680932 | AF22: 3 | AG22: 0 | AH22: 4.634565094 | AI22: 0.2177558817 | AJ22: 565.3509021 | AK22: 906.9258017
E23: WCmax | F23: 0.05 | G23: [-] | I23: 14 | J23: 19.15367608 | K23: 9.3 | L23: 0 | M23: 0 | N23: -892.4840492 | O23: 0 | P23: 0 | Q23: 0 | R23: 597.7773075 | S23: -294.7067417 | T23: 0 | U23: -60.30283827 | V23: 7 | W23: 0 | X23: 0.5335397385 | Y23: 1346.680144 | Z23: 4 | AA23: 0 | AB23: 9.480459626 | AC23: 0.3423677267 | AD23: 849.9643143 | AE23: 3923.579727 | AF23: 3 | AG23: 0 | AH23: 4.825737106 | AI23: 0.1911720118 | AJ23: 496.7158299 | AK23: 838.6393408
E24: GORmax | F24: 1000 | G24: [Sm3/Sm3] | I24: 15 | J24: 27.6657285 | K24: 9.3 | L24: 0 | M24: 0 | N24: -885.8754315 | O24: 0 | P24: 0 | Q24: 0 | R24: 709.6403621 | S24: -176.2350694 | T24: 0 | U24: -32.19748828 | V24: 7 | W24: 0 | X24: 0.4385061449 | Y24: 1089.465105 | Z24: 4 | AA24: 0 | AB24: 9.751024659 | AC24: 0.2705650333 | AD24: 653.1747594 | AE24: 3738.084038 | AF24: 3 | AG24: 0 | AH24: 4.993678217 | AI24: 0.1679411116 | AJ24: 436.2903459 | AK24: 782.2850088
E25: Production potential per well | F25: =2852.217 -> 2852.217 | G25: [Sm3/d] | I25: 16 | J25: 37.71143907 | K25: 9.3 | L25: 0 | M25: 0 | N25: -880.0175369 | O25: 0 | P25: 0 | Q25: 0 | R25: 774.6557397 | S25: -105.3617972 | T25: 0 | U25: -17.18679145 | V25: 7 | W25: 0 | X25: 0.3511681528 | Y25: 861.4690768 | Z25: 4 | AA25: 0 | AB25: 9.954744973 | AC25: 0.203720314 | AD25: 478.6047628 | AE25: 3604.891045 | AF25: 3 | AG25: 0 | AH25: 5.141126056 | AI25: 0.1474478388 | AJ25: 382.864314 | AK25: 735.0147318
E26: Pancake factor for compounding well production | F26: 0.973 | I26: 17 | J26: 19.20149769 | K26: 9.3 | L26: 0 | M26: 0 | N26: -875.1603168 | O26: 0 | P26: 0 | Q26: 0 | R26: 310.1145967 | S26: -565.0457202 | T26: 0 | U26: -82.29571151 | V26: 7 | W26: 0 | X26: 0.2761001162 | Y26: 672.4204575 | Z26: 4 | AA26: 0 | AB26: 10.10150877 | AC26: 0.1467637932 | AD26: 336.7496439 | AE26: 3512.321292 | AF26: 3 | AG26: 0 | AH26: 5.270462379 | AI26: 0.129336323 | AJ26: 335.6708136 | AK26: 694.8758996
E27: Initial oil in place | F27: 37.92673112 | G27: [1e06 Sm3] | I27: 18 | J27: 20.01502492 | K27: 9.3 | L27: 0 | M27: 0 | N27: -871.3381046 | O27: 0 | P27: 0 | Q27: 0 | R27: 252.0623207 | S27: -619.2757839 | T27: 0 | U27: -80.5303691 | V27: 7 | W27: 0 | X27: 0.2152936798 | Y27: 523.6555414 | Z27: 4 | AA27: 0 | AB27: 10.20344078 | AC27: 0.1019320128 | AD27: 229.5393161 | AE27: 3449.673685 | AF27: 3 | AG27: 0 | AH27: 5.383824046 | AI27: 0.113361667 | AJ27: 294.1162252 | AK27: 660.4799882
E28: Operational days per year | F28: 360 | G28: [d/y] | I28: 19 | J28: 21.63888456 | K28: 9.3 | L28: 0 | M28: 0 | N28: -868.4314639 | O28: 0 | P28: 0 | Q28: 0 | R28: 212.8428397 | S28: -655.5886243 | T28: 0 | U28: -76.11828213 | V28: 7 | W28: 0 | X28: 0.1681526283 | Y28: 410.5257269 | Z28: 4 | AA28: 0 | AB28: 10.27227304 | AC28: 0.06883225827 | AD28: 152.8621187 | AE28: 3408.124215 | AF28: 3 | AG28: 0 | AH28: 5.483144416 | AI28: 0.09932037002 | AJ28: 257.6636082 | AK28: 630.8031281
E29: Constants of dimensionless prod prot curve: | I29: 20 | J29: 13.6914206 | K29: 9.3 | L29: 0 | M29: 0 | N29: -866.2584149 | O29: 0 | P29: 0 | Q29: 0 | R29: 106.1692814 | S29: -760.0891336 | T29: 0 | U29: -78.79598165 | V29: 7 | W29: 0 | X29: 0.1325652976 | Y29: 325.9481484 | Z29: 4 | AA29: 0 | AB29: 10.31781595 | AC29: 0.04554291562 | AD29: 100.1540792 | AE29: 3380.965163 | AF29: 3 | AG29: 0 | AH29: 5.570166798 | AI29: 0.08702238194 | AJ29: 225.7940693 | AK29: 605.0641535
E30: a | F30: 7067.6 | I30: 21 | J30: 18.442689 | K30: 9.3 | L30: 0 | M30: 0 | N30: -864.6386098 | O30: 0 | P30: 0 | Q30: 0 | R30: 114.3465662 | S30: -750.2920436 | T30: 0 | U30: -69.4467402 | V30: 7 | W30: 0 | X30: 0.1059932893 | Y30: 262.903459 | Z30: 4 | AA30: 0 | AB30: 10.34752573 | AC30: 0.02970978156 | AD30: 64.90026282 | AE30: 3363.389926 | AF30: 3 | AG30: 0 | AH30: 5.646450306 | AI30: 0.07628350779 | AJ30: 198.0031962 | AK30: 582.6490694
E31: b | F31: -3761.5 | I31: 22 | J31: 22.63771012 | K31: 9.3 | L31: 0 | M31: 0 | N31: -863.4221939 | O31: 0 | P31: 0 | Q31: 0 | R31: 114.0442824 | S31: -749.3779115 | T31: 0 | U31: -61.93047187 | V31: 7 | W31: 0 | X31: 0.08612326934 | Y31: 215.5591484 | Z31: 4 | AA31: =Z31-Z30 -> 0 | AB31: 10.3667227 | AC31: 0.01919696054 | AD31: 41.74951796 | AE31: 3352.093086 | AF31: 3 | AG31: 0 | AH31: 5.713376615 | AI31: 0.0669263088 | AJ31: 173.8096305 | AK31: 563.0634722
E32: c | F32: 553.01 | I32: 23 | J32: 21.23607078 | K32: 9.3 | L32: 0 | M32: 0 | N32: -862.4955768 | O32: 0 | P32: 0 | Q32: 0 | R32: 88.33297616 | S32: -774.1626006 | T32: 0 | U32: -57.12387571 | V32: 7 | W32: 0 | X32: 0.07110959162 | Y32: 179.4941384 | Z32: 4 | AA32: 0 | AB32: 10.37904887 | AC32: 0.01232617448 | AD32: 26.72922916 | AE32: 3344.864028 | AF32: 3 | AG32: 0 | AH32: 5.772160032 | AI32: 0.05878341714 | AJ32: 152.7649092 | AK32: 545.9018139
E33: d | F33: 21.825 | I33: 24 | J33: 20.2963485 | K33: 9.3 | L33: 0 | M33: 0 | N33: -861.7768541 | O33: 0 | P33: 0 | Q33: 0 | R33: 70.73889813 | S33: -791.037956 | T33: 0 | U33: -52.11524436 | V33: 7 | W33: 0 | X33: 0.05958265684 | Y33: 151.5206219 | Z33: 4 | AA33: 0 | AB33: 10.38693097 | AC33: 0.007882096384 | AD33: 17.0601952 | AE33: 3340.251375 | AF33: 3 | AG33: 0 | AH33: 5.823860592 | AI33: 0.05170056046 | AJ33: 134.4604267 | AK33: 530.8268575
E34: e | F34: -12.684 | I34: 25 | J34: 20.1045339 | K34: 9.3 | L34: 0 | M34: 0 | N34: -861.208459 | O34: 0 | P34: 0 | Q34: 0 | R34: 59.46584568 | S34: -801.7426133 | T34: 0 | U34: -47.16115152 | V34: 7 | W34: 0 | X34: 0.05056535679 | Y34: 129.398027 | Z34: 4 | AA34: 0 | AB34: 10.39195792 | AC34: 0.005026954977 | AD34: 10.86733246 | AE34: 3337.313656 | AF34: 3 | AG34: 0 | AH34: 5.869398994 | AI34: 0.04553840181 | AJ34: 118.5306945 | AK34: 517.5553784
I35: 26 | J35: 13.59224853 | K35: 9.3 | L35: 0 | M35: 0 | N35: -860.7503323 | O35: 0 | P35: 0 | Q35: 0 | R35: 34.48567334 | S35: -826.2646589 | T35: 0 | U35: -43.39608868 | V35: 7 | W35: 0 | X35: 0.04337374169 | Y35: 111.5672047 | Z35: 4 | AA35: 0 | AB35: 10.39515851 | AC35: 0.003200592747 | AD35: 6.91373836 | AE35: 3335.444909 | AF35: 3 | AG35: 0 | AH35: 5.909572143 | AI35: 0.04017314894 | AJ35: 104.6534663 | AK35: 505.8477848

Sheet Uncertainty-LHS
A1: Nr of simulations | B1: 600
B2: TYPE: | C2: All | D2: All | E2: Triang | F2: Norm/Log-Norm | G2: Norm/Log-Norm
B3: [LogNormal Normal Uniform Triangle] | C3: min | D3: max | E3: mode | F3: m | G3: s
A4: N1 [1E06 Sm3] | B4: LogNormal | C4: 10 | D4: 80 | F4: 4 | G4: 0.430668
A5: N2 [1E06 Sm3] | B5: LogNormal | C5: 5 | D5: 60 | F5: 3.7 | G5: 0.2
A6: Cost factor | B6: Normal | C6: 0.6 | D6: 1.4 | F6: 1 | G6: 0.2
A7: Productivity factor 1 | B7: Uniform | C7: 0.8 | D7: 1.2
A8: Productivity factor 2 | B8: Uniform | C8: 0.8 | D8: 1.2
A10: Iteration | B10: N1 | C10: N2 | D10: Cost factor | E10: Prod fac 1 | F10: Prod fac 2
A11: [-] | B11: [1E06 Sm3] | C11: [1E06 Sm3] | D11: [-] | E11: [-] | F11: [-]
A12: 1 | B12: 30.43711992 | C12: 49.60748592 | D12: 0.6017703608 | E12: 1.123153344 | F12: 0.9001071551
A13: 2 | B13: 29.63820879 | C13: 46.51857691 | D13: 0.6124819766 | E13: 1.055501619 | F13: 0.8889103912
A14: 3 | B14: 68.78577392 | C14: 33.24891666 | D14: 0.6132392928 | E14: 0.818476211 | F14: 1.117611087
A15: 4 | B15: 63.03915976 | C15: 31.04956444 | D15: 0.6214140141 | E15: 1.030553117 | F15: 0.8266300221
A16: 5 | B16: 26.4116715 | C16: 45.68960115 | D16: 0.6278527935 | E16: 0.9711769063 | F16: 1.191093529
A17: 6 | B17: 35.05375728 | C17: 38.6820703 | D17: 0.632076777 | E17: 0.9922695114 | F17: 0.816611314
A18: 7 | B18: 32.82668488 | C18: 44.19708229 | D18: 0.6401348289 | E18: 1.08793949 | F18: 1.061778752
A19: 8 | B19: 56.685082 | C19: 40.01075292 | D19: 0.6444361696 | E19: 0.8981258633 | F19: 1.152804614
A20: 9 | B20: 54.44213546 | C20: 54.10010947 | D20: 0.6490386191 | E20: 1.064136026 | F20: 1.043612705
A21: 10 | B21: 34.76595519 | C21: 50.47754639 | D21: 0.6532787797 | E21: 0.9675805972 | F21: 0.8641392625
A22: 11 | B22: 46.74197727 | C22: 35.6274085 | D22: 0.6578995394 | E22: 0.9199362538 | F22: 1.037534181
A23: 12 | B23: 38.51242127 | C23: 24.93636373 | D23: 0.6608042785 | E23: 1.075421477 | F23: 1.005809696
A24: 13 | B24: 58.67189576 | C24: 40.92844198 | D24: 0.6642422456 | E24: 0.8484607389 | F24: 1.088187297
A25: 14 | B25: 56.3738862 | C25: 38.28126664 | D25: 0.6686216609 | E25: 1.183228177 | F25: 0.8569787518
A26: 15 | B26: 29.11873671 | C26: 37.74302185 | D26: 0.6708049954 | E26: 0.9032110866 | F26: 1.194684529
A27: 16 | B27: 46.24013994 | C27: 35.40426657 | D27: 0.6762994513 | E27: 0.9154898376 | F27: 1.031430022
A28: 17 | B28: 37.92504139 | C28: 51.33324479 | D28: 0.6788256468 | E28: 0.9220745929 | F28: 1.187023095
A29: 18 | B29: 35.4141466 | C29: 51.55251825 | D29: 0.6832957834 | E29: 1.145616396 | F29: 0.928761889
A30: 19 | B30: 46.73205043 | C30: 30.97422552 | D30: 0.6868360054 | E30: 0.9827720521 | F30: 1.158675984
A31: 20 | B31: 65.86660148 | C31: 41.72590629 | D31: 0.6902257509 | E31: 0.8930353311 | F31: 1.114313855
A32: 21 | B32: 66.2815526 | C32: 50.25136482 | D32: 0.6928656881 | E32: 0.8593360264 | F32: 1.120392378
A33: 22 | B33: 35.27717095 | C33: 38.6009968 | D33: 0.6943529283 | E33: 1.08319076 | F33: 1.083760044
A34: 23 | B34: 41.85532269 | C34: 42.84289849 | D34: 0.699061096 | E34: 0.8955496531 | F34: 0.9358882195
A35: 24 | B35: 69.76200157 | C35: 32.95476488 | D35: 0.7008056745 | E35: 0.9505669706 | F35: 1.1759224
A36: 25 | B36: 64.79165161 | C36: 47.50689629 | D36: 0.702824733 | E36: 1.043510164 | F36: 0.952341108
A37: 26 | B37: 28.98602226 | C37: 28.88626559 | D37: 0.708248217 | E37: 1.116042031 | F37: 0.8802214771
A38: 27 | B38: 49.90988101 | C38: 36.38235134 | D38: 0.7103938923 | E38: 1.063416168 | F38: 1.11693279
A39: 28 | B39: 15.16101156 | C39: 56.26345195 | D39: 0.7114688133 | E39: 0.9006678933 | F39: 0.8997632797
A40: 29 | B40: 42.32052966 | C40: 30.23415223 | D40: 0.716299898 | E40: 1.105818241 | F40: 1.09753949
A41: 30 | B41: 20.51874085 | C41: 37.23657454 | D41: 0.7184363202 | E41: 0.9439736702 | F41: 1.09506582
A42: 31 | B42: 53.69132228 | C42: 37.92673112 | D42: 0.7191230998 | E42: 0.9021547346 | F42: 0.9155923784
A43: 32 | B43: 45.74713446 | C43: 55.56982245 | D43: 0.7221664745 | E43: 0.9047512711 | F43: 1.054254039
A44: 33 | B44: 66.7981043 | C44: 42.93857087 | D44: 0.7262986818 | E44: 1.154378979 | F44: 0.9756180136
A45: 34 | B45: 66.16272403 | C45: 29.10749348 | D45: 0.7287038287 | E45: 1.116870902 | F45: 0.9330524212
A46: 35 | B46: 30.68073281 | C46: 42.44620361 | D46: 0.7305043483 | E46: 1.034012705 | F46: 0.8536965372
A47: 36 | B47: 38.57350429 | C47: 45.12380578 | D47: 0.7322426845 | E47: 0.910069284 | F47: 1.134336254
A48: 37 | B48: 70.22135694 | C48: 37.23074329 | D48: 0.735773054 | E48: 1.178438795 | F48: 1.171845494
A49: 38 | B49: 44.9441256 | C49: 42.60795222 | D49: 0.7367544366 | E49: 1.032184061 | F49: 1.007255885
A50: 39 | B50: 55.97125862 | C50: 45.03324133 | D50: 0.7395542002 | E50: 1.052178752 | F50: 0.9898845286
A51: 40 | B51: 39.47299018 | C51: 48.93523234 | D51: 0.7423773451 | E51: 0.9403976873 | F51: 0.8916233225
A52: 41 | B52: 75.00200587 | C52: 44.70638061 | D52: 0.7437827121 | E52: 0.9528078505 | F52: 1.163978979
A53: 42 | B53: 34.51321526 | C53: 29.47559256 | D53: 0.7466591 | E53: 1.127785679 | F53: 1.133561889
A54: 43 | B54: 64.37094411 | C54: 36.14036908 | D54: 0.7482075637 | E54: 0.8142337131 | F54: 1.143443876
A55: 44 | B55: 60.89742704 | C55: 42.62350569 | D55: 0.7504719899 | E55: 1.096087992 | F55: 1.1505157
A56: 45 | B56: 59.6668568 | C56: 45.07646369 | D56: 0.7515065312 | E56: 1.11214988 | F56: 0.8005290994
A57: 46 | B57: 23.56749186 | C57: 46.46147896 | D57: 0.755134299 | E57: 1.081334408 | F57: 0.8671191637
A58: 47 | B58: 59.15566413 | C58: 42.894235 | D58: 0.7570481173 | E58: 0.8382914557 | F58: 0.8494540393
A59: 48 | B59: 36.08151029 | C59: 40.79537542 | D59: 0.7588050722 | E59: 0.9262882195 | F59: 1.058496537
A60: 49 | B60: 48.08908701 | C60: 30.5992038 | D60: 0.7595016458 | E60: 1.026558426 | F60: 0.9430764384
A61: 50 | B61: 54.97462874 | C61: 40.2092184 | D61: 0.7613501137 | E61: 1.062319164 | F61: 1.189093074
A62: 51 | B62: 36.96320289 | C62: 40.15392515 | D62: 0.7641314557 | E62: 1.101952889 | F62: 1.188038795
A63: 52 | B63: 62.81260635 | C63: 39.55375294 | D63: 0.7668352178 | E63: 1.067828404 | F63: 0.9382593482
A64: 53 | B64: 63.83190205 | C64: 38.68978657 | D64: 0.7677252395 | E64: 1.167042258 | F64: 0.9037034642
A65: 54 | B65: 36.38643367 | C65: 52.1539668 | D65: 0.7698042934 | E65: 0.8677087732 | F65: 0.8034418033
A66: 55 | B66: 32.33232784 | C66: 36.20663134 | D66: 0.771513167 | E66: 1.128252421 | F66: 0.9232815199
A67: 56 | B67: 24.54449473 | C67: 49.31340913 | D67: 0.7737491068 | E67: 0.985684756 | F67: 1.176642258
A68: 57 | B68: 58.7604744 | C68: 32.51114402 | D68: 0.7756650694 | E68: 1.172380597 | F68: 0.8882247132
A69: 58 | B69: 52.58016113 | C69: 35.1000938 | D69: 0.777956098 | E69: 0.9603581981 | F69: 1.036158426
A70: 59 | B70: 67.85015534 | C70: 29.27125599 | D70: 0.7786858107 | E70: 0.8147207818 | F70: 1.041337644
A71: 60 | B71: 58.98588167 | C71: 39.78520595 | D71: 0.7804915275 | E71: 1.144395614 | F71: 0.9102678933
A72: 61 | B72: 53.04573409 | C72: 33.03041465 | D72: 0.7825451632 | E72: 0.9313189363 | F72: 0.8116575028
A73: 62 | B73: 67.26761426 | C73: 37.0781733 | D73: 0.7845899531 | E73: 1.089248958 | F73: 0.9984505758
A74: 63 | B74: 50.4657809 | C74: 41.40849316 | D74: 0.7861217226 | E74: 1.074160044 | F74: 1.09279076
A75: 64 | B75: 29.78113258 | C75: 43.14982434 | D75: 0.7870790177 | E75: 0.9576729749 | F75: 1.048409469
A76: 65 | B76: 62.11980035 | C76: 27.23817641 | D76: 0.7892618497 | E76: 0.987142726 | F76: 1.067170434
A77: 66 | B77: 42.61399763 | C77: 38.12524336 | D77: 0.7915169484 | E77: 1.146547808 | F77: 0.9879854514
A78: 67 | B78: 29.23629805 | C78: 43.22040369 | D78: 0.7921537566 | E78: 1.041098383 | F78: 1.019643649
A79: 68 | B79: 53.15602064 | C79: 47.86283107 | D79: 0.7943903433 | E79: 1.092551499 | F79: 1.003794224
A80: 69 | B80: 44.0572493 | C80: 44.88688902 | D80: 0.795830801 | E80: 0.9368623569 | F80: 1.057050348
A81: 70 | B81: 34.96508991 | C81: 42.02770412 | D81: 0.7971110428 | E81: 0.8199683612 | F81: 0.8672644298
A82: 71 | B82: 64.15511986 | C82: 44.86488592 | D82: 0.7996701795 | E82: 1.181493529 | F82: 0.9067528892
A83: 72 | B83: 33.33414436 | C83: 43.02947431 | D83: 0.7999441931 | E83: 0.9326401853 | F83: 1.160327254
A84: 73 | B84: 66.93279596 | C84: 41.91072039 | D84: 0.8015330555 | E84: 0.8052436488 | F84: 0.8353531166
A85: 74 | B85: 60.79080154 | C85: 44.54772752 | D85: 0.8030430959 | E85: 1.008913627 | F85: 1.191341335
A86: 75 | B86: 49.35512656 | C86: 32.29929746 | D86: 0.8047396514 | E86: 0.8292127046 | F86: 1.169064202
A87: 76 | B87: 22.82966178 | C87: 36.73740766 | D87: 0.8073610738 | E87: 1.017471129 | F87: 0.8879907603
A88: 77 | B88: 18.72866587 | C88: 48.14914883 | D88: 0.8086736451 | E88: 1.045867439 | F88: 0.9731240179
A89: 78 | B89: 41.81487933 | C89: 32.71985815 | D89: 0.8103889394 | E89: 0.9502849834 | F89: 0.9375875242
A90: 79 | B90: 43.52766961 | C90: 45.7644976 | D90: 0.8112622908 | E90: 0.9957290994 | F90: 0.8329819879
A91: 80 | B91: 41.935211 | C91: 31.32215239 | D91: 0.8131210257 | E91: 0.8398540393 | F91: 1.109086601
A92: 81 | B92: 63.65432633 | C92: 57.00425714 | D92: 0.8145751457 | E92: 1.168324018 | F92: 1.07523025
A93: 82 | B93: 69.1979416 | C93: 29.64644978 | D93: 0.8150302828 | E93: 0.9290438762 | F93: 1.141544799
A94: 83 | B94: 55.30023712 | C94: 37.60319071 | D94: 0.8165962052 | E94: 1.1409157 | F94: 0.8211752882
A95: 84 | B95: 68.51133586 | C95: 37.64862158 | D95: 0.8181259056 | E95: 0.8423822153 | F95: 1.15837367
A96: 85 | B96: 52.49455541 | C96: 35.48330887 | D96: 0.8193378084 | E96: 1.010043649 | F96: 1.023535799
A97: 86 | B97: 34.27341687 | C97: 49.48944656 | D97: 0.8214585774 | E97: 1.038809469 | F97: 0.8662967646
A98: 87 | B98: 44.40548452 | C98: 49.68133924 | D98: 0.8232934807 | E98: 1.013482911 | F98: 1.16720785
A99: 88 | B99: 30.98010262 | C99: 46.3895039 | D99: 0.8245021578 | E99: 1.059339263 | F99: 1.164684983
A100: 89 | B100: 53.65484737 | C100: 34.72934087 | D100: 0.8254765598 | E100: 0.912070902 | F100: 0.9598849834
A101: 90 | B101: 27.01782283 | C101: 34.14008955 | D101: 0.8263872454 | E101: 1.037137872 | F101: 0.8852916831
A102: 91 | B102: 55.06973654 | C102: 40.18526526 | D102: 0.8278408109 | E102: 0.8387101638 | F102: 0.9367447989
A103: 92 | B103: 51.01725041 | C103: 56.11781407 | D103: 0.8297668717 | E103: 1.102925863 | F103: 1.123305082
A104: 93 | B104: 28.71980702 | C104: 54.8737097 | D104: 0.8305201553 | E104: 0.9712538119 | F104: 1.082108773
A105: 94 | B105: 79.51536894 | C105: 48.11729871 | D105: 0.8320065607 | E105: 1.058490065 | F105: 0.9386438762
A106: 95 | B106: 31.1245831 | C106: 35.67224658 | D106: 0.8337258831 | E106: 1.129252194 | F106: 0.939677829
A107: 96 | B107: 67.08831653 | C107: 36.08781205 | D107: 0.8353415116 | E107: 1.050094919 | F107: 1.073736026
A108: 97 | B108: 62.61601904 | C108: 50.39519009 | D108: 0.8372190456 | E108: 1.11848152 | F108: 1.139640413
A109: 98 | B109: 60.6797839 | C109: 36.98851061 | D109: 0.8375639292 | E109: 1.077799078 | F109: 0.8773087732
A110: 99 | B110: 73.74025812 | C110: 50.08023201 | D110: 0.8398879182 | E110: 1.090421704 | F110: 0.8623704341
A111: 100 | B111: 45.31719553 | C111: 40.32295191 | D111: 0.8408578197 | E111: 0.8854625844 | F111: 1.012161662
A112: 101 | B112: 35.44340401 | C112: 32.86178192 | D112: 0.8415443234 | E112: 0.948606005 | F112: 0.8369840607
A113: 102 | B113: 38.36663443 | C113: 42.38767227 | D113: 0.8434103553 | E113: 1.12221455 | F113: 1.032306928
A114: 103 | B114: 44.59854257 | C114: 47.25606682 | D114: 0.8446763602 | E114: 1.171742953 | F114: 1.025975288
A115: 104 | B115: 39.33592217 | C115: 38.0868453 | D115: 0.8453750191 | E115: 0.8305702067 | F115: 0.9095138547
A116: 105 | B116: 40.59845919 | C116: 50.18107983 | D116: 0.8474871238 | E116: 0.9112420307 | F116: 0.8750743655
A117: 106 | B117: 44.28037763 | C117: 47.32437943 | D117: 0.8479157747 | E117: 0.919161889 | F117: 0.8689360264
A118: 107 | B118: 26.79495039 | C118: 56.78360722 | D118: 0.8501159401 | E118: 0.9455565801 | F118: 0.8445685886
A119: 108 | B119: 50.44787932 | C119: 55.40275092 | D119: 0.8514796511 | E119: 1.181741335 | F119: 1.098848958
A120: 109 | B120: 35.66614233 | C120: 47.03090779 | D120: 0.8521068103 | E120: 1.000019632 | F120: 1.068939263
A121: 110 | B121: 73.66390559 | C121: 36.99678612 | D121: 0.8539947942 | E121: 0.8889445715 | F121: 0.8522503484
A122: 111 | B122: 52.21712232 | C122: 49.72815068 | D122: 0.8542647726 | E122: 1.06563025 | F122: 1.185653812
A123: 112 | B123: 31.77169364 | C123: 41.28581077 | D123: 0.8553639652 | E123: 1.14877367 | F123: 0.8128986101
A124: 113 | B124: 41.18019801 | C124: 40.99657614 | D124: 0.8570401116 | E124: 1.150727254 | F124: 1.169804387
A125: 114 | B125: 45.78758755 | C125: 36.92100988 | D125: 0.8582023047 | E125: 1.001807623 | F125: 0.8024558847
A126: 115 | B126: 68.65121156 | C126: 32.82341842 | D126: 0.8599661654 | E126: 1.00809861 | F126: 1.01769861
A127: 116 | B127: 35.15016069 | C127: 36.42997631 | D127: 0.8604800622 | E127: 0.9049307175 | F127: 0.9296131594
A128: 117 | B128: 50.61612992 | C128: 35.78294947 | D128: 0.8622720009 | E128: 1.072508773 | F128: 0.9208420307
A129: 118 | B129: 57.82138619 | C129: 41.77842146 | D129: 0.8632987535 | E129: 0.9883154728 | F129: 1.138852194
A130: 119 | B130: 60.39788646 | C130: 45.60049881 | D130: 0.8644150931 | E130: 0.9769413354 | F130: 0.8952217045
A131: 120 | B131: 76.22364351 | C131: 39.34421985 | D131: 0.8658858275 | E131: 1.020247112 | F131: 0.8346812925
A132: 121 | B132: 32.09971141 | C132: 39.58978531 | D132: 0.8662775092 | E132: 1.080491683 | F132: 1.108503464
A133: 122 | B133: 37.57946778 | C133: 43.3344802 | D133: 0.8678106227 | E133: 0.9279875242 | F133: 1.185576906
A134: 123 | B134: 66.02029583 | C134: 27.54194641 | D134: 0.8694878207 | E134: 0.888354962 | F134: 1.161402769
A135: 124 | B135: 73.40170417 | C135: 45.9649142 | D135: 0.8703892911 | E135: 0.8473787518 | F135: 1.051301846
A136: 125 | B136: 37.82302399 | C136: 45.34361176 | D136: 0.8717811964 | E136: 0.8257531166 | F136: 0.927953344
A137: 126 | B137: 75.37118465 | C137: 38.38351872 | D137: 0.8723158271 | E137: 0.9735277088 | F137: 0.8338385672
A138: 127 | B138: 65.34312614 | C138: 39.83136661 | D138: 0.8733698719 | E138: 1.134877829 | F138: 0.8555122367
A139: 128 | B139: 60.0026853 | C139: 36.78643261 | D139: 0.875196071 | E139: 1.029881293 | F139: 0.8631106186
A140: 129 | B140: 62.6913767 | C140: 34.22862224 | D140: 0.8763985231 | E140: 1.010866048 | F140: 0.8844351037
A141: 130 | B141: 50.70574712 | C141: 42.81632297 | D141: 0.877123054 | E141: 1.164212932 | F141: 0.8950625844
A142: 131 | B142: 74.60858541 | C142: 33.77604583 | D142: 0.8787224023 | E142: 1.071700228 | F142: 1.001869511
A143: 132 | B143: 76.8889235 | C143: 43.09924757 | D143: 0.8799900446 | E143: 0.8217584255 | F143: 0.995284756
A144: 133 | B144: 53.35153189 | C144: 43.54904925 | D144: 0.8813121825 | E144: 1.133843876 | F144: 1.105687992
A145: 134 | B145: 36.24811233 | C145: 22.32095316 | D145: 0.8822206358 | E145: 0.8535106186 | F145: 1.077428404
A146: 135 | B146: 62.97505751 | C146: 37.12694823 | D146: 0.88291293 | E146: 1.098903464 | F146: 0.8478914557
A147: 136 | B147: 53.98020069 | C147: 40.46810175 | D147: 0.8842433451 | E147: 1.133459348 | F147: 1.137385679
A148: 137 | B148: 66.43946507 | C148: 31.97061799 | D148: 0.8853850841 | E148: 1.19584873 | F148: 1.187927709
A149: 138 | B149: 77.57379438 | C149: 41.05271098 | D149: 0.8864750663 | E149: 1.078587297 | F149: 0.8109173182
A150: 139 | B150: 44.52739819 | C150: 36.67657111 | D150: 0.8877053274 | E150: 0.9888505758 | F150: 0.9270145501
A151: 140 | B151: 61.90466874 | C151: 51.80675666 | D151: 0.8893218306 | E151: 0.9695939964 | F151: 0.9672729749
A152: 141 | B152: 38.44723863 | C152: 41.81782074 | D152: 0.889467657 | E152: 0.9470027689 | F152: 1.009619632
A153: 142 | B153: 48.65301257 | C153: 47.7854704 | D153: 0.8907351965 | E153: 0.9669429534 | F153: 0.9570011508
A154: 143 | B154: 36.68914805 | C154: 38.1762588 | D154: 0.8924902894 | E154: 1.110792378 | F154: 0.955527254
A155: 144 | B155: 60.15251088 | C155: 31.41175958 | D155: 0.89276632 | E155: 1.061496765 | F155: 1.00698037
A156: 145 | B156: 26.32048829 | C156: 57.3094124 | D156: 0.8938534374 | E156: 1.124736254 | F156: 0.919669284
A157: 146 | B157: 42.16588472 | C157: 50.76319469 | D157: 0.8952937474 | E157: 1.174393996 | F157: 0.9711223998
A158: 147 | B158: 43.4412548 | C158: 47.58810168 | D158: 0.8964671728 | E158: 0.8101771337 | F158: 0.8388127046
A159: 148 | B159: 60.2721875 | C159: 36.27866718 | D159: 0.8976181518 | E159: 0.942741108 | F159: 1.071096765
A160: 149 | B160: 72.34474315 | C160: 37.58865023 | D160: 0.8985332922 | E160: 0.9962096959 | F160: 0.8066076231
A161: 150 | B161: 61.49726939 | C161: 36.65642373 | D161: 0.9001416788 | E161: 1.125969979 | F161: 1.174758198
A162: 151 | B162: 27.87396287 | C162: 34.29825535 | D162: 0.9004585812 | E162: 1.048033486 | F162: 0.9699581981
A163: 152 | B163: 47.85602061 | C163: 37.17973491 | D163: 0.9024652376 | E163: 1.041701846 | F163: 1.145163507
A164: 153 | B164: 67.69892119 | C164: 38.51523259 | D164: 0.9032129124 | E164: 1.136118936 | F164: 0.9121327903
A165: 154 | B165: 71.12347047 | C165: 42.78159202 | D165: 0.903913348 | E165: 0.8820233225 | F165: 1.074988915
A166: 155 | B166: 22.18953983 | C166: 33.05997827 | D166: 0.9050346223 | E166: 1.005226559 | F166: 1.12808152
A167: 156 | B167: 40.22724512 | C167: 44.64623139 | D167: 0.9065265847 | E167: 0.9847170908 | F167: 1.180418014
A168: 157 | B168: 51.49203352 | C168: 37.04126332 | D168: 0.9071120076 | E168: 0.8659614342 | F168: 1.132753344
A169: 158 | B169: 54.13279128 | C169: 49.30183392 | D169: 0.9082703291 | E169: 1.198994224 | F169: 0.9422401853
A170: 159 | B170: 55.74109815 | C170: 40.24496067 | D170: 0.90961534 | E170: 0.8340094685 | F170: 1.19640416
A171: 160 | B171: 73.9629766 | C171: 26.77424432 | D171: 0.9106034893 | E171: 1.070274366 | F171: 0.9551565801
A172: 161 | B172: 59.30506616 | C172: 50.83085532 | D172: 0.9113103203 | E172: 1.101548035 | F172: 1.134413159
A173: 162 | B173: 61.01853107 | C173: 37.38169936 | D173: 0.9126377055 | E173: 1.040303692 | F173: 1.129889838
A174: 163 | B174: 57.450377 | C174: 47.98253713 | D174: 0.9131519881 | E174: 1.176053812 | F174: 0.8197771337
A175: 164 | B175: 37.05765481 | C175: 34.99346187 | D175: 0.9142051647 | E175: 1.029038567 | F175: 1.102151499
A176: 165 | B176: 33.50438386 | C176: 33.82940254 | D176: 0.9158008816 | E176: 0.8999138547 | F176: 0.9241648977
A177: 166 | B177: 45.60738967 | C177: 48.00812039 | D177: 0.9170168183 | E177: 0.8566967646 | F177: 0.969012932
A178: 167 | B178: 68.30260567 | C178: 35.81910832 | D178: 0.918310179 | E178: 0.8179069277 | F178: 1.057633486
A179: 168 | B179: 21.92850875 | C179: 42.43809696 | D179: 0.9188723422 | E179: 1.057570434 | F179: 0.9403635071
A180: 169 | B180: 63.16659278 | C180: 46.35607118 | D180: 0.9203020413 | E180: 1.138592606 | F180: 0.8458983827
A181: 170 | B181: 48.47056142 | C181: 27.1047346 | D181: 0.9209240974 | E181: 0.823134181 | F181: 0.9776676659
A182: 171 | B182: 59.93523787 | C182: 43.69584829 | D182: 0.9224361681 | E182: 1.155366971 | F182: 1.055467439
A183: 172 | B183: 75.07771689 | C183: 31.13491155 | D183: 0.9227913831 | E183: 1.004260966 | F183: 0.8182829106
A184: 173 | B184: 26.04062066 | C184: 48.27692473 | D184: 0.9243336163 | E184: 0.8086829106 | F184: 0.9340521938
A185: 174 | B185: 45.09670094 | C185: 46.20183212 | D185: 0.9248536154 | E185: 0.9615223998 | F185: 0.9183598162
A186: 175 | B186: 34.8103377 | C186: 49.81453492 | D186: 0.9261012473 | E186: 0.9161274814 | F186: 0.9464623569
A187: 176 | B187: 42.83674518 | C187: 39.7289716 | D187: 0.9270047474 | E187: 0.9799000007 | F187: 1.163006005
A188: 177 | B188: 41.51614947 | C188: 38.42081269 | D188: 0.9283865287 | E188: 1.198000923 | F188: 1.164966971
A189: 178 | B189: 39.61311666 | C189: 39.68922809 | D189: 0.9290768764 | E189: 1.100349653 | F189: 1.011407623
A190: 179 | B190: 59.38593326 | C190: 34.09490631 | D190: 0.930540441 | E190: 1.068836722 | F190: 0.882599078
A191: 180 | B191: 53.40460975 | C191: 37.48046108 | D191: 0.9312375544 | E191: 0.9384046144 | F191: 0.8156660479
A192: 181 | B192: 40.00830369 | C192: 39.1815069 | D192: 0.9324617294 | E192: 1.050712237 | F192: 1.182467666
A193: 182 | B193: 77.63109881 | C193: 28.02238193 | D193: 0.9335887913 | E193: 0.9649221724 | F193: 0.832734181
A194: 183 | B194: 57.97576831 | C194: 44.07875215 | D194: 0.93452373 | E194: 0.8440965372 | F194: 0.9681905329
A195: 184 | B195: 53.90475381 | C195: 35.19618942 | D195: 0.9347501754 | E195: 0.9918508032 | F195: 1.154797687
A196: 185 | B196: 44.33733461 | C196: 38.01535141 | D196: 0.9360881985 | E196: 0.9546642024 | F196: 0.8222711294
A197: 186 | B197: 33.02857428 | C197: 45.27007578 | D197: 0.937380425 | E197: 0.8269376445 | F197: 0.9771805972
A198: 187 | B198: 29.91657092 | C198: 43.53571641 | D198: 0.9385321986 | E198: 1.035370207 | F198: 0.8401702067
A199: 188 | B199: 45.43991298 | C199: 34.33814856 | D199: 0.9395627923 | E199: 0.8106780564 | F199: 1.090091683
A200: 189 | B200: 28.30439229 | C200: 38.20760423 | D200: 0.9407453801 | E200: 0.9574454942 | F200: 0.958206005
A201: 190 | B201: 27.67674298 | C201: 50.66013615 | D201: 0.941200465 | E201: 0.9784281767 | F201: 0.8436094685
... 410 more rows

Sheet Oil_Price
A1: Schwartz & Schmidt oil price model parameters | F1: *Parameters taken from Thomas and Bratvold (2015)
A2: Nyears | B2: 26
A3: delta t [years] | B3: 1
A4: N trajectories | B4: 500
A5: k | B5: 1.07
A6: sc | B6: 0.25
A7: c0 | B7: -0.34
A8: lc | B8: 0.08
A9: mx | B9: 0.05
A10: sx | B10: 0.19
A11: x0 | B11: 4.2
A12: lx | B12: 0.08
A13: rce | B13: 0.34
D14: Case Nr | E14: 1 | F14: 2 | G14: 3 | H14: 4 | I14: 5 | J14: 6 | K14: 7 | L14: 8 | M14: 9 | N14: 10 | O14: 11 | P14: 12 | Q14: 13 | R14: 14 | S14: 15 | T14: 16 | U14: 17 | V14: 18 | W14: 19 | X14: 20 | Y14: 21 | Z14: 22 | AA14: 23 | AB14: 24 | AC14: 25 | AD14: 26 | AE14: 27 | AF14: 28 | AG14: 29 | AH14: 30 | AI14: 31 | AJ14: 32 | AK14: 33 | AL14: 34 | AM14: 35 | AN14: 36 | AO14: 37 | AP14: 38 | AQ14: 39 | AR14: 40 | AS14: 41 | AT14: 42 | AU14: 43 | AV14: 44 | AW14: 45 | AX14: 46 | AY14: 47 | AZ14: 48 | BA14: 49 | BB14: 50 | BC14: 51 | BD14: 52 | BE14: 53 | BF14: 54 | BG14: 55 | BH14: 56 | BI14: 57 | BJ14: 58 | BK14: 59 | BL14: 60 | BM14: 61 | BN14: 62 | BO14: 63 | BP14: 64 | BQ14: 65 | BR14: 66 | BS14: 67 | BT14: 68 | BU14: 69 | BV14: 70 | BW14: 71 | BX14: 72 | BY14: 73 | BZ14: 74 | CA14: 75 | CB14: 76 | CC14: 77 | CD14: 78 | CE14: 79 | CF14: 80 | CG14: 81 | CH14: 82 | CI14: 83 | CJ14: 84 | CK14: 85 | CL14: 86 | CM14: 87 | CN14: 88 | CO14: 89 | CP14: 90 | CQ14: 91 | CR14: 92 | CS14: 93 | CT14: 94 | CU14: 95 | CV14: 96 | CW14: 97 | CX14: 98 | CY14: 99 | CZ14: 100 | DA14: 101 | DB14: 102 | DC14: 103 | DD14: 104 | DE14: 105 | DF14: 106 | DG14: 107 | DH14: 108 | DI14: 109 | DJ14: 110 | DK14: 111 | DL14: 112 | DM14: 113 | DN14: 114 | DO14: 115 | DP14: 116 | DQ14: 117 | DR14: 118 | DS14: 119 | DT14: 120 | DU14: 121 | DV14: 122 | DW14: 123 | DX14: 124 | DY14: 125 | DZ14: 126 | EA14: 127 | EB14: 128 | EC14: 129 | ED14: 130 | EE14: 131 | EF14: 132 | EG14: 133 | EH14: 134 | EI14: 135 | EJ14: 136 | EK14: 137 | EL14: 138 | EM14: 139 | EN14: 140 | EO14: 141 | EP14: 142 | EQ14: 143 | ER14: 144 | ES14: 145 | ET14: 146 | EU14: 147 | EV14: 148 | EW14: 149 | EX14: 150 | EY14: 151 | EZ14: 152 | FA14: 153 | FB14: 154 | FC14: 155 | FD14: 156 | FE14: 157 | FF14: 158 | FG14: 159 | FH14: 160 | FI14: 161 | FJ14: 162 | FK14: 163 | FL14: 164 | FM14: 165 | FN14: 166 | FO14: 167 | FP14: 168 | FQ14: 169 | FR14: 170 | FS14: 171 | FT14: 172 | FU14: 173 | FV14: 174 | FW14: 175 | FX14: 176 | FY14: 177 | FZ14: 178 | GA14: 179 | GB14: 180 | GC14: 181 | GD14: 182 | GE14: 183 | GF14: 184 | GG14: 185 | GH14: 186 | GI14: 187 | GJ14: 188 | GK14: 189 | GL14: 190 | GM14: 191 | GN14: 192 | GO14: 193 | GP14: 194 | GQ14: 195 | GR14: 196 | GS14: 197 | GT14: 198 | GU14: 199 | GV14: 200 | GW14: 201 | GX14: 202 | GY14: 203 | GZ14: 204 | HA14: 205 | HB14: 206 | HC14: 207 | HD14: 208 | HE14: 209 | HF14: 210 | HG14: 211 | HH14: 212 | HI14: 213 | HJ14: 214 | HK14: 215 | HL14: 216 | HM14: 217 | HN14: 218 | HO14: 219 | HP14: 220 | HQ14: 221 | HR14: 222 | HS14: 223 | HT14: 224 | HU14: 225 | HV14: 226 | HW14: 227 | HX14: 228 | HY14: 229 | HZ14: 230 | IA14: 231 | IB14: 232 | IC14: 233 | ID14: 234 | IE14: 235 | IF14: 236 | IG14: 237 | IH14: 238 | II14: 239 | IJ14: 240 | IK14: 241 | IL14: 242 | IM14: 243 | IN14: 244 | IO14: 245 | IP14: 246 | IQ14: 247 | IR14: 248 | IS14: 249 | IT14: 250 | IU14: 251 | IV14: 252 | IW14: 253 | IX14: 254 | IY14: 255 | IZ14: 256 | JA14: 257 | JB14: 258 | JC14: 259 | JD14: 260 | JE14: 261 | JF14: 262 | JG14: 263 | JH14: 264 | JI14: 265 | JJ14: 266 | JK14: 267 | JL14: 268 | JM14: 269 | JN14: 270 | JO14: 271 | JP14: 272 | JQ14: 273 | JR14: 274 | JS14: 275 | JT14: 276 | JU14: 277 | JV14: 278 | JW14: 279 | JX14: 280 | JY14: 281 | JZ14: 282 | KA14: 283 | KB14: 284 | KC14: 285 | KD14: 286 | KE14: 287 | KF14: 288 | KG14: 289 | KH14: 290 | KI14: 291 | KJ14: 292 | KK14: 293 | KL14: 294 | KM14: 295 | KN14: 296 | KO14: 297 | KP14: 298 | KQ14: 299 | KR14: 300 | KS14: 301 | KT14: 302 | KU14: 303 | KV14: 304 | KW14: 305 | KX14: 306 | KY14: 307 | KZ14: 308 | LA14: 309 | LB14: 310 | LC14: 311 | LD14: 312 | LE14: 313 | LF14: 314 | LG14: 315 | LH14: 316 | LI14: 317 | LJ14: 318 | LK14: 319 | LL14: 320 | LM14: 321 | LN14: 322 | LO14: 323 | LP14: 324 | LQ14: 325 | LR14: 326 | LS14: 327 | LT14: 328 | LU14: 329 | LV14: 330 | LW14: 331 | LX14: 332 | LY14: 333 | LZ14: 334 | MA14: 335 | MB14: 336 | MC14: 337 | MD14: 338 | ME14: 339 | MF14: 340 | MG14: 341 | MH14: 342 | MI14: 343 | MJ14: 344 | MK14: 345 | ML14: 346 | MM14: 347 | MN14: 348 | MO14: 349 | MP14: 350 | MQ14: 351 | MR14: 352 | MS14: 353 | MT14: 354 | MU14: 355 | MV14: 356 | MW14: 357 | MX14: 358 | MY14: 359 | MZ14: 360 | NA14: 361 | NB14: 362 | NC14: 363 | ND14: 364 | NE14: 365 | NF14: 366 | NG14: 367 | NH14: 368 | NI14: 369 | NJ14: 370 | NK14: 371 | NL14: 372 | NM14: 373 | NN14: 374 | NO14: 375 | NP14: 376 | NQ14: 377 | NR14: 378 | NS14: 379 | NT14: 380 | NU14: 381 | NV14: 382 | NW14: 383 | NX14: 384 | NY14: 385 | NZ14: 386 | OA14: 387 | OB14: 388 | OC14: 389 | OD14: 390 | OE14: 391 | OF14: 392 | OG14: 393 | OH14: 394 | OI14: 395 | OJ14: 396 | OK14: 397 | OL14: 398 | OM14: 399 | ON14: 400 | OO14: 401 | OP14: 402 | OQ14: 403 | OR14: 404 | OS14: 405 | OT14: 406 | OU14: 407 | OV14: 408 | OW14: 409 | OX14: 410 | OY14: 411 | OZ14: 412 | PA14: 413 | PB14: 414 | PC14: 415 | PD14: 416 | PE14: 417 | PF14: 418 | PG14: 419 | PH14: 420 | PI14: 421 | PJ14: 422 | PK14: 423 | PL14: 424 | PM14: 425 | PN14: 426 | PO14: 427 | PP14: 428 | PQ14: 429 | PR14: 430 | PS14: 431 | PT14: 432 | PU14: 433 | PV14: 434 | PW14: 435 | PX14: 436 | PY14: 437 | PZ14: 438 | QA14: 439 | QB14: 440 | QC14: 441 | QD14: 442 | QE14: 443 | QF14: 444 | QG14: 445 | QH14: 446 | QI14: 447 | QJ14: 448 | QK14: 449 | QL14: 450 | QM14: 451 | QN14: 452 | QO14: 453 | QP14: 454 | QQ14: 455 | QR14: 456 | QS14: 457 | QT14: 458 | QU14: 459 | QV14: 460 | QW14: 461 | QX14: 462 | QY14: 463 | QZ14: 464 | RA14: 465 | RB14: 466 | RC14: 467 | RD14: 468 | RE14: 469 | RF14: 470 | RG14: 471 | RH14: 472 | RI14: 473 | RJ14: 474 | RK14: 475 | RL14: 476 | RM14: 477 | RN14: 478 | RO14: 479 | RP14: 480 | RQ14: 481 | RR14: 482 | RS14: 483 | RT14: 484 | RU14: 485 | RV14: 486 | RW14: 487 | RX14: 488 | RY14: 489 | RZ14: 490 | SA14: 491 | SB14: 492 | SC14: 493 | SD14: 494 | SE14: 495 | SF14: 496 | SG14: 497 | SH14: 498 | SI14: 499 | SJ14: 500 | SK14: 501 | SL14: 502 | SM14: 503 | SN14: 504 | SO14: 505 | SP14: 506 | SQ14: 507 | SR14: 508 | SS14: 509 | ST14: 510 | SU14: 511 | SV14: 512 | SW14: 513 | SX14: 514 | SY14: 515 | SZ14: 516 | TA14: 517 | TB14: 518 | TC14: 519 | TD14: 520 | TE14: 521 | TF14: 522 | TG14: 523 | TH14: 524 | TI14: 525 | TJ14: 526 | TK14: 527 | TL14: 528 | TM14: 529 | TN14: 530 | TO14: 531 | TP14: 532 | TQ14: 533 | TR14: 534 | TS14: 535 | TT14: 536 | TU14: 537 | TV14: 538 | TW14: 539 | TX14: 540 | TY14: 541 | TZ14: 542 | UA14: 543 | UB14: 544 | UC14: 545 | UD14: 546 | UE14: 547 | UF14: 548 | UG14: 549 | UH14: 550 | UI14: 551 | UJ14: 552 | UK14: 553 | UL14: 554 | UM14: 555 | UN14: 556 | UO14: 557 | UP14: 558 | UQ14: 559 | UR14: 560 | US14: 561 | UT14: 562 | UU14: 563 | UV14: 564 | UW14: 565 | UX14: 566 | UY14: 567 | UZ14: 568 | VA14: 569 | VB14: 570 | VC14: 571 | VD14: 572 | VE14: 573 | VF14: 574 | VG14: 575 | VH14: 576 | VI14: 577 | VJ14: 578 | VK14: 579 | VL14: 580 | VM14: 581 | VN14: 582 | VO14: 583 | VP14: 584 | VQ14: 585 | VR14: 586 | VS14: 587 | VT14: 588 | VU14: 589 | VV14: 590 | VW14: 591 | VX14: 592 | VY14: 593 | VZ14: 594 | WA14: 595 | WB14: 596 | WC14: 597 | WD14: 598 | WE14: 599 | WF14: 600 | WG14: 601 | WH14: 602 | WI14: 603 | WJ14: 604 | WK14: 605 | WL14: 606 | WM14: 607 | WN14: 608 | WO14: 609 | WP14: 610 | WQ14: 611 | WR14: 612 | WS14: 613 | WT14: 614 | WU14: 615 | WV14: 616 | WW14: 617 | WX14: 618 | WY14: 619 | WZ14: 620 | XA14: 621 | XB14: 622 | XC14: 623 | XD14: 624 | XE14: 625 | XF14: 626 | XG14: 627 | XH14: 628 | XI14: 629 | XJ14: 630 | XK14: 631 | XL14: 632 | XM14: 633 | XN14: 634 | XO14: 635 | XP14: 636 | XQ14: 637 | XR14: 638 | XS14: 639 | XT14: 640 | XU14: 641 | XV14: 642 | XW14: 643 | XX14: 644 | XY14: 645 | XZ14: 646 | YA14: 647 | YB14: 648 | YC14: 649 | YD14: 650 | YE14: 651 | YF14: 652 | YG14: 653 | YH14: 654 | YI14: 655 | YJ14: 656 | YK14: 657 | YL14: 658 | YM14: 659 | YN14: 660 | YO14: 661 | YP14: 662 | YQ14: 663 | YR14: 664 | YS14: 665 | YT14: 666 | YU14: 667 | YV14: 668 | YW14: 669 | YX14: 670 | YY14: 671 | YZ14: 672 | ZA14: 673 | ZB14: 674 | ZC14: 675 | ZD14: 676 | ZE14: 677 | ZF14: 678 | ZG14: 679 | ZH14: 680 | ZI14: 681 | ZJ14: 682 | ZK14: 683 | ZL14: 684 | ZM14: 685 | ZN14: 686 | ZO14: 687 | ZP14: 688 | ZQ14: 689 | ZR14: 690 | ZS14: 691 | ZT14: 692 | ZU14: 693 | ZV14: 694 | ZW14: 695 | ZX14: 696 | ZY14: 697 | ZZ14: 698 | AAA14: 699 | AAB14: 700 | AAC14: 701 | AAD14: 702 | AAE14: 703 | AAF14: 704 | AAG14: 705 | AAH14: 706 | AAI14: 707 | AAJ14: 708 | AAK14: 709 | AAL14: 710 | AAM14: 711 | AAN14: 712 | AAO14: 713 | AAP14: 714 | AAQ14: 715 | AAR14: 716 | AAS14: 717 | AAT14: 718 | AAU14: 719 | AAV14: 720 | AAW14: 721 | AAX14: 722 | AAY14: 723 | AAZ14: 724 | ABA14: 725 | ABB14: 726 | ABC14: 727 | ABD14: 728 | ABE14: 729 | ABF14: 730 | ABG14: 731 | ABH14: 732 | ABI14: 733 | ABJ14: 734 | ABK14: 735 | ABL14: 736 | ABM14: 737 | ABN14: 738 | ABO14: 739 | ABP14: 740 | ABQ14: 741 | ABR14: 742 | ABS14: 743 | ABT14: 744 | ABU14: 745 | ABV14: 746 | ABW14: 747 | ABX14: 748 | ABY14: 749 | ABZ14: 750 | ACA14: 751 | ACB14: 752 | ACC14: 753 | ACD14: 754 | ACE14: 755 | ACF14: 756 | ACG14: 757 | ACH14: 758 | ACI14: 759 | ACJ14: 760 | ACK14: 761 | ACL14: 762 | ACM14: 763 | ACN14: 764 | ACO14: 765 | ACP14: 766 | ACQ14: 767 | ACR14: 768 | ACS14: 769 | ACT14: 770 | ACU14: 771 | ACV14: 772 | ACW14: 773 | ACX14: 774 | ACY14: 775 | ACZ14: 776 | ADA14: 777 | ADB14: 778 | ADC14: 779 | ADD14: 780 | ADE14: 781 | ADF14: 782 | ADG14: 783 | ADH14: 784 | ADI14: 785 | ADJ14: 786 | ADK14: 787 | ADL14: 788 | ADM14: 789 | ADN14: 790 | ADO14: 791 | ADP14: 792 | ADQ14: 793 | ADR14: 794 | ADS14: 795 | ADT14: 796 | ADU14: 797 | ADV14: 798 | ADW14: 799 | ADX14: 800 | ADY14: 801 | ADZ14: 802 | AEA14: 803 | AEB14: 804 | AEC14: 805 | AED14: 806 | AEE14: 807 | AEF14: 808 | AEG14: 809 | AEH14: 810 | AEI14: 811 | AEJ14: 812 | AEK14: 813 | AEL14: 814 | AEM14: 815 | AEN14: 816 | AEO14: 817 | AEP14: 818 | AEQ14: 819 | AER14: 820 | AES14: 821 | AET14: 822 | AEU14: 823 | AEV14: 824 | AEW14: 825 | AEX14: 826 | AEY14: 827 | AEZ14: 828 | AFA14: 829 | AFB14: 830 | AFC14: 831 | AFD14: 832 | AFE14: 833 | AFF14: 834 | AFG14: 835 | AFH14: 836 | AFI14: 837 | AFJ14: 838 | AFK14: 839 | AFL14: 840 | AFM14: 841 | AFN14: 842 | AFO14: 843 | AFP14: 844 | AFQ14: 845 | AFR14: 846 | AFS14: 847 | AFT14: 848 | AFU14: 849 | AFV14: 850 | AFW14: 851 | AFX14: 852 | AFY14: 853 | AFZ14: 854 | AGA14: 855 | AGB14: 856 | AGC14: 857 | AGD14: 858 | AGE14: 859 | AGF14: 860 | AGG14: 861 | AGH14: 862 | AGI14: 863 | AGJ14: 864 | AGK14: 865 | AGL14: 866 | AGM14: 867 | AGN14: 868 | AGO14: 869 | AGP14: 870 | AGQ14: 871 | AGR14: 872 | AGS14: 873 | AGT14: 874 | AGU14: 875 | AGV14: 876 | AGW14: 877 | AGX14: 878 | AGY14: 879 | AGZ14: 880 | AHA14: 881 | AHB14: 882 | AHC14: 883 | AHD14: 884 | AHE14: 885 | AHF14: 886 | AHG14: 887 | AHH14: 888 | AHI14: 889 | AHJ14: 890 | AHK14: 891 | AHL14: 892 | AHM14: 893 | AHN14: 894 | AHO14: 895 | AHP14: 896 | AHQ14: 897 | AHR14: 898 | AHS14: 899 | AHT14: 900 | AHU14: 901 | AHV14: 902 | AHW14: 903 | AHX14: 904 | AHY14: 905 | AHZ14: 906 | AIA14: 907 | AIB14: 908 | AIC14: 909 | AID14: 910 | AIE14: 911 | AIF14: 912 | AIG14: 913 | AIH14: 914 | AII14: 915 | AIJ14: 916 | AIK14: 917 | AIL14: 918 | AIM14: 919 | AIN14: 920 | AIO14: 921 | AIP14: 922 | AIQ14: 923 | AIR14: 924 | AIS14: 925 | AIT14: 926 | AIU14: 927 | AIV14: 928 | AIW14: 929 | AIX14: 930 | AIY14: 931 | AIZ14: 932 | AJA14: 933 | AJB14: 934 | AJC14: 935 | AJD14: 936 | AJE14: 937 | AJF14: 938 | AJG14: 939 | AJH14: 940 | AJI14: 941 | AJJ14: 942 | AJK14: 943 | AJL14: 944 | AJM14: 945 | AJN14: 946 | AJO14: 947 | AJP14: 948 | AJQ14: 949 | AJR14: 950 | AJS14: 951 | AJT14: 952 | AJU14: 953 | AJV14: 954 | AJW14: 955 | AJX14: 956 | AJY14: 957 | AJZ14: 958 | AKA14: 959 | AKB14: 960 | AKC14: 961 | AKD14: 962 | AKE14: 963 | AKF14: 964 | AKG14: 965 | AKH14: 966 | AKI14: 967 | AKJ14: 968 | AKK14: 969 | AKL14: 970 | AKM14: 971 | AKN14: 972 | AKO14: 973 | AKP14: 974 | AKQ14: 975 | AKR14: 976 | AKS14: 977 | AKT14: 978 | AKU14: 979 | AKV14: 980 | AKW14: 981 | AKX14: 982 | AKY14: 983 | AKZ14: 984 | ALA14: 985 | ALB14: 986 | ALC14: 987 | ALD14: 988 | ALE14: 989 | ALF14: 990 | ALG14: 991 | ALH14: 992 | ALI14: 993 | ALJ14: 994 | ALK14: 995 | ALL14: 996 | ALM14: 997 | ALN14: 998 | ALO14: 999 | ALP14: 1000
A15: P10 [USD/bbl] | B15: P90 [USD/bbl] | C15: Mean [USD/bbl] | D15: time [years] | E15: oil price
A16: =C16 -> 47 | B16: =C16 -> 47 | C16: 47 | D16: 0 | E16: [USD/bbl]
A17: =_xlfn.PERCENTILE.INC(E17:XFD17,0.1) -> 39.08135337 | B17: =_xlfn.PERCENTILE.INC(E17:XFD17,0.9) -> 74.99326187 | C17: =AVERAGE(E17:XFD17) -> 56.61379599 | D17: 1 | E17: 41.37290127 | F17: 75.95998713 | G17: 51.2838063 | H17: 50.1711846 | I17: 48.91606548 | J17: 43.36123905 | K17: 46.40204407 | L17: 76.04240707 | M17: 73.2715037 | N17: 47.93795603 | O17: 41.5888339 | P17: 72.94548763 | Q17: 63.39836537 | R17: 41.5632242 | S17: 74.99166849 | T17: 71.0867653 | U17: 70.42092215 | V17: 62.52670155 | W17: 37.86408568 | X17: 62.48219192 | Y17: 59.41230593 | Z17: 54.74529608 | AA17: 46.69858449 | AB17: 49.09869109 | AC17: 46.85579413 | AD17: 45.6083492 | AE17: 51.89909524 | AF17: 37.54494212 | AG17: 82.43285056 | AH17: 72.45760314 | AI17: 44.79305501 | AJ17: 46.14859935 | AK17: 41.24709449 | AL17: 71.21186994 | AM17: 67.11653771 | AN17: 37.61661486 | AO17: 37.64261142 | AP17: 67.36760679 | AQ17: 58.26794124 | AR17: 59.10532541 | AS17: 57.14550189 | AT17: 51.67630992 | AU17: 49.89378746 | AV17: 52.14718073 | AW17: 50.3751908 | AX17: 46.22057763 | AY17: 79.90374549 | AZ17: 49.97388866 | BA17: 62.65440043 | BB17: 52.35442668 | BC17: 87.15595734 | BD17: 62.57849872 | BE17: 61.83825473 | BF17: 56.05172333 | BG17: 52.21669035 | BH17: 37.98661141 | BI17: 50.43200915 | BJ17: 29.05245078 | BK17: 82.84478107 | BL17: 59.99309436 | BM17: 45.04177837 | BN17: 60.77574182 | BO17: 68.72751439 | BP17: 36.58304807 | BQ17: 54.46168715 | BR17: 64.47422594 | BS17: 52.56196538 | BT17: 66.67852887 | BU17: 42.83007538 | BV17: 56.12927129 | BW17: 51.27701989 | BX17: 53.05913695 | BY17: 51.27503226 | BZ17: 51.9053496 | CA17: 87.86564132 | CB17: 34.44896156 | CC17: 42.32673456 | CD17: 56.75896211 | CE17: 61.96089822 | CF17: 32.0161758 | CG17: 54.93162588 | CH17: 47.40465797 | CI17: 73.54133974 | CJ17: 39.2183661 | CK17: 41.02586811 | CL17: 76.21567763 | CM17: 73.23606329 | CN17: 65.06688541 | CO17: 62.86508099 | CP17: 40.36678973 | CQ17: 69.59610899 | CR17: 58.42461445 | CS17: 79.05399321 | CT17: 70.2933056 | CU17: 44.32482054 | CV17: 44.69856067 | CW17: 74.90777787 | CX17: 64.27028215 | CY17: 66.29351136 | CZ17: 37.75817171 | DA17: 36.42062041 | DB17: 66.24798206 | DC17: 57.13661635 | DD17: 58.15652469 | DE17: 63.15423026 | DF17: 41.81633216 | DG17: 73.04664766 | DH17: 71.45770426 | DI17: 71.45304247 | DJ17: 62.77309438 | DK17: 37.20077475 | DL17: 62.21601472 | DM17: 59.38422711 | DN17: 39.09466175 | DO17: 59.7240298 | DP17: 55.54410665 | DQ17: 52.281547 | DR17: 46.20299589 | DS17: 51.85759306 | DT17: 49.92768678 | DU17: 81.75294284 | DV17: 72.10887233 | DW17: 54.31424781 | DX17: 45.967871 | DY17: 39.32132137 | DZ17: 44.56805845 | EA17: 67.41064599 | EB17: 38.44364336 | EC17: 75.68139064 | ED17: 49.51181247 | EE17: 89.15153947 | EF17: 48.74218168 | EG17: 47.56663046 | EH17: 42.81761047 | EI17: 79.33592496 | EJ17: 72.8025352 | EK17: 72.54810185 | EL17: 43.96683265 | EM17: 39.08895496 | EN17: 63.84265739 | EO17: 44.64492438 | EP17: 81.17055412 | EQ17: 49.32190367 | ER17: 48.7040761 | ES17: 81.46098801 | ET17: 69.99255016 | EU17: 33.53674789 | EV17: 43.79243635 | EW17: 40.79432119 | EX17: 78.46342452 | EY17: 63.56227064 | EZ17: 67.23361823 | FA17: 69.11710344 | FB17: 64.62043156 | FC17: 35.82032805 | FD17: 56.89808396 | FE17: 68.48281785 | FF17: 58.72728265 | FG17: 60.25371751 | FH17: 64.67003117 | FI17: 69.37573291 | FJ17: 43.53933501 | FK17: 44.32295924 | FL17: 37.42707194 | FM17: 33.50863044 | FN17: 65.31777334 | FO17: 56.12430255 | FP17: 57.13302983 | FQ17: 61.66484735 | FR17: 56.71795025 | FS17: 62.43247463 | FT17: 27.09743732 | FU17: 54.80508706 | FV17: 47.99936826 | FW17: 69.06159934 | FX17: 52.91569348 | FY17: 58.35086861 | FZ17: 37.36113223 | GA17: 58.26069238 | GB17: 53.52002218 | GC17: 71.174467 | GD17: 58.62051163 | GE17: 58.46067231 | GF17: 57.89649831 | GG17: 55.90601372 | GH17: 51.48994741 | GI17: 101.6029698 | GJ17: 50.57269281 | GK17: 49.1996725 | GL17: 53.90963853 | GM17: 46.50642101 | GN17: 76.94539601 | GO17: 75.0076023 | GP17: 48.23061988 | GQ17: 88.40254081 | GR17: 71.70502935 | GS17: 63.79274516 | GT17: 42.31291324 | GU17: 71.83346834 | GV17: 71.96853679 | GW17: 72.90047977 | GX17: 89.87288811 | GY17: 36.02051072 | GZ17: 62.00938344 | HA17: 106.9933378 | HB17: 38.9289093 | HC17: 65.50079168 | HD17: 55.23297548 | HE17: 52.34971048 | HF17: 59.96001731 | HG17: 59.2097752 | HH17: 58.40235229 | HI17: 80.40929893 | HJ17: 63.3096305 | HK17: 45.29512761 | HL17: 45.72878672 | HM17: 83.42689024 | HN17: 44.97811925 | HO17: 48.11991662 | HP17: 39.01293901 | HQ17: 76.36974541 | HR17: 67.62254005 | HS17: 43.01896745 | HT17: 35.57093618 | HU17: 65.46424086 | HV17: 59.69982366 | HW17: 65.01716999 | HX17: 36.58543076 | HY17: 61.16049626 | HZ17: 64.51229928 | IA17: 38.61523875 | IB17: 64.79841991 | IC17: 45.60333496 | ID17: 41.20552349 | IE17: 71.77836889 | IF17: 58.87161038 | IG17: 55.04722612 | IH17: 49.88823473 | II17: 53.54955823 | IJ17: 49.96590926 | IK17: 42.74326536 | IL17: 54.19228938 | IM17: 64.90468642 | IN17: 50.60210551 | IO17: 78.77070491 | IP17: 103.9381684 | IQ17: 73.34177457 | IR17: 54.76807893 | IS17: 40.06303381 | IT17: 45.58581055 | IU17: 61.28421112 | IV17: 48.52045941 | IW17: 62.05345595 | IX17: 75.48131186 | IY17: 67.59161123 | IZ17: 45.8524252 | JA17: 49.20967423 | JB17: 60.64016048 | JC17: 55.97795155 | JD17: 46.92906242 | JE17: 40.13371049 | JF17: 35.37997894 | JG17: 43.70648874 | JH17: 53.91537216 | JI17: 56.51482175 | JJ17: 49.44303709 | JK17: 49.19355126 | JL17: 57.27510664 | JM17: 29.24045593 | JN17: 72.7506712 | JO17: 47.11844511 | JP17: 54.15209674 | JQ17: 82.0875804 | JR17: 48.45170104 | JS17: 55.94110667 | JT17: 30.33078111 | JU17: 65.05160514 | JV17: 48.4187968 | JW17: 46.47693764 | JX17: 53.66940047 | JY17: 46.305644 | JZ17: 69.2775011 | KA17: 70.74303111 | KB17: 44.30084017 | KC17: 72.44128543 | KD17: 55.41544122 | KE17: 52.34432016 | KF17: 32.20012284 | KG17: 59.24467541 | KH17: 62.84541908 | KI17: 43.17194703 | KJ17: 47.77934696 | KK17: 48.0395574 | KL17: 49.04639517 | KM17: 45.03476123 | KN17: 40.69051754 | KO17: 35.55171052 | KP17: 38.63688625 | KQ17: 74.7642315 | KR17: 50.29637973 | KS17: 51.27980687 | KT17: 55.35652538 | KU17: 59.07049499 | KV17: 79.00368906 | KW17: 59.22491606 | KX17: 51.15796308 | KY17: 70.51528059 | KZ17: 57.0388091 | LA17: 65.55748274 | LB17: 72.46764481 | LC17: 72.17313641 | LD17: 53.19143857 | LE17: 80.72787835 | LF17: 58.54973725 | LG17: 55.70660603 | LH17: 75.24358764 | LI17: 64.43831502 | LJ17: 63.14348368 | LK17: 46.2767905 | LL17: 61.27270779 | LM17: 64.97076237 | LN17: 47.05545887 | LO17: 73.07670295 | LP17: 64.34746617 | LQ17: 36.84604071 | LR17: 40.13151497 | LS17: 78.97194355 | LT17: 53.18332374 | LU17: 55.77523534 | LV17: 73.05353461 | LW17: 62.84486716 | LX17: 79.21127499 | LY17: 46.0990683 | LZ17: 55.9133795 | MA17: 70.84057066 | MB17: 44.06535417 | MC17: 35.38030216 | MD17: 77.54610503 | ME17: 74.55015979 | MF17: 32.12922049 | MG17: 50.78192731 | MH17: 45.72082983 | MI17: 58.82304563 | MJ17: 47.14585359 | MK17: 40.12302256 | ML17: 66.32127352 | MM17: 74.04742096 | MN17: 77.76766693 | MO17: 68.00745297 | MP17: 72.1946666 | MQ17: 45.57050501 | MR17: 52.44536283 | MS17: 55.47440006 | MT17: 40.87488702 | MU17: 93.44331011 | MV17: 57.55849602 | MW17: 59.04792258 | MX17: 44.87160354 | MY17: 69.71603482 | MZ17: 82.49099641 | NA17: 60.8955206 | NB17: 35.04364446 | NC17: 72.1494256 | ND17: 47.2995727 | NE17: 36.82611534 | NF17: 45.57290984 | NG17: 78.54647005 | NH17: 31.80284927 | NI17: 55.50198469 | NJ17: 48.10768276 | NK17: 62.50563428 | NL17: 53.14185948 | NM17: 50.79267419 | NN17: 68.96020341 | NO17: 70.83944904 | NP17: 47.83258224 | NQ17: 71.80588939 | NR17: 77.0165424 | NS17: 51.81090239 | NT17: 31.94565947 | NU17: 58.73730855 | NV17: 45.53479413 | NW17: 42.62299661 | NX17: 29.61131716 | NY17: 45.21496742 | NZ17: 48.10798437 | OA17: 51.13053272 | OB17: 59.51339416 | OC17: 51.44395974 | OD17: 38.14163937 | OE17: 69.20350739 | OF17: 49.55961433 | OG17: 37.3920373 | OH17: 61.47151488 | OI17: 86.03440927 | OJ17: 84.34204293 | OK17: 58.33920675 | OL17: 50.34226521 | OM17: 48.31627633 | ON17: 67.95256213 | OO17: 55.73551048 | OP17: 32.81981912 | OQ17: 72.48353286 | OR17: 46.62353846 | OS17: 36.98918311 | OT17: 57.59643323 | OU17: 77.613883 | OV17: 33.37454558 | OW17: 54.59259181 | OX17: 47.60894551 | OY17: 45.47233865 | OZ17: 52.07373745 | PA17: 65.64721268 | PB17: 51.07835702 | PC17: 48.10790876 | PD17: 56.11474439 | PE17: 54.42361086 | PF17: 57.70939807 | PG17: 38.74212846 | PH17: 43.12374634 | PI17: 102.934323 | PJ17: 58.04098301 | PK17: 43.23599518 | PL17: 68.66506099 | PM17: 61.52434307 | PN17: 47.8542131 | PO17: 41.73977642 | PP17: 59.27271073 | PQ17: 51.23686709 | PR17: 37.94897143 | PS17: 64.69717949 | PT17: 49.36197428 | PU17: 37.46403076 | PV17: 61.14904625 | PW17: 84.91894317 | PX17: 86.21357127 | PY17: 75.15211649 | PZ17: 50.13152297 | QA17: 48.12712006 | QB17: 66.82006887 | QC17: 54.99587173 | QD17: 40.46038053 | QE17: 51.32670986 | QF17: 60.70180435 | QG17: 58.81623518 | QH17: 41.22165052 | QI17: 57.7641896 | QJ17: 48.9597914 | QK17: 89.97815936 | QL17: 61.25947143 | QM17: 58.66054697 | QN17: 39.81909686 | QO17: 65.29955098 | QP17: 69.60346742 | QQ17: 47.8183465 | QR17: 55.58429317 | QS17: 54.17188258 | QT17: 39.95289025 | QU17: 54.16653835 | QV17: 42.17170803 | QW17: 35.52108301 | QX17: 41.62079529 | QY17: 53.28557887 | QZ17: 65.47403741 | RA17: 61.27513081 | RB17: 64.55348308 | RC17: 40.6405658 | RD17: 88.17862521 | RE17: 51.03069198 | RF17: 50.01219755 | RG17: 80.47953273 | RH17: 50.09669281 | RI17: 54.20405036 | RJ17: 40.86361415 | RK17: 63.44399461 | RL17: 71.59088806 | RM17: 44.63393234 | RN17: 60.85837404 | RO17: 46.9304723 | RP17: 42.68405937 | RQ17: 63.7405665 | RR17: 91.21766487 | RS17: 69.59754627 | RT17: 46.97661589 | RU17: 50.76034222 | RV17: 64.21940778 | RW17: 57.46736525 | RX17: 67.03698636 | RY17: 89.96714277 | RZ17: 33.55012062 | SA17: 58.38226552 | SB17: 39.52500636 | SC17: 64.96471207 | SD17: 69.13142957 | SE17: 47.517642 | SF17: 54.99194828 | SG17: 53.92645341 | SH17: 72.77579576 | SI17: 54.99021674 | SJ17: 61.91287794 | SK17: 92.36130168 | SL17: 71.94736429 | SM17: 81.53028386 | SN17: 52.23020964 | SO17: 52.98423194 | SP17: 49.99395704 | SQ17: 50.02429603 | SR17: 53.01300947 | SS17: 61.22737663 | ST17: 55.2809681 | SU17: 59.57809363 | SV17: 47.79037637 | SW17: 61.26291256 | SX17: 31.54507131 | SY17: 58.5937761 | SZ17: 61.99879182 | TA17: 71.17187855 | TB17: 31.35438005 | TC17: 88.69205018 | TD17: 56.06386002 | TE17: 61.17282352 | TF17: 48.13444252 | TG17: 55.85027014 | TH17: 52.36339185 | TI17: 36.80276321 | TJ17: 49.24185426 | TK17: 50.16630869 | TL17: 37.25617654 | TM17: 69.59865442 | TN17: 55.44170165 | TO17: 65.29983533 | TP17: 54.10245533 | TQ17: 62.60052085 | TR17: 99.28670315 | TS17: 58.77862175 | TT17: 62.49127392 | TU17: 63.2582902 | TV17: 75.9417179 | TW17: 56.49579946 | TX17: 46.50861717 | TY17: 61.29715261 | TZ17: 47.85870656 | UA17: 41.69876273 | UB17: 60.8644579 | UC17: 54.6178942 | UD17: 43.50497877 | UE17: 37.535116 | UF17: 75.34056266 | UG17: 58.28162472 | UH17: 64.78466941 | UI17: 78.19943595 | UJ17: 54.61569988 | UK17: 71.89497998 | UL17: 48.61653386 | UM17: 68.91898295 | UN17: 74.41574428 | UO17: 64.20147208 | UP17: 44.59079909 | UQ17: 53.09129123 | UR17: 68.71408618 | US17: 44.60078663 | UT17: 55.2739033 | UU17: 47.45233772 | UV17: 66.9791938 | UW17: 66.96794368 | UX17: 60.93549844 | UY17: 37.32180814 | UZ17: 70.62261799 | VA17: 25.82216119 | VB17: 58.57331547 | VC17: 70.63524366 | VD17: 71.68691215 | VE17: 48.18158784 | VF17: 43.12117858 | VG17: 52.61734321 | VH17: 55.7344857 | VI17: 56.75801393 | VJ17: 47.88004255 | VK17: 59.16493227 | VL17: 49.99510876 | VM17: 53.7668389 | VN17: 43.0941202 | VO17: 50.93062545 | VP17: 47.13969558 | VQ17: 48.8395772 | VR17: 42.09385756 | VS17: 44.55141401 | VT17: 67.46031651 | VU17: 42.5917783 | VV17: 41.88444762 | VW17: 79.00121132 | VX17: 33.64899247 | VY17: 47.96374745 | VZ17: 41.68301988 | WA17: 27.75106606 | WB17: 31.25717897 | WC17: 52.23167143 | WD17: 38.03433554 | WE17: 74.08036406 | WF17: 61.43648483
A18: =_xlfn.PERCENTILE.INC(E18:XFD18,0.1) -> 37.21861501 | B18: =_xlfn.PERCENTILE.INC(E18:XFD18,0.9) -> 81.891078 | C18: =AVERAGE(E18:XFD18) -> 58.76061019 | D18: 2 | E18: 48.46449854 | F18: 63.3652432 | G18: 51.9890907 | H18: 30.30877816 | I18: 47.75408065 | J18: 32.27036248 | K18: 65.35400747 | L18: 64.25439913 | M18: 53.16790242 | N18: 64.55210109 | O18: 41.05788324 | P18: 39.98827684 | Q18: 62.36717996 | R18: 46.83163732 | S18: 63.36231497 | T18: 59.89307793 | U18: 89.22611736 | V18: 58.79335615 | W18: 36.65019806 | X18: 69.79385959 | Y18: 57.49711429 | Z18: 37.84741127 | AA18: 46.93416407 | AB18: 45.96406698 | AC18: 64.78670434 | AD18: 59.1530736 | AE18: 66.44709579 | AF18: 47.44996785 | AG18: 57.57151762 | AH18: 70.19119388 | AI18: 43.96510091 | AJ18: 76.34712363 | AK18: 56.47222692 | AL18: 51.66402858 | AM18: 89.5734917 | AN18: 49.64209705 | AO18: 36.61457642 | AP18: 64.15114602 | AQ18: 57.85448269 | AR18: 99.72453984 | AS18: 76.27603197 | AT18: 54.5241055 | AU18: 71.65957871 | AV18: 41.43392382 | AW18: 28.37829188 | AX18: 67.52000209 | AY18: 53.34001964 | AZ18: 63.74400568 | BA18: 63.25774577 | BB18: 48.16995918 | BC18: 42.92186685 | BD18: 43.75032045 | BE18: 71.2561015 | BF18: 49.75978884 | BG18: 40.77236514 | BH18: 35.76107623 | BI18: 53.38875925 | BJ18: 31.4327027 | BK18: 87.0055034 | BL18: 75.60334566 | BM18: 64.46511418 | BN18: 59.18295966 | BO18: 54.80012048 | BP18: 70.16257705 | BQ18: 68.31595169 | BR18: 42.80990054 | BS18: 48.36108688 | BT18: 54.27991563 | BU18: 39.95852505 | BV18: 44.20945085 | BW18: 36.86716015 | BX18: 37.8282734 | BY18: 53.1353073 | BZ18: 42.90384673 | CA18: 100.6363361 | CB18: 34.00152789 | CC18: 35.68191791 | CD18: 59.42859673 | CE18: 64.78868203 | CF18: 35.09569439 | CG18: 34.43699261 | CH18: 77.18680695 | CI18: 75.01640109 | CJ18: 37.77000204 | CK18: 59.13962745 | CL18: 53.4774052 | CM18: 32.13487911 | CN18: 58.48411049 | CO18: 48.13174129 | CP18: 59.2776329 | CQ18: 82.87029157 | CR18: 39.50504043 | CS18: 76.78562345 | CT18: 47.39118626 | CU18: 59.50082113 | CV18: 33.43578467 | CW18: 53.33965489 | CX18: 66.60597451 | CY18: 38.17157317 | CZ18: 40.27972502 | DA18: 34.03688899 | DB18: 84.08010235 | DC18: 46.62321574 | DD18: 45.61461578 | DE18: 76.84747972 | DF18: 34.49170393 | DG18: 75.50806746 | DH18: 73.48784565 | DI18: 106.9505665 | DJ18: 71.57784217 | DK18: 45.84018715 | DL18: 52.95023631 | DM18: 42.55215132 | DN18: 55.27118931 | DO18: 60.07689997 | DP18: 37.71031803 | DQ18: 53.37883091 | DR18: 36.79980388 | DS18: 77.97083766 | DT18: 73.82308169 | DU18: 69.5649489 | DV18: 83.91752828 | DW18: 58.96409685 | DX18: 56.97583756 | DY18: 42.50488723 | DZ18: 34.40433403 | EA18: 69.67555298 | EB18: 37.29479972 | EC18: 66.40258263 | ED18: 50.88156097 | EE18: 118.2204931 | EF18: 34.66275942 | EG18: 53.55343867 | EH18: 59.49922378 | EI18: 72.02175703 | EJ18: 151.3673776 | EK18: 97.98049161 | EL18: 41.44253732 | EM18: 42.02385923 | EN18: 50.38472379 | EO18: 74.23410246 | EP18: 69.06179228 | EQ18: 76.19861046 | ER18: 66.15135138 | ES18: 64.82504194 | ET18: 79.01775822 | EU18: 39.9459552 | EV18: 55.33290442 | EW18: 36.91635797 | EX18: 62.89554865 | EY18: 68.75980901 | EZ18: 67.93941811 | FA18: 108.4575582 | FB18: 48.46925167 | FC18: 20.56189519 | FD18: 79.38657525 | FE18: 50.47853355 | FF18: 62.34283583 | FG18: 63.47099695 | FH18: 56.5295746 | FI18: 99.99088654 | FJ18: 56.1955977 | FK18: 34.79389723 | FL18: 53.73271148 | FM18: 43.67941661 | FN18: 75.92049001 | FO18: 64.31227184 | FP18: 60.97288824 | FQ18: 64.30875168 | FR18: 44.49702451 | FS18: 47.29069868 | FT18: 41.90386328 | FU18: 45.30239873 | FV18: 56.66451585 | FW18: 47.62956912 | FX18: 52.86860804 | FY18: 58.73799568 | FZ18: 40.58131995 | GA18: 79.78984737 | GB18: 50.41103139 | GC18: 87.35420344 | GD18: 56.56112363 | GE18: 80.69245072 | GF18: 78.66963685 | GG18: 60.50699808 | GH18: 72.63890225 | GI18: 60.13337298 | GJ18: 58.73772427 | GK18: 44.80307327 | GL18: 53.61806592 | GM18: 59.0723518 | GN18: 66.67215246 | GO18: 49.4809366 | GP18: 69.47356551 | GQ18: 55.82268393 | GR18: 80.44505965 | GS18: 63.64768131 | GT18: 55.6129865 | GU18: 58.03882651 | GV18: 56.72702527 | GW18: 83.51502587 | GX18: 71.77705641 | GY18: 32.5857743 | GZ18: 65.45460493 | HA18: 93.02408097 | HB18: 39.32650243 | HC18: 54.16659956 | HD18: 44.82331237 | HE18: 64.19954745 | HF18: 52.44223064 | HG18: 64.6903189 | HH18: 60.84791053 | HI18: 44.21774642 | HJ18: 47.62779337 | HK18: 41.88336783 | HL18: 67.82711632 | HM18: 67.90567526 | HN18: 21.79859629 | HO18: 54.25419725 | HP18: 46.42826893 | HQ18: 86.09206656 | HR18: 60.89360463 | HS18: 84.25758166 | HT18: 57.48978347 | HU18: 58.73048114 | HV18: 73.96083231 | HW18: 80.79813843 | HX18: 22.10229052 | HY18: 36.64422006 | HZ18: 55.37491863 | IA18: 51.64540171 | IB18: 58.11162516 | IC18: 51.42184021 | ID18: 31.81794826 | IE18: 76.50502558 | IF18: 44.33415765 | IG18: 66.43869862 | IH18: 41.04426289 | II18: 46.55069806 | IJ18: 73.90677308 | IK18: 55.97063198 | IL18: 114.9572074 | IM18: 89.39707472 | IN18: 50.07026441 | IO18: 88.5877413 | IP18: 138.797662 | IQ18: 88.90786562 | IR18: 40.53802521 | IS18: 35.82830385 | IT18: 41.20328832 | IU18: 55.25066164 | IV18: 51.94811548 | IW18: 73.96923253 | IX18: 102.2346703 | IY18: 118.6603301 | IZ18: 50.40547043 | JA18: 69.13038581 | JB18: 52.6309422 | JC18: 47.90368978 | JD18: 48.61295568 | JE18: 36.60192506 | JF18: 35.0915605 | JG18: 46.07095402 | JH18: 69.59096235 | JI18: 59.96967723 | JJ18: 49.77315585 | JK18: 42.05734065 | JL18: 63.56480393 | JM18: 28.3783434 | JN18: 70.77433277 | JO18: 43.86263991 | JP18: 43.39656702 | JQ18: 55.79606791 | JR18: 91.23659844 | JS18: 63.30041155 | JT18: 21.34967622 | JU18: 94.02229603 | JV18: 33.46003131 | JW18: 61.91077508 | JX18: 51.34203584 | JY18: 38.68873841 | JZ18: 57.48362317 | KA18: 60.52537801 | KB18: 47.76351033 | KC18: 72.14243982 | KD18: 50.3555099 | KE18: 51.10789188 | KF18: 39.822286 | KG18: 65.69450085 | KH18: 40.52027529 | KI18: 47.03335463 | KJ18: 38.1273287 | KK18: 61.17855482 | KL18: 70.83341195 | KM18: 40.41920116 | KN18: 53.47755309 | KO18: 34.52860299 | KP18: 65.35202904 | KQ18: 82.57951902 | KR18: 80.39137482 | KS18: 55.22005538 | KT18: 58.67372616 | KU18: 75.62028911 | KV18: 73.20859124 | KW18: 48.24597363 | KX18: 41.65287804 | KY18: 64.36850092 | KZ18: 59.53250161 | LA18: 57.97058131 | LB18: 65.94118682 | LC18: 68.7826264 | LD18: 37.38091585 | LE18: 85.35566591 | LF18: 60.38703043 | LG18: 59.33365237 | LH18: 114.4042629 | LI18: 78.331776 | LJ18: 110.1448971 | LK18: 60.72023553 | LL18: 57.09352611 | LM18: 84.62538909 | LN18: 51.59847473 | LO18: 56.90128764 | LP18: 93.92384973 | LQ18: 38.98817105 | LR18: 41.79918758 | LS18: 96.86237693 | LT18: 47.88729411 | LU18: 75.40102278 | LV18: 54.27544016 | LW18: 49.85534598 | LX18: 80.65503277 | LY18: 35.04667437 | LZ18: 48.52506251 | MA18: 58.13322506 | MB18: 45.00548839 | MC18: 55.04847747 | MD18: 77.65342171 | ME18: 77.61377117 | MF18: 37.16184305 | MG18: 84.38882144 | MH18: 76.58552603 | MI18: 73.40263051 | MJ18: 71.10602294 | MK18: 42.34171577 | ML18: 69.28279948 | MM18: 77.48999993 | MN18: 72.93626872 | MO18: 54.60668732 | MP18: 54.79930789 | MQ18: 59.94157427 | MR18: 58.48106769 | MS18: 50.8899031 | MT18: 48.15476683 | MU18: 65.4198738 | MV18: 56.27317321 | MW18: 45.96163409 | MX18: 52.2131425 | MY18: 61.01351959 | MZ18: 91.42428462 | NA18: 51.6854042 | NB18: 47.10327231 | NC18: 65.64226283 | ND18: 53.82561823 | NE18: 30.55783125 | NF18: 40.71284159 | NG18: 92.94071717 | NH18: 22.83981315 | NI18: 54.1110168 | NJ18: 50.73523702 | NK18: 47.72162731 | NL18: 41.7408927 | NM18: 39.05813183 | NN18: 80.51825111 | NO18: 94.90824347 | NP18: 47.9463934 | NQ18: 64.19996162 | NR18: 69.34094713 | NS18: 71.99320171 | NT18: 58.77503274 | NU18: 58.91229114 | NV18: 75.18774412 | NW18: 66.35846292 | NX18: 47.74632615 | NY18: 50.63503943 | NZ18: 57.47956532 | OA18: 39.13055496 | OB18: 55.75175129 | OC18: 73.43900594 | OD18: 28.9792939 | OE18: 72.19169713 | OF18: 54.88833277 | OG18: 33.99864594 | OH18: 56.88126509 | OI18: 57.49918209 | OJ18: 102.2986953 | OK18: 61.74744373 | OL18: 52.49128285 | OM18: 52.8515025 | ON18: 59.20034508 | OO18: 43.2791647 | OP18: 67.78834027 | OQ18: 88.0551161 | OR18: 29.51672831 | OS18: 52.56411799 | OT18: 42.20695268 | OU18: 69.79920129 | OV18: 34.17973733 | OW18: 49.36563662 | OX18: 42.777781 | OY18: 41.58553334 | OZ18: 60.33167061 | PA18: 95.45154072 | PB18: 37.99683063 | PC18: 69.92919955 | PD18: 57.29205702 | PE18: 48.30509931 | PF18: 55.64332752 | PG18: 35.26224156 | PH18: 50.56249855 | PI18: 107.0620568 | PJ18: 53.99739214 | PK18: 48.79577998 | PL18: 60.06761721 | PM18: 71.18945078 | PN18: 102.3836635 | PO18: 49.52523987 | PP18: 99.31046118 | PQ18: 69.42932811 | PR18: 44.8372892 | PS18: 28.88063157 | PT18: 49.07637288 | PU18: 32.63317601 | PV18: 53.38358442 | PW18: 90.81107418 | PX18: 96.36873193 | PY18: 44.86183728 | PZ18: 49.21521391 | QA18: 49.1074282 | QB18: 54.72656354 | QC18: 35.33583166 | QD18: 56.18749003 | QE18: 44.83926261 | QF18: 66.25272691 | QG18: 60.4234137 | QH18: 38.98319098 | QI18: 63.44006077 | QJ18: 61.44408116 | QK18: 101.9179358 | QL18: 66.28871127 | QM18: 65.40399338 | QN18: 32.23918135 | QO18: 85.18211023 | QP18: 56.09614918 | QQ18: 27.34459279 | QR18: 52.41975668 | QS18: 45.59503819 | QT18: 53.4154771 | QU18: 51.45736437 | QV18: 44.02034457 | QW18: 55.55451111 | QX18: 43.33392439 | QY18: 106.7617295 | QZ18: 97.87584901 | RA18: 66.79633755 | RB18: 42.00824903 | RC18: 75.62530333 | RD18: 81.06181221 | RE18: 68.55107867 | RF18: 69.02205533 | RG18: 81.88186399 | RH18: 77.8543538 | RI18: 57.34056617 | RJ18: 34.54384914 | RK18: 77.00247519 | RL18: 64.15425842 | RM18: 25.87842026 | RN18: 66.42828841 | RO18: 37.224923 | RP18: 38.96511526 | RQ18: 48.74950653 | RR18: 69.72918309 | RS18: 64.07804419 | RT18: 54.07681841 | RU18: 80.29943487 | RV18: 62.84585827 | RW18: 59.55159082 | RX18: 48.84542472 | RY18: 94.89420907 | RZ18: 21.48742427 | SA18: 56.3240926 | SB18: 25.79384078 | SC18: 82.26321374 | SD18: 50.95809271 | SE18: 51.90875946 | SF18: 79.98894458 | SG18: 43.43964532 | SH18: 81.97400412 | SI18: 96.46824457 | SJ18: 69.71442012 | SK18: 78.83588456 | SL18: 73.15517662 | SM18: 60.8581177 | SN18: 44.39357422 | SO18: 51.34370793 | SP18: 80.27016562 | SQ18: 78.49226011 | SR18: 50.24259132 | SS18: 92.12040728 | ST18: 54.85980485 | SU18: 56.34921614 | SV18: 44.29570393 | SW18: 56.16374572 | SX18: 44.86643244 | SY18: 36.49920795 | SZ18: 65.39474499 | TA18: 38.34908182 | TB18: 43.65843241 | TC18: 88.29853135 | TD18: 76.3706877 | TE18: 80.63364834 | TF18: 46.08473999 | TG18: 52.57403176 | TH18: 48.2937186 | TI18: 37.3242814 | TJ18: 56.79291727 | TK18: 79.76997386 | TL18: 34.94278484 | TM18: 64.51956609 | TN18: 63.43009407 | TO18: 50.17922418 | TP18: 39.27288047 | TQ18: 59.28874329 | TR18: 63.08158674 | TS18: 40.62159875 | TT18: 60.5166489 | TU18: 67.02686129 | TV18: 79.31546278 | TW18: 56.79130136 | TX18: 43.21562393 | TY18: 56.91532648 | TZ18: 73.7805041 | UA18: 41.30484144 | UB18: 46.83201337 | UC18: 70.43698206 | UD18: 52.30497935 | UE18: 40.33871976 | UF18: 56.81271085 | UG18: 51.81416745 | UH18: 66.78990311 | UI18: 57.36981942 | UJ18: 69.49370818 | UK18: 73.86665082 | UL18: 40.20561957 | UM18: 81.82289104 | UN18: 74.27315433 | UO18: 64.51576995 | UP18: 40.8346723 | UQ18: 52.81153003 | UR18: 57.96786347 | US18: 34.29806183 | UT18: 51.1620434 | UU18: 51.55509299 | UV18: 31.82340882 | UW18: 60.17777567 | UX18: 73.07476238 | UY18: 40.18537561 | UZ18: 92.20176619 | VA18: 32.58431321 | VB18: 76.29522416 | VC18: 50.32681166 | VD18: 82.12783557 | VE18: 73.56686427 | VF18: 44.79378589 | VG18: 45.83877087 | VH18: 61.42622333 | VI18: 69.02239283 | VJ18: 50.87943516 | VK18: 43.76027748 | VL18: 56.11648166 | VM18: 59.90549764 | VN18: 48.53102652 | VO18: 65.42741868 | VP18: 71.86031311 | VQ18: 71.98120686 | VR18: 37.14618236 | VS18: 48.07794499 | VT18: 59.90841494 | VU18: 72.74928273 | VV18: 60.82888113 | VW18: 109.2304086 | VX18: 31.49882777 | VY18: 43.78022235 | VZ18: 43.6865236 | WA18: 29.26917718 | WB18: 48.71839379 | WC18: 65.17998431 | WD18: 46.91840481 | WE18: 67.7308516 | WF18: 49.36563952
A19: 34.299918 | B19: 87.04738137 | C19: 58.78211737 | D19: 3 | E19: 34.30953857 | F19: 61.11132619 | G19: 41.26061839 | H19: 18.33126864 | I19: 51.68721235 | J19: 26.21021345 | K19: 66.24043644 | L19: 77.85185803 | M19: 61.0738504 | N19: 34.96442246 | O19: 34.50918375 | P19: 26.09903653 | Q19: 69.51504311 | R19: 45.01298519 | S19: 43.20430494 | T19: 34.74454621 | U19: 90.11153574 | V19: 44.34303167 | W19: 48.0231122 | X19: 69.57375795 | Y19: 53.68626133 | Z19: 44.44517919 | AA19: 70.61005333 | AB19: 56.07166061 | AC19: 73.33778186 | AD19: 30.11661555 | AE19: 87.18150063 | AF19: 33.69936756 | AG19: 54.84476789 | AH19: 86.08724848 | AI19: 34.04505229 | AJ19: 83.06232559 | AK19: 55.69945783 | AL19: 33.16478525 | AM19: 106.0251473 | AN19: 49.10345982 | AO19: 33.85500562 | AP19: 67.05480363 | AQ19: 45.98950865 | AR19: 63.87434736 | AS19: 44.90904856 | AT19: 43.89729823 | AU19: 84.78280619 | AV19: 59.39755997 | AW19: 37.05368991 | AX19: 86.37722564 | AY19: 49.50556145 | AZ19: 66.24363331 | BA19: 77.29711302 | BB19: 50.16842642 | BC19: 35.09500741 | BD19: 56.872735 | BE19: 56.77949446 | BF19: 67.79590149 | BG19: 43.09187045 | BH19: 38.08880478 | BI19: 77.62481514 | BJ19: 40.3301215 | BK19: 88.03329129 | BL19: 73.36625588 | BM19: 52.0560301 | BN19: 62.97612765 | BO19: 51.84675889 | BP19: 63.50733545 | BQ19: 76.34843426 | BR19: 70.76848056 | BS19: 70.81067727 | BT19: 41.332364 | BU19: 39.83744124 | BV19: 49.07165767 | BW19: 51.82759959 | BX19: 43.19955656 | BY19: 56.882848 | BZ19: 37.99321108 | CA19: 73.50983401 | CB19: 21.28156988 | CC19: 37.45421527 | CD19: 43.52176009 | CE19: 54.92814824 | CF19: 36.10053227 | CG19: 30.31635451 | CH19: 61.20206382 | CI19: 81.65332773 | CJ19: 36.01213251 | CK19: 52.66174617 | CL19: 51.08570178 | CM19: 43.33998263 | CN19: 58.67601577 | CO19: 36.36843772 | CP19: 52.60660691 | CQ19: 63.18545523 | CR19: 38.65412584 | CS19: 72.60308885 | CT19: 57.60525551 | CU19: 43.88657335 | CV19: 30.15245546 | CW19: 75.68779108 | CX19: 46.38042852 | CY19: 32.92658176 | CZ19: 53.20349822 | DA19: 42.30172379 | DB19: 53.72416132 | DC19: 49.23577653 | DD19: 40.70134521 | DE19: 67.87598059 | DF19: 21.42920892 | DG19: 77.58226977 | DH19: 65.68061648 | DI19: 89.86680143 | DJ19: 76.28820128 | DK19: 29.76050365 | DL19: 60.33353032 | DM19: 86.09619454 | DN19: 55.39331407 | DO19: 81.96114309 | DP19: 39.94985684 | DQ19: 53.07083493 | DR19: 47.2947847 | DS19: 50.30147673 | DT19: 68.26541809 | DU19: 51.69109966 | DV19: 85.84433261 | DW19: 61.06527111 | DX19: 72.01004598 | DY19: 50.27924805 | DZ19: 32.31846016 | EA19: 52.69780015 | EB19: 41.24128996 | EC19: 62.24209151 | ED19: 44.87918017 | EE19: 93.57577619 | EF19: 56.24508167 | EG19: 51.633262 | EH19: 83.30787736 | EI19: 60.98567445 | EJ19: 109.2223648 | EK19: 63.97067816 | EL19: 60.14033558 | EM19: 57.25009198 | EN19: 82.16773587 | EO19: 44.93404725 | EP19: 82.75887253 | EQ19: 58.10636547 | ER19: 73.43057152 | ES19: 24.79890755 | ET19: 53.16302803 | EU19: 45.3860471 | EV19: 76.72893191 | EW19: 49.35488098 | EX19: 65.14523053 | EY19: 52.41260949 | EZ19: 72.17472785 | FA19: 106.5209871 | FB19: 59.45544279 | FC19: 23.78599849 | FD19: 89.47654187 | FE19: 40.18037907 | FF19: 64.92733117 | FG19: 75.41840608 | FH19: 55.13773921 | FI19: 87.53144868 | FJ19: 63.05225049 | FK19: 30.3371441 | FL19: 40.98213817 | FM19: 33.45901313 | FN19: 64.49075095 | FO19: 69.32369583 | FP19: 52.03749735 | FQ19: 87.03247922 | FR19: 41.76749268 | FS19: 42.81672646 | FT19: 35.34421338 | FU19: 53.43014203 | FV19: 48.84375742 | FW19: 34.83226224 | FX19: 69.54455095 | FY19: 64.24605407 | FZ19: 38.52158355 | GA19: 136.7731865 | GB19: 52.58607973 | GC19: 77.64780673 | GD19: 40.74417384 | GE19: 78.9713613 | GF19: 63.49501886 | GG19: 47.12607194 | GH19: 73.65024207 | GI19: 45.84669314 | GJ19: 61.12689569 | GK19: 82.21861792 | GL19: 51.15307919 | GM19: 76.56541324 | GN19: 67.71747359 | GO19: 46.82158752 | GP19: 57.7476711 | GQ19: 61.24778087 | GR19: 73.64606047 | GS19: 51.82246162 | GT19: 62.645174 | GU19: 38.1028195 | GV19: 55.5223287 | GW19: 150.797931 | GX19: 53.8889714 | GY19: 40.89169765 | GZ19: 63.30211679 | HA19: 99.15224602 | HB19: 45.46423604 | HC19: 56.408576 | HD19: 38.90792202 | HE19: 49.71600619 | HF19: 54.73181859 | HG19: 61.27181061 | HH19: 49.97660349 | HI19: 50.95038427 | HJ19: 67.12487831 | HK19: 49.16016 | HL19: 68.0121956 | HM19: 54.49956854 | HN19: 44.35891594 | HO19: 58.53860401 | HP19: 20.95548935 | HQ19: 67.63020573 | HR19: 60.92300716 | HS19: 99.86415261 | HT19: 100.1217938 | HU19: 71.2874592 | HV19: 65.64671811 | HW19: 75.92564368 | HX19: 25.76985418 | HY19: 39.08359222 | HZ19: 40.25164072 | IA19: 67.81803121 | IB19: 82.97002081 | IC19: 41.84320739 | ID19: 38.05060864 | IE19: 78.31911542 | IF19: 31.95111529 | IG19: 45.65980502 | IH19: 38.97200169 | II19: 75.31079647 | IJ19: 106.1036504 | IK19: 42.8426327 | IL19: 103.9789261 | IM19: 41.97200172 | IN19: 61.75497125 | IO19: 53.49602534 | IP19: 107.0983051 | IQ19: 79.252852 | IR19: 34.91735311 | IS19: 46.16073806 | IT19: 48.17361095 | IU19: 49.99321123 | IV19: 45.47089907 | IW19: 88.21992546 | IX19: 56.83018127 | IY19: 90.15787243 | IZ19: 57.34350388 | JA19: 62.81144502 | JB19: 38.23799496 | JC19: 25.97714125 | JD19: 42.75344871 | JE19: 40.86501624 | JF19: 31.92979236 | JG19: 34.76383862 | JH19: 44.58642301 | JI19: 84.18141646 | JJ19: 57.36350086 | JK19: 48.94211435 | JL19: 63.04657422 | JM19: 36.17207077 | JN19: 37.19505348 | JO19: 39.04320535 | JP19: 45.26963669 | JQ19: 48.54768777 | JR19: 80.60133801 | JS19: 78.15846563 | JT19: 34.78930298 | JU19: 69.57564158 | JV19: 31.64465796 | JW19: 45.69879514 | JX19: 30.56701798 | JY19: 34.69144595 | JZ19: 78.36617647 | KA19: 62.0620368 | KB19: 39.99131333 | KC19: 53.29404348 | KD19: 48.26661237 | KE19: 41.35526645 | KF19: 42.91251052 | KG19: 63.84797182 | KH19: 63.47177549 | KI19: 47.72690917 | KJ19: 32.7724401 | KK19: 73.3512923 | KL19: 50.98073533 | KM19: 69.19410338 | KN19: 81.04979322 | KO19: 63.53024084 | KP19: 61.84208668 | KQ19: 60.21544036 | KR19: 80.649542 | KS19: 34.67448573 | KT19: 43.601146 | KU19: 71.16957698 | KV19: 103.8515853 | KW19: 49.123883 | KX19: 55.22617107 | KY19: 45.78847819 | KZ19: 58.310772 | LA19: 43.73381089 | LB19: 68.28459036 | LC19: 53.42150008 | LD19: 40.02291524 | LE19: 53.78455679 | LF19: 84.46445634 | LG19: 67.2754835 | LH19: 66.5876698 | LI19: 62.63308867 | LJ19: 145.4373232 | LK19: 85.8368861 | LL19: 43.23686605 | LM19: 81.72172522 | LN19: 47.44182086 | LO19: 40.56384727 | LP19: 117.2882985 | LQ19: 30.5897542 | LR19: 61.59217614 | LS19: 56.2655614 | LT19: 36.29199461 | LU19: 83.34370011 | LV19: 47.1671571 | LW19: 37.86969332 | LX19: 49.93226137 | LY19: 48.8106016 | LZ19: 53.91496591 | MA19: 54.31466993 | MB19: 58.21166365 | MC19: 69.65900378 | MD19: 66.96591113 | ME19: 57.50845483 | MF19: 69.96944705 | MG19: 83.98333698 | MH19: 105.4793783 | MI19: 68.79701542 | MJ19: 60.38030568 | MK19: 54.56155068 | ML19: 36.37151978 | MM19: 58.24451814 | MN19: 73.62480057 | MO19: 45.36073822 | MP19: 60.61321862 | MQ19: 72.13391719 | MR19: 83.88642514 | MS19: 52.42466285 | MT19: 31.52500033 | MU19: 55.25594277 | MV19: 65.44330387 | MW19: 41.4854379 | MX19: 72.84960632 | MY19: 64.45893921 | MZ19: 82.57002887 | NA19: 34.34969585 | NB19: 100.8129109 | NC19: 52.73526935 | ND19: 57.428741 | NE19: 28.91374566 | NF19: 30.37671859 | NG19: 99.89504355 | NH19: 19.02694712 | NI19: 43.27958891 | NJ19: 53.33952265 | NK19: 67.86287588 | NL19: 46.63740404 | NM19: 64.86913664 | NN19: 66.7134247 | NO19: 63.3107423 | NP19: 79.12305679 | NQ19: 35.58116537 | NR19: 62.29394136 | NS19: 64.01163142 | NT19: 40.63910334 | NU19: 47.62716901 | NV19: 96.96470389 | NW19: 73.39552608 | NX19: 37.85777769 | NY19: 55.58822017 | NZ19: 77.3576988 | OA19: 41.68359369 | OB19: 82.95918213 | OC19: 51.39108137 | OD19: 29.8601853 | OE19: 55.17819933 | OF19: 39.73320154 | OG19: 36.97712642 | OH19: 38.71913281 | OI19: 56.65503482 | OJ19: 103.9273987 | OK19: 88.5521265 | OL19: 31.96942736 | OM19: 49.66694052 | ON19: 65.76842849 | OO19: 37.90871082 | OP19: 62.49247814 | OQ19: 50.28267265 | OR19: 62.14450919 | OS19: 38.69602828 | OT19: 41.28432516 | OU19: 60.6025168 | OV19: 23.52340091 | OW19: 45.51169604 | OX19: 31.87721232 | OY19: 52.77829026 | OZ19: 52.93197423 | PA19: 81.97507464 | PB19: 20.53122996 | PC19: 117.7388907 | PD19: 76.3805675 | PE19: 32.91848987 | PF19: 46.59731541 | PG19: 46.40680085 | PH19: 88.95907374 | PI19: 93.12894677 | PJ19: 56.55077286 | PK19: 46.16832584 | PL19: 31.35140893 | PM19: 75.85007292 | PN19: 96.12542987 | PO19: 55.89061601 | PP19: 101.4413332 | PQ19: 54.77468939 | PR19: 33.55054929 | PS19: 23.19837488 | PT19: 38.14892997 | PU19: 34.1042914 | PV19: 74.51154235 | PW19: 62.99333002 | PX19: 96.66515011 | PY19: 52.2251464 | PZ19: 55.06695726 | QA19: 44.67246273 | QB19: 63.01934424 | QC19: 33.80344861 | QD19: 59.47488444 | QE19: 34.64301011 | QF19: 71.34668231 | QG19: 71.85514239 | QH19: 45.22834371 | QI19: 37.79391006 | QJ19: 90.02345774 | QK19: 68.55673202 | QL19: 96.20869634 | QM19: 80.72826787 | QN19: 34.21333292 | QO19: 74.74762255 | QP19: 61.9712973 | QQ19: 51.06488734 | QR19: 69.03475101 | QS19: 31.57058256 | QT19: 57.09228441 | QU19: 36.24455101 | QV19: 77.63680403 | QW19: 57.58802331 | QX19: 47.00793953 | QY19: 101.9689546 | QZ19: 78.61662179 | RA19: 71.2211423 | RB19: 56.99145036 | RC19: 116.4207754 | RD19: 88.1885411 | RE19: 55.76133101 | RF19: 106.7480314 | RG19: 90.35089978 | RH19: 72.44826621 | RI19: 38.93352832 | RJ19: 39.38486604 | RK19: 66.61467508 | RL19: 74.14283313 | RM19: 23.81703988 | RN19: 97.74407158 | RO19: 40.18359441 | RP19: 33.84215074 | RQ19: 56.46611069 | RR19: 53.17615972 | RS19: 87.43840872 | RT19: 62.09487706 | RU19: 88.23181539 | RV19: 42.93836983 | RW19: 65.9232522 | RX19: 71.22985146 | RY19: 117.2585067 | RZ19: 18.84711359 | SA19: 73.74500913 | SB19: 30.74469704 | SC19: 141.7769862 | SD19: 57.35688738 | SE19: 33.77767906 | SF19: 76.11421637 | SG19: 27.99608264 | SH19: 97.3812163 | SI19: 74.76831528 | SJ19: 65.69474228 | SK19: 45.21562099 | SL19: 69.84802771 | SM19: 53.71256024 | SN19: 52.61591939 | SO19: 48.20582594 | SP19: 93.4676802 | SQ19: 71.04799121 | SR19: 31.42953243 | SS19: 101.4285557 | ST19: 75.45279833 | SU19: 63.74468661 | SV19: 65.0630167 | SW19: 53.7476491 | SX19: 31.99331684 | SY19: 63.83818739 | SZ19: 50.77785237 | TA19: 44.81430774 | TB19: 44.85719631 | TC19: 76.83397765 | TD19: 68.70113091 | TE19: 85.57311799 | TF19: 35.73463252 | TG19: 61.75920507 | TH19: 52.73864257 | TI19: 49.9490301 | TJ19: 79.53644463 | TK19: 98.28047289 | TL19: 54.74750178 | TM19: 102.9030216 | TN19: 80.0036005 | TO19: 65.12484611 | TP19: 42.86089954 | TQ19: 36.02298475 | TR19: 37.95637801 | TS19: 29.29000647 | TT19: 70.76679782 | TU19: 62.85634058 | TV19: 59.66046858 | TW19: 67.916195 | TX19: 46.36256136 | TY19: 39.06860375 | TZ19: 96.90514016 | UA19: 75.9578901 | UB19: 36.07043306 | UC19: 49.90920123 | UD19: 66.01070086 | UE19: 38.48607059 | UF19: 64.02726333 | UG19: 53.01636901 | UH19: 62.68494781 | UI19: 57.80536509 | UJ19: 62.96436339 | UK19: 64.38983602 | UL19: 28.73950073 | UM19: 86.0291132 | UN19: 70.13275546 | UO19: 55.05612385 | UP19: 37.45937121 | UQ19: 52.99847014 | UR19: 47.1202678 | US19: 35.06808404 | UT19: 51.01972233 | UU19: 38.57923291 | UV19: 33.5415547 | UW19: 109.0761375 | UX19: 66.79520958 | UY19: 100.9921367 | UZ19: 105.2902498 | VA19: 34.06406408 | VB19: 86.60533164 | VC19: 54.13278675 | VD19: 84.95284614 | VE19: 53.48356191 | VF19: 105.3049315 | VG19: 29.41250495 | VH19: 50.1354632 | VI19: 45.46172043 | VJ19: 59.23164434 | VK19: 55.63622791 | VL19: 66.47771022 | VM19: 65.48359998 | VN19: 44.4707083 | VO19: 45.16619594 | VP19: 97.05843903 | VQ19: 49.08798834 | VR19: 28.65995638 | VS19: 93.43119085 | VT19: 62.21054061 | VU19: 64.02016219 | VV19: 37.18217038 | VW19: 122.770851 | VX19: 25.90954424 | VY19: 59.79293994 | VZ19: 47.3668766 | WA19: 38.15360327 | WB19: 58.71050885 | WC19: 75.62828575 | WD19: 44.73181075 | WE19: 60.59606406 | WF19: 62.5615826
A20: 32.03355104 | B20: 92.48878361 | C20: 59.22058711 | D20: 4 | E20: 22.18018621 | F20: 86.30495938 | G20: 58.90171288 | H20: 27.9003792 | I20: 137.7923212 | J20: 24.7134037 | K20: 99.22212038 | L20: 59.39444998 | M20: 55.48216419 | N20: 31.09603543 | O20: 44.86995415 | P20: 23.51660876 | Q20: 75.15439599 | R20: 35.11381184 | S20: 34.57495256 | T20: 33.60125291 | U20: 101.668113 | V20: 45.72563983 | W20: 35.39466141 | X20: 58.7352361 | Y20: 53.28472427 | Z20: 40.5065005 | AA20: 57.41826554 | AB20: 56.91158665 | AC20: 54.18147016 | AD20: 18.31736531 | AE20: 43.57870153 | AF20: 41.10496316 | AG20: 37.24452715 | AH20: 54.22042972 | AI20: 34.90815758 | AJ20: 39.71180366 | AK20: 35.71403104 | AL20: 26.86562882 | AM20: 102.0449632 | AN20: 32.0099121 | AO20: 27.24805294 | AP20: 73.53835383 | AQ20: 49.77589438 | AR20: 82.16035031 | AS20: 69.40318395 | AT20: 74.06672644 | AU20: 81.34473769 | AV20: 73.96712085 | AW20: 58.44007858 | AX20: 58.89242466 | AY20: 68.09898976 | AZ20: 73.54082611 | BA20: 68.26584824 | BB20: 48.62989014 | BC20: 60.76100953 | BD20: 66.82714581 | BE20: 61.68788514 | BF20: 53.04831738 | BG20: 29.71308632 | BH20: 47.9781759 | BI20: 51.66597357 | BJ20: 54.69234904 | BK20: 79.78976871 | BL20: 82.66701756 | BM20: 42.82105948 | BN20: 48.88049388 | BO20: 41.68722877 | BP20: 46.32820794 | BQ20: 93.33203906 | BR20: 43.48582153 | BS20: 53.65262143 | BT20: 51.64975931 | BU20: 43.76940609 | BV20: 60.63737073 | BW20: 38.35472151 | BX20: 39.49660476 | BY20: 60.72584684 | BZ20: 26.61009639 | CA20: 64.31295917 | CB20: 23.5337758 | CC20: 47.81563626 | CD20: 60.0466865 | CE20: 67.69514793 | CF20: 62.7695971 | CG20: 37.11707318 | CH20: 49.00599106 | CI20: 68.96616 | CJ20: 35.21417447 | CK20: 63.80248553 | CL20: 44.52532758 | CM20: 35.78369649 | CN20: 62.56164662 | CO20: 48.38386636 | CP20: 64.17224344 | CQ20: 51.54013805 | CR20: 50.61831488 | CS20: 43.13517109 | CT20: 50.51332149 | CU20: 36.51252461 | CV20: 33.95748063 | CW20: 61.36262761 | CX20: 48.32089661 | CY20: 40.37868965 | CZ20: 55.34986297 | DA20: 31.42332124 | DB20: 25.59630296 | DC20: 48.28427892 | DD20: 47.09975219 | DE20: 70.65089292 | DF20: 24.65759097 | DG20: 55.03695207 | DH20: 125.5395359 | DI20: 58.06223723 | DJ20: 74.03895381 | DK20: 27.04530063 | DL20: 52.24605083 | DM20: 54.91730403 | DN20: 59.12504646 | DO20: 74.99386887 | DP20: 44.40511965 | DQ20: 41.68167429 | DR20: 54.0041509 | DS20: 62.98826693 | DT20: 69.91332824 | DU20: 61.9453942 | DV20: 103.0021077 | DW20: 55.51643236 | DX20: 97.62917954 | DY20: 86.21498088 | DZ20: 35.98596308 | EA20: 82.31614657 | EB20: 50.56978104 | EC20: 66.81425403 | ED20: 31.7049663 | EE20: 109.6786486 | EF20: 35.36191819 | EG20: 35.04361845 | EH20: 52.18064411 | EI20: 57.00545223 | EJ20: 116.9885864 | EK20: 84.09025637 | EL20: 61.96432157 | EM20: 75.55736039 | EN20: 85.56991011 | EO20: 38.1604267 | EP20: 50.94667239 | EQ20: 52.10014464 | ER20: 69.63303219 | ES20: 22.66974868 | ET20: 41.13659365 | EU20: 43.28060632 | EV20: 50.15384707 | EW20: 42.8035713 | EX20: 66.02978309 | EY20: 66.255729 | EZ20: 81.08830255 | FA20: 86.3970566 | FB20: 48.14984363 | FC20: 23.75338652 | FD20: 120.0031659 | FE20: 33.12820856 | FF20: 46.99635925 | FG20: 92.45877073 | FH20: 48.80055777 | FI20: 90.61192042 | FJ20: 34.91407854 | FK20: 41.84016791 | FL20: 47.07484313 | FM20: 47.06281058 | FN20: 60.81062716 | FO20: 92.11407779 | FP20: 49.5368996 | FQ20: 73.99773377 | FR20: 50.04339679 | FS20: 34.72516945 | FT20: 35.16861195 | FU20: 58.64771496 | FV20: 50.0896128 | FW20: 28.4082225 | FX20: 57.84436908 | FY20: 76.66306752 | FZ20: 60.75168144 | GA20: 89.05890355 | GB20: 44.97275929 | GC20: 110.5940662 | GD20: 42.42596235 | GE20: 64.89076052 | GF20: 59.22622807 | GG20: 53.60278993 | GH20: 75.7328253 | GI20: 50.24988151 | GJ20: 56.93729937 | GK20: 92.75889957 | GL20: 54.7734723 | GM20: 75.35987118 | GN20: 74.54186214 | GO20: 63.61971265 | GP20: 54.61422165 | GQ20: 58.89805556 | GR20: 71.44086205 | GS20: 63.510371 | GT20: 78.76804163 | GU20: 46.06775541 | GV20: 55.94861589 | GW20: 181.8154669 | GX20: 58.62325509 | GY20: 44.53759922 | GZ20: 76.68374306 | HA20: 58.16409284 | HB20: 51.51418014 | HC20: 58.56707894 | HD20: 43.63703473 | HE20: 33.55318525 | HF20: 73.06353554 | HG20: 56.40315902 | HH20: 53.7988578 | HI20: 49.41708817 | HJ20: 65.83040329 | HK20: 53.33072073 | HL20: 54.29156134 | HM20: 50.52878658 | HN20: 31.98717649 | HO20: 41.59058698 | HP20: 20.49475514 | HQ20: 64.91223795 | HR20: 54.00278207 | HS20: 85.85654259 | HT20: 76.17428308 | HU20: 60.11056976 | HV20: 49.51602841 | HW20: 57.22517192 | HX20: 25.83179936 | HY20: 45.44631142 | HZ20: 32.04596296 | IA20: 57.88419681 | IB20: 93.40751045 | IC20: 48.5570651 | ID20: 19.48570147 | IE20: 87.93362601 | IF20: 44.41197909 | IG20: 44.80736214 | IH20: 54.51252436 | II20: 74.16047897 | IJ20: 132.4930948 | IK20: 36.9580527 | IL20: 57.28020684 | IM20: 33.23892208 | IN20: 67.18069775 | IO20: 55.1528671 | IP20: 104.0511334 | IQ20: 59.24611214 | IR20: 44.84616074 | IS20: 48.29388516 | IT20: 67.80625889 | IU20: 44.9662683 | IV20: 48.53425719 | IW20: 81.3286905 | IX20: 76.671172 | IY20: 159.2727439 | IZ20: 71.03974423 | JA20: 76.3161075 | JB20: 30.41132754 | JC20: 22.79528491 | JD20: 60.51407317 | JE20: 28.8738574 | JF20: 23.83292961 | JG20: 29.46013869 | JH20: 42.48387908 | JI20: 96.9787406 | JJ20: 45.39670923 | JK20: 54.30899978 | JL20: 75.29977782 | JM20: 33.22360834 | JN20: 28.77969894 | JO20: 49.4812278 | JP20: 44.34134451 | JQ20: 58.38244558 | JR20: 128.2007196 | JS20: 107.5933122 | JT20: 23.55617053 | JU20: 65.4652356 | JV20: 39.65104703 | JW20: 34.20227823 | JX20: 45.2895658 | JY20: 25.8925168 | JZ20: 51.34172601 | KA20: 48.17128178 | KB20: 34.72178039 | KC20: 40.44001336 | KD20: 74.11932849 | KE20: 73.71763781 | KF20: 35.93400599 | KG20: 74.64512041 | KH20: 63.76961212 | KI20: 46.33111586 | KJ20: 34.01510946 | KK20: 45.85833331 | KL20: 30.39880636 | KM20: 53.16887537 | KN20: 71.23019389 | KO20: 50.43777017 | KP20: 59.75738074 | KQ20: 44.93331502 | KR20: 47.92196788 | KS20: 69.89425528 | KT20: 66.62329978 | KU20: 85.58970757 | KV20: 97.32611119 | KW20: 57.69596026 | KX20: 65.13067971 | KY20: 36.89206313 | KZ20: 78.63209268 | LA20: 36.98284563 | LB20: 56.83625597 | LC20: 53.71511062 | LD20: 44.38026428 | LE20: 59.23530128 | LF20: 112.2668377 | LG20: 106.1881801 | LH20: 51.46765527 | LI20: 65.92333499 | LJ20: 136.8000565 | LK20: 75.74827581 | LL20: 53.18822743 | LM20: 102.5757825 | LN20: 38.62088802 | LO20: 35.83457333 | LP20: 114.9793268 | LQ20: 26.81087175 | LR20: 49.68053043 | LS20: 63.31921752 | LT20: 18.55432163 | LU20: 66.43471152 | LV20: 46.19410371 | LW20: 41.42408602 | LX20: 61.04523525 | LY20: 45.05025234 | LZ20: 63.12705487 | MA20: 70.34685101 | MB20: 60.08444929 | MC20: 49.44374625 | MD20: 82.5283417 | ME20: 79.55180023 | MF20: 68.66563248 | MG20: 83.41920231 | MH20: 99.53803471 | MI20: 108.9183857 | MJ20: 37.50712471 | MK20: 54.52802982 | ML20: 46.5851823 | MM20: 96.8028819 | MN20: 78.55986674 | MO20: 50.20308076 | MP20: 94.40666233 | MQ20: 59.06554841 | MR20: 51.96532139 | MS20: 28.73078979 | MT20: 34.44608205 | MU20: 54.46538521 | MV20: 52.02154079 | MW20: 32.03617759 | MX20: 67.57064038 | MY20: 64.2041563 | MZ20: 89.42117951 | NA20: 27.40552507 | NB20: 87.44390147 | NC20: 60.32265448 | ND20: 53.45910247 | NE20: 55.13686528 | NF20: 34.44257069 | NG20: 119.9603136 | NH20: 25.41194446 | NI20: 38.70990529 | NJ20: 44.21382876 | NK20: 43.66787682 | NL20: 54.62114669 | NM20: 46.49175367 | NN20: 76.4727928 | NO20: 104.0158361 | NP20: 62.24036588 | NQ20: 34.75970982 | NR20: 82.88426718 | NS20: 85.24153504 | NT20: 34.64948468 | NU20: 42.90770112 | NV20: 98.84035376 | NW20: 84.7580321 | NX20: 35.23755046 | NY20: 49.9459566 | NZ20: 57.26753791 | OA20: 71.60948751 | OB20: 123.7581412 | OC20: 45.4121218 | OD20: 30.17834522 | OE20: 59.54671003 | OF20: 37.45151134 | OG20: 27.00953451 | OH20: 28.90987739 | OI20: 57.3589722 | OJ20: 96.34007556 | OK20: 115.7935018 | OL20: 23.93465716 | OM20: 53.54934626 | ON20: 49.13525819 | OO20: 53.70951048 | OP20: 72.07646416 | OQ20: 51.96453846 | OR20: 49.55553647 | OS20: 35.8679786 | OT20: 38.53490029 | OU20: 68.14688353 | OV20: 26.63766222 | OW20: 40.78827147 | OX20: 37.87811454 | OY20: 44.59608715 | OZ20: 32.44204011 | PA20: 75.26263014 | PB20: 20.22781701 | PC20: 87.10824266 | PD20: 63.73552626 | PE20: 23.71372487 | PF20: 45.65079346 | PG20: 90.47645944 | PH20: 73.1742844 | PI20: 106.9345618 | PJ20: 45.87560397 | PK20: 50.0031763 | PL20: 26.61891598 | PM20: 93.39167981 | PN20: 66.30345612 | PO20: 51.8030629 | PP20: 152.9004419 | PQ20: 51.48103014 | PR20: 30.90048261 | PS20: 14.28553305 | PT20: 40.43487067 | PU20: 48.04678066 | PV20: 108.3217338 | PW20: 61.38452405 | PX20: 98.31487294 | PY20: 57.91564929 | PZ20: 57.07638122 | QA20: 52.10154196 | QB20: 48.92565632 | QC20: 31.24327172 | QD20: 69.891351 | QE20: 32.82329035 | QF20: 54.37160888 | QG20: 79.76072021 | QH20: 58.2439835 | QI20: 38.21198833 | QJ20: 120.5088542 | QK20: 70.17050768 | QL20: 72.17206274 | QM20: 68.89700878 | QN20: 29.37088733 | QO20: 93.8347272 | QP20: 104.5949475 | QQ20: 37.46816413 | QR20: 64.47024518 | QS20: 49.90884891 | QT20: 88.00078885 | QU20: 45.62040172 | QV20: 66.11825619 | QW20: 52.1811931 | QX20: 51.02378146 | QY20: 89.63051206 | QZ20: 75.29225638 | RA20: 53.1083277 | RB20: 58.81022389 | RC20: 113.3962703 | RD20: 85.92808659 | RE20: 50.54913374 | RF20: 105.1674695 | RG20: 106.0609733 | RH20: 90.00945743 | RI20: 50.22426513 | RJ20: 32.7154954 | RK20: 59.92232579 | RL20: 52.79999088 | RM20: 16.3393448 | RN20: 66.99769027 | RO20: 31.23548122 | RP20: 27.24722792 | RQ20: 65.74376692 | RR20: 33.63017938 | RS20: 70.31353388 | RT20: 105.9340663 | RU20: 83.16026025 | RV20: 41.97547678 | RW20: 72.0792599 | RX20: 63.3210654 | RY20: 136.1174724 | RZ20: 17.18700451 | SA20: 70.17311619 | SB20: 32.59175082 | SC20: 93.11905568 | SD20: 51.05161234 | SE20: 101.4695343 | SF20: 69.21363804 | SG20: 39.00498288 | SH20: 61.58905516 | SI20: 83.64661901 | SJ20: 61.35924566 | SK20: 53.99785064 | SL20: 52.25113012 | SM20: 37.08763455 | SN20: 59.03435119 | SO20: 56.57234084 | SP20: 83.02815159 | SQ20: 73.41287396 | SR20: 38.91407305 | SS20: 120.767106 | ST20: 56.93417844 | SU20: 88.92556746 | SV20: 58.77622552 | SW20: 52.05739325 | SX20: 55.14577317 | SY20: 70.47441868 | SZ20: 57.49321399 | TA20: 32.19910833 | TB20: 49.78844713 | TC20: 76.83611483 | TD20: 62.93699763 | TE20: 78.99212053 | TF20: 29.955189 | TG20: 73.75029905 | TH20: 53.34558361 | TI20: 52.49889266 | TJ20: 64.04949689 | TK20: 64.15542082 | TL20: 32.16792845 | TM20: 90.49883332 | TN20: 60.24288165 | TO20: 46.72070228 | TP20: 29.52365571 | TQ20: 50.05510968 | TR20: 38.49923707 | TS20: 29.66216942 | TT20: 74.83950485 | TU20: 47.23887267 | TV20: 94.06521901 | TW20: 77.10709559 | TX20: 46.24686371 | TY20: 60.4357226 | TZ20: 117.8174491 | UA20: 46.36701009 | UB20: 34.29972832 | UC20: 40.55517958 | UD20: 72.38886677 | UE20: 52.82374361 | UF20: 49.44909108 | UG20: 41.98602809 | UH20: 70.89265472 | UI20: 59.79475324 | UJ20: 65.17233088 | UK20: 64.78278806 | UL20: 48.88668361 | UM20: 79.4204735 | UN20: 76.6255441 | UO20: 84.53354227 | UP20: 46.16032783 | UQ20: 40.06169029 | UR20: 74.29961718 | US20: 40.7437617 | UT20: 63.19298063 | UU20: 48.26067217 | UV20: 26.80901241 | UW20: 91.24305537 | UX20: 86.05500538 | UY20: 53.75247982 | UZ20: 67.09150574 | VA20: 34.04012506 | VB20: 160.5795298 | VC20: 40.4347324 | VD20: 116.5506014 | VE20: 43.88827337 | VF20: 83.26730967 | VG20: 20.79571795 | VH20: 44.28714582 | VI20: 45.40794819 | VJ20: 50.9138402 | VK20: 71.19738324 | VL20: 102.980915 | VM20: 77.74782516 | VN20: 74.87303519 | VO20: 54.08712971 | VP20: 84.60621604 | VQ20: 44.13164092 | VR20: 37.70384374 | VS20: 108.3024563 | VT20: 75.5358688 | VU20: 64.30953639 | VV20: 33.06103019 | VW20: 124.3440166 | VX20: 33.74759134 | VY20: 49.57260583 | VZ20: 45.90734397 | WA20: 31.4617203 | WB20: 51.98799082 | WC20: 66.04282267 | WD20: 34.97822954 | WE20: 41.96413527 | WF20: 50.63653656
A21: 28.71186014 | B21: 89.89625748 | C21: 57.70843209 | D21: 5 | E21: 23.07295182 | F21: 141.2547045 | G21: 54.05373438 | H21: 30.76222489 | I21: 125.3779432 | J21: 38.15686647 | K21: 102.9894531 | L21: 95.5159961 | M21: 52.08313936 | N21: 25.65454236 | O21: 49.27713743 | P21: 27.05889377 | Q21: 82.28179426 | R21: 31.70161824 | S21: 25.0160179 | T21: 31.03902259 | U21: 90.52591509 | V21: 51.20800215 | W21: 28.71903422 | X21: 56.5574548 | Y21: 50.57787236 | Z21: 53.78987375 | AA21: 54.23668394 | AB21: 39.31033055 | AC21: 49.26455406 | AD21: 27.83007856 | AE21: 33.4517035 | AF21: 33.20604323 | AG21: 45.02907799 | AH21: 91.16635851 | AI21: 31.3062539 | AJ21: 64.43010929 | AK21: 47.31037777 | AL21: 31.43309409 | AM21: 96.41633902 | AN21: 28.42103715 | AO21: 25.57111764 | AP21: 61.71109791 | AQ21: 80.67507293 | AR21: 54.21439199 | AS21: 79.2413348 | AT21: 110.5651036 | AU21: 83.72274329 | AV21: 55.48678639 | AW21: 82.1806527 | AX21: 48.39996109 | AY21: 44.57191855 | AZ21: 52.87166202 | BA21: 75.36427495 | BB21: 37.37707259 | BC21: 45.22182559 | BD21: 65.61800989 | BE21: 83.9723557 | BF21: 67.16604053 | BG21: 29.5280898 | BH21: 39.98761915 | BI21: 37.0453466 | BJ21: 33.70562262 | BK21: 48.56885004 | BL21: 72.11176441 | BM21: 42.86445934 | BN21: 62.08611223 | BO21: 27.90302536 | BP21: 84.6145546 | BQ21: 50.33844122 | BR21: 36.92045821 | BS21: 43.47855558 | BT21: 41.1256145 | BU21: 27.07533027 | BV21: 66.48253028 | BW21: 38.48240362 | BX21: 46.04262026 | BY21: 69.84148053 | BZ21: 13.65166312 | CA21: 73.90865032 | CB21: 32.97691581 | CC21: 73.93126036 | CD21: 49.25822196 | CE21: 69.16682405 | CF21: 81.58720339 | CG21: 39.78383037 | CH21: 46.47579852 | CI21: 66.55164604 | CJ21: 47.27018293 | CK21: 45.41253708 | CL21: 46.1413018 | CM21: 38.82062604 | CN21: 80.75220822 | CO21: 38.98129139 | CP21: 98.04863444 | CQ21: 82.0181541 | CR21: 81.57228383 | CS21: 42.52173336 | CT21: 45.58210606 | CU21: 22.99537511 | CV21: 30.13933133 | CW21: 72.45875189 | CX21: 50.67001769 | CY21: 36.60072338 | CZ21: 52.3695971 | DA21: 39.27351342 | DB21: 32.62580023 | DC21: 60.50445857 | DD21: 71.45547317 | DE21: 39.9581712 | DF21: 24.61444289 | DG21: 63.33840544 | DH21: 102.4457275 | DI21: 64.43565646 | DJ21: 75.74472171 | DK21: 21.48515327 | DL21: 48.37463582 | DM21: 65.4780483 | DN21: 68.19360192 | DO21: 68.49651592 | DP21: 22.45925568 | DQ21: 59.13315883 | DR21: 78.93736245 | DS21: 68.3965767 | DT21: 49.27834192 | DU21: 34.78832093 | DV21: 82.58517587 | DW21: 44.37819319 | DX21: 83.84792636 | DY21: 68.59925513 | DZ21: 47.75481747 | EA21: 68.74189038 | EB21: 45.52155371 | EC21: 108.8089153 | ED21: 25.0371968 | EE21: 73.98334634 | EF21: 39.96625141 | EG21: 22.89019204 | EH21: 44.43738113 | EI21: 34.6025501 | EJ21: 92.96386644 | EK21: 62.57900303 | EL21: 71.0969047 | EM21: 60.84806402 | EN21: 73.61958835 | EO21: 54.27070506 | EP21: 38.64226463 | EQ21: 34.90485741 | ER21: 71.62989757 | ES21: 16.38840499 | ET21: 38.01803493 | EU21: 30.14052948 | EV21: 64.71032606 | EW21: 34.46647374 | EX21: 72.37125268 | EY21: 62.97978772 | EZ21: 80.52406959 | FA21: 68.61698669 | FB21: 83.56565179 | FC21: 30.0427299 | FD21: 141.1799129 | FE21: 20.25515706 | FF21: 39.81912056 | FG21: 67.86573699 | FH21: 37.70458606 | FI21: 72.38509916 | FJ21: 33.94782252 | FK21: 55.56302602 | FL21: 38.13007051 | FM21: 38.34001866 | FN21: 74.20589432 | FO21: 66.34110369 | FP21: 59.20340076 | FQ21: 104.0897735 | FR21: 60.50990428 | FS21: 47.98024909 | FT21: 33.00496508 | FU21: 60.56496803 | FV21: 29.93095841 | FW21: 29.9554933 | FX21: 58.80501326 | FY21: 59.62835756 | FZ21: 71.51133298 | GA21: 98.04901492 | GB21: 38.09088955 | GC21: 186.3366949 | GD21: 31.00456686 | GE21: 58.59208976 | GF21: 74.25865026 | GG21: 36.5509119 | GH21: 65.67479854 | GI21: 58.51235947 | GJ21: 43.57268585 | GK21: 69.15372614 | GL21: 64.25919785 | GM21: 54.91844568 | GN21: 67.72295578 | GO21: 54.62189918 | GP21: 70.86360397 | GQ21: 62.18336842 | GR21: 68.52793389 | GS21: 56.78373938 | GT21: 88.6587458 | GU21: 76.8148967 | GV21: 61.85982021 | GW21: 206.0847441 | GX21: 57.04633241 | GY21: 89.36982274 | GZ21: 57.15252566 | HA21: 52.19729749 | HB21: 55.76089741 | HC21: 49.25618662 | HD21: 35.26612844 | HE21: 25.79156214 | HF21: 93.75169506 | HG21: 51.09173015 | HH21: 60.32181383 | HI21: 47.38360771 | HJ21: 35.73027744 | HK21: 29.81188286 | HL21: 58.44257118 | HM21: 51.09032312 | HN21: 50.53794833 | HO21: 53.41741491 | HP21: 26.10048587 | HQ21: 106.1701884 | HR21: 56.89587897 | HS21: 65.87386855 | HT21: 68.93492242 | HU21: 53.19210983 | HV21: 32.85787624 | HW21: 49.50402943 | HX21: 28.23115955 | HY21: 30.03784153 | HZ21: 30.4148841 | IA21: 73.7887124 | IB21: 79.14928011 | IC21: 39.11872199 | ID21: 20.47617442 | IE21: 69.39529502 | IF21: 46.09120264 | IG21: 37.22701404 | IH21: 42.61222131 | II21: 66.26983202 | IJ21: 84.13434164 | IK21: 35.31517921 | IL21: 70.15767892 | IM21: 54.03834203 | IN21: 54.98088794 | IO21: 57.56905316 | IP21: 115.0553283 | IQ21: 68.76004023 | IR21: 52.60656751 | IS21: 41.76338315 | IT21: 92.45348082 | IU21: 65.00484481 | IV21: 69.65275374 | IW21: 72.78782175 | IX21: 39.80733987 | IY21: 219.1221154 | IZ21: 76.77196236 | JA21: 86.37899406 | JB21: 20.53016641 | JC21: 33.99148195 | JD21: 54.25123983 | JE21: 17.81590692 | JF21: 31.2427252 | JG21: 26.93272513 | JH21: 36.29020737 | JI21: 52.65561927 | JJ21: 90.56635733 | JK21: 51.55583353 | JL21: 66.18495094 | JM21: 25.83874815 | JN21: 43.93730777 | JO21: 75.67936548 | JP21: 28.29761632 | JQ21: 94.69844771 | JR21: 136.4779791 | JS21: 98.90317188 | JT21: 23.01574472 | JU21: 78.19576395 | JV21: 31.24958802 | JW21: 36.78164172 | JX21: 37.89971769 | JY21: 30.50045164 | JZ21: 43.39494525 | KA21: 27.48134141 | KB21: 33.06647408 | KC21: 39.03193227 | KD21: 55.82955429 | KE21: 68.09988569 | KF21: 38.07581727 | KG21: 57.70357574 | KH21: 76.94808454 | KI21: 47.46001103 | KJ21: 32.279155 | KK21: 37.72659639 | KL21: 14.29834425 | KM21: 76.58060154 | KN21: 97.64411523 | KO21: 39.94459022 | KP21: 51.46194149 | KQ21: 53.95272035 | KR21: 45.24922962 | KS21: 46.9847413 | KT21: 69.06832387 | KU21: 78.72924054 | KV21: 69.97988619 | KW21: 60.58673821 | KX21: 90.73516232 | KY21: 32.41917489 | KZ21: 59.34478423 | LA21: 46.63638775 | LB21: 54.54100581 | LC21: 70.53598781 | LD21: 49.80324778 | LE21: 72.83382854 | LF21: 86.96638586 | LG21: 47.03032912 | LH21: 64.15666149 | LI21: 48.72530006 | LJ21: 129.0100387 | LK21: 76.67301518 | LL21: 53.71576254 | LM21: 109.8368624 | LN21: 23.14264946 | LO21: 48.27806259 | LP21: 89.82629552 | LQ21: 22.14539601 | LR21: 104.7729968 | LS21: 49.88268119 | LT21: 18.10326064 | LU21: 46.53737802 | LV21: 55.73999807 | LW21: 37.2700517 | LX21: 51.64920941 | LY21: 32.1535711 | LZ21: 79.97946444 | MA21: 91.44131342 | MB21: 28.64729341 | MC21: 65.96181474 | MD21: 96.78899066 | ME21: 70.18570391 | MF21: 42.74201232 | MG21: 95.02209804 | MH21: 83.75754855 | MI21: 105.0355101 | MJ21: 51.81858886 | MK21: 70.49246828 | ML21: 47.87900087 | MM21: 74.24675849 | MN21: 78.6766577 | MO21: 52.01995169 | MP21: 68.72167716 | MQ21: 81.20212443 | MR21: 56.17281432 | MS21: 35.28217555 | MT21: 33.39802461 | MU21: 77.69549535 | MV21: 24.60861351 | MW21: 40.42076923 | MX21: 47.30187509 | MY21: 51.08812895 | MZ21: 72.53797052 | NA21: 26.03950476 | NB21: 71.9799357 | NC21: 74.03507271 | ND21: 55.59959811 | NE21: 34.00738178 | NF21: 39.36985354 | NG21: 105.4950758 | NH21: 34.59569462 | NI21: 44.01799997 | NJ21: 36.30014787 | NK21: 41.52788904 | NL21: 29.84907684 | NM21: 36.22125767 | NN21: 76.60849017 | NO21: 78.31497176 | NP21: 73.65863343 | NQ21: 35.45316726 | NR21: 60.46832411 | NS21: 44.92242985 | NT21: 42.88558784 | NU21: 35.66570953 | NV21: 88.11390376 | NW21: 92.98874341 | NX21: 38.01918683 | NY21: 29.48967057 | NZ21: 73.23630797 | OA21: 48.98837172 | OB21: 121.1081397 | OC21: 61.51604381 | OD21: 25.69852023 | OE21: 64.29642247 | OF21: 41.0015197 | OG21: 44.88251485 | OH21: 30.71405512 | OI21: 45.12382282 | OJ21: 110.5456196 | OK21: 79.33350507 | OL21: 23.01467242 | OM21: 61.65807697 | ON21: 41.6580453 | OO21: 51.79467393 | OP21: 104.2371174 | OQ21: 64.60714173 | OR21: 54.81517814 | OS21: 30.84713346 | OT21: 40.99544504 | OU21: 58.26034325 | OV21: 19.3222826 | OW21: 48.2790182 | OX21: 36.06626068 | OY21: 27.80432169 | OZ21: 26.17150532 | PA21: 84.79622459 | PB21: 26.59942401 | PC21: 78.14799024 | PD21: 50.22499604 | PE21: 30.6672399 | PF21: 42.49308375 | PG21: 64.72954139 | PH21: 107.480337 | PI21: 110.3359132 | PJ21: 30.19721126 | PK21: 69.67282912 | PL21: 35.99964867 | PM21: 110.6409929 | PN21: 46.68368736 | PO21: 94.44736145 | PP21: 141.2696574 | PQ21: 40.97882235 | PR21: 27.60170745 | PS21: 16.36662071 | PT21: 45.80123883 | PU21: 31.72459224 | PV21: 66.62696055 | PW21: 52.45603168 | PX21: 125.8400349 | PY21: 46.62923397 | PZ21: 53.08301411 | QA21: 66.85031972 | QB21: 44.77155807 | QC21: 26.32605343 | QD21: 48.85035464 | QE21: 33.0193425 | QF21: 44.67050922 | QG21: 74.1999408 | QH21: 60.26186845 | QI21: 52.12018795 | QJ21: 63.91174388 | QK21: 72.19324239 | QL21: 83.39216864 | QM21: 60.25926329 | QN21: 37.8478502 | QO21: 103.8377752 | QP21: 82.91165396 | QQ21: 32.01636232 | QR21: 91.41319447 | QS21: 44.64597488 | QT21: 55.86224491 | QU21: 54.27787569 | QV21: 59.57902948 | QW21: 50.14425818 | QX21: 97.74699124 | QY21: 71.92124924 | QZ21: 58.24628642 | RA21: 37.4734158 | RB21: 45.51923368 | RC21: 104.6009256 | RD21: 72.95557117 | RE21: 86.63457599 | RF21: 131.7961398 | RG21: 99.00572558 | RH21: 77.69553694 | RI21: 34.42229977 | RJ21: 21.8533033 | RK21: 68.13830501 | RL21: 50.48930129 | RM21: 25.47528035 | RN21: 73.34520658 | RO21: 44.83022402 | RP21: 19.24265845 | RQ21: 40.4238668 | RR21: 26.42622051 | RS21: 40.18914222 | RT21: 91.1782878 | RU21: 62.09960483 | RV21: 39.80221341 | RW21: 88.26041668 | RX21: 60.36995281 | RY21: 148.3582538 | RZ21: 18.23098036 | SA21: 105.8400148 | SB21: 21.04629738 | SC21: 120.9977528 | SD21: 73.57133073 | SE21: 60.53719305 | SF21: 58.15447133 | SG21: 23.83264874 | SH21: 69.11049594 | SI21: 75.45665548 | SJ21: 58.06191134 | SK21: 48.74938082 | SL21: 54.53908339 | SM21: 26.99767563 | SN21: 47.88331387 | SO21: 60.46772474 | SP21: 64.12325349 | SQ21: 55.19101441 | SR21: 44.82391036 | SS21: 95.52925678 | ST21: 70.47086466 | SU21: 68.23715793 | SV21: 79.36229117 | SW21: 33.83485709 | SX21: 63.51319565 | SY21: 68.25413603 | SZ21: 81.46739521 | TA21: 30.60975948 | TB21: 56.30830533 | TC21: 55.54239686 | TD21: 74.26241859 | TE21: 74.59230445 | TF21: 30.25782264 | TG21: 55.17293645 | TH21: 49.06462044 | TI21: 43.46551559 | TJ21: 71.5370052 | TK21: 54.36335664 | TL21: 28.50150066 | TM21: 74.46866087 | TN21: 72.37828274 | TO21: 44.47808795 | TP21: 32.91533543 | TQ21: 54.83156983 | TR21: 26.08466828 | TS21: 38.14276546 | TT21: 87.56173639 | TU21: 62.58308026 | TV21: 78.46025168 | TW21: 74.41683309 | TX21: 31.06197723 | TY21: 55.36745887 | TZ21: 69.0167036 | UA21: 68.87235563 | UB21: 42.07062754 | UC21: 31.61141092 | UD21: 57.02663882 | UE21: 44.50520806 | UF21: 48.35645465 | UG21: 39.15961299 | UH21: 56.37206105 | UI21: 85.86354053 | UJ21: 43.71053157 | UK21: 69.4365507 | UL21: 22.07457765 | UM21: 59.62297267 | UN21: 57.95862871 | UO21: 80.86897352 | UP21: 47.53797669 | UQ21: 52.26065403 | UR21: 50.16866123 | US21: 36.57915398 | UT21: 48.69556859 | UU21: 29.88946201 | UV21: 42.10603279 | UW21: 97.06972576 | UX21: 67.3671171 | UY21: 72.43417316 | UZ21: 75.61461211 | VA21: 48.97925158 | VB21: 135.9438595 | VC21: 32.27878461 | VD21: 86.96193754 | VE21: 27.05019497 | VF21: 85.92677198 | VG21: 23.31786678 | VH21: 45.89702697 | VI21: 38.33254774 | VJ21: 40.16772227 | VK21: 75.28143884 | VL21: 86.63356357 | VM21: 59.51749534 | VN21: 47.47398255 | VO21: 36.41716622 | VP21: 79.16530829 | VQ21: 29.84582343 | VR21: 31.36498224 | VS21: 85.28186041 | VT21: 47.10688214 | VU21: 47.51404416 | VV21: 56.37058261 | VW21: 141.8143165 | VX21: 29.84845872 | VY21: 27.71544031 | VZ21: 52.40787069 | WA21: 27.87486205 | WB21: 65.63701863 | WC21: 75.55244906 | WD21: 48.27382702 | WE21: 36.14008281 | WF21: 66.02295029
A22: 26.17940913 | B22: 92.17985581 | C22: 56.85929599 | D22: 6 | E22: 24.42243025 | F22: 120.3922449 | G22: 55.03164937 | H22: 24.73665384 | I22: 72.27989024 | J22: 32.45173459 | K22: 80.46302314 | L22: 66.66776834 | M22: 63.49672883 | N22: 25.28501263 | O22: 71.1624477 | P22: 43.95907856 | Q22: 91.2530505 | R22: 24.9603693 | S22: 21.29142385 | T22: 36.73213654 | U22: 85.61466902 | V22: 41.12228717 | W22: 23.85963012 | X22: 61.58965021 | Y22: 43.38307108 | Z22: 37.31412023 | AA22: 31.74226915 | AB22: 56.08016478 | AC22: 45.0554549 | AD22: 22.23843503 | AE22: 38.78052598 | AF22: 17.93102668 | AG22: 34.25835039 | AH22: 104.8392539 | AI22: 33.92724067 | AJ22: 59.06621644 | AK22: 33.79394643 | AL22: 48.22094904 | AM22: 97.54533813 | AN22: 25.05927828 | AO22: 24.72312899 | AP22: 75.40300313 | AQ22: 77.55241211 | AR22: 54.10638828 | AS22: 56.68965393 | AT22: 72.46251895 | AU22: 91.32051111 | AV22: 49.08081815 | AW22: 92.16665024 | AX22: 25.98296552 | AY22: 45.33920093 | AZ22: 63.66865259 | BA22: 92.4005339 | BB22: 35.57394404 | BC22: 49.05094955 | BD22: 41.95456931 | BE22: 51.79510577 | BF22: 55.22959479 | BG22: 29.7440586 | BH22: 40.07257876 | BI22: 25.00013743 | BJ22: 52.98547277 | BK22: 93.79252529 | BL22: 64.08787388 | BM22: 44.23303864 | BN22: 90.10093342 | BO22: 43.76293863 | BP22: 69.54750843 | BQ22: 51.02397008 | BR22: 44.35837873 | BS22: 52.39552851 | BT22: 38.30929261 | BU22: 24.84697713 | BV22: 32.35765446 | BW22: 56.01971922 | BX22: 44.38552173 | BY22: 51.59836373 | BZ22: 9.756752679 | CA22: 41.38201861 | CB22: 29.98712073 | CC22: 76.93533816 | CD22: 24.97626919 | CE22: 52.9519893 | CF22: 84.88890294 | CG22: 48.70918376 | CH22: 44.2469176 | CI22: 55.53687936 | CJ22: 48.05882916 | CK22: 54.74432605 | CL22: 40.90095245 | CM22: 33.88326777 | CN22: 50.70317141 | CO22: 26.45687564 | CP22: 93.28146925 | CQ22: 96.8024365 | CR22: 50.2617209 | CS22: 36.11925012 | CT22: 62.59493939 | CU22: 31.89516128 | CV22: 29.94709879 | CW22: 63.22511577 | CX22: 57.47889676 | CY22: 45.48829467 | CZ22: 47.30823212 | DA22: 31.90245225 | DB22: 32.81730401 | DC22: 70.24151383 | DD22: 60.64606628 | DE22: 30.56080428 | DF22: 26.85405897 | DG22: 83.73620462 | DH22: 84.67513507 | DI22: 74.09070979 | DJ22: 36.15337737 | DK22: 18.74335371 | DL22: 59.04223363 | DM22: 68.56715252 | DN22: 53.63628432 | DO22: 59.55792148 | DP22: 24.96728634 | DQ22: 59.30204732 | DR22: 58.28598586 | DS22: 69.16184709 | DT22: 60.59201305 | DU22: 33.41018316 | DV22: 67.15140434 | DW22: 55.15677713 | DX22: 51.10644627 | DY22: 55.51793952 | DZ22: 26.31566489 | EA22: 87.61743568 | EB22: 46.10268615 | EC22: 79.13612924 | ED22: 33.06446737 | EE22: 68.25845183 | EF22: 31.2233663 | EG22: 19.03085689 | EH22: 53.69195012 | EI22: 39.93126473 | EJ22: 82.27401457 | EK22: 43.16275034 | EL22: 63.39471253 | EM22: 62.58555062 | EN22: 60.14694576 | EO22: 55.26711801 | EP22: 40.86148096 | EQ22: 43.34646969 | ER22: 76.12190962 | ES22: 19.25441019 | ET22: 33.06891352 | EU22: 17.57129471 | EV22: 63.29904892 | EW22: 36.34205156 | EX22: 54.67214808 | EY22: 45.84930927 | EZ22: 74.84224544 | FA22: 75.70786477 | FB22: 73.08029346 | FC22: 28.68786752 | FD22: 124.5944679 | FE22: 29.02205963 | FF22: 27.22980263 | FG22: 58.30422019 | FH22: 73.9410059 | FI22: 113.702458 | FJ22: 39.03819398 | FK22: 50.02865829 | FL22: 43.84592057 | FM22: 32.91537925 | FN22: 82.22764175 | FO22: 76.28022749 | FP22: 58.46046639 | FQ22: 66.90237814 | FR22: 89.93869465 | FS22: 52.67066792 | FT22: 27.37229971 | FU22: 102.6110235 | FV22: 21.34303629 | FW22: 52.5672492 | FX22: 41.05367471 | FY22: 66.10755689 | FZ22: 58.0470137 | GA22: 69.32698853 | GB22: 50.74262509 | GC22: 197.4779541 | GD22: 25.38173682 | GE22: 41.54482785 | GF22: 63.64530444 | GG22: 35.48222662 | GH22: 56.47137361 | GI22: 36.3527463 | GJ22: 53.02116761 | GK22: 111.1587543 | GL22: 44.76735613 | GM22: 74.1025489 | GN22: 31.98842821 | GO22: 41.8685151 | GP22: 72.09066827 | GQ22: 67.211348 | GR22: 63.41203251 | GS22: 41.19889242 | GT22: 122.7236118 | GU22: 78.8107672 | GV22: 44.1054806 | GW22: 167.3878925 | GX22: 60.90965171 | GY22: 82.4098343 | GZ22: 56.63571145 | HA22: 40.62796725 | HB22: 58.36716973 | HC22: 86.91099518 | HD22: 30.34875181 | HE22: 28.28856488 | HF22: 83.38398486 | HG22: 42.70686761 | HH22: 70.43512159 | HI22: 49.70701438 | HJ22: 33.34194768 | HK22: 31.54665565 | HL22: 82.92703953 | HM22: 58.55957294 | HN22: 41.94407024 | HO22: 46.58266401 | HP22: 18.13420753 | HQ22: 97.36698432 | HR22: 41.88033726 | HS22: 88.0424046 | HT22: 40.21740427 | HU22: 38.85441706 | HV22: 59.22439487 | HW22: 58.56358972 | HX22: 27.12728549 | HY22: 30.75826541 | HZ22: 38.29930775 | IA22: 58.00025812 | IB22: 82.9618121 | IC22: 42.30408655 | ID22: 19.26666975 | IE22: 53.79862662 | IF22: 45.35316113 | IG22: 44.91880682 | IH22: 39.34123317 | II22: 45.03897664 | IJ22: 124.6754074 | IK22: 20.73006527 | IL22: 56.61533779 | IM22: 63.70645318 | IN22: 51.72434237 | IO22: 54.13489198 | IP22: 123.8594067 | IQ22: 74.14964181 | IR22: 48.130656 | IS22: 37.45981134 | IT22: 100.9505792 | IU22: 67.81999386 | IV22: 54.03410294 | IW22: 59.57844132 | IX22: 30.25410578 | IY22: 243.5669987 | IZ22: 78.53454652 | JA22: 111.1391363 | JB22: 24.57390458 | JC22: 18.92452424 | JD22: 48.06518154 | JE22: 22.02749477 | JF22: 20.5053717 | JG22: 26.09612605 | JH22: 33.09816138 | JI22: 53.75045378 | JJ22: 62.68046316 | JK22: 52.83174488 | JL22: 64.90025692 | JM22: 31.86752382 | JN22: 33.07826909 | JO22: 116.3859401 | JP22: 36.80989896 | JQ22: 75.24422431 | JR22: 103.0859538 | JS22: 81.06992732 | JT22: 20.28845932 | JU22: 86.80540866 | JV22: 31.65640678 | JW22: 45.32549046 | JX22: 33.11258194 | JY22: 45.2687825 | JZ22: 40.29607198 | KA22: 32.44769606 | KB22: 47.07104394 | KC22: 37.6536982 | KD22: 42.57349379 | KE22: 49.82352931 | KF22: 28.846906 | KG22: 83.83296451 | KH22: 77.22687653 | KI22: 52.63182984 | KJ22: 34.13320537 | KK22: 50.5455885 | KL22: 22.17540548 | KM22: 58.34255497 | KN22: 137.5030169 | KO22: 30.56858998 | KP22: 24.81303076 | KQ22: 59.42218222 | KR22: 43.9371239 | KS22: 53.42446625 | KT22: 59.681123 | KU22: 72.09773456 | KV22: 55.25402081 | KW22: 93.74486558 | KX22: 102.0498433 | KY22: 29.29178643 | KZ22: 93.95500081 | LA22: 32.09775896 | LB22: 30.7149631 | LC22: 96.21121119 | LD22: 37.10926177 | LE22: 70.07394677 | LF22: 79.59025217 | LG22: 59.49695212 | LH22: 47.20223355 | LI22: 77.24762449 | LJ22: 151.6668237 | LK22: 51.977738 | LL22: 56.35896348 | LM22: 82.47170679 | LN22: 30.02397091 | LO22: 51.12913488 | LP22: 65.52302968 | LQ22: 20.69916107 | LR22: 40.43055872 | LS22: 53.40505876 | LT22: 20.13975151 | LU22: 57.73134003 | LV22: 46.12838305 | LW22: 44.29280397 | LX22: 45.62662736 | LY22: 37.04561725 | LZ22: 114.9611454 | MA22: 77.68190068 | MB22: 21.77044246 | MC22: 51.11554664 | MD22: 60.10565154 | ME22: 91.53730944 | MF22: 51.49393707 | MG22: 105.0938744 | MH22: 74.86064874 | MI22: 63.80923305 | MJ22: 41.83745663 | MK22: 70.61773985 | ML22: 68.73515705 | MM22: 78.58967735 | MN22: 53.48313893 | MO22: 44.64831281 | MP22: 55.59514184 | MQ22: 92.29870595 | MR22: 58.12745673 | MS22: 46.27178012 | MT22: 54.91413204 | MU22: 97.34175655 | MV22: 27.37597593 | MW22: 32.02126663 | MX22: 66.90823702 | MY22: 34.67165446 | MZ22: 82.79804546 | NA22: 29.10375031 | NB22: 51.26776762 | NC22: 70.37216911 | ND22: 48.93543722 | NE22: 40.86409778 | NF22: 57.08151893 | NG22: 170.1364165 | NH22: 47.03209858 | NI22: 31.04699448 | NJ22: 37.25330333 | NK22: 34.37770754 | NL22: 17.97770522 | NM22: 35.10186447 | NN22: 70.06949544 | NO22: 88.00295539 | NP22: 48.63739567 | NQ22: 33.93070988 | NR22: 52.6702382 | NS22: 73.54417821 | NT22: 52.18331637 | NU22: 25.86601664 | NV22: 110.3523401 | NW22: 60.14451295 | NX22: 38.62974561 | NY22: 20.44998479 | NZ22: 54.99834857 | OA22: 40.04600533 | OB22: 106.7657556 | OC22: 78.13920938 | OD22: 29.71802654 | OE22: 97.07770259 | OF22: 36.51688246 | OG22: 30.77364835 | OH22: 51.98969331 | OI22: 38.09315924 | OJ22: 75.20731818 | OK22: 76.64336837 | OL22: 18.801907 | OM22: 45.68836976 | ON22: 50.16979501 | OO22: 68.98115658 | OP22: 105.4662667 | OQ22: 73.0395254 | OR22: 56.12455536 | OS22: 27.6764242 | OT22: 34.0064436 | OU22: 62.15008977 | OV22: 16.84013984 | OW22: 41.49226706 | OX22: 26.46200136 | OY22: 23.67456898 | OZ22: 25.11814355 | PA22: 72.86605312 | PB22: 23.45394424 | PC22: 79.12799851 | PD22: 87.94857768 | PE22: 22.55545946 | PF22: 60.64756165 | PG22: 52.92595344 | PH22: 65.50531849 | PI22: 79.23186936 | PJ22: 36.17881482 | PK22: 69.46538635 | PL22: 32.88151207 | PM22: 119.1868764 | PN22: 46.38796275 | PO22: 87.51576698 | PP22: 221.4557315 | PQ22: 38.61559267 | PR22: 47.29281608 | PS22: 14.23211643 | PT22: 78.19464519 | PU22: 27.74682064 | PV22: 27.99960812 | PW22: 61.49424049 | PX22: 134.2959909 | PY22: 54.48950179 | PZ22: 44.00214805 | QA22: 67.84475457 | QB22: 36.36832591 | QC22: 41.08053276 | QD22: 49.10125676 | QE22: 22.36781454 | QF22: 42.16714128 | QG22: 59.44037794 | QH22: 46.64723105 | QI22: 56.3439117 | QJ22: 57.37564313 | QK22: 56.96963763 | QL22: 105.174264 | QM22: 88.10535781 | QN22: 38.18444867 | QO22: 60.76577744 | QP22: 101.0546837 | QQ22: 26.96647958 | QR22: 42.92930683 | QS22: 43.58745967 | QT22: 51.62327589 | QU22: 52.82584937 | QV22: 54.4299023 | QW22: 55.44068298 | QX22: 68.30472039 | QY22: 95.09869475 | QZ22: 70.35486328 | RA22: 29.37810764 | RB22: 51.19941026 | RC22: 76.41345542 | RD22: 46.47628568 | RE22: 83.59410882 | RF22: 83.10269993 | RG22: 74.97063768 | RH22: 96.60578345 | RI22: 59.58039948 | RJ22: 21.73957354 | RK22: 85.02079795 | RL22: 57.85152433 | RM22: 14.33006698 | RN22: 127.9629404 | RO22: 50.03658365 | RP22: 14.93262553 | RQ22: 34.06247981 | RR22: 20.36359411 | RS22: 38.11811221 | RT22: 55.04423679 | RU22: 76.67454869 | RV22: 47.17066963 | RW22: 96.17688078 | RX22: 61.59742516 | RY22: 191.2364607 | RZ22: 20.95492423 | SA22: 90.24344051 | SB22: 15.56163341 | SC22: 117.8700204 | SD22: 49.70692943 | SE22: 44.38031834 | SF22: 42.99511921 | SG22: 33.26817571 | SH22: 110.6240109 | SI22: 100.3823236 | SJ22: 55.13753518 | SK22: 64.31520874 | SL22: 62.70375366 | SM22: 39.51327275 | SN22: 90.15503279 | SO22: 58.81155308 | SP22: 57.72331966 | SQ22: 45.84693918 | SR22: 36.32531662 | SS22: 87.94320742 | ST22: 107.3289257 | SU22: 86.70830374 | SV22: 67.53505399 | SW22: 31.99854498 | SX22: 69.25164373 | SY22: 72.68493699 | SZ22: 110.9118587 | TA22: 31.3864047 | TB22: 56.63335799 | TC22: 95.78053649 | TD22: 56.30269632 | TE22: 43.90331694 | TF22: 29.02847855 | TG22: 50.74779744 | TH22: 50.52332906 | TI22: 47.45867863 | TJ22: 84.63277804 | TK22: 30.96521603 | TL22: 26.5068132 | TM22: 59.33666082 | TN22: 63.41786481 | TO22: 49.54222058 | TP22: 37.07159538 | TQ22: 43.46393535 | TR22: 26.18866281 | TS22: 31.87301332 | TT22: 73.93634803 | TU22: 47.68364144 | TV22: 61.41547865 | TW22: 61.5391136 | TX22: 43.5926814 | TY22: 75.91468396 | TZ22: 63.13094029 | UA22: 105.25463 | UB22: 33.39683949 | UC22: 35.2449609 | UD22: 58.59972529 | UE22: 35.74742234 | UF22: 72.10117851 | UG22: 51.17515383 | UH22: 58.24903741 | UI22: 66.73821345 | UJ22: 47.76799983 | UK22: 51.01715744 | UL22: 21.00363609 | UM22: 53.43943734 | UN22: 79.108812 | UO22: 99.65280756 | UP22: 65.66884557 | UQ22: 59.06255525 | UR22: 40.83170905 | US22: 31.75497341 | UT22: 43.06134088 | UU22: 34.53845194 | UV22: 45.65506109 | UW22: 77.63890972 | UX22: 74.90919423 | UY22: 72.46155575 | UZ22: 88.19140931 | VA22: 51.34646186 | VB22: 138.2705791 | VC22: 25.28945289 | VD22: 129.0389816 | VE22: 31.30056566 | VF22: 115.6410902 | VG22: 20.54768837 | VH22: 53.82503615 | VI22: 41.10534352 | VJ22: 54.23957667 | VK22: 75.708582 | VL22: 45.98411195 | VM22: 113.675834 | VN22: 40.29326629 | VO22: 24.78348015 | VP22: 45.49007396 | VQ22: 24.66492603 | VR22: 25.13739161 | VS22: 84.46529798 | VT22: 58.32676974 | VU22: 34.60976559 | VV22: 58.33810144 | VW22: 140.4795167 | VX22: 29.05965892 | VY22: 38.28322848 | VZ22: 51.3337117 | WA22: 16.63648514 | WB22: 40.29287525 | WC22: 81.21266756 | WD22: 56.70572776 | WE22: 51.74615408 | WF22: 80.11341558
A23: 24.90712803 | B23: 101.9656216 | C23: 58.31945217 | D23: 7 | E23: 17.8990423 | F23: 118.6029253 | G23: 82.939676 | H23: 16.06245677 | I23: 84.09886499 | J23: 35.96454448 | K23: 95.74767737 | L23: 114.087023 | M23: 75.89630666 | N23: 42.21685688 | O23: 62.15751184 | P23: 64.68693089 | Q23: 58.75382583 | R23: 16.26825554 | S23: 21.33385479 | T23: 26.46833631 | U23: 102.9510362 | V23: 30.72430235 | W23: 25.32438139 | X23: 47.09902555 | Y23: 55.96091487 | Z23: 29.46303498 | AA23: 31.31996942 | AB23: 45.43547126 | AC23: 45.26823559 | AD23: 29.51401246 | AE23: 51.56050167 | AF23: 17.60274998 | AG23: 36.90180761 | AH23: 106.2485129 | AI23: 48.96396179 | AJ23: 36.13836993 | AK23: 38.35861059 | AL23: 60.29650978 | AM23: 151.4294105 | AN23: 17.32851959 | AO23: 34.30573465 | AP23: 93.19414471 | AQ23: 87.33863143 | AR23: 48.82032353 | AS23: 102.0798467 | AT23: 71.71926299 | AU23: 89.37721715 | AV23: 48.21991727 | AW23: 64.29209519 | AX23: 29.77635884 | AY23: 49.17709791 | AZ23: 102.515005 | BA23: 84.38071353 | BB23: 54.09430633 | BC23: 42.04641273 | BD23: 76.16358629 | BE23: 50.37531817 | BF23: 49.59295165 | BG23: 36.15187069 | BH23: 23.87489661 | BI23: 41.09379816 | BJ23: 61.61639409 | BK23: 77.34797013 | BL23: 42.12456752 | BM23: 62.69702653 | BN23: 105.6926402 | BO23: 45.43858798 | BP23: 77.52245168 | BQ23: 34.24114718 | BR23: 51.74343595 | BS23: 44.59335403 | BT23: 44.99962395 | BU23: 17.6343145 | BV23: 43.52156394 | BW23: 81.10572119 | BX23: 39.34817563 | BY23: 92.80645819 | BZ23: 15.73577807 | CA23: 75.157302 | CB23: 28.84674798 | CC23: 106.7185019 | CD23: 23.82719489 | CE23: 43.17354043 | CF23: 83.40888321 | CG23: 34.54959723 | CH23: 29.78424199 | CI23: 54.67701451 | CJ23: 34.50812874 | CK23: 43.23767495 | CL23: 29.51710821 | CM23: 31.99444499 | CN23: 57.99725163 | CO23: 39.2074181 | CP23: 60.27757515 | CQ23: 64.39341667 | CR23: 61.69552398 | CS23: 31.90943289 | CT23: 48.99817595 | CU23: 40.14277877 | CV23: 29.17273444 | CW23: 60.5776145 | CX23: 53.35989062 | CY23: 61.70226821 | CZ23: 50.517706 | DA23: 32.40852097 | DB23: 30.47864174 | DC23: 69.22187254 | DD23: 72.79321707 | DE23: 37.05552542 | DF23: 30.15357893 | DG23: 84.53428145 | DH23: 53.32526787 | DI23: 67.83200816 | DJ23: 45.68218132 | DK23: 24.76673279 | DL23: 29.29661236 | DM23: 67.55702832 | DN23: 49.05614348 | DO23: 90.68774421 | DP23: 13.83075439 | DQ23: 62.54620242 | DR23: 60.04182852 | DS23: 94.13024176 | DT23: 57.40441338 | DU23: 31.32252334 | DV23: 68.20392506 | DW23: 54.97479752 | DX23: 52.937463 | DY23: 43.25128405 | DZ23: 26.82099221 | EA23: 100.1657266 | EB23: 36.82143337 | EC23: 109.306675 | ED23: 46.15038726 | EE23: 68.21895908 | EF23: 24.20422241 | EG23: 14.977916 | EH23: 80.2874948 | EI23: 56.12260944 | EJ23: 81.9700512 | EK23: 45.34969729 | EL23: 60.61485218 | EM23: 100.9956299 | EN23: 64.46570468 | EO23: 35.00193398 | EP23: 87.55439593 | EQ23: 44.64648814 | ER23: 55.67438554 | ES23: 15.82299449 | ET23: 53.98363123 | EU23: 9.791466624 | EV23: 51.30754862 | EW23: 31.38953141 | EX23: 42.89114949 | EY23: 45.57665107 | EZ23: 89.27658788 | FA23: 65.70672106 | FB23: 57.78898678 | FC23: 20.29939562 | FD23: 161.8603676 | FE23: 29.08412333 | FF23: 25.84525489 | FG23: 45.64699697 | FH23: 83.44943858 | FI23: 124.3135706 | FJ23: 27.88754357 | FK23: 45.25147814 | FL23: 38.46623249 | FM23: 27.76504895 | FN23: 64.08304873 | FO23: 54.14376415 | FP23: 60.7915872 | FQ23: 60.03944081 | FR23: 121.5271099 | FS23: 44.06035541 | FT23: 27.99909381 | FU23: 73.67380645 | FV23: 31.48949044 | FW23: 73.27017707 | FX23: 45.89206628 | FY23: 54.49612493 | FZ23: 43.45197619 | GA23: 42.00139541 | GB23: 45.46031296 | GC23: 168.2809384 | GD23: 20.91771799 | GE23: 38.71768588 | GF23: 83.64218329 | GG23: 44.39505536 | GH23: 44.59764342 | GI23: 38.2723146 | GJ23: 85.69570305 | GK23: 107.6328065 | GL23: 57.50000465 | GM23: 66.8658917 | GN23: 65.85293687 | GO23: 45.58581291 | GP23: 71.74080481 | GQ23: 54.42405018 | GR23: 88.99339429 | GS23: 48.09432636 | GT23: 154.53481 | GU23: 83.94281141 | GV23: 60.12389 | GW23: 148.6909882 | GX23: 50.89143939 | GY23: 93.58490741 | GZ23: 95.00484673 | HA23: 43.66739495 | HB23: 52.97737036 | HC23: 80.44088198 | HD23: 55.89482293 | HE23: 22.02110827 | HF23: 57.60631795 | HG23: 42.49203008 | HH23: 48.16374939 | HI23: 42.20581242 | HJ23: 44.11619148 | HK23: 33.71057844 | HL23: 64.11616123 | HM23: 75.44514489 | HN23: 50.00677966 | HO23: 86.25505085 | HP23: 15.01957371 | HQ23: 139.1102177 | HR23: 53.20224095 | HS23: 63.52255214 | HT23: 34.28872343 | HU23: 39.84643484 | HV23: 61.31674271 | HW23: 51.12220955 | HX23: 18.20604816 | HY23: 38.64100236 | HZ23: 43.54137744 | IA23: 46.88757181 | IB23: 86.13717497 | IC23: 43.51754041 | ID23: 20.08921224 | IE23: 47.14647438 | IF23: 50.25141502 | IG23: 54.45782654 | IH23: 29.06142826 | II23: 42.82403487 | IJ23: 165.0844055 | IK23: 18.65761103 | IL23: 68.46376171 | IM23: 50.16110059 | IN23: 53.95819532 | IO23: 57.07897157 | IP23: 107.5104489 | IQ23: 86.38168771 | IR23: 39.16492768 | IS23: 37.33545086 | IT23: 95.77287144 | IU23: 84.3473058 | IV23: 48.63767142 | IW23: 63.15515942 | IX23: 29.03911212 | IY23: 191.4695699 | IZ23: 76.77010766 | JA23: 104.4240055 | JB23: 20.59759057 | JC23: 18.09261159 | JD23: 50.58277191 | JE23: 16.81344232 | JF23: 12.37725071 | JG23: 21.14532809 | JH23: 32.64400436 | JI23: 109.110367 | JJ23: 82.57671249 | JK23: 59.58185693 | JL23: 49.44220444 | JM23: 40.35461093 | JN23: 35.82893081 | JO23: 103.1165929 | JP23: 20.17016063 | JQ23: 74.28198171 | JR23: 95.07468079 | JS23: 87.68871303 | JT23: 27.96880848 | JU23: 70.70471116 | JV23: 23.00117427 | JW23: 42.79274249 | JX23: 33.3275201 | JY23: 55.63989491 | JZ23: 61.33317624 | KA23: 50.89980856 | KB23: 41.75891456 | KC23: 64.20501268 | KD23: 51.70113774 | KE23: 42.23800025 | KF23: 26.67326893 | KG23: 58.26627135 | KH23: 50.9452516 | KI23: 41.67237427 | KJ23: 31.04151012 | KK23: 45.58235362 | KL23: 19.74680436 | KM23: 60.22522011 | KN23: 163.3772113 | KO23: 32.07968664 | KP23: 45.7039366 | KQ23: 47.41417905 | KR23: 41.64664608 | KS23: 44.42177814 | KT23: 77.66958713 | KU23: 118.302097 | KV23: 60.67773909 | KW23: 74.21466552 | KX23: 105.2135997 | KY23: 27.19241552 | KZ23: 185.8062523 | LA23: 22.57731843 | LB23: 38.93126603 | LC23: 67.87638513 | LD23: 42.92961498 | LE23: 51.25936098 | LF23: 82.59553955 | LG23: 52.20282503 | LH23: 64.16304741 | LI23: 47.18380788 | LJ23: 119.3364432 | LK23: 31.47686841 | LL23: 64.9155923 | LM23: 50.47874256 | LN23: 51.71497334 | LO23: 46.44330127 | LP23: 58.85452408 | LQ23: 31.69488272 | LR23: 53.60795909 | LS23: 58.43942209 | LT23: 29.81071774 | LU23: 73.34812053 | LV23: 45.37064672 | LW23: 60.88098399 | LX23: 75.84287589 | LY23: 23.15184701 | LZ23: 98.99268445 | MA23: 80.18153409 | MB23: 25.95574909 | MC23: 35.99130898 | MD23: 119.8659164 | ME23: 46.94356247 | MF23: 54.93219855 | MG23: 114.2409355 | MH23: 99.63359016 | MI23: 75.99560865 | MJ23: 50.52072686 | MK23: 62.30379981 | ML23: 79.77729321 | MM23: 74.71623927 | MN23: 55.59055587 | MO23: 43.33323901 | MP23: 52.13614148 | MQ23: 67.56788037 | MR23: 50.4172524 | MS23: 40.00845864 | MT23: 44.88789984 | MU23: 96.41211323 | MV23: 29.90188793 | MW23: 18.85126456 | MX23: 112.0394079 | MY23: 49.58683814 | MZ23: 35.00719556 | NA23: 19.96810561 | NB23: 60.39592277 | NC23: 107.9059078 | ND23: 48.67197078 | NE23: 46.88197918 | NF23: 30.40920917 | NG23: 143.4920921 | NH23: 79.15873177 | NI23: 26.99274185 | NJ23: 41.27809523 | NK23: 34.0207236 | NL23: 20.69982642 | NM23: 24.25169848 | NN23: 72.84970572 | NO23: 69.95321197 | NP23: 57.93622985 | NQ23: 26.99037015 | NR23: 70.15382877 | NS23: 103.6693182 | NT23: 39.10459176 | NU23: 30.56973382 | NV23: 111.7281878 | NW23: 70.35996501 | NX23: 48.29136841 | NY23: 18.70876692 | NZ23: 49.34112143 | OA23: 43.51786346 | OB23: 82.77619741 | OC23: 69.81830617 | OD23: 22.06873613 | OE23: 98.69078985 | OF23: 35.99753084 | OG23: 28.64919832 | OH23: 57.4004615 | OI23: 28.68895905 | OJ23: 64.80799135 | OK23: 69.29572755 | OL23: 22.44772632 | OM23: 64.06144915 | ON23: 31.27731303 | OO23: 81.90533636 | OP23: 116.5916968 | OQ23: 94.32861797 | OR23: 80.82052548 | OS23: 27.33615471 | OT23: 38.97109953 | OU23: 42.26953511 | OV23: 24.37665949 | OW23: 29.17835621 | OX23: 23.74352962 | OY23: 17.23795305 | OZ23: 23.76496675 | PA23: 121.4223723 | PB23: 29.95742654 | PC23: 136.0404864 | PD23: 69.95360294 | PE23: 31.02392335 | PF23: 42.14100007 | PG23: 41.95448707 | PH23: 108.2589196 | PI23: 69.50667737 | PJ23: 31.13914463 | PK23: 49.88907332 | PL23: 25.59642159 | PM23: 93.35067698 | PN23: 53.85804571 | PO23: 69.78417821 | PP23: 190.8535053 | PQ23: 25.18277079 | PR23: 50.78533285 | PS23: 19.31603118 | PT23: 48.9423255 | PU23: 36.58464138 | PV23: 46.39754266 | PW23: 59.36967874 | PX23: 86.4982025 | PY23: 56.90414913 | PZ23: 33.58444323 | QA23: 72.64195088 | QB23: 41.449861 | QC23: 32.94485938 | QD23: 32.67160144 | QE23: 18.90375719 | QF23: 51.8411416 | QG23: 36.96252916 | QH23: 41.21553299 | QI23: 41.51468417 | QJ23: 47.40390728 | QK23: 40.70713404 | QL23: 156.9113476 | QM23: 102.5174807 | QN23: 25.96304722 | QO23: 67.45068716 | QP23: 102.5529617 | QQ23: 34.13326921 | QR23: 91.52266373 | QS23: 39.41585852 | QT23: 42.72681646 | QU23: 56.69098347 | QV23: 63.46495305 | QW23: 70.41039401 | QX23: 62.78389655 | QY23: 77.49803566 | QZ23: 68.48571266 | RA23: 27.2949787 | RB23: 70.04370499 | RC23: 68.41361443 | RD23: 54.14597429 | RE23: 109.5272377 | RF23: 81.54011466 | RG23: 97.47678853 | RH23: 58.90401588 | RI23: 68.72445927 | RJ23: 19.10288569 | RK23: 93.82262559 | RL23: 76.83747337 | RM23: 16.53885885 | RN23: 93.9500458 | RO23: 49.04727215 | RP23: 16.29419468 | RQ23: 33.17365309 | RR23: 16.3371314 | RS23: 42.41341209 | RT23: 69.39632509 | RU23: 60.30079455 | RV23: 60.16674149 | RW23: 85.02993327 | RX23: 65.55909044 | RY23: 304.9670005 | RZ23: 32.95777532 | SA23: 105.6107353 | SB23: 12.16259703 | SC23: 159.1639457 | SD23: 60.43340749 | SE23: 63.14287739 | SF23: 74.07672022 | SG23: 21.75862747 | SH23: 82.94152101 | SI23: 111.6642371 | SJ23: 38.12654772 | SK23: 39.4558837 | SL23: 47.91755707 | SM23: 46.46825278 | SN23: 91.65853524 | SO23: 50.86111403 | SP23: 63.3643904 | SQ23: 41.50407957 | SR23: 33.83478283 | SS23: 61.77320985 | ST23: 131.9624992 | SU23: 88.56541529 | SV23: 46.95089091 | SW23: 32.91371959 | SX23: 59.37034128 | SY23: 34.81353927 | SZ23: 102.3302098 | TA23: 46.64861795 | TB23: 71.55428784 | TC23: 131.5127316 | TD23: 74.49867876 | TE23: 63.6554781 | TF23: 32.74600214 | TG23: 57.65790677 | TH23: 38.27911675 | TI23: 37.44668231 | TJ23: 102.1216235 | TK23: 22.14818199 | TL23: 21.8703953 | TM23: 51.05710774 | TN23: 59.26807788 | TO23: 37.99804066 | TP23: 26.57825933 | TQ23: 36.34238587 | TR23: 18.95443936 | TS23: 29.45096673 | TT23: 121.1771612 | TU23: 24.92272751 | TV23: 58.86676666 | TW23: 84.53279328 | TX23: 49.12774581 | TY23: 104.4228219 | TZ23: 43.67154385 | UA23: 176.2115691 | UB23: 33.60928595 | UC23: 44.56393807 | UD23: 40.36296645 | UE23: 51.62506959 | UF23: 49.70056121 | UG23: 47.46852988 | UH23: 36.52232627 | UI23: 65.18375479 | UJ23: 51.57825611 | UK23: 50.09604636 | UL23: 31.5344618 | UM23: 41.83539224 | UN23: 40.29799855 | UO23: 71.65148175 | UP23: 62.54559425 | UQ23: 47.51128422 | UR23: 24.32543082 | US23: 23.19126166 | UT23: 48.50530664 | UU23: 18.27892258 | UV23: 42.32735468 | UW23: 99.82173532 | UX23: 71.06034444 | UY23: 131.5314935 | UZ23: 99.94333718 | VA23: 67.95593462 | VB23: 136.6201725 | VC23: 26.58813757 | VD23: 128.9758754 | VE23: 31.26173952 | VF23: 100.9083665 | VG23: 23.65000028 | VH23: 72.71129464 | VI23: 29.10737976 | VJ23: 45.39708609 | VK23: 89.37510589 | VL23: 61.97817956 | VM23: 92.74901149 | VN23: 32.95082223 | VO23: 27.50842721 | VP23: 56.91732588 | VQ23: 34.7414557 | VR23: 32.01639332 | VS23: 98.80900742 | VT23: 75.06333905 | VU23: 34.76085092 | VV23: 58.95567137 | VW23: 120.4603935 | VX23: 26.47981661 | VY23: 28.35381381 | VZ23: 54.88638437 | WA23: 23.37285094 | WB23: 48.27635552 | WC23: 101.9529299 | WD23: 66.77166037 | WE23: 35.72873385 | WF23: 58.5970466
A24: 23.25520608 | B24: 98.91276757 | C24: 56.75726498 | D24: 8 | E24: 18.02954496 | F24: 95.61613173 | G24: 63.30711807 | H24: 26.35309892 | I24: 65.51368853 | J24: 28.69472413 | K24: 91.96062532 | L24: 172.880936 | M24: 46.42811394 | N24: 28.99697943 | O24: 49.56093563 | P24: 51.374778 | Q24: 66.61703962 | R24: 26.9154477 | S24: 29.05737552 | T24: 20.66466257 | U24: 68.53329798 | V24: 49.01753437 | W24: 19.76018204 | X24: 64.1181263 | Y24: 64.16620379 | Z24: 26.59894456 | AA24: 49.03908046 | AB24: 38.92467021 | AC24: 32.359075 | AD24: 34.9551839 | AE24: 50.03128203 | AF24: 15.29249767 | AG24: 42.54529961 | AH24: 118.3375453 | AI24: 26.73230039 | AJ24: 46.99274627 | AK24: 41.85745921 | AL24: 40.23787643 | AM24: 156.3820483 | AN24: 21.44070329 | AO24: 39.65266116 | AP24: 98.9048824 | AQ24: 59.88906675 | AR24: 54.95813276 | AS24: 100.6148058 | AT24: 50.57929607 | AU24: 98.7031051 | AV24: 30.48413862 | AW24: 51.70869993 | AX24: 39.33891173 | AY24: 53.19010017 | AZ24: 57.36718468 | BA24: 60.2163966 | BB24: 28.8373501 | BC24: 39.70161348 | BD24: 84.29236716 | BE24: 62.96034818 | BF24: 79.53102354 | BG24: 43.33594383 | BH24: 15.17801537 | BI24: 24.03214381 | BJ24: 62.18835318 | BK24: 78.70963222 | BL24: 48.39235161 | BM24: 52.82427579 | BN24: 54.02318646 | BO24: 29.05769841 | BP24: 61.18702705 | BQ24: 30.2319171 | BR24: 49.56025652 | BS24: 33.39480284 | BT24: 63.18421538 | BU24: 27.57746421 | BV24: 37.6469322 | BW24: 73.72892599 | BX24: 31.80084851 | BY24: 127.6685119 | BZ24: 11.82318659 | CA24: 73.97035586 | CB24: 40.63990206 | CC24: 124.7754771 | CD24: 31.76199993 | CE24: 41.95916199 | CF24: 72.98364959 | CG24: 43.92147203 | CH24: 31.28117256 | CI24: 50.51603115 | CJ24: 24.84750391 | CK24: 55.21158761 | CL24: 30.5572412 | CM24: 36.31729264 | CN24: 56.76262615 | CO24: 33.11015203 | CP24: 77.49710837 | CQ24: 59.95954194 | CR24: 62.42154293 | CS24: 41.70193438 | CT24: 35.4136481 | CU24: 24.58278645 | CV24: 23.62665871 | CW24: 48.16221976 | CX24: 78.03045264 | CY24: 66.7043134 | CZ24: 44.03914833 | DA24: 24.75347064 | DB24: 35.41954107 | DC24: 98.98373409 | DD24: 57.78734993 | DE24: 25.80579264 | DF24: 31.83940982 | DG24: 70.00794866 | DH24: 69.47918254 | DI24: 69.57830119 | DJ24: 61.20540749 | DK24: 11.46700909 | DL24: 32.20734148 | DM24: 67.74428848 | DN24: 47.02621605 | DO24: 74.51290056 | DP24: 15.04186468 | DQ24: 63.36488487 | DR24: 56.05287181 | DS24: 85.54945574 | DT24: 52.1003698 | DU24: 36.9399635 | DV24: 71.72718452 | DW24: 81.17644737 | DX24: 47.03517929 | DY24: 42.16794231 | DZ24: 27.66047878 | EA24: 87.95825427 | EB24: 26.05813378 | EC24: 126.6655737 | ED24: 31.01878602 | EE24: 67.6424392 | EF24: 30.12090897 | EG24: 8.293562529 | EH24: 90.73732565 | EI24: 40.79672014 | EJ24: 94.49679664 | EK24: 77.02544008 | EL24: 82.38414878 | EM24: 128.6491775 | EN24: 44.97145409 | EO24: 16.42101523 | EP24: 86.0347035 | EQ24: 31.27460911 | ER24: 55.05864225 | ES24: 14.85328915 | ET24: 45.60153775 | EU24: 19.61688812 | EV24: 50.2285837 | EW24: 28.545059 | EX24: 31.69918898 | EY24: 38.70091414 | EZ24: 118.2641336 | FA24: 65.94908874 | FB24: 49.1520295 | FC24: 24.3353147 | FD24: 127.3773876 | FE24: 18.7850946 | FF24: 39.91927825 | FG24: 53.81870103 | FH24: 55.34635754 | FI24: 138.3561735 | FJ24: 22.81701758 | FK24: 34.2215493 | FL24: 36.40268796 | FM24: 45.73761045 | FN24: 53.73039351 | FO24: 53.08295558 | FP24: 54.02376165 | FQ24: 83.37905918 | FR24: 130.785062 | FS24: 41.77728876 | FT24: 41.07397976 | FU24: 48.60609352 | FV24: 32.48066864 | FW24: 58.73369979 | FX24: 40.18016449 | FY24: 39.06092577 | FZ24: 45.73874724 | GA24: 57.49824228 | GB24: 34.50559716 | GC24: 196.3593931 | GD24: 22.49913354 | GE24: 41.34203414 | GF24: 78.93399226 | GG24: 38.91036309 | GH24: 53.10855898 | GI24: 40.52696298 | GJ24: 183.9488243 | GK24: 88.07717183 | GL24: 47.835678 | GM24: 63.15463211 | GN24: 70.29071016 | GO24: 37.43669568 | GP24: 36.1193206 | GQ24: 88.52958469 | GR24: 79.60043004 | GS24: 37.93906932 | GT24: 112.0639958 | GU24: 124.496339 | GV24: 47.61900394 | GW24: 149.0704913 | GX24: 79.54777226 | GY24: 79.03312755 | GZ24: 74.37197098 | HA24: 43.28898529 | HB24: 48.74714347 | HC24: 61.37118617 | HD24: 75.63053604 | HE24: 35.07055437 | HF24: 45.33071927 | HG24: 56.73692671 | HH24: 30.38196984 | HI24: 37.68237249 | HJ24: 41.68012602 | HK24: 28.42734809 | HL24: 87.34559772 | HM24: 87.82860717 | HN24: 32.78857187 | HO24: 96.70167207 | HP24: 19.14592683 | HQ24: 162.4213777 | HR24: 60.71457812 | HS24: 85.1330405 | HT24: 22.57062844 | HU24: 22.96007505 | HV24: 56.93159793 | HW24: 62.88896749 | HX24: 22.24134477 | HY24: 41.43490743 | HZ24: 41.04514617 | IA24: 72.05720345 | IB24: 73.48204216 | IC24: 32.40375868 | ID24: 24.36603157 | IE24: 40.91367689 | IF24: 40.3708567 | IG24: 83.4473559 | IH24: 29.92458562 | II24: 38.97229478 | IJ24: 235.6748449 | IK24: 19.19495632 | IL24: 48.62238421 | IM24: 40.48964447 | IN24: 49.05765015 | IO24: 40.76374915 | IP24: 85.98285273 | IQ24: 54.03363683 | IR24: 45.21281474 | IS24: 46.18383428 | IT24: 77.32938951 | IU24: 52.73845588 | IV24: 57.29855242 | IW24: 79.39219694 | IX24: 42.81651461 | IY24: 147.0692917 | IZ24: 142.528588 | JA24: 101.2060937 | JB24: 11.8394137 | JC24: 20.54121889 | JD24: 37.18270944 | JE24: 22.753704 | JF24: 10.16817943 | JG24: 16.81447174 | JH24: 32.22732374 | JI24: 109.899962 | JJ24: 91.11068458 | JK24: 42.08837344 | JL24: 40.10905151 | JM24: 35.01171418 | JN24: 36.04733276 | JO24: 89.75953023 | JP24: 21.33088065 | JQ24: 76.11120523 | JR24: 142.5785811 | JS24: 107.0571209 | JT24: 22.34825562 | JU24: 50.85050579 | JV24: 19.70524744 | JW24: 42.74610979 | JX24: 21.08586859 | JY24: 50.51849317 | JZ24: 48.4059845 | KA24: 34.40398755 | KB24: 34.38280414 | KC24: 47.38683762 | KD24: 49.66859975 | KE24: 55.33128098 | KF24: 28.68142913 | KG24: 44.56993272 | KH24: 103.8473352 | KI24: 41.01351363 | KJ24: 19.29047482 | KK24: 53.78060459 | KL24: 21.83521359 | KM24: 60.38805914 | KN24: 114.8289195 | KO24: 37.61460423 | KP24: 37.4232482 | KQ24: 59.74308834 | KR24: 36.26921924 | KS24: 40.29282034 | KT24: 84.57573389 | KU24: 69.47468795 | KV24: 45.0109829 | KW24: 67.57803598 | KX24: 82.97736787 | KY24: 29.36659195 | KZ24: 177.5832215 | LA24: 31.18527309 | LB24: 42.54282759 | LC24: 92.5221961 | LD24: 46.98789161 | LE24: 45.42864779 | LF24: 123.3259823 | LG24: 60.38321018 | LH24: 56.77190804 | LI24: 58.249795 | LJ24: 66.10978504 | LK24: 23.54368797 | LL24: 45.08475338 | LM24: 41.98452199 | LN24: 43.72172663 | LO24: 44.32419254 | LP24: 57.59523073 | LQ24: 17.58610059 | LR24: 66.64624546 | LS24: 36.8975492 | LT24: 22.30506577 | LU24: 55.30921941 | LV24: 39.37748562 | LW24: 50.87553976 | LX24: 82.35441515 | LY24: 31.49342653 | LZ24: 109.3298928 | MA24: 84.35125842 | MB24: 34.07455347 | MC24: 36.64816836 | MD24: 104.3335205 | ME24: 57.53750997 | MF24: 63.06714431 | MG24: 84.52063566 | MH24: 65.47389717 | MI24: 69.81369744 | MJ24: 39.95697667 | MK24: 59.50023954 | ML24: 66.70335085 | MM24: 85.05267504 | MN24: 74.41615415 | MO24: 60.90694192 | MP24: 85.18460304 | MQ24: 56.24747239 | MR24: 42.78778753 | MS24: 40.78606496 | MT24: 40.94120491 | MU24: 78.97976372 | MV24: 34.5916582 | MW24: 27.68108497 | MX24: 68.41759903 | MY24: 84.74715753 | MZ24: 42.45146518 | NA24: 27.77325573 | NB24: 52.69235366 | NC24: 102.5241238 | ND24: 27.55711165 | NE24: 42.47047348 | NF24: 28.82747642 | NG24: 133.1360799 | NH24: 63.39150447 | NI24: 28.72250092 | NJ24: 37.78186635 | NK24: 44.44235492 | NL24: 33.34010226 | NM24: 34.7545654 | NN24: 80.63405582 | NO24: 67.47787928 | NP24: 79.02159711 | NQ24: 30.7853304 | NR24: 58.12523414 | NS24: 132.0254782 | NT24: 33.28385836 | NU24: 23.36944708 | NV24: 110.1842726 | NW24: 66.37706926 | NX24: 54.91418876 | NY24: 19.11873322 | NZ24: 62.48718002 | OA24: 55.31535694 | OB24: 105.4362983 | OC24: 58.37463952 | OD24: 22.12217702 | OE24: 102.3636089 | OF24: 23.02379719 | OG24: 16.81153857 | OH24: 39.81637671 | OI24: 28.40588469 | OJ24: 54.84088733 | OK24: 80.7182972 | OL24: 21.96352956 | OM24: 62.14587968 | ON24: 30.27885219 | OO24: 50.30930523 | OP24: 154.8651961 | OQ24: 67.502722 | OR24: 71.62926538 | OS24: 33.87804121 | OT24: 42.49028975 | OU24: 54.51722418 | OV24: 14.26913034 | OW24: 22.82957087 | OX24: 17.26257042 | OY24: 37.85048218 | OZ24: 29.8447704 | PA24: 117.3164621 | PB24: 37.52146447 | PC24: 82.03172239 | PD24: 49.70348225 | PE24: 19.87338118 | PF24: 49.82553617 | PG24: 47.83649321 | PH24: 98.73907309 | PI24: 89.84388768 | PJ24: 30.04745287 | PK24: 41.0144675 | PL24: 44.47292071 | PM24: 91.78855009 | PN24: 104.3396443 | PO24: 80.18849783 | PP24: 78.22671858 | PQ24: 32.59900423 | PR24: 45.89873071 | PS24: 15.06357205 | PT24: 55.3785681 | PU24: 36.42295965 | PV24: 38.67655861 | PW24: 34.37367402 | PX24: 106.9907385 | PY24: 42.25812019 | PZ24: 50.5571699 | QA24: 64.43573199 | QB24: 29.20563831 | QC24: 30.02956069 | QD24: 42.35804978 | QE24: 24.25615365 | QF24: 48.7613468 | QG24: 47.28772969 | QH24: 46.45642792 | QI24: 40.89317593 | QJ24: 50.02122487 | QK24: 45.24196528 | QL24: 62.48303638 | QM24: 131.0534759 | QN24: 21.51989968 | QO24: 51.51889916 | QP24: 101.1836802 | QQ24: 32.89005806 | QR24: 105.9524597 | QS24: 39.78383365 | QT24: 50.35551985 | QU24: 41.38518808 | QV24: 91.77587966 | QW24: 60.61368846 | QX24: 33.76335655 | QY24: 70.55243173 | QZ24: 42.42882192 | RA24: 29.88271062 | RB24: 53.12720313 | RC24: 91.02609267 | RD24: 49.02626603 | RE24: 78.92851374 | RF24: 81.96765525 | RG24: 147.2796271 | RH24: 77.29893574 | RI24: 48.67008041 | RJ24: 15.19379306 | RK24: 76.39346122 | RL24: 74.9744371 | RM24: 15.50368385 | RN24: 92.80924652 | RO24: 49.3723912 | RP24: 19.11281583 | RQ24: 40.62720041 | RR24: 23.28091818 | RS24: 35.5899536 | RT24: 85.11142086 | RU24: 52.35453679 | RV24: 37.76162205 | RW24: 54.84474859 | RX24: 47.57978187 | RY24: 406.7456131 | RZ24: 29.69224915 | SA24: 74.56218964 | SB24: 10.96962689 | SC24: 140.6991657 | SD24: 58.50313516 | SE24: 35.94075022 | SF24: 94.1917979 | SG24: 21.49149736 | SH24: 52.08350313 | SI24: 84.82011431 | SJ24: 45.8272259 | SK24: 27.62624306 | SL24: 42.07602061 | SM24: 24.62538815 | SN24: 93.45718573 | SO24: 53.17847625 | SP24: 63.88169476 | SQ24: 27.12123364 | SR24: 27.29341277 | SS24: 41.05314183 | ST24: 157.4418568 | SU24: 90.36224625 | SV24: 59.1100175 | SW24: 46.775778 | SX24: 64.62793919 | SY24: 22.7777995 | SZ24: 88.10798545 | TA24: 25.42040271 | TB24: 56.27025463 | TC24: 119.8536415 | TD24: 93.77979892 | TE24: 71.06086391 | TF24: 24.52711845 | TG24: 36.19283923 | TH24: 41.61993937 | TI24: 46.84527272 | TJ24: 135.1607269 | TK24: 26.39756739 | TL24: 21.79957287 | TM24: 46.80886236 | TN24: 70.4985866 | TO24: 24.14563429 | TP24: 25.82519217 | TQ24: 48.67436938 | TR24: 15.50345533 | TS24: 36.31368921 | TT24: 150.1713497 | TU24: 27.63800871 | TV24: 51.84426063 | TW24: 55.61221304 | TX24: 42.36558567 | TY24: 81.37167441 | TZ24: 42.53584217 | UA24: 125.779692 | UB24: 41.81085258 | UC24: 38.20309315 | UD24: 55.31869914 | UE24: 46.25254673 | UF24: 43.78607817 | UG24: 33.87712125 | UH24: 37.28875827 | UI24: 61.98112079 | UJ24: 69.73272441 | UK24: 45.79342243 | UL24: 21.41007026 | UM24: 42.92276525 | UN24: 88.29194735 | UO24: 64.31572511 | UP24: 67.16881309 | UQ24: 38.32710852 | UR24: 25.08078536 | US24: 34.87066718 | UT24: 42.56527483 | UU24: 23.99353781 | UV24: 47.28034756 | UW24: 98.43407865 | UX24: 39.56749087 | UY24: 102.8142966 | UZ24: 88.38017053 | VA24: 71.69069814 | VB24: 195.6419746 | VC24: 30.87077219 | VD24: 55.64226306 | VE24: 21.78058646 | VF24: 102.4242733 | VG24: 17.4708236 | VH24: 66.51991099 | VI24: 14.6761897 | VJ24: 38.04814109 | VK24: 114.9601594 | VL24: 43.22575292 | VM24: 92.6734913 | VN24: 30.94731955 | VO24: 40.31686031 | VP24: 50.42685991 | VQ24: 34.67028734 | VR24: 20.36520482 | VS24: 107.1408783 | VT24: 72.22976114 | VU24: 32.80653341 | VV24: 84.92630108 | VW24: 114.6570863 | VX24: 30.2068371 | VY24: 30.85901708 | VZ24: 39.62151004 | WA24: 22.29925997 | WB24: 41.40948712 | WC24: 113.5077496 | WD24: 29.5465558 | WE24: 20.6364675 | WF24: 25.91695766
A25: 21.91529893 | B25: 101.7253843 | C25: 55.60058451 | D25: 9 | E25: 18.90433763 | F25: 139.9662949 | G25: 66.05084878 | H25: 20.43721462 | I25: 66.35010419 | J25: 39.50394661 | K25: 70.09528739 | L25: 153.7094408 | M25: 55.2145068 | N25: 26.22057249 | O25: 29.74091929 | P25: 52.88396187 | Q25: 149.277974 | R25: 24.78148821 | S25: 29.05531296 | T25: 17.23565886 | U25: 96.09698932 | V25: 38.34485466 | W25: 25.23011163 | X25: 46.42433704 | Y25: 80.27233922 | Z25: 26.3093981 | AA25: 44.94760236 | AB25: 31.8341954 | AC25: 21.93094903 | AD25: 35.91333549 | AE25: 58.44508903 | AF25: 11.15315263 | AG25: 40.68455205 | AH25: 100.7401111 | AI25: 39.24460723 | AJ25: 47.34401159 | AK25: 33.79327443 | AL25: 44.27278505 | AM25: 191.1535916 | AN25: 19.07387284 | AO25: 67.72579437 | AP25: 93.60430963 | AQ25: 56.68097953 | AR25: 61.10114251 | AS25: 93.69222003 | AT25: 38.74288039 | AU25: 82.56424678 | AV25: 44.08103442 | AW25: 66.79394369 | AX25: 27.22209308 | AY25: 40.31184407 | AZ25: 38.39828231 | BA25: 70.33642776 | BB25: 39.1894944 | BC25: 45.40131228 | BD25: 113.6527955 | BE25: 66.73472205 | BF25: 87.78177756 | BG25: 53.78903631 | BH25: 15.41810456 | BI25: 38.7433103 | BJ25: 52.3792666 | BK25: 78.97149541 | BL25: 44.0964282 | BM25: 69.73267662 | BN25: 55.98726355 | BO25: 36.0794442 | BP25: 43.76144905 | BQ25: 33.5116279 | BR25: 67.69311206 | BS25: 29.77567097 | BT25: 40.0045264 | BU25: 27.55660119 | BV25: 36.73390926 | BW25: 193.6850777 | BX25: 38.44147339 | BY25: 142.2968585 | BZ25: 8.93888289 | CA25: 138.7666381 | CB25: 44.20196108 | CC25: 115.8226496 | CD25: 34.62729078 | CE25: 54.42601622 | CF25: 57.89397074 | CG25: 31.5989359 | CH25: 28.05369931 | CI25: 58.4132877 | CJ25: 27.65233641 | CK25: 55.54706149 | CL25: 23.23420525 | CM25: 36.84375368 | CN25: 65.80435925 | CO25: 33.74288952 | CP25: 64.77847566 | CQ25: 49.39121125 | CR25: 61.85905203 | CS25: 35.0123657 | CT25: 34.94001671 | CU25: 16.08725313 | CV25: 29.39351879 | CW25: 50.46143823 | CX25: 69.61039817 | CY25: 37.49813222 | CZ25: 45.94614241 | DA25: 23.24145402 | DB25: 26.57370265 | DC25: 72.26268906 | DD25: 71.11863289 | DE25: 26.32067276 | DF25: 28.70528942 | DG25: 65.79711139 | DH25: 69.89997666 | DI25: 59.81778974 | DJ25: 41.23363268 | DK25: 13.66967568 | DL25: 28.29294482 | DM25: 52.84789855 | DN25: 69.33051748 | DO25: 76.25498761 | DP25: 11.91660237 | DQ25: 42.78193816 | DR25: 105.3299362 | DS25: 107.3483614 | DT25: 56.53693387 | DU25: 40.95357078 | DV25: 27.87463043 | DW25: 79.31104909 | DX25: 46.60678288 | DY25: 40.45701519 | DZ25: 30.62299294 | EA25: 114.2411771 | EB25: 22.40437329 | EC25: 95.0290826 | ED25: 46.95229249 | EE25: 65.00092737 | EF25: 21.46939245 | EG25: 8.769897258 | EH25: 120.4026139 | EI25: 51.38662153 | EJ25: 76.60120154 | EK25: 49.85132726 | EL25: 79.41041544 | EM25: 147.4994297 | EN25: 44.67545215 | EO25: 29.06293158 | EP25: 110.1202374 | EQ25: 25.14063191 | ER25: 44.02178792 | ES25: 20.71388551 | ET25: 49.15788899 | EU25: 16.082646 | EV25: 35.6101435 | EW25: 34.45689032 | EX25: 43.04513494 | EY25: 43.75600035 | EZ25: 87.72103078 | FA25: 70.20695494 | FB25: 72.94022993 | FC25: 23.36595449 | FD25: 118.6443754 | FE25: 14.40534827 | FF25: 53.20293772 | FG25: 46.66134888 | FH25: 43.97221173 | FI25: 94.24599812 | FJ25: 22.20559516 | FK25: 37.5414598 | FL25: 30.8142446 | FM25: 31.24629638 | FN25: 45.26450776 | FO25: 48.4133109 | FP25: 58.64046108 | FQ25: 73.56657871 | FR25: 148.2847448 | FS25: 33.20464128 | FT25: 36.31787276 | FU25: 52.79805914 | FV25: 33.37333977 | FW25: 54.00784207 | FX25: 43.22384067 | FY25: 58.11316852 | FZ25: 34.67672888 | GA25: 56.88658707 | GB25: 50.61208297 | GC25: 242.5707741 | GD25: 15.15822186 | GE25: 55.73227454 | GF25: 62.87662713 | GG25: 54.34834267 | GH25: 55.72840295 | GI25: 48.67085261 | GJ25: 117.2811177 | GK25: 142.6638137 | GL25: 39.58927486 | GM25: 66.21829517 | GN25: 135.2176142 | GO25: 52.59261122 | GP25: 25.84069681 | GQ25: 79.27032223 | GR25: 120.1685157 | GS25: 47.60557429 | GT25: 103.0435369 | GU25: 73.89528258 | GV25: 45.30137696 | GW25: 143.8823408 | GX25: 59.81062647 | GY25: 55.30472049 | GZ25: 65.12584401 | HA25: 38.906725 | HB25: 45.85880804 | HC25: 28.17766314 | HD25: 58.99089322 | HE25: 24.80086242 | HF25: 36.48265771 | HG25: 55.59514837 | HH25: 48.53778231 | HI25: 34.8054247 | HJ25: 26.51629068 | HK25: 27.18769021 | HL25: 94.3292894 | HM25: 83.83758385 | HN25: 34.7054211 | HO25: 70.09727666 | HP25: 18.46830311 | HQ25: 134.654576 | HR25: 57.49702988 | HS25: 62.18528905 | HT25: 27.9415635 | HU25: 22.51729913 | HV25: 47.0908166 | HW25: 39.84699988 | HX25: 21.31701468 | HY25: 36.74906753 | HZ25: 29.98561166 | IA25: 67.91439663 | IB25: 62.41495133 | IC25: 23.19068731 | ID25: 25.39099868 | IE25: 48.75926267 | IF25: 31.09407325 | IG25: 55.63744302 | IH25: 46.08937863 | II25: 40.39956742 | IJ25: 165.1772266 | IK25: 18.40676321 | IL25: 56.00715965 | IM25: 37.9840414 | IN25: 45.50735634 | IO25: 25.38023027 | IP25: 117.603488 | IQ25: 70.6138789 | IR25: 41.86129917 | IS25: 38.8748337 | IT25: 82.19519501 | IU25: 59.27967958 | IV25: 47.36723614 | IW25: 58.54587769 | IX25: 47.08077524 | IY25: 155.8494081 | IZ25: 110.1632129 | JA25: 115.6779164 | JB25: 17.61352781 | JC25: 23.25210777 | JD25: 47.19452591 | JE25: 24.78685724 | JF25: 9.166053104 | JG25: 10.11248825 | JH25: 39.7518976 | JI25: 78.68699978 | JJ25: 78.78267995 | JK25: 83.64348736 | JL25: 46.66854293 | JM25: 36.75983418 | JN25: 27.79336022 | JO25: 92.18487146 | JP25: 23.00790659 | JQ25: 48.59246769 | JR25: 137.2032038 | JS25: 72.85264958 | JT25: 16.36816538 | JU25: 83.81689291 | JV25: 17.95726937 | JW25: 39.88904997 | JX25: 21.36363243 | JY25: 56.99003417 | JZ25: 39.76241308 | KA25: 36.21998067 | KB25: 35.81088583 | KC25: 27.29610012 | KD25: 75.21379997 | KE25: 63.75704978 | KF25: 19.80413233 | KG25: 37.16199479 | KH25: 98.79573882 | KI25: 40.73384189 | KJ25: 19.38338905 | KK25: 55.72798996 | KL25: 27.57669315 | KM25: 58.5037774 | KN25: 62.79620889 | KO25: 37.03002583 | KP25: 31.51273258 | KQ25: 33.15584735 | KR25: 37.83148686 | KS25: 62.94820116 | KT25: 69.43049064 | KU25: 95.81279752 | KV25: 42.25451285 | KW25: 63.32550295 | KX25: 97.94541668 | KY25: 29.57172832 | KZ25: 163.1577985 | LA25: 34.39635065 | LB25: 51.82363616 | LC25: 94.38143068 | LD25: 46.88044859 | LE25: 64.72345902 | LF25: 93.03295861 | LG25: 43.67791285 | LH25: 50.79864537 | LI25: 50.85385701 | LJ25: 62.49093478 | LK25: 20.82667642 | LL25: 37.48346509 | LM25: 35.92979659 | LN25: 48.29687001 | LO25: 39.22358612 | LP25: 52.07980456 | LQ25: 12.22291222 | LR25: 45.53480365 | LS25: 43.04208831 | LT25: 17.30234951 | LU25: 66.95295163 | LV25: 39.36412158 | LW25: 37.97079457 | LX25: 113.2247193 | LY25: 28.09389585 | LZ25: 121.5020994 | MA25: 109.1582202 | MB25: 27.99165173 | MC25: 45.54909759 | MD25: 125.2214367 | ME25: 68.88383437 | MF25: 45.37171575 | MG25: 52.94443656 | MH25: 97.56140096 | MI25: 56.06879841 | MJ25: 27.30573911 | MK25: 83.5823659 | ML25: 61.04266373 | MM25: 64.16451823 | MN25: 105.0553889 | MO25: 46.9527715 | MP25: 57.96083926 | MQ25: 62.16469613 | MR25: 57.84386848 | MS25: 45.63125894 | MT25: 33.61623968 | MU25: 83.22207275 | MV25: 39.6070797 | MW25: 21.07520113 | MX25: 62.76520977 | MY25: 64.47574681 | MZ25: 35.65589368 | NA25: 29.5771074 | NB25: 47.10566033 | NC25: 94.58373866 | ND25: 54.71270463 | NE25: 47.07773397 | NF25: 25.56885297 | NG25: 73.65548903 | NH25: 64.73143345 | NI25: 19.44095779 | NJ25: 27.94441968 | NK25: 51.42917832 | NL25: 47.74744053 | NM25: 21.29958144 | NN25: 67.24725904 | NO25: 65.62565797 | NP25: 49.51035183 | NQ25: 26.48872307 | NR25: 86.65609741 | NS25: 126.6156339 | NT25: 36.64753153 | NU25: 23.48377825 | NV25: 92.39145097 | NW25: 76.32330455 | NX25: 51.15848912 | NY25: 15.86665687 | NZ25: 87.76077088 | OA25: 47.78001218 | OB25: 91.77781359 | OC25: 39.16180227 | OD25: 14.48621342 | OE25: 77.2343261 | OF25: 17.56026555 | OG25: 21.61957852 | OH25: 39.05221109 | OI25: 24.16799813 | OJ25: 72.74811115 | OK25: 73.29981624 | OL25: 24.93009782 | OM25: 46.77148588 | ON25: 24.05435158 | OO25: 54.57457675 | OP25: 163.7677683 | OQ25: 72.88097157 | OR25: 91.36004917 | OS25: 51.24417805 | OT25: 40.24310376 | OU25: 44.48719763 | OV25: 9.045663945 | OW25: 19.22896893 | OX25: 16.45070466 | OY25: 28.40458021 | OZ25: 27.09812722 | PA25: 125.4747366 | PB25: 21.77444807 | PC25: 49.29519325 | PD25: 56.65329568 | PE25: 23.25239442 | PF25: 51.44982534 | PG25: 60.97992632 | PH25: 72.39852431 | PI25: 68.77679559 | PJ25: 28.60968385 | PK25: 45.69383035 | PL25: 36.50937726 | PM25: 104.5989986 | PN25: 83.48364622 | PO25: 91.61776338 | PP25: 80.42104437 | PQ25: 36.43776459 | PR25: 43.29482473 | PS25: 20.06108257 | PT25: 68.65899455 | PU25: 27.23144439 | PV25: 28.66106727 | PW25: 36.47985757 | PX25: 82.72295901 | PY25: 39.26445544 | PZ25: 49.80384621 | QA25: 65.19948528 | QB25: 27.79520157 | QC25: 30.84533758 | QD25: 37.09969526 | QE25: 27.4363605 | QF25: 29.14802815 | QG25: 51.46960527 | QH25: 38.43082891 | QI25: 38.96712014 | QJ25: 61.22440024 | QK25: 44.3842943 | QL25: 79.94687521 | QM25: 119.4946535 | QN25: 22.40551467 | QO25: 50.44445802 | QP25: 147.4505345 | QQ25: 34.00589387 | QR25: 124.2169105 | QS25: 46.22402784 | QT25: 42.85605611 | QU25: 38.27892414 | QV25: 53.24966996 | QW25: 57.02004269 | QX25: 44.76111999 | QY25: 58.03397142 | QZ25: 41.0703582 | RA25: 27.862585 | RB25: 40.37202711 | RC25: 89.88197351 | RD25: 50.27749351 | RE25: 44.45855965 | RF25: 63.09115164 | RG25: 208.9907559 | RH25: 45.60177658 | RI25: 40.91746223 | RJ25: 18.30945473 | RK25: 69.12809332 | RL25: 69.58825067 | RM25: 14.75920421 | RN25: 110.188151 | RO25: 46.19838055 | RP25: 18.48128012 | RQ25: 35.86178367 | RR25: 18.18349136 | RS25: 52.55522085 | RT25: 75.00408762 | RU25: 41.51182868 | RV25: 19.62343543 | RW25: 50.04135212 | RX25: 41.91623544 | RY25: 308.0539048 | RZ25: 34.40309036 | SA25: 61.23359845 | SB25: 9.185465504 | SC25: 120.3682092 | SD25: 41.7099485 | SE25: 23.22939512 | SF25: 89.76402468 | SG25: 28.04412289 | SH25: 36.27188136 | SI25: 101.5789229 | SJ25: 80.49661764 | SK25: 27.4124521 | SL25: 35.65070994 | SM25: 14.75514712 | SN25: 104.8362366 | SO25: 44.302745 | SP25: 58.40693916 | SQ25: 20.20184353 | SR25: 27.88503387 | SS25: 64.02397897 | ST25: 139.0558981 | SU25: 71.61046935 | SV25: 70.83472605 | SW25: 45.81704968 | SX25: 50.89587718 | SY25: 26.72828016 | SZ25: 60.46952075 | TA25: 17.94100014 | TB25: 45.38166131 | TC25: 137.4485853 | TD25: 54.13575013 | TE25: 88.05975249 | TF25: 34.813892 | TG25: 32.78257687 | TH25: 36.83728655 | TI25: 42.11991497 | TJ25: 128.5487139 | TK25: 29.25681703 | TL25: 24.06163276 | TM25: 46.18974694 | TN25: 77.89479828 | TO25: 19.66353639 | TP25: 32.78773616 | TQ25: 71.96065042 | TR25: 15.84744666 | TS25: 23.79557403 | TT25: 115.1352137 | TU25: 53.84121191 | TV25: 45.24082134 | TW25: 72.25230153 | TX25: 44.69060109 | TY25: 118.0681479 | TZ25: 38.49381337 | UA25: 142.2043943 | UB25: 26.39077809 | UC25: 48.49955344 | UD25: 47.32118106 | UE25: 35.17721844 | UF25: 40.74009341 | UG25: 44.35655815 | UH25: 34.00220068 | UI25: 49.30975061 | UJ25: 54.15807865 | UK25: 41.85321558 | UL25: 27.13946946 | UM25: 55.11491868 | UN25: 66.02215824 | UO25: 92.9440774 | UP25: 53.97559413 | UQ25: 45.44406826 | UR25: 14.04234569 | US25: 35.08031861 | UT25: 57.34473042 | UU25: 19.59411907 | UV25: 51.43336078 | UW25: 80.78362023 | UX25: 63.52545882 | UY25: 72.67901163 | UZ25: 98.36345643 | VA25: 54.36609243 | VB25: 139.8858524 | VC25: 27.86606219 | VD25: 72.09241787 | VE25: 12.44823401 | VF25: 145.526904 | VG25: 12.65907826 | VH25: 67.2269335 | VI25: 14.20689587 | VJ25: 28.6482757 | VK25: 75.51766297 | VL25: 64.12018678 | VM25: 121.2371107 | VN25: 36.02662831 | VO25: 29.04575099 | VP25: 43.20129741 | VQ25: 57.6174801 | VR25: 19.01290792 | VS25: 95.25184896 | VT25: 55.59873323 | VU25: 41.51901965 | VV25: 115.9303164 | VW25: 132.2131375 | VX25: 27.88237173 | VY25: 39.73163142 | VZ25: 27.00559576 | WA25: 22.36436717 | WB25: 29.59219426 | WC25: 91.6182326 | WD25: 31.09649703 | WE25: 13.5439837 | WF25: 32.6020735
A26: 20.30058464 | B26: 102.8605105 | C26: 54.58547975 | D26: 10 | E26: 8.79299419 | F26: 128.3081771 | G26: 79.15752804 | H26: 22.66765696 | I26: 122.2301093 | J26: 20.64131997 | K26: 60.88796463 | L26: 84.0204557 | M26: 73.63910176 | N26: 31.64735913 | O26: 30.1769268 | P26: 54.98246059 | Q26: 125.2566254 | R26: 27.44507667 | S26: 29.08593291 | T26: 15.79349495 | U26: 74.7726894 | V26: 42.32337135 | W26: 26.75318725 | X26: 42.79344541 | Y26: 101.6372053 | Z26: 30.1383414 | AA26: 92.40684642 | AB26: 36.24780768 | AC26: 20.32029599 | AD26: 53.90732589 | AE26: 39.92533767 | AF26: 12.67305604 | AG26: 44.35436616 | AH26: 82.65065261 | AI26: 30.19997374 | AJ26: 34.08138423 | AK26: 31.54133358 | AL26: 67.24995708 | AM26: 141.2217924 | AN26: 21.57397362 | AO26: 65.32418416 | AP26: 117.2891749 | AQ26: 57.58144315 | AR26: 109.6208967 | AS26: 64.94565765 | AT26: 43.39224048 | AU26: 76.93498581 | AV26: 41.96307377 | AW26: 83.84198882 | AX26: 27.13118641 | AY26: 36.62666297 | AZ26: 30.21581193 | BA26: 108.9249804 | BB26: 47.42981897 | BC26: 55.46034328 | BD26: 101.9864216 | BE26: 53.63062354 | BF26: 80.1511208 | BG26: 41.96447929 | BH26: 16.71532508 | BI26: 40.60657888 | BJ26: 39.57338776 | BK26: 56.84353259 | BL26: 27.94382427 | BM26: 41.63417646 | BN26: 87.21357478 | BO26: 30.54043448 | BP26: 32.41089521 | BQ26: 27.75456908 | BR26: 87.59657366 | BS26: 31.42712708 | BT26: 51.07299556 | BU26: 35.6416431 | BV26: 31.45871481 | BW26: 168.750449 | BX26: 29.78743291 | BY26: 88.03335108 | BZ26: 7.486850836 | CA26: 122.3151886 | CB26: 33.24400832 | CC26: 118.1608397 | CD26: 32.27951793 | CE26: 58.42587996 | CF26: 54.84617276 | CG26: 40.66066837 | CH26: 24.45478487 | CI26: 68.0733098 | CJ26: 33.22171998 | CK26: 50.22855826 | CL26: 20.32164193 | CM26: 35.60628098 | CN26: 56.85453599 | CO26: 20.4843062 | CP26: 66.29786849 | CQ26: 40.95041801 | CR26: 50.76840124 | CS26: 31.72836726 | CT26: 20.12318253 | CU26: 19.9822839 | CV26: 38.81401346 | CW26: 46.80541505 | CX26: 67.14682304 | CY26: 44.61561119 | CZ26: 51.7589508 | DA26: 22.04560631 | DB26: 22.56661162 | DC26: 115.601587 | DD26: 71.08320922 | DE26: 20.11083282 | DF26: 47.88586515 | DG26: 51.86685503 | DH26: 93.68252586 | DI26: 70.45332256 | DJ26: 37.67581272 | DK26: 11.61229901 | DL26: 22.19362574 | DM26: 55.80350404 | DN26: 42.30049698 | DO26: 63.04815387 | DP26: 14.82108203 | DQ26: 44.84849885 | DR26: 59.6501722 | DS26: 70.10736345 | DT26: 60.34399382 | DU26: 36.49090648 | DV26: 32.46452388 | DW26: 71.00286534 | DX26: 46.96236367 | DY26: 60.9590517 | DZ26: 40.79300499 | EA26: 74.99545278 | EB26: 22.70964415 | EC26: 108.2054174 | ED26: 34.30590537 | EE26: 52.49144248 | EF26: 16.05915213 | EG26: 10.36082906 | EH26: 136.7764749 | EI26: 40.37333927 | EJ26: 51.86364655 | EK26: 45.10595844 | EL26: 57.17170005 | EM26: 191.6037051 | EN26: 58.12701371 | EO26: 25.99018626 | EP26: 83.09895607 | EQ26: 22.22163738 | ER26: 73.68734792 | ES26: 15.83799921 | ET26: 38.20595098 | EU26: 15.01366516 | EV26: 32.78514316 | EW26: 41.58242188 | EX26: 34.37761436 | EY26: 64.97374561 | EZ26: 50.21745123 | FA26: 74.08130363 | FB26: 72.28328538 | FC26: 25.58006121 | FD26: 141.6662779 | FE26: 22.05793472 | FF26: 48.51149047 | FG26: 51.42717366 | FH26: 43.95446937 | FI26: 80.51701627 | FJ26: 39.75740116 | FK26: 29.22878703 | FL26: 22.93249705 | FM26: 19.51208083 | FN26: 76.78736402 | FO26: 51.88705924 | FP26: 55.62944495 | FQ26: 89.48921774 | FR26: 122.8385243 | FS26: 30.2496869 | FT26: 30.01160218 | FU26: 65.76134837 | FV26: 47.19549515 | FW26: 50.63044787 | FX26: 64.99266486 | FY26: 42.14405296 | FZ26: 34.31383152 | GA26: 57.93226595 | GB26: 46.74432925 | GC26: 280.9236216 | GD26: 14.03637895 | GE26: 38.45687691 | GF26: 38.99609254 | GG26: 44.18178689 | GH26: 73.87377803 | GI26: 54.52014007 | GJ26: 112.9371102 | GK26: 132.0630727 | GL26: 43.88617023 | GM26: 42.45314589 | GN26: 87.62820253 | GO26: 44.68184322 | GP26: 13.96473115 | GQ26: 79.43740959 | GR26: 121.7859511 | GS26: 40.80338304 | GT26: 120.1984174 | GU26: 52.12912207 | GV26: 53.39477836 | GW26: 139.4362842 | GX26: 48.78948955 | GY26: 68.57940057 | GZ26: 71.89984761 | HA26: 40.02638521 | HB26: 44.04035278 | HC26: 31.97068669 | HD26: 68.75081236 | HE26: 21.68239154 | HF26: 63.51842922 | HG26: 63.1861582 | HH26: 61.0833724 | HI26: 63.9615581 | HJ26: 32.73907957 | HK26: 26.17723435 | HL26: 79.99057589 | HM26: 58.77807522 | HN26: 22.4422288 | HO26: 97.58981704 | HP26: 15.37394848 | HQ26: 133.3230937 | HR26: 36.7247563 | HS26: 53.08559333 | HT26: 40.43576794 | HU26: 24.64586911 | HV26: 56.75979493 | HW26: 52.98872467 | HX26: 28.25458568 | HY26: 33.43072695 | HZ26: 29.27298367 | IA26: 68.18096383 | IB26: 61.41333045 | IC26: 29.83446257 | ID26: 19.05018137 | IE26: 56.26021581 | IF26: 55.25577812 | IG26: 41.80571358 | IH26: 41.00934502 | II26: 42.03009915 | IJ26: 153.2823078 | IK26: 18.26198325 | IL26: 43.46583762 | IM26: 43.53021374 | IN26: 42.48573419 | IO26: 16.39652119 | IP26: 103.9232033 | IQ26: 60.95436666 | IR26: 41.87531456 | IS26: 39.50066454 | IT26: 90.07957361 | IU26: 79.49663574 | IV26: 47.65933968 | IW26: 32.19259989 | IX26: 61.91403979 | IY26: 183.4844733 | IZ26: 110.5145546 | JA26: 179.9093417 | JB26: 14.11943867 | JC26: 14.07853426 | JD26: 61.28095486 | JE26: 30.29380284 | JF26: 8.897725993 | JG26: 8.202834794 | JH26: 30.25859777 | JI26: 127.9870155 | JJ26: 60.36920452 | JK26: 54.55871725 | JL26: 40.67981097 | JM26: 44.35009155 | JN26: 27.37170121 | JO26: 107.9762512 | JP26: 26.35567252 | JQ26: 43.25358266 | JR26: 205.3586803 | JS26: 67.13255346 | JT26: 14.30795376 | JU26: 75.14669152 | JV26: 11.64504983 | JW26: 45.72181612 | JX26: 33.94809369 | JY26: 42.69675023 | JZ26: 33.10864663 | KA26: 44.76088635 | KB26: 42.01906032 | KC26: 21.25787358 | KD26: 119.7911128 | KE26: 70.13238127 | KF26: 26.91875906 | KG26: 31.30530255 | KH26: 105.2914005 | KI26: 68.37989588 | KJ26: 16.44127428 | KK26: 53.8528305 | KL26: 37.66217518 | KM26: 62.22078495 | KN26: 88.1743956 | KO26: 39.29059441 | KP26: 31.1050577 | KQ26: 39.36212535 | KR26: 42.64811956 | KS26: 38.56987993 | KT26: 57.26521357 | KU26: 111.3073647 | KV26: 64.65060925 | KW26: 58.99207722 | KX26: 104.887221 | KY26: 29.08669383 | KZ26: 135.6139651 | LA26: 32.65741854 | LB26: 49.15848751 | LC26: 74.40733453 | LD26: 71.15282463 | LE26: 29.815554 | LF26: 104.4627976 | LG26: 46.83784551 | LH26: 39.53579982 | LI26: 64.40676691 | LJ26: 66.31736352 | LK26: 29.86526753 | LL26: 40.6127319 | LM26: 35.26830201 | LN26: 59.7778422 | LO26: 40.80845917 | LP26: 43.32450053 | LQ26: 11.04349462 | LR26: 41.04081506 | LS26: 36.43548371 | LT26: 18.9566991 | LU26: 66.98485179 | LV26: 48.98950073 | LW26: 38.65421533 | LX26: 111.2934508 | LY26: 34.34195019 | LZ26: 78.62288266 | MA26: 92.39996424 | MB26: 30.3310847 | MC26: 53.80226168 | MD26: 105.8356832 | ME26: 54.33300577 | MF26: 41.20748072 | MG26: 38.66866274 | MH26: 70.52224531 | MI26: 51.42645986 | MJ26: 20.86070566 | MK26: 61.60784475 | ML26: 55.9089115 | MM26: 50.61522589 | MN26: 77.37211356 | MO26: 66.58478561 | MP26: 43.90450863 | MQ26: 63.96330953 | MR26: 58.65941504 | MS26: 38.47323086 | MT26: 18.43582767 | MU26: 60.64605733 | MV26: 26.9475752 | MW26: 17.98687765 | MX26: 70.89206617 | MY26: 54.82322615 | MZ26: 28.8332202 | NA26: 31.79037393 | NB26: 27.80904832 | NC26: 78.03397436 | ND26: 44.09777407 | NE26: 48.57161619 | NF26: 19.75389088 | NG26: 87.27889472 | NH26: 58.27340722 | NI26: 28.3622031 | NJ26: 17.90241038 | NK26: 52.33103268 | NL26: 20.70192567 | NM26: 20.79375626 | NN26: 53.24914937 | NO26: 95.00189325 | NP26: 44.38501792 | NQ26: 41.32979436 | NR26: 77.24762554 | NS26: 145.8473755 | NT26: 53.80589851 | NU26: 17.9477112 | NV26: 188.2430145 | NW26: 103.9997297 | NX26: 71.35507756 | NY26: 16.61606083 | NZ26: 85.85629903 | OA26: 56.50329411 | OB26: 101.9550574 | OC26: 29.94908742 | OD26: 17.04643333 | OE26: 83.59303971 | OF26: 26.10813638 | OG26: 19.50445026 | OH26: 41.51676793 | OI26: 23.62176388 | OJ26: 59.47004985 | OK26: 81.73915249 | OL26: 21.96554157 | OM26: 51.86022265 | ON26: 35.16811463 | OO26: 25.94193026 | OP26: 121.9372366 | OQ26: 73.96148368 | OR26: 84.51436556 | OS26: 34.26884535 | OT26: 36.99678801 | OU26: 36.90679941 | OV26: 6.276927826 | OW26: 18.74534388 | OX26: 13.93274602 | OY26: 20.4625832 | OZ26: 25.45787265 | PA26: 144.5574753 | PB26: 18.20038735 | PC26: 37.94315258 | PD26: 41.51031166 | PE26: 21.91221878 | PF26: 25.96347347 | PG26: 43.07215381 | PH26: 62.48640313 | PI26: 53.94761344 | PJ26: 28.38999145 | PK26: 49.64761106 | PL26: 26.56555444 | PM26: 113.093786 | PN26: 41.94518287 | PO26: 79.87703378 | PP26: 79.29245034 | PQ26: 34.39102492 | PR26: 30.82122019 | PS26: 22.01332971 | PT26: 60.38509635 | PU26: 35.24938865 | PV26: 16.85876219 | PW26: 53.5835684 | PX26: 47.92825726 | PY26: 40.78966743 | PZ26: 37.52901734 | QA26: 85.65279489 | QB26: 26.40946094 | QC26: 39.00698749 | QD26: 61.8944056 | QE26: 24.46189098 | QF26: 31.96144111 | QG26: 47.98234019 | QH26: 52.09080025 | QI26: 30.43895919 | QJ26: 61.31902641 | QK26: 33.42982977 | QL26: 94.79942803 | QM26: 176.2030075 | QN26: 29.17097964 | QO26: 34.72676126 | QP26: 151.3234872 | QQ26: 24.00163012 | QR26: 86.56021655 | QS26: 35.38062164 | QT26: 49.33455277 | QU26: 49.32341637 | QV26: 47.3893984 | QW26: 70.87746767 | QX26: 33.82025207 | QY26: 53.11220946 | QZ26: 48.47225197 | RA26: 30.14338765 | RB26: 36.61990025 | RC26: 102.785334 | RD26: 64.14123663 | RE26: 55.07151171 | RF26: 65.20538894 | RG26: 194.2978701 | RH26: 47.12098436 | RI26: 42.67502354 | RJ26: 15.55386557 | RK26: 45.66898375 | RL26: 45.3572046 | RM26: 18.41915445 | RN26: 82.09756333 | RO26: 26.49276332 | RP26: 22.35003215 | RQ26: 22.21420549 | RR26: 16.14798009 | RS26: 83.73877094 | RT26: 95.20674624 | RU26: 38.10101917 | RV26: 14.26662665 | RW26: 99.17180927 | RX26: 39.96583807 | RY26: 396.1839395 | RZ26: 47.65038466 | SA26: 46.9187862 | SB26: 6.687685574 | SC26: 109.5134537 | SD26: 57.50131437 | SE26: 20.96197048 | SF26: 60.70693897 | SG26: 26.07866468 | SH26: 36.95635323 | SI26: 63.21180369 | SJ26: 83.75891055 | SK26: 24.92776535 | SL26: 43.34638036 | SM26: 15.08038103 | SN26: 42.65368686 | SO26: 53.59960362 | SP26: 73.66442453 | SQ26: 24.99684573 | SR26: 33.47042725 | SS26: 38.7249064 | ST26: 103.5370988 | SU26: 67.31673883 | SV26: 59.55577358 | SW26: 34.89621218 | SX26: 44.82181857 | SY26: 25.89885708 | SZ26: 57.15594143 | TA26: 13.22257392 | TB26: 72.03989421 | TC26: 92.04713764 | TD26: 63.73377524 | TE26: 81.87163978 | TF26: 39.75819679 | TG26: 34.78687792 | TH26: 40.06389424 | TI26: 69.15345869 | TJ26: 110.1136079 | TK26: 33.71850598 | TL26: 23.59724241 | TM26: 38.60381184 | TN26: 53.68913531 | TO26: 15.30361648 | TP26: 37.72717787 | TQ26: 42.10297181 | TR26: 17.41190172 | TS26: 26.76770364 | TT26: 66.52982924 | TU26: 53.73579531 | TV26: 56.39536424 | TW26: 48.99941142 | TX26: 43.65186329 | TY26: 91.39157895 | TZ26: 41.82922559 | UA26: 162.5055271 | UB26: 26.61800303 | UC26: 51.38077881 | UD26: 38.40091855 | UE26: 55.0568225 | UF26: 42.35292051 | UG26: 39.84668364 | UH26: 26.38544118 | UI26: 45.80276089 | UJ26: 55.12024861 | UK26: 35.615723 | UL26: 28.03118995 | UM26: 36.3923418 | UN26: 64.39549962 | UO26: 98.17407941 | UP26: 93.15815076 | UQ26: 42.73247102 | UR26: 10.3814441 | US26: 40.07785596 | UT26: 42.68194807 | UU26: 14.0457603 | UV26: 44.02531635 | UW26: 46.50822439 | UX26: 78.71291466 | UY26: 61.00729322 | UZ26: 91.21506539 | VA26: 43.3864149 | VB26: 117.8100139 | VC26: 20.80593562 | VD26: 104.0371136 | VE26: 13.00106487 | VF26: 155.952248 | VG26: 11.44303683 | VH26: 59.65587098 | VI26: 13.07963087 | VJ26: 33.76924444 | VK26: 57.3516973 | VL26: 43.21931154 | VM26: 116.1455408 | VN26: 33.16787555 | VO26: 27.66788748 | VP26: 71.4411583 | VQ26: 46.23755993 | VR26: 15.0181417 | VS26: 120.2974846 | VT26: 63.35536513 | VU26: 44.10471447 | VV26: 148.0331524 | VW26: 112.8312286 | VX26: 26.54365235 | VY26: 39.95803731 | VZ26: 24.17440951 | WA26: 22.56910696 | WB26: 35.4706547 | WC26: 81.23829228 | WD26: 20.11906605 | WE26: 14.53019285 | WF26: 34.15186511
A27: 19.34692797 | B27: 97.81103903 | C27: 54.66333617 | D27: 11 | E27: 10.32887031 | F27: 83.63194993 | G27: 66.35337833 | H27: 27.04418835 | I27: 77.29791769 | J27: 27.70133118 | K27: 91.38664825 | L27: 107.0789819 | M27: 84.8288594 | N27: 29.26009883 | O27: 37.12245522 | P27: 35.53313769 | Q27: 91.30692142 | R27: 25.26052523 | S27: 19.80148133 | T27: 11.24366507 | U27: 111.1685138 | V27: 29.98515508 | W27: 30.68460345 | X27: 40.16568411 | Y27: 87.01668262 | Z27: 40.99982367 | AA27: 128.3893072 | AB27: 31.30233791 | AC27: 21.19793701 | AD27: 64.49529571 | AE27: 49.66777027 | AF27: 15.38815382 | AG27: 43.18274569 | AH27: 70.35771622 | AI27: 22.78657635 | AJ27: 41.25873317 | AK27: 30.48500507 | AL27: 60.66746792 | AM27: 149.6789405 | AN27: 24.40923508 | AO27: 53.36186532 | AP27: 117.4437233 | AQ27: 64.25966698 | AR27: 77.64515305 | AS27: 87.1656892 | AT27: 58.86711627 | AU27: 83.16282286 | AV27: 37.56964942 | AW27: 74.17174732 | AX27: 21.06594772 | AY27: 33.7068921 | AZ27: 27.14146646 | BA27: 122.2492572 | BB27: 35.21083325 | BC27: 41.00251218 | BD27: 115.7081988 | BE27: 52.93443677 | BF27: 63.16227069 | BG27: 45.75107711 | BH27: 12.03606765 | BI27: 57.57480569 | BJ27: 51.33837308 | BK27: 57.22758185 | BL27: 54.46008198 | BM27: 46.35249923 | BN27: 73.03073301 | BO27: 27.3605634 | BP27: 37.77101035 | BQ27: 23.66051825 | BR27: 80.94457545 | BS27: 35.21238589 | BT27: 39.50186214 | BU27: 30.06693644 | BV27: 31.49261494 | BW27: 130.6196724 | BX27: 32.45999125 | BY27: 72.27779709 | BZ27: 12.52585471 | CA27: 127.6043054 | CB27: 31.5057233 | CC27: 85.24331073 | CD27: 26.2274257 | CE27: 81.84366357 | CF27: 61.19190069 | CG27: 41.76387783 | CH27: 22.5330684 | CI27: 42.52750614 | CJ27: 32.55018679 | CK27: 40.35870018 | CL27: 23.34181057 | CM27: 31.84017987 | CN27: 78.15411301 | CO27: 21.21782894 | CP27: 76.94624561 | CQ27: 38.32675611 | CR27: 57.53387896 | CS27: 21.0679892 | CT27: 19.43280877 | CU27: 35.09352176 | CV27: 33.42337801 | CW27: 58.77945057 | CX27: 79.7273127 | CY27: 40.68357862 | CZ27: 42.6271917 | DA27: 22.46093214 | DB27: 25.11089674 | DC27: 111.2861816 | DD27: 55.10349352 | DE27: 22.59715226 | DF27: 36.98276367 | DG27: 44.35089905 | DH27: 90.65876197 | DI27: 105.0362561 | DJ27: 48.44869881 | DK27: 10.31623385 | DL27: 18.13869252 | DM27: 64.73507487 | DN27: 42.30412799 | DO27: 79.25525088 | DP27: 10.91777875 | DQ27: 43.54579758 | DR27: 44.45300973 | DS27: 74.43191112 | DT27: 39.70760042 | DU27: 51.73938185 | DV27: 39.879647 | DW27: 74.97680483 | DX27: 91.61493874 | DY27: 48.93261244 | DZ27: 33.37389832 | EA27: 67.81999937 | EB27: 20.30982888 | EC27: 90.26290187 | ED27: 40.83827309 | EE27: 57.49497036 | EF27: 15.95126725 | EG27: 9.004784176 | EH27: 100.9330466 | EI27: 41.50130106 | EJ27: 43.989213 | EK27: 34.85670146 | EL27: 77.2161401 | EM27: 195.5199747 | EN27: 56.92578822 | EO27: 37.37457307 | EP27: 68.82423679 | EQ27: 25.15310046 | ER27: 84.81580508 | ES27: 13.35646515 | ET27: 24.28274434 | EU27: 9.132047307 | EV27: 31.96175798 | EW27: 31.90840736 | EX27: 41.34275407 | EY27: 57.83472955 | EZ27: 67.27104543 | FA27: 52.87339492 | FB27: 72.59921475 | FC27: 23.69786842 | FD27: 115.7649915 | FE27: 15.20396688 | FF27: 47.80825513 | FG27: 44.46647509 | FH27: 36.24794082 | FI27: 78.62920193 | FJ27: 34.97040834 | FK27: 31.56994815 | FL27: 21.41870262 | FM27: 22.45460083 | FN27: 97.89732384 | FO27: 55.10800231 | FP27: 47.49130135 | FQ27: 70.44145119 | FR27: 88.58758498 | FS27: 42.80238338 | FT27: 28.69912544 | FU27: 46.27173888 | FV27: 67.95182555 | FW27: 48.5333897 | FX27: 36.38545378 | FY27: 32.76598172 | FZ27: 42.55938832 | GA27: 32.64474413 | GB27: 42.61123892 | GC27: 231.6194277 | GD27: 17.53942903 | GE27: 31.45327053 | GF27: 27.586287 | GG27: 47.14217612 | GH27: 77.16898611 | GI27: 46.28962394 | GJ27: 144.2066974 | GK27: 124.6879988 | GL27: 23.63871392 | GM27: 30.33592498 | GN27: 95.68654547 | GO27: 41.6299355 | GP27: 20.29511801 | GQ27: 94.24294839 | GR27: 134.4687141 | GS27: 28.55683339 | GT27: 111.7802149 | GU27: 37.7551688 | GV27: 42.01522999 | GW27: 123.3729046 | GX27: 47.25483607 | GY27: 93.86739776 | GZ27: 82.84358428 | HA27: 32.71180961 | HB27: 38.2872344 | HC27: 25.98386387 | HD27: 40.89390721 | HE27: 30.53594601 | HF27: 52.56156761 | HG27: 65.12653248 | HH27: 38.72226564 | HI27: 48.91387625 | HJ27: 28.77107743 | HK27: 24.13325624 | HL27: 51.87658601 | HM27: 56.6814114 | HN27: 22.28821367 | HO27: 173.1979805 | HP27: 17.32667687 | HQ27: 154.5347769 | HR27: 60.60634874 | HS27: 67.73865042 | HT27: 32.07567691 | HU27: 24.90007473 | HV27: 87.9972557 | HW27: 36.83420767 | HX27: 35.34511507 | HY27: 32.0682492 | HZ27: 22.96706223 | IA27: 55.04409164 | IB27: 49.11768316 | IC27: 33.89459969 | ID27: 18.00809254 | IE27: 69.32665762 | IF27: 37.51829625 | IG27: 39.9897712 | IH27: 31.97832866 | II27: 31.21177221 | IJ27: 173.834269 | IK27: 26.00079858 | IL27: 29.77989267 | IM27: 44.1080907 | IN27: 34.40547617 | IO27: 13.40980411 | IP27: 75.94409035 | IQ27: 53.88522601 | IR27: 41.59914398 | IS27: 52.78420372 | IT27: 87.69074491 | IU27: 68.07806906 | IV27: 35.91987353 | IW27: 29.20075607 | IX27: 53.03057892 | IY27: 163.0490247 | IZ27: 117.7068141 | JA27: 196.3214911 | JB27: 11.00692741 | JC27: 17.64642406 | JD27: 82.22148048 | JE27: 20.28483974 | JF27: 7.659255252 | JG27: 6.827532996 | JH27: 31.09438293 | JI27: 86.0002691 | JJ27: 57.33923753 | JK27: 52.99971202 | JL27: 33.05498241 | JM27: 42.57432691 | JN27: 36.14751434 | JO27: 163.6789071 | JP27: 26.46505434 | JQ27: 62.49798075 | JR27: 221.3995961 | JS27: 54.02712308 | JT27: 7.60932286 | JU27: 65.78651427 | JV27: 14.39511752 | JW27: 52.30843313 | JX27: 32.32598227 | JY27: 37.24085704 | JZ27: 46.60602614 | KA27: 35.68269483 | KB27: 39.68074695 | KC27: 37.10001893 | KD27: 106.4198927 | KE27: 58.3699704 | KF27: 18.0947908 | KG27: 34.67621206 | KH27: 85.63140857 | KI27: 71.94183542 | KJ27: 16.05583873 | KK27: 66.34836576 | KL27: 42.24490321 | KM27: 39.7603724 | KN27: 81.9483163 | KO27: 23.39852085 | KP27: 33.43393201 | KQ27: 49.33425298 | KR27: 39.84138634 | KS27: 31.9132484 | KT27: 61.16258666 | KU27: 93.22021733 | KV27: 38.04027129 | KW27: 85.95615166 | KX27: 83.08829286 | KY27: 20.6842679 | KZ27: 130.7677936 | LA27: 21.82316894 | LB27: 38.70712705 | LC27: 59.89996758 | LD27: 99.60485543 | LE27: 29.01625858 | LF27: 56.93888874 | LG27: 45.33519242 | LH27: 47.24437468 | LI27: 36.64834249 | LJ27: 68.46065835 | LK27: 34.03072596 | LL27: 54.55681089 | LM27: 31.30787962 | LN27: 80.11427812 | LO27: 53.93259298 | LP27: 39.84162501 | LQ27: 8.070508289 | LR27: 51.40818527 | LS27: 47.88952178 | LT27: 20.5106065 | LU27: 67.23467081 | LV27: 46.15198703 | LW27: 36.44683452 | LX27: 142.0080681 | LY27: 45.67763133 | LZ27: 63.89939907 | MA27: 87.03046579 | MB27: 22.27705259 | MC27: 41.26720695 | MD27: 97.80145183 | ME27: 51.07894314 | MF27: 29.99559398 | MG27: 50.16929943 | MH27: 73.69826413 | MI27: 55.84625577 | MJ27: 14.74758822 | MK27: 44.5172634 | ML27: 64.91845992 | MM27: 31.34941551 | MN27: 133.0803092 | MO27: 66.09783975 | MP27: 48.30532295 | MQ27: 52.06280951 | MR27: 69.47357985 | MS27: 35.32342896 | MT27: 13.01360471 | MU27: 103.9006152 | MV27: 29.58216712 | MW27: 20.65881887 | MX27: 75.6046223 | MY27: 65.39786356 | MZ27: 39.92243121 | NA27: 28.31316754 | NB27: 25.90421133 | NC27: 85.59999527 | ND27: 37.13249968 | NE27: 41.8899507 | NF27: 21.35060856 | NG27: 96.69736245 | NH27: 55.32601925 | NI27: 25.12994783 | NJ27: 23.62315677 | NK27: 60.01490158 | NL27: 17.41436858 | NM27: 22.23402862 | NN27: 75.12287848 | NO27: 60.96032272 | NP27: 50.26316925 | NQ27: 51.80187687 | NR27: 87.25267585 | NS27: 122.1660695 | NT27: 36.45475021 | NU27: 19.00217741 | NV27: 189.5741079 | NW27: 97.41585689 | NX27: 64.61125005 | NY27: 17.810769 | NZ27: 93.04010827 | OA27: 45.38206018 | OB27: 98.49730517 | OC27: 30.05753176 | OD27: 13.11700582 | OE27: 107.0300067 | OF27: 18.02900092 | OG27: 17.2200943 | OH27: 58.42180414 | OI27: 35.58735204 | OJ27: 55.76340096 | OK27: 80.20328782 | OL27: 37.15184198 | OM27: 48.63179689 | ON27: 30.13524602 | OO27: 29.92969772 | OP27: 98.29843144 | OQ27: 73.32127802 | OR27: 57.79520462 | OS27: 39.55888448 | OT27: 61.03949099 | OU27: 35.20333948 | OV27: 3.693109479 | OW27: 22.48836531 | OX27: 14.36353617 | OY27: 19.4793088 | OZ27: 18.87659602 | PA27: 142.8958326 | PB27: 21.80415235 | PC27: 26.31684372 | PD27: 63.234608 | PE27: 21.59145806 | PF27: 14.65417838 | PG27: 30.00271965 | PH27: 68.24980863 | PI27: 54.52430636 | PJ27: 26.06787169 | PK27: 62.04063915 | PL27: 29.30664868 | PM27: 128.9744918 | PN27: 53.87513155 | PO27: 141.9098655 | PP27: 63.974165 | PQ27: 25.03594094 | PR27: 29.49457683 | PS27: 37.22272425 | PT27: 50.53136332 | PU27: 27.07507553 | PV27: 14.46573638 | PW27: 66.23633601 | PX27: 75.12808995 | PY27: 79.85881599 | PZ27: 61.87056278 | QA27: 95.27762744 | QB27: 27.64368746 | QC27: 42.60150091 | QD27: 53.96902853 | QE27: 18.76769133 | QF27: 29.76197722 | QG27: 55.11668646 | QH27: 45.90698768 | QI27: 37.88789113 | QJ27: 36.70218823 | QK27: 39.46867786 | QL27: 91.04928208 | QM27: 194.6110379 | QN27: 19.2466229 | QO27: 39.95670101 | QP27: 136.9334025 | QQ27: 22.98958585 | QR27: 41.07885385 | QS27: 28.42817873 | QT27: 53.20552481 | QU27: 45.96188278 | QV27: 69.03852121 | QW27: 55.49718021 | QX27: 30.27520783 | QY27: 35.12926344 | QZ27: 81.7922796 | RA27: 41.42020681 | RB27: 23.26014141 | RC27: 73.7955245 | RD27: 58.60987126 | RE27: 53.02260993 | RF27: 56.74645945 | RG27: 175.6363479 | RH27: 52.57421871 | RI27: 45.70105112 | RJ27: 24.02559836 | RK27: 68.26149242 | RL27: 46.70819222 | RM27: 14.2951113 | RN27: 73.29861603 | RO27: 38.63828111 | RP27: 19.35807298 | RQ27: 25.0634347 | RR27: 16.37921634 | RS27: 90.67437687 | RT27: 133.2712017 | RU27: 59.23165962 | RV27: 15.2322735 | RW27: 113.183031 | RX27: 49.10212902 | RY27: 386.00977 | RZ27: 48.75852021 | SA27: 35.45857984 | SB27: 6.032833923 | SC27: 170.0565788 | SD27: 40.83113179 | SE27: 18.66904611 | SF27: 35.64387713 | SG27: 27.10386527 | SH27: 37.92073051 | SI27: 95.04175452 | SJ27: 59.50015792 | SK27: 14.11094091 | SL27: 39.77645114 | SM27: 15.37596194 | SN27: 61.38229689 | SO27: 49.09113886 | SP27: 71.10283964 | SQ27: 38.58691859 | SR27: 23.69624643 | SS27: 20.8396919 | ST27: 108.5459981 | SU27: 57.93226135 | SV27: 62.23397266 | SW27: 54.03392902 | SX27: 48.37269355 | SY27: 26.58424213 | SZ27: 63.52538856 | TA27: 16.97007828 | TB27: 58.68381614 | TC27: 78.22057532 | TD27: 43.52588517 | TE27: 56.100657 | TF27: 55.54612159 | TG27: 34.421401 | TH27: 64.16977951 | TI27: 84.14712332 | TJ27: 162.0230761 | TK27: 33.8127823 | TL27: 30.68685321 | TM27: 56.61706909 | TN27: 61.28470294 | TO27: 15.20986878 | TP27: 53.63003098 | TQ27: 55.77637251 | TR27: 14.6461027 | TS27: 19.38562148 | TT27: 60.69409895 | TU27: 54.66070401 | TV27: 56.09977698 | TW27: 47.69886187 | TX27: 61.27626656 | TY27: 69.44791195 | TZ27: 55.53222753 | UA27: 126.6283976 | UB27: 49.31988155 | UC27: 86.43003279 | UD27: 38.3421321 | UE27: 34.80750432 | UF27: 44.68098222 | UG27: 36.93928186 | UH27: 29.78015296 | UI27: 50.2327469 | UJ27: 42.95445607 | UK27: 34.07380736 | UL27: 38.69895673 | UM27: 32.71354416 | UN27: 81.37293707 | UO27: 108.0849839 | UP27: 78.98729749 | UQ27: 31.56925506 | UR27: 10.49279262 | US27: 41.8019754 | UT27: 48.26360696 | UU27: 25.28638207 | UV27: 46.82326487 | UW27: 39.18227908 | UX27: 95.5027221 | UY27: 80.62404251 | UZ27: 92.15003308 | VA27: 73.55592837 | VB27: 145.2659425 | VC27: 22.60506686 | VD27: 113.8139229 | VE27: 12.11439879 | VF27: 123.1772641 | VG27: 10.51467899 | VH27: 85.72567699 | VI27: 14.91122355 | VJ27: 35.63195341 | VK27: 45.97989846 | VL27: 51.92964142 | VM27: 90.60157605 | VN27: 31.26842721 | VO27: 22.45552059 | VP27: 123.4860702 | VQ27: 52.34463072 | VR27: 19.23327942 | VS27: 108.5256522 | VT27: 75.46155052 | VU27: 57.39188052 | VV27: 242.1072273 | VW27: 62.20321399 | VX27: 17.25648048 | VY27: 58.24348157 | VZ27: 16.60917345 | WA27: 23.33549522 | WB27: 39.32025988 | WC27: 59.4401354 | WD27: 14.92609394 | WE27: 13.9895183 | WF27: 23.40290299
A28: 18.33367042 | B28: 100.7835357 | C28: 54.5360397 | D28: 12 | E28: 7.80545175 | F28: 89.64501002 | G28: 51.32863327 | H28: 36.67262821 | I28: 50.42136988 | J28: 31.41237657 | K28: 58.96659018 | L28: 109.5030257 | M28: 89.59583281 | N28: 46.22482334 | O28: 38.82635674 | P28: 33.25215757 | Q28: 89.64613216 | R28: 22.67579772 | S28: 15.30795792 | T28: 13.55174437 | U28: 87.20500493 | V28: 23.26215205 | W28: 39.54225546 | X28: 32.49363552 | Y28: 98.97846435 | Z28: 36.0490666 | AA28: 205.4542608 | AB28: 33.12999755 | AC28: 27.76544748 | AD28: 67.49118845 | AE28: 49.63528873 | AF28: 10.59668974 | AG28: 39.38159942 | AH28: 70.85380292 | AI28: 19.85052271 | AJ28: 63.19336845 | AK28: 14.80247858 | AL28: 66.00415362 | AM28: 148.1050231 | AN28: 22.44204128 | AO28: 47.10922446 | AP28: 139.3738489 | AQ28: 77.73645801 | AR28: 87.63841308 | AS28: 66.52237934 | AT28: 48.01910023 | AU28: 57.98004423 | AV28: 47.15305295 | AW28: 86.37075889 | AX28: 25.22554747 | AY28: 37.77559855 | AZ28: 29.39306917 | BA28: 100.7433876 | BB28: 32.55958407 | BC28: 44.7545747 | BD28: 187.4414747 | BE28: 70.99799061 | BF28: 69.08019022 | BG28: 45.43008722 | BH28: 9.375989874 | BI28: 36.28075781 | BJ28: 48.93294885 | BK28: 61.57829544 | BL28: 47.73580068 | BM28: 49.44440923 | BN28: 83.33870839 | BO28: 27.02284658 | BP28: 42.22310107 | BQ28: 23.93620377 | BR28: 36.24413395 | BS28: 23.88758212 | BT28: 44.73881176 | BU28: 18.20597709 | BV28: 33.25263053 | BW28: 124.3876626 | BX28: 34.40340665 | BY28: 67.87814201 | BZ28: 6.875386355 | CA28: 140.1498733 | CB28: 30.8986409 | CC28: 85.61428953 | CD28: 31.92308178 | CE28: 85.71698992 | CF28: 39.8960466 | CG28: 39.53287338 | CH28: 22.310369 | CI28: 49.76162857 | CJ28: 38.47345456 | CK28: 54.41633346 | CL28: 13.39794776 | CM28: 30.35642626 | CN28: 79.68466112 | CO28: 20.63098705 | CP28: 62.37015644 | CQ28: 25.82500733 | CR28: 56.20314016 | CS28: 17.81939176 | CT28: 25.75951557 | CU28: 36.17371242 | CV28: 30.73900489 | CW28: 56.20543672 | CX28: 76.41888237 | CY28: 34.92386235 | CZ28: 41.74291255 | DA28: 19.73144312 | DB28: 19.91471943 | DC28: 82.00621105 | DD28: 58.49590227 | DE28: 20.86329157 | DF28: 28.40565789 | DG28: 32.02130206 | DH28: 116.9919689 | DI28: 123.1448102 | DJ28: 36.43717728 | DK28: 11.62942396 | DL28: 19.97324078 | DM28: 46.45084825 | DN28: 42.9690436 | DO28: 57.62332642 | DP28: 12.39864476 | DQ28: 53.2321775 | DR28: 52.63748674 | DS28: 123.7947999 | DT28: 55.95621415 | DU28: 49.80139988 | DV28: 43.46217628 | DW28: 55.92406478 | DX28: 75.6785509 | DY28: 64.46351375 | DZ28: 41.79691664 | EA28: 90.75286503 | EB28: 13.91131633 | EC28: 89.09337365 | ED28: 40.47649928 | EE28: 51.21448726 | EF28: 22.96073576 | EG28: 7.601645921 | EH28: 83.28606412 | EI28: 41.38097407 | EJ28: 48.52422157 | EK28: 29.20269692 | EL28: 48.43678137 | EM28: 204.8033908 | EN28: 53.7905453 | EO28: 30.77924787 | EP28: 76.56334058 | EQ28: 28.29040083 | ER28: 54.43159609 | ES28: 13.50906772 | ET28: 26.57608534 | EU28: 8.831854706 | EV28: 31.46888157 | EW28: 17.48625904 | EX28: 36.48633058 | EY28: 46.63455826 | EZ28: 46.09253675 | FA28: 39.14887121 | FB28: 75.02438086 | FC28: 21.95468193 | FD28: 135.8511203 | FE28: 27.60026644 | FF28: 54.61290922 | FG28: 42.81660151 | FH28: 32.35841008 | FI28: 78.79959468 | FJ28: 25.29614946 | FK28: 21.90589093 | FL28: 19.45691149 | FM28: 22.06062535 | FN28: 84.93368805 | FO28: 65.6644974 | FP28: 35.7675693 | FQ28: 66.21549233 | FR28: 85.81794572 | FS28: 36.96251562 | FT28: 23.03465831 | FU28: 43.53015359 | FV28: 39.95799336 | FW28: 35.70221026 | FX28: 48.64799825 | FY28: 18.16827732 | FZ28: 41.52675015 | GA28: 33.70897155 | GB28: 29.04614055 | GC28: 311.8944908 | GD28: 17.86012157 | GE28: 32.76377266 | GF28: 30.29318468 | GG28: 61.48249685 | GH28: 98.15873829 | GI28: 48.88433577 | GJ28: 99.26721689 | GK28: 134.5001168 | GL28: 39.43173317 | GM28: 30.51067402 | GN28: 105.1395044 | GO28: 26.32565931 | GP28: 21.17011194 | GQ28: 70.51537013 | GR28: 90.22522983 | GS28: 30.2048165 | GT28: 161.7286252 | GU28: 70.46316717 | GV28: 40.08042841 | GW28: 145.8918071 | GX28: 43.6131281 | GY28: 103.37514 | GZ28: 94.23488754 | HA28: 52.56491259 | HB28: 33.46912214 | HC28: 19.90029453 | HD28: 37.6165768 | HE28: 32.28237231 | HF28: 48.28139839 | HG28: 60.44927261 | HH28: 45.85795685 | HI28: 44.72561767 | HJ28: 30.32077547 | HK28: 28.57886131 | HL28: 40.47985953 | HM28: 69.34048937 | HN28: 15.01771696 | HO28: 96.3899766 | HP28: 21.32432723 | HQ28: 169.8418953 | HR28: 35.1841869 | HS28: 50.03569575 | HT28: 30.52698292 | HU28: 39.29732043 | HV28: 96.35666993 | HW28: 57.12868222 | HX28: 29.32065533 | HY28: 30.6338841 | HZ28: 19.54043777 | IA28: 56.99139926 | IB28: 49.47817775 | IC28: 31.96131462 | ID28: 17.27775599 | IE28: 39.82310192 | IF28: 38.87378999 | IG28: 37.63469984 | IH28: 76.2846783 | II28: 53.30703703 | IJ28: 172.1553681 | IK28: 22.20177955 | IL28: 28.39311454 | IM28: 33.26580461 | IN28: 22.3684041 | IO28: 12.96161645 | IP28: 74.01074928 | IQ28: 66.44083207 | IR28: 40.15667573 | IS28: 38.96787076 | IT28: 100.7196836 | IU28: 51.59061959 | IV28: 34.59797031 | IW28: 40.1327707 | IX28: 49.21187113 | IY28: 216.0934639 | IZ28: 84.38280144 | JA28: 213.6941918 | JB28: 12.90254541 | JC28: 12.55513212 | JD28: 110.5330989 | JE28: 14.84781915 | JF28: 7.181620388 | JG28: 5.324576549 | JH28: 37.65416271 | JI28: 86.93400784 | JJ28: 50.36791945 | JK28: 45.53017456 | JL28: 79.13169881 | JM28: 34.70911291 | JN28: 39.4357179 | JO28: 82.0058782 | JP28: 29.56749101 | JQ28: 81.74810609 | JR28: 268.1994587 | JS28: 75.15874872 | JT28: 7.927131533 | JU28: 60.32971458 | JV28: 15.96599404 | JW28: 38.45009398 | JX28: 54.15347464 | JY28: 61.84769837 | JZ28: 42.8598814 | KA28: 49.73188674 | KB28: 25.69578103 | KC28: 40.78973931 | KD28: 97.44776757 | KE28: 61.34471516 | KF28: 14.95812499 | KG28: 41.3070819 | KH28: 89.84923774 | KI28: 61.98255904 | KJ28: 21.7424778 | KK28: 37.48918231 | KL28: 38.14350299 | KM28: 30.45798586 | KN28: 77.1076948 | KO28: 25.19342506 | KP28: 36.07232917 | KQ28: 43.0771321 | KR28: 54.47468482 | KS28: 30.29358438 | KT28: 51.96634868 | KU28: 93.46014606 | KV28: 52.50700391 | KW28: 85.90027293 | KX28: 66.23149595 | KY28: 22.15564238 | KZ28: 143.2383472 | LA28: 20.09971927 | LB28: 42.89470458 | LC28: 58.29408317 | LD28: 68.3711401 | LE28: 22.64112992 | LF28: 74.45878504 | LG28: 64.2620345 | LH28: 66.10958074 | LI28: 57.05151128 | LJ28: 58.97209346 | LK28: 20.89176569 | LL28: 35.00944483 | LM28: 28.81091091 | LN28: 90.72555578 | LO28: 55.47719757 | LP28: 40.81255694 | LQ28: 11.17994855 | LR28: 73.62363677 | LS28: 52.22644584 | LT28: 17.63449597 | LU28: 43.28949746 | LV28: 40.39168381 | LW28: 27.34221047 | LX28: 203.4183934 | LY28: 24.91198437 | LZ28: 65.20120331 | MA28: 70.32286815 | MB28: 24.78090135 | MC28: 46.41991801 | MD28: 77.80994405 | ME28: 63.34877652 | MF28: 25.27590192 | MG28: 52.96130342 | MH28: 105.0942208 | MI28: 58.27683893 | MJ28: 15.62025531 | MK28: 26.42087881 | ML28: 70.07336304 | MM28: 30.75753211 | MN28: 117.1715602 | MO28: 81.20119292 | MP28: 31.55801527 | MQ28: 68.61320404 | MR28: 70.38512049 | MS28: 52.26324243 | MT28: 12.96311358 | MU28: 167.3984614 | MV28: 30.45474451 | MW28: 19.61144992 | MX28: 48.38172777 | MY28: 62.72587451 | MZ28: 31.89804773 | NA28: 37.88736249 | NB28: 33.39935206 | NC28: 92.87157662 | ND28: 29.72933202 | NE28: 34.17143985 | NF28: 23.14145757 | NG28: 163.8804462 | NH28: 60.68993155 | NI28: 28.55193773 | NJ28: 24.35414136 | NK28: 84.44490296 | NL28: 23.49575364 | NM28: 23.88647802 | NN28: 108.1161208 | NO28: 86.16807328 | NP28: 42.40651273 | NQ28: 46.91152533 | NR28: 74.50778486 | NS28: 115.4810592 | NT28: 46.76715402 | NU28: 20.98227212 | NV28: 143.5930811 | NW28: 79.9613205 | NX28: 60.84723168 | NY28: 19.00436731 | NZ28: 101.1448689 | OA28: 54.21952005 | OB28: 63.70853534 | OC28: 20.1878998 | OD28: 16.01651955 | OE28: 147.0629372 | OF28: 22.34251728 | OG28: 23.98816255 | OH28: 49.50207855 | OI28: 35.34149043 | OJ28: 61.70093702 | OK28: 55.95001881 | OL28: 37.3165823 | OM28: 48.96110195 | ON28: 28.70209707 | OO28: 32.89044813 | OP28: 94.82788955 | OQ28: 55.71621617 | OR28: 59.06781865 | OS28: 48.76169046 | OT28: 43.82467555 | OU28: 40.90891674 | OV28: 5.025434118 | OW28: 20.90049185 | OX28: 18.68532807 | OY28: 16.17085109 | OZ28: 19.08078941 | PA28: 156.7646406 | PB28: 16.93682736 | PC28: 31.96657922 | PD28: 40.10972761 | PE28: 18.30171839 | PF28: 18.60444123 | PG28: 28.62880028 | PH28: 106.2187239 | PI28: 56.71903985 | PJ28: 19.6611159 | PK28: 63.49565867 | PL28: 28.75047933 | PM28: 118.9398867 | PN28: 33.1790575 | PO28: 141.8819716 | PP28: 62.36423653 | PQ28: 25.23577989 | PR28: 36.26862656 | PS28: 29.89817014 | PT28: 38.29926958 | PU28: 19.99804975 | PV28: 12.71940662 | PW28: 104.4689452 | PX28: 78.95898664 | PY28: 70.39445189 | PZ28: 58.64063408 | QA28: 100.1881354 | QB28: 27.47732952 | QC28: 43.61453364 | QD28: 41.06380793 | QE28: 30.42143633 | QF28: 24.85280895 | QG28: 59.78845259 | QH28: 54.38290285 | QI28: 37.04945147 | QJ28: 33.50452168 | QK28: 59.53393605 | QL28: 85.16034892 | QM28: 116.8787295 | QN28: 10.92035352 | QO28: 26.16657855 | QP28: 80.23538147 | QQ28: 31.46240255 | QR28: 63.52305513 | QS28: 36.08982479 | QT28: 47.00629817 | QU28: 33.0200612 | QV28: 52.60075452 | QW28: 45.3668014 | QX28: 29.91433102 | QY28: 38.86147668 | QZ28: 102.9640486 | RA28: 17.59242224 | RB28: 26.05628543 | RC28: 72.52417373 | RD28: 62.25802131 | RE28: 55.40352542 | RF28: 51.91494363 | RG28: 146.9183813 | RH28: 64.89844654 | RI28: 55.59820168 | RJ28: 18.62813964 | RK28: 83.85772615 | RL28: 41.41438024 | RM28: 17.2792904 | RN28: 117.7731593 | RO28: 36.59416821 | RP28: 18.40485086 | RQ28: 28.1916498 | RR28: 12.497486 | RS28: 55.70265355 | RT28: 116.8548164 | RU28: 50.40950458 | RV28: 14.75217452 | RW28: 104.8070667 | RX28: 60.80675736 | RY28: 476.248091 | RZ28: 64.00802801 | SA28: 52.08287487 | SB28: 4.594501143 | SC28: 115.9585652 | SD28: 59.75882757 | SE28: 13.61511368 | SF28: 66.33691369 | SG28: 20.21108615 | SH28: 40.34018824 | SI28: 95.06359862 | SJ28: 46.18088888 | SK28: 7.84996893 | SL28: 28.10757589 | SM28: 19.50875814 | SN28: 82.56661242 | SO28: 34.31146643 | SP28: 64.05708568 | SQ28: 25.64239628 | SR28: 22.44760292 | SS28: 30.38456931 | ST28: 93.12188937 | SU28: 58.31630219 | SV28: 35.98551636 | SW28: 39.88887508 | SX28: 56.75507424 | SY28: 33.61712744 | SZ28: 104.2162178 | TA28: 18.28391569 | TB28: 44.14511179 | TC28: 138.0637776 | TD28: 55.73230018 | TE28: 74.97683225 | TF28: 47.11151806 | TG28: 42.77646585 | TH28: 43.97180448 | TI28: 68.42813211 | TJ28: 100.4600587 | TK28: 45.15608813 | TL28: 20.0264363 | TM28: 33.98328807 | TN28: 45.928944 | TO28: 14.66192584 | TP28: 41.68011851 | TQ28: 39.50746594 | TR28: 21.60038746 | TS28: 17.30029819 | TT28: 67.75088683 | TU28: 55.37881815 | TV28: 36.75446684 | TW28: 40.04364324 | TX28: 41.72068473 | TY28: 73.49883542 | TZ28: 110.4454894 | UA28: 125.9155056 | UB28: 42.24219306 | UC28: 86.32526177 | UD28: 31.80282749 | UE28: 45.46303291 | UF28: 30.77456358 | UG28: 44.04727971 | UH28: 37.56891759 | UI28: 87.6279935 | UJ28: 32.58479725 | UK28: 25.64273085 | UL28: 27.89201437 | UM28: 36.35243175 | UN28: 70.6234824 | UO28: 107.7827198 | UP28: 68.70014356 | UQ28: 38.4622082 | UR28: 13.14209217 | US28: 33.70395188 | UT28: 60.53436978 | UU28: 13.11195502 | UV28: 49.52270773 | UW28: 26.14883088 | UX28: 107.2643262 | UY28: 100.6776026 | UZ28: 137.9538788 | VA28: 53.38385116 | VB28: 184.1102715 | VC28: 20.30620908 | VD28: 102.0781712 | VE28: 11.49071137 | VF28: 122.0555088 | VG28: 12.54743266 | VH28: 61.37386476 | VI28: 17.56657549 | VJ28: 31.071555 | VK28: 58.65966297 | VL28: 67.8388749 | VM28: 66.55486292 | VN28: 34.71060521 | VO28: 32.82401846 | VP28: 73.52984871 | VQ28: 55.31200995 | VR28: 14.15084735 | VS28: 152.0397781 | VT28: 41.02546877 | VU28: 46.66784912 | VV28: 187.0013346 | VW28: 61.84858021 | VX28: 16.03775777 | VY28: 28.92829126 | VZ28: 18.33722065 | WA28: 24.99832573 | WB28: 50.1812057 | WC28: 44.74034116 | WD28: 11.88565877 | WE28: 13.66247908 | WF28: 22.11207635
A29: 17.97583525 | B29: 102.6206657 | C29: 53.78332641 | D29: 13 | E29: 6.240948167 | F29: 92.20949213 | G29: 57.09546671 | H29: 42.11661213 | I29: 66.36612796 | J29: 24.73249603 | K29: 68.3878239 | L29: 46.31542804 | M29: 74.31908885 | N29: 40.77905452 | O29: 35.82414176 | P29: 27.1797556 | Q29: 106.8573449 | R29: 24.60302342 | S29: 10.41508324 | T29: 23.1774702 | U29: 73.50687743 | V29: 41.85385894 | W29: 41.40131085 | X29: 23.30892312 | Y29: 113.4086475 | Z29: 24.20075945 | AA29: 259.8436373 | AB29: 50.16386271 | AC29: 21.21330235 | AD29: 43.30650909 | AE29: 27.97991695 | AF29: 6.835174462 | AG29: 56.85217072 | AH29: 68.75886013 | AI29: 20.40143379 | AJ29: 55.13119026 | AK29: 8.545024967 | AL29: 79.37007554 | AM29: 189.8840025 | AN29: 13.85087325 | AO29: 43.14798557 | AP29: 133.5490998 | AQ29: 119.5459086 | AR29: 60.15247125 | AS29: 64.25467806 | AT29: 49.12681024 | AU29: 66.7671583 | AV29: 45.80052406 | AW29: 115.319964 | AX29: 35.40677772 | AY29: 35.79955653 | AZ29: 38.44133522 | BA29: 72.48645709 | BB29: 63.41804772 | BC29: 63.89090662 | BD29: 117.703991 | BE29: 71.54645196 | BF29: 87.89143934 | BG29: 36.50357036 | BH29: 16.44941311 | BI29: 31.65520911 | BJ29: 90.98600931 | BK29: 35.78314692 | BL29: 34.26526629 | BM29: 60.90714565 | BN29: 67.57888808 | BO29: 24.21045237 | BP29: 43.85442401 | BQ29: 20.26757342 | BR29: 46.02721031 | BS29: 35.59166076 | BT29: 29.133189 | BU29: 18.94905496 | BV29: 49.79374872 | BW29: 136.6335612 | BX29: 25.83572513 | BY29: 83.5469854 | BZ29: 6.768465576 | CA29: 109.7067436 | CB29: 32.44520604 | CC29: 75.7983165 | CD29: 42.33857285 | CE29: 63.17990353 | CF29: 39.2852637 | CG29: 39.60063061 | CH29: 24.18089796 | CI29: 41.65709598 | CJ29: 40.91389614 | CK29: 49.90626367 | CL29: 10.1469617 | CM29: 42.01992528 | CN29: 72.11607267 | CO29: 19.63722559 | CP29: 50.22569646 | CQ29: 23.32117423 | CR29: 40.60063147 | CS29: 20.89897624 | CT29: 26.48734137 | CU29: 39.13006905 | CV29: 50.77553964 | CW29: 44.62180172 | CX29: 61.88133574 | CY29: 27.96044074 | CZ29: 45.15717218 | DA29: 21.79314536 | DB29: 20.25743535 | DC29: 37.87966206 | DD29: 76.23648589 | DE29: 23.13820487 | DF29: 28.21882338 | DG29: 34.7799164 | DH29: 103.9206239 | DI29: 94.39107554 | DJ29: 51.57288968 | DK29: 17.99494794 | DL29: 15.2026955 | DM29: 44.5252441 | DN29: 44.18993454 | DO29: 65.04430168 | DP29: 11.77196385 | DQ29: 78.93424664 | DR29: 74.13038505 | DS29: 74.30691585 | DT29: 52.89793317 | DU29: 40.26772827 | DV29: 36.29796927 | DW29: 47.99834859 | DX29: 91.63269299 | DY29: 42.02962475 | DZ29: 46.73074076 | EA29: 77.32801564 | EB29: 7.743086882 | EC29: 120.0712333 | ED29: 32.36157501 | EE29: 43.03151753 | EF29: 25.94433501 | EG29: 8.229714862 | EH29: 88.992899 | EI29: 42.09017745 | EJ29: 57.8884425 | EK29: 36.65398759 | EL29: 43.76245046 | EM29: 146.4993384 | EN29: 103.8897905 | EO29: 37.49395944 | EP29: 57.81988925 | EQ29: 22.35625765 | ER29: 54.30516901 | ES29: 13.63760965 | ET29: 28.8093739 | EU29: 10.16418445 | EV29: 43.84535283 | EW29: 12.69467687 | EX29: 53.65923246 | EY29: 46.37811323 | EZ29: 39.33965733 | FA29: 48.8231909 | FB29: 98.33404863 | FC29: 18.91768004 | FD29: 169.6868753 | FE29: 27.60383963 | FF29: 28.3489376 | FG29: 53.54544472 | FH29: 27.94393905 | FI29: 98.10763837 | FJ29: 34.76303475 | FK29: 20.50599125 | FL29: 25.15513856 | FM29: 12.51736252 | FN29: 89.18757995 | FO29: 46.52261672 | FP29: 29.49298114 | FQ29: 72.9957261 | FR29: 107.0142723 | FS29: 48.48604624 | FT29: 14.90550787 | FU29: 43.01053738 | FV29: 35.80021134 | FW29: 33.63514919 | FX29: 46.6264345 | FY29: 20.96560647 | FZ29: 57.80150551 | GA29: 23.6529047 | GB29: 48.81901394 | GC29: 289.9163762 | GD29: 9.147425553 | GE29: 26.85954702 | GF29: 29.06553886 | GG29: 40.4587982 | GH29: 90.93246977 | GI29: 47.76396666 | GJ29: 57.00796697 | GK29: 167.8146901 | GL29: 26.86209218 | GM29: 23.74037678 | GN29: 104.1118651 | GO29: 22.63724734 | GP29: 19.33807093 | GQ29: 71.17025815 | GR29: 107.6251268 | GS29: 21.99452162 | GT29: 237.1274725 | GU29: 48.20948551 | GV29: 32.39084579 | GW29: 104.7077629 | GX29: 25.74239488 | GY29: 95.75910713 | GZ29: 61.00907541 | HA29: 54.68042899 | HB29: 31.50592927 | HC29: 19.88623438 | HD29: 33.25439815 | HE29: 48.02468156 | HF29: 55.22349865 | HG29: 76.17970436 | HH29: 22.1795833 | HI29: 28.07972395 | HJ29: 28.27998156 | HK29: 25.93635784 | HL29: 44.12484511 | HM29: 44.11690821 | HN29: 22.77556896 | HO29: 160.1703901 | HP29: 18.71312552 | HQ29: 122.8512979 | HR29: 46.68205721 | HS29: 24.58364406 | HT29: 35.33949285 | HU29: 43.88329796 | HV29: 96.46735872 | HW29: 45.57244332 | HX29: 28.53499478 | HY29: 24.46383887 | HZ29: 14.03523035 | IA29: 86.37851202 | IB29: 60.75313241 | IC29: 27.50329624 | ID29: 16.7480669 | IE29: 47.12581887 | IF29: 38.22898147 | IG29: 31.51118874 | IH29: 67.94641819 | II29: 33.31860127 | IJ29: 133.8004369 | IK29: 25.79759169 | IL29: 28.76788432 | IM29: 26.26625201 | IN29: 20.05521381 | IO29: 12.11419567 | IP29: 51.15235539 | IQ29: 53.8695486 | IR29: 36.55805095 | IS29: 26.79237545 | IT29: 89.41572566 | IU29: 50.47445863 | IV29: 45.63541147 | IW29: 27.7108441 | IX29: 31.85982996 | IY29: 258.3418624 | IZ29: 61.24660695 | JA29: 240.1215316 | JB29: 21.4180593 | JC29: 12.30976948 | JD29: 83.2353189 | JE29: 14.69856162 | JF29: 6.738377379 | JG29: 5.597218885 | JH29: 28.61705366 | JI29: 84.60286501 | JJ29: 77.45039744 | JK29: 89.48447159 | JL29: 59.92641562 | JM29: 33.33885745 | JN29: 36.45791814 | JO29: 100.0097312 | JP29: 15.41180091 | JQ29: 80.27442198 | JR29: 250.3285626 | JS29: 89.26489691 | JT29: 9.104596617 | JU29: 53.49687291 | JV29: 13.00371337 | JW29: 58.41154411 | JX29: 74.66120998 | JY29: 59.99302823 | JZ29: 56.25630747 | KA29: 92.60658367 | KB29: 25.14059372 | KC29: 33.56058216 | KD29: 80.06372649 | KE29: 51.53817643 | KF29: 28.41275238 | KG29: 36.37669939 | KH29: 70.21867378 | KI29: 18.42260573 | KJ29: 20.84471633 | KK29: 42.8746298 | KL29: 37.6243208 | KM29: 33.42274381 | KN29: 76.33227766 | KO29: 28.64898259 | KP29: 39.61119483 | KQ29: 47.73459535 | KR29: 41.03240458 | KS29: 19.8668793 | KT29: 32.53532679 | KU29: 93.93092974 | KV29: 74.53514279 | KW29: 97.08670025 | KX29: 64.02750696 | KY29: 24.92658661 | KZ29: 116.384336 | LA29: 18.55043541 | LB29: 38.37580325 | LC29: 58.10240323 | LD29: 74.5495332 | LE29: 21.93868202 | LF29: 70.6974261 | LG29: 65.56769042 | LH29: 43.06930064 | LI29: 33.64073269 | LJ29: 45.49280124 | LK29: 15.01286249 | LL29: 58.3496956 | LM29: 22.5375124 | LN29: 67.08455685 | LO29: 81.88048396 | LP29: 38.2769166 | LQ29: 17.91367021 | LR29: 106.8218087 | LS29: 39.38441941 | LT29: 15.70028505 | LU29: 53.9733865 | LV29: 40.80121805 | LW29: 31.36236908 | LX29: 166.6396757 | LY29: 31.33166018 | LZ29: 92.85737009 | MA29: 47.35547371 | MB29: 31.04491538 | MC29: 51.89057611 | MD29: 84.46868789 | ME29: 75.10914717 | MF29: 18.75361644 | MG29: 77.98639988 | MH29: 86.7169445 | MI29: 40.44626361 | MJ29: 11.91887658 | MK29: 27.63792512 | ML29: 65.07981102 | MM29: 32.87936527 | MN29: 123.4719735 | MO29: 39.87216267 | MP29: 22.73263955 | MQ29: 68.86051549 | MR29: 81.05465234 | MS29: 50.91339181 | MT29: 11.98802315 | MU29: 143.4998426 | MV29: 18.30658765 | MW29: 26.83911637 | MX29: 59.25192026 | MY29: 49.09617936 | MZ29: 31.30477831 | NA29: 32.27450457 | NB29: 27.1450849 | NC29: 73.13895661 | ND29: 25.63777805 | NE29: 46.33669909 | NF29: 30.36693114 | NG29: 134.03681 | NH29: 53.55035543 | NI29: 21.98181739 | NJ29: 27.28728926 | NK29: 63.52491267 | NL29: 11.89161739 | NM29: 28.57767642 | NN29: 123.6139684 | NO29: 66.25716237 | NP29: 53.0140803 | NQ29: 31.20105581 | NR29: 80.61271829 | NS29: 132.3451222 | NT29: 37.42199882 | NU29: 37.41133694 | NV29: 221.752845 | NW29: 70.48321815 | NX29: 37.45212454 | NY29: 24.57597705 | NZ29: 125.8472421 | OA29: 41.99683634 | OB29: 51.00481898 | OC29: 15.36413314 | OD29: 12.97567415 | OE29: 113.2719745 | OF29: 19.1836096 | OG29: 33.69296157 | OH29: 54.88090654 | OI29: 23.89698581 | OJ29: 54.30628299 | OK29: 61.2436095 | OL29: 35.62893932 | OM29: 53.75095335 | ON29: 21.88964612 | OO29: 40.46594965 | OP29: 107.3341304 | OQ29: 35.42718292 | OR29: 70.60003318 | OS29: 58.59220554 | OT29: 39.07700213 | OU29: 46.49070826 | OV29: 4.213573312 | OW29: 23.0669799 | OX29: 30.49309873 | OY29: 14.35033404 | OZ29: 15.00372807 | PA29: 141.2685872 | PB29: 14.57282944 | PC29: 31.16873588 | PD29: 81.09528797 | PE29: 16.23606465 | PF29: 17.54890051 | PG29: 35.00308389 | PH29: 112.3641451 | PI29: 54.29419796 | PJ29: 25.56869757 | PK29: 56.9657593 | PL29: 36.83838634 | PM29: 150.5394387 | PN29: 38.52659799 | PO29: 87.47208217 | PP29: 56.77428065 | PQ29: 20.80230405 | PR29: 28.50807472 | PS29: 22.93413151 | PT29: 28.64681278 | PU29: 26.61661095 | PV29: 13.27208215 | PW29: 69.37657728 | PX29: 67.19571363 | PY29: 68.60622848 | PZ29: 64.90750412 | QA29: 107.2877195 | QB29: 19.12630941 | QC29: 48.47450197 | QD29: 41.57134827 | QE29: 35.76384281 | QF29: 29.12272617 | QG29: 36.77102745 | QH29: 34.01594779 | QI29: 40.3911618 | QJ29: 42.46838121 | QK29: 63.74956677 | QL29: 127.1418857 | QM29: 168.223514 | QN29: 8.16215679 | QO29: 22.42524833 | QP29: 66.34698049 | QQ29: 29.95744337 | QR29: 85.58552936 | QS29: 35.24124132 | QT29: 43.57489303 | QU29: 48.95494062 | QV29: 54.78279893 | QW29: 39.97052966 | QX29: 25.18107492 | QY29: 36.56090932 | QZ29: 108.1203337 | RA29: 24.65851635 | RB29: 24.80599226 | RC29: 95.22812154 | RD29: 67.1514164 | RE29: 43.65234954 | RF29: 69.13886765 | RG29: 117.4525657 | RH29: 64.40602643 | RI29: 79.75197249 | RJ29: 12.7290305 | RK29: 107.8754577 | RL29: 38.79067106 | RM29: 25.53490241 | RN29: 161.8277877 | RO29: 27.15372802 | RP29: 16.2410688 | RQ29: 22.26807457 | RR29: 12.42696481 | RS29: 64.12853153 | RT29: 91.31232649 | RU29: 53.4828946 | RV29: 18.71780532 | RW29: 108.2448646 | RX29: 57.15414744 | RY29: 523.5654868 | RZ29: 66.20855617 | SA29: 55.7269759 | SB29: 3.308358001 | SC29: 82.0007207 | SD29: 77.9821929 | SE29: 12.28610837 | SF29: 84.60106638 | SG29: 19.1421312 | SH29: 43.47147326 | SI29: 81.81600878 | SJ29: 35.1746272 | SK29: 11.14804448 | SL29: 42.95650562 | SM29: 24.3540118 | SN29: 71.13233409 | SO29: 28.93932063 | SP29: 51.46627476 | SQ29: 28.9758239 | SR29: 23.92327772 | SS29: 19.91098933 | ST29: 110.7862139 | SU29: 40.30487137 | SV29: 38.66065262 | SW29: 50.63409694 | SX29: 39.63862734 | SY29: 30.21564372 | SZ29: 75.86129539 | TA29: 19.75835692 | TB29: 71.21002436 | TC29: 99.41938321 | TD29: 40.05872878 | TE29: 71.39474404 | TF29: 32.07533457 | TG29: 58.85338708 | TH29: 53.90668653 | TI29: 47.42163211 | TJ29: 88.68676663 | TK29: 32.5129364 | TL29: 17.63971513 | TM29: 36.60588005 | TN29: 45.00779799 | TO29: 11.6881419 | TP29: 51.29457277 | TQ29: 34.77372023 | TR29: 17.93214282 | TS29: 13.51072752 | TT29: 52.85652182 | TU29: 76.10210893 | TV29: 37.8862112 | TW29: 37.73343574 | TX29: 32.23621736 | TY29: 89.86726996 | TZ29: 55.83134693 | UA29: 101.2673593 | UB29: 48.41219065 | UC29: 139.8773989 | UD29: 34.5283958 | UE29: 37.76124468 | UF29: 26.59462971 | UG29: 31.51681075 | UH29: 34.93748875 | UI29: 70.19109769 | UJ29: 49.54516394 | UK29: 27.3896167 | UL29: 30.81460719 | UM29: 38.61704237 | UN29: 87.4225637 | UO29: 90.9317877 | UP29: 68.5569105 | UQ29: 33.57257146 | UR29: 11.64554806 | US29: 40.538888 | UT29: 54.55639256 | UU29: 14.57097249 | UV29: 55.6096438 | UW29: 25.28172103 | UX29: 85.93128594 | UY29: 102.4796518 | UZ29: 90.13789365 | VA29: 57.42219773 | VB29: 149.5150525 | VC29: 19.09288728 | VD29: 111.3903567 | VE29: 12.66938698 | VF29: 106.6758322 | VG29: 12.48384763 | VH29: 53.82371751 | VI29: 18.45968628 | VJ29: 40.93031059 | VK29: 74.44302534 | VL29: 87.35642601 | VM29: 52.86407602 | VN29: 23.80529513 | VO29: 19.5243139 | VP29: 116.3284958 | VQ29: 35.99294237 | VR29: 17.98068996 | VS29: 161.6079469 | VT29: 41.76764855 | VU29: 49.32235433 | VV29: 146.8868235 | VW29: 72.19018224 | VX29: 10.61078585 | VY29: 22.757202 | VZ29: 20.15863131 | WA29: 22.36904264 | WB29: 39.60348145 | WC29: 66.30241936 | WD29: 9.428042852 | WE29: 18.89667155 | WF29: 27.6427767
A30: 16.88353137 | B30: 100.3645413 | C30: 52.91248454 | D30: 14 | E30: 6.281464038 | F30: 142.7927954 | G30: 37.73474002 | H30: 68.13785858 | I30: 75.21850442 | J30: 24.59426563 | K30: 65.30280534 | L30: 62.92943499 | M30: 81.45587596 | N30: 20.34167963 | O30: 33.42616566 | P30: 17.87765707 | Q30: 112.2912423 | R30: 24.86343679 | S30: 10.58787805 | T30: 20.65051541 | U30: 61.89937119 | V30: 40.18781218 | W30: 39.39478833 | X30: 16.9940636 | Y30: 88.98561678 | Z30: 18.50766296 | AA30: 226.4783142 | AB30: 40.26552145 | AC30: 24.04061471 | AD30: 44.23533928 | AE30: 18.34751912 | AF30: 7.501675003 | AG30: 60.50017652 | AH30: 64.17743698 | AI30: 24.13329171 | AJ30: 41.08689525 | AK30: 11.46731981 | AL30: 142.8402375 | AM30: 209.8251646 | AN30: 11.048803 | AO30: 55.3030762 | AP30: 93.66311937 | AQ30: 93.34608519 | AR30: 64.11144825 | AS30: 108.5986725 | AT30: 33.39137319 | AU30: 49.38186596 | AV30: 42.29341133 | AW30: 108.6432029 | AX30: 40.77574997 | AY30: 40.41031382 | AZ30: 36.51089117 | BA30: 36.51116998 | BB30: 49.84834555 | BC30: 69.53655062 | BD30: 121.6937394 | BE30: 73.11526183 | BF30: 84.91141986 | BG30: 60.65953149 | BH30: 11.11886349 | BI30: 39.14524089 | BJ30: 67.06537751 | BK30: 52.11250386 | BL30: 28.87081742 | BM30: 43.92069328 | BN30: 87.95182663 | BO30: 21.12766602 | BP30: 32.4439372 | BQ30: 23.97162135 | BR30: 52.56947496 | BS30: 19.25736666 | BT30: 27.16642813 | BU30: 31.39110399 | BV30: 41.42721501 | BW30: 99.94975275 | BX30: 52.60585794 | BY30: 99.93268122 | BZ30: 6.455220285 | CA30: 135.6281098 | CB30: 33.34337555 | CC30: 126.178767 | CD30: 51.72161596 | CE30: 83.20287254 | CF30: 26.31296893 | CG30: 39.03037862 | CH30: 17.25479857 | CI30: 39.5763695 | CJ30: 30.21447229 | CK30: 52.57815003 | CL30: 10.47366408 | CM30: 51.37020139 | CN30: 67.52767313 | CO30: 16.53161726 | CP30: 62.81207657 | CQ30: 18.43723459 | CR30: 55.44898668 | CS30: 29.75626245 | CT30: 24.97698228 | CU30: 25.63328572 | CV30: 44.09737243 | CW30: 33.75343464 | CX30: 56.44833976 | CY30: 16.217097 | CZ30: 67.33705507 | DA30: 28.64061422 | DB30: 14.14390034 | DC30: 45.88408675 | DD30: 81.86924416 | DE30: 28.13584368 | DF30: 29.29330794 | DG30: 26.21482092 | DH30: 82.13895469 | DI30: 77.2454464 | DJ30: 49.79975282 | DK30: 24.07689432 | DL30: 13.18731622 | DM30: 60.12819057 | DN30: 35.74890731 | DO30: 74.84757989 | DP30: 9.798760118 | DQ30: 107.1862957 | DR30: 74.905597 | DS30: 58.93785579 | DT30: 55.24473023 | DU30: 36.3670433 | DV30: 38.76445016 | DW30: 81.20110119 | DX30: 51.73172635 | DY30: 37.37593502 | DZ30: 28.93716046 | EA30: 80.1216906 | EB30: 6.524718558 | EC30: 94.30820182 | ED30: 32.25871077 | EE30: 53.76273428 | EF30: 25.64149432 | EG30: 11.0711303 | EH30: 103.1321113 | EI30: 35.99800058 | EJ30: 41.07769716 | EK30: 37.04475137 | EL30: 71.27061066 | EM30: 174.9828335 | EN30: 62.58425065 | EO30: 33.141031 | EP30: 37.69085105 | EQ30: 30.16369065 | ER30: 57.25663065 | ES30: 21.54956742 | ET30: 34.33373976 | EU30: 7.906979698 | EV30: 45.07014722 | EW30: 11.27473552 | EX30: 44.52174437 | EY30: 45.63916276 | EZ30: 26.59322498 | FA30: 54.51010785 | FB30: 64.25703161 | FC30: 20.32052795 | FD30: 117.9908703 | FE30: 25.59582697 | FF30: 44.39008746 | FG30: 53.91526025 | FH30: 37.77404662 | FI30: 84.97481648 | FJ30: 26.2727131 | FK30: 28.40313647 | FL30: 20.39060468 | FM30: 8.7390877 | FN30: 181.5711648 | FO30: 50.56972614 | FP30: 40.78412662 | FQ30: 54.5278268 | FR30: 135.2539011 | FS30: 43.31390358 | FT30: 9.141612883 | FU30: 43.44449741 | FV30: 26.15912615 | FW30: 23.13199954 | FX30: 50.83021428 | FY30: 16.8923909 | FZ30: 79.46219428 | GA30: 23.32899899 | GB30: 40.72414316 | GC30: 298.767616 | GD30: 9.282671607 | GE30: 25.80840428 | GF30: 35.2374974 | GG30: 32.11326216 | GH30: 115.1894539 | GI30: 43.4361534 | GJ30: 71.03737416 | GK30: 123.4086385 | GL30: 28.29285623 | GM30: 20.81648757 | GN30: 70.2732941 | GO30: 21.05753613 | GP30: 18.70008221 | GQ30: 49.08704597 | GR30: 122.132032 | GS30: 21.26016618 | GT30: 223.8552647 | GU30: 58.75989076 | GV30: 51.02386345 | GW30: 100.638063 | GX30: 21.55414203 | GY30: 104.0253813 | GZ30: 52.94884574 | HA30: 37.71672599 | HB30: 25.7105451 | HC30: 19.89697255 | HD30: 28.70640674 | HE30: 42.97549568 | HF30: 74.41436436 | HG30: 72.20998014 | HH30: 25.0895466 | HI30: 19.8015804 | HJ30: 17.41865531 | HK30: 21.09433461 | HL30: 26.19512128 | HM30: 40.31879887 | HN30: 22.90867176 | HO30: 110.1629863 | HP30: 20.72097452 | HQ30: 86.71333561 | HR30: 47.23107031 | HS30: 22.15809336 | HT30: 25.71926692 | HU30: 29.33723188 | HV30: 76.04444421 | HW30: 67.81987759 | HX30: 32.23080443 | HY30: 27.49432339 | HZ30: 13.95246093 | IA30: 96.88418628 | IB30: 49.72054978 | IC30: 16.29584161 | ID30: 17.66510822 | IE30: 77.99331635 | IF30: 26.94063669 | IG30: 20.88277762 | IH30: 52.34368199 | II30: 26.53591171 | IJ30: 135.3804388 | IK30: 18.85960854 | IL30: 25.88079667 | IM30: 25.38089469 | IN30: 37.51774244 | IO30: 13.51662735 | IP30: 59.80840205 | IQ30: 49.95864426 | IR30: 37.49461478 | IS30: 21.22422248 | IT30: 95.88753974 | IU30: 48.56011083 | IV30: 46.02483479 | IW30: 31.93779582 | IX30: 28.58445939 | IY30: 208.4897315 | IZ30: 99.26319108 | JA30: 184.2352911 | JB30: 27.58362305 | JC30: 11.5466163 | JD30: 99.79414738 | JE30: 13.99357149 | JF30: 5.26169281 | JG30: 5.29758053 | JH30: 33.20467909 | JI30: 137.8396139 | JJ30: 52.98652511 | JK30: 82.20025131 | JL30: 57.62640373 | JM30: 33.22043409 | JN30: 29.53335723 | JO30: 85.740634 | JP30: 13.78514548 | JQ30: 85.48776434 | JR30: 253.3560288 | JS30: 87.90211595 | JT30: 7.905849028 | JU30: 63.21143447 | JV30: 12.39496963 | JW30: 45.99630515 | JX30: 60.07132376 | JY30: 57.63235059 | JZ30: 66.66051442 | KA30: 79.1692435 | KB30: 24.95463585 | KC30: 29.74544425 | KD30: 57.06625704 | KE30: 46.8165304 | KF30: 20.72787593 | KG30: 32.42491002 | KH30: 61.09994244 | KI30: 28.6129286 | KJ30: 29.23794734 | KK30: 31.10329137 | KL30: 29.44547536 | KM30: 35.40814566 | KN30: 84.11524954 | KO30: 24.5201858 | KP30: 34.93225278 | KQ30: 41.09825412 | KR30: 37.72154007 | KS30: 16.26340147 | KT30: 27.41031964 | KU30: 69.95751312 | KV30: 51.75100649 | KW30: 78.39253273 | KX30: 100.33415 | KY30: 45.89406753 | KZ30: 86.0636329 | LA30: 13.60576646 | LB30: 44.50839973 | LC30: 73.75801119 | LD30: 82.89023012 | LE30: 32.41416065 | LF30: 74.3663217 | LG30: 50.61331255 | LH30: 53.46745969 | LI30: 26.52330132 | LJ30: 43.4937237 | LK30: 22.61911958 | LL30: 57.25843669 | LM30: 27.63586987 | LN30: 151.2814404 | LO30: 69.86270324 | LP30: 55.141217 | LQ30: 12.44016919 | LR30: 82.43029104 | LS30: 29.07764989 | LT30: 13.17594265 | LU30: 46.2257441 | LV30: 24.06810794 | LW30: 43.08884641 | LX30: 166.7568288 | LY30: 43.61744217 | LZ30: 107.3529718 | MA30: 52.45364106 | MB30: 29.62869575 | MC30: 33.59659066 | MD30: 37.85273097 | ME30: 83.20334073 | MF30: 34.37669962 | MG30: 84.0792479 | MH30: 119.9519507 | MI30: 45.55359231 | MJ30: 12.81293736 | MK30: 19.51882903 | ML30: 53.57735157 | MM30: 34.48415111 | MN30: 90.56877931 | MO30: 36.54527138 | MP30: 16.55971994 | MQ30: 47.91057207 | MR30: 68.11292602 | MS30: 39.55233653 | MT30: 7.475235244 | MU30: 159.6947596 | MV30: 27.19427026 | MW30: 19.01626915 | MX30: 58.30482284 | MY30: 59.35625574 | MZ30: 27.12446917 | NA30: 66.70803446 | NB30: 27.10768008 | NC30: 68.71208707 | ND30: 20.89812698 | NE30: 45.7715662 | NF30: 22.50743144 | NG30: 128.0410735 | NH30: 40.64729916 | NI30: 20.00731313 | NJ30: 32.6431626 | NK30: 58.55497477 | NL30: 9.022550416 | NM30: 23.95848676 | NN30: 154.5981099 | NO30: 60.88839391 | NP30: 50.5983154 | NQ30: 27.09310593 | NR30: 86.619206 | NS30: 138.7675127 | NT30: 46.27349871 | NU30: 50.81107027 | NV30: 221.345346 | NW30: 51.54074318 | NX30: 26.27280733 | NY30: 29.60589133 | NZ30: 135.9445682 | OA30: 26.11873984 | OB30: 59.13438301 | OC30: 20.91133811 | OD30: 14.25117516 | OE30: 92.54272965 | OF30: 17.2970447 | OG30: 19.60536072 | OH30: 54.74653768 | OI30: 22.97239318 | OJ30: 40.79697986 | OK30: 69.57844445 | OL30: 44.39551602 | OM30: 49.37642972 | ON30: 30.13397993 | OO30: 38.74030102 | OP30: 94.49814724 | OQ30: 33.12915478 | OR30: 93.70359427 | OS30: 50.03666198 | OT30: 55.14817813 | OU30: 42.57862322 | OV30: 3.489341944 | OW30: 21.44997638 | OX30: 19.37603672 | OY30: 11.8400184 | OZ30: 21.95858063 | PA30: 91.9371421 | PB30: 28.09076524 | PC30: 35.13030805 | PD30: 75.13963087 | PE30: 17.86314001 | PF30: 22.96529263 | PG30: 42.27681589 | PH30: 110.0295935 | PI30: 52.95208817 | PJ30: 17.66404356 | PK30: 61.0811942 | PL30: 35.06711035 | PM30: 146.361072 | PN30: 29.76584196 | PO30: 88.03770084 | PP30: 48.83946951 | PQ30: 21.34839063 | PR30: 23.09156173 | PS30: 42.94569866 | PT30: 35.95111394 | PU30: 18.79470629 | PV30: 16.41784078 | PW30: 54.88115092 | PX30: 76.98074686 | PY30: 95.44364978 | PZ30: 61.26748285 | QA30: 75.91423273 | QB30: 20.07630034 | QC30: 32.13668866 | QD30: 39.11285255 | QE30: 32.14384646 | QF30: 21.99408959 | QG30: 34.81194379 | QH30: 23.64412158 | QI30: 44.54929575 | QJ30: 35.68448639 | QK30: 46.83477952 | QL30: 79.95026712 | QM30: 237.729466 | QN30: 11.5383715 | QO30: 16.4272631 | QP30: 58.07312568 | QQ30: 25.84161574 | QR30: 56.13792683 | QS30: 31.44160301 | QT30: 31.00494613 | QU30: 37.57658462 | QV30: 65.09364441 | QW30: 33.43275121 | QX30: 16.80379561 | QY30: 20.10401882 | QZ30: 75.02485318 | RA30: 19.37272929 | RB30: 28.48853562 | RC30: 62.30780083 | RD30: 60.35602257 | RE30: 54.27739643 | RF30: 95.5357656 | RG30: 123.3563253 | RH30: 50.5340929 | RI30: 55.72474159 | RJ30: 11.26899432 | RK30: 86.57426841 | RL30: 58.6959536 | RM30: 35.44454335 | RN30: 173.4395476 | RO30: 19.47394308 | RP30: 19.10653889 | RQ30: 18.2374548 | RR30: 7.973249495 | RS30: 61.31573538 | RT30: 105.1864245 | RU30: 87.04911059 | RV30: 24.37049751 | RW30: 122.3410999 | RX30: 69.85827627 | RY30: 465.6201617 | RZ30: 65.05748317 | SA30: 52.43349422 | SB30: 3.508218777 | SC30: 91.13085337 | SD30: 77.49888871 | SE30: 7.249841711 | SF30: 63.90526933 | SG30: 20.5959404 | SH30: 35.28069898 | SI30: 107.2161737 | SJ30: 29.74589749 | SK30: 11.48439429 | SL30: 39.6042574 | SM30: 19.99278193 | SN30: 72.67596932 | SO30: 27.60286672 | SP30: 100.8438053 | SQ30: 28.21000223 | SR30: 23.7111681 | SS30: 15.7243379 | ST30: 211.5001997 | SU30: 31.53707558 | SV30: 36.01513623 | SW30: 33.4043388 | SX30: 44.90059022 | SY30: 30.52085431 | SZ30: 77.56342528 | TA30: 17.0995417 | TB30: 38.18105682 | TC30: 87.24431575 | TD30: 37.5365143 | TE30: 121.9609955 | TF30: 21.13572056 | TG30: 37.81331688 | TH30: 49.20806483 | TI30: 45.17054666 | TJ30: 118.5664782 | TK30: 34.81615399 | TL30: 17.83501791 | TM30: 31.05506638 | TN30: 52.82262428 | TO30: 13.17711966 | TP30: 32.19885618 | TQ30: 26.64024132 | TR30: 13.83263394 | TS30: 16.00823062 | TT30: 60.62883038 | TU30: 50.75608552 | TV30: 37.35040675 | TW30: 38.81244553 | TX30: 45.78094501 | TY30: 57.30090695 | TZ30: 40.83227928 | UA30: 93.25773437 | UB30: 43.54144244 | UC30: 128.711021 | UD30: 24.16743304 | UE30: 19.34850815 | UF30: 19.80134078 | UG30: 27.02220449 | UH30: 29.60618849 | UI30: 52.55826104 | UJ30: 37.97762745 | UK30: 34.93420582 | UL30: 35.61264284 | UM30: 38.66650458 | UN30: 110.377521 | UO30: 71.57023316 | UP30: 64.74874105 | UQ30: 28.90066883 | UR30: 12.45409275 | US30: 41.35904186 | UT30: 42.63086201 | UU30: 14.26290086 | UV30: 81.71500616 | UW30: 28.59526674 | UX30: 95.75891977 | UY30: 98.41885691 | UZ30: 105.4408643 | VA30: 82.05991306 | VB30: 254.3332845 | VC30: 19.43450768 | VD30: 105.2764687 | VE30: 10.49512818 | VF30: 121.4468227 | VG30: 9.146079755 | VH30: 42.13522471 | VI30: 21.73911942 | VJ30: 37.90106997 | VK30: 56.34463562 | VL30: 81.70553025 | VM30: 61.26624835 | VN30: 33.06264149 | VO30: 24.61324142 | VP30: 79.67548542 | VQ30: 34.00193078 | VR30: 17.52790708 | VS30: 192.0211587 | VT30: 43.98343944 | VU30: 53.16680848 | VV30: 153.1951436 | VW30: 76.18439933 | VX30: 12.28291877 | VY30: 20.13993444 | VZ30: 18.71389892 | WA30: 18.12969096 | WB30: 29.20342904 | WC30: 57.18737805 | WD30: 12.0779523 | WE30: 20.16004339 | WF30: 19.15367608
A31: 15.38093476 | B31: 105.4455436 | C31: 52.27184078 | D31: 15 | E31: 3.783423952 | F31: 110.7237524 | G31: 53.19561413 | H31: 63.7993124 | I31: 69.37423864 | J31: 15.73117903 | K31: 34.06221481 | L31: 65.38474174 | M31: 100.5849549 | N31: 20.15332515 | O31: 25.97511464 | P31: 20.68450403 | Q31: 103.5158501 | R31: 32.06435894 | S31: 6.489514326 | T31: 15.99854783 | U31: 48.31453174 | V31: 37.33826871 | W31: 77.08144886 | X31: 26.52351293 | Y31: 91.20470031 | Z31: 20.14056899 | AA31: 280.575131 | AB31: 48.64229122 | AC31: 21.5929909 | AD31: 37.00574084 | AE31: 22.49973729 | AF31: 7.511165659 | AG31: 49.10429027 | AH31: 69.14576652 | AI31: 22.40980679 | AJ31: 37.8859459 | AK31: 6.947288005 | AL31: 103.0921173 | AM31: 249.7481292 | AN31: 12.04751161 | AO31: 46.97780392 | AP31: 63.83336773 | AQ31: 76.35948843 | AR31: 92.8786892 | AS31: 110.7009668 | AT31: 31.8538334 | AU31: 77.3516718 | AV31: 41.08814686 | AW31: 113.8613158 | AX31: 50.80377185 | AY31: 51.33323369 | AZ31: 32.52857912 | BA31: 29.62589438 | BB31: 44.59063326 | BC31: 53.69883276 | BD31: 164.3743646 | BE31: 79.60115224 | BF31: 82.08065219 | BG31: 85.12708006 | BH31: 7.06492292 | BI31: 33.65924474 | BJ31: 55.92484887 | BK31: 49.87569447 | BL31: 28.61045799 | BM31: 40.5063187 | BN31: 120.5929068 | BO31: 20.84383092 | BP31: 28.6316487 | BQ31: 11.67434251 | BR31: 47.91651472 | BS31: 26.72833209 | BT31: 30.73083961 | BU31: 28.68898026 | BV31: 46.82741417 | BW31: 86.94149675 | BX31: 27.98740858 | BY31: 105.6718241 | BZ31: 6.069735529 | CA31: 155.0110635 | CB31: 37.12159044 | CC31: 112.2843389 | CD31: 27.19598112 | CE31: 87.81166767 | CF31: 23.38880844 | CG31: 25.5748248 | CH31: 18.36636982 | CI31: 62.42606482 | CJ31: 41.264675 | CK31: 48.86383261 | CL31: 9.349703074 | CM31: 26.86966573 | CN31: 70.89074899 | CO31: 27.58218226 | CP31: 39.20602558 | CQ31: 18.93489544 | CR31: 43.61470563 | CS31: 29.02498318 | CT31: 46.68804343 | CU31: 23.66928382 | CV31: 46.65947046 | CW31: 34.06252442 | CX31: 71.01351274 | CY31: 21.56822479 | CZ31: 91.56345778 | DA31: 37.19579108 | DB31: 14.93222667 | DC31: 42.17993363 | DD31: 43.92872634 | DE31: 21.16774695 | DF31: 22.45971845 | DG31: 32.15296011 | DH31: 61.73369424 | DI31: 106.4644876 | DJ31: 27.29812071 | DK31: 21.89912549 | DL31: 10.21659941 | DM31: 62.38127403 | DN31: 57.88223583 | DO31: 49.501528 | DP31: 5.064976596 | DQ31: 146.0171215 | DR31: 54.41654596 | DS31: 38.12425733 | DT31: 41.50662936 | DU31: 55.25885115 | DV31: 35.40704224 | DW31: 55.03293003 | DX31: 70.17502387 | DY31: 37.02262454 | DZ31: 25.18082067 | EA31: 55.95498196 | EB31: 7.203719735 | EC31: 85.86192838 | ED31: 32.09338362 | EE31: 49.0116047 | EF31: 20.8156885 | EG31: 12.97567039 | EH31: 107.2815377 | EI31: 24.84889384 | EJ31: 43.13575054 | EK31: 28.42469033 | EL31: 89.57131086 | EM31: 174.850458 | EN31: 82.91473772 | EO31: 39.69750673 | EP31: 41.38577598 | EQ31: 21.4864434 | ER31: 65.10838611 | ES31: 18.19599322 | ET31: 47.78543402 | EU31: 5.865836245 | EV31: 39.02807313 | EW31: 9.269981201 | EX31: 38.70986123 | EY31: 43.66280367 | EZ31: 24.35737239 | FA31: 37.19671992 | FB31: 60.9694789 | FC31: 35.95742893 | FD31: 134.948455 | FE31: 26.52394728 | FF31: 35.84654747 | FG31: 62.20383136 | FH31: 31.82442218 | FI31: 65.65320217 | FJ31: 27.19394746 | FK31: 28.59790856 | FL31: 14.05891389 | FM31: 12.0135825 | FN31: 160.0147827 | FO31: 45.41273349 | FP31: 39.54084829 | FQ31: 42.58492014 | FR31: 138.3628926 | FS31: 96.92228119 | FT31: 13.88620516 | FU31: 50.196123 | FV31: 27.488863 | FW31: 32.21392378 | FX31: 54.65224155 | FY31: 16.62796815 | FZ31: 73.35462882 | GA31: 27.91639792 | GB31: 27.83668634 | GC31: 188.4675724 | GD31: 10.29652449 | GE31: 27.23518206 | GF31: 26.70603185 | GG31: 20.51432773 | GH31: 102.679092 | GI31: 65.55194458 | GJ31: 66.07702748 | GK31: 99.60679398 | GL31: 21.78846197 | GM31: 20.6845777 | GN31: 67.09394341 | GO31: 14.24789694 | GP31: 18.68703214 | GQ31: 42.4568445 | GR31: 86.09210151 | GS31: 13.56602114 | GT31: 165.5632965 | GU31: 67.63264343 | GV31: 43.12887554 | GW31: 76.14708753 | GX31: 25.73474474 | GY31: 85.33878847 | GZ31: 39.08288349 | HA31: 42.4976127 | HB31: 23.14481259 | HC31: 26.59963806 | HD31: 30.11659609 | HE31: 29.65338935 | HF31: 94.82852782 | HG31: 71.7285797 | HH31: 17.09551065 | HI31: 15.87161007 | HJ31: 17.27151979 | HK31: 18.66905973 | HL31: 22.50932486 | HM31: 42.80881914 | HN31: 19.49893698 | HO31: 82.33254351 | HP31: 22.95733446 | HQ31: 129.7476571 | HR31: 30.99197753 | HS31: 24.43032157 | HT31: 15.51670571 | HU31: 32.97617907 | HV31: 59.2673037 | HW31: 56.07181753 | HX31: 22.24367181 | HY31: 22.24063485 | HZ31: 20.03794112 | IA31: 67.80743668 | IB31: 50.59150666 | IC31: 14.82432701 | ID31: 21.50244155 | IE31: 77.88279603 | IF31: 33.9140792 | IG31: 27.43318811 | IH31: 45.87133192 | II31: 24.94719383 | IJ31: 146.1984387 | IK31: 23.20739588 | IL31: 41.60346603 | IM31: 20.50355734 | IN31: 36.37353855 | IO31: 18.52919555 | IP31: 41.35493639 | IQ31: 44.15254948 | IR31: 33.28076076 | IS31: 15.11845687 | IT31: 99.57611991 | IU31: 74.73458466 | IV31: 57.30818934 | IW31: 35.31330334 | IX31: 21.6676158 | IY31: 374.5800618 | IZ31: 50.85946261 | JA31: 255.4585712 | JB31: 24.76570007 | JC31: 8.074450554 | JD31: 82.56465395 | JE31: 15.37562376 | JF31: 4.054485851 | JG31: 6.00735877 | JH31: 32.54374708 | JI31: 92.69886158 | JJ31: 63.53378597 | JK31: 54.1498138 | JL31: 54.39505996 | JM31: 23.12116998 | JN31: 44.9177328 | JO31: 84.05596513 | JP31: 18.51598157 | JQ31: 65.29565555 | JR31: 172.2628387 | JS31: 118.9976117 | JT31: 9.047706879 | JU31: 90.36068277 | JV31: 12.24191513 | JW31: 30.26044361 | JX31: 62.74934157 | JY31: 53.11675242 | JZ31: 33.33076417 | KA31: 65.77900614 | KB31: 28.63760265 | KC31: 42.96959833 | KD31: 54.94786656 | KE31: 59.61919245 | KF31: 17.90473525 | KG31: 55.74625644 | KH31: 83.07280239 | KI31: 24.80215451 | KJ31: 17.54940385 | KK31: 25.72552925 | KL31: 33.77917267 | KM31: 48.851299 | KN31: 100.0770387 | KO31: 30.17473133 | KP31: 35.17842914 | KQ31: 25.9929552 | KR31: 38.61287869 | KS31: 18.25939093 | KT31: 35.04606358 | KU31: 58.12141071 | KV31: 52.2677353 | KW31: 106.6354413 | KX31: 97.09535541 | KY31: 37.01232882 | KZ31: 67.41608697 | LA31: 18.58751086 | LB31: 39.44723297 | LC31: 57.92627856 | LD31: 79.25971636 | LE31: 26.09186769 | LF31: 77.07479253 | LG31: 65.23298434 | LH31: 50.24489223 | LI31: 33.07393606 | LJ31: 35.95185765 | LK31: 21.78431254 | LL31: 33.4801749 | LM31: 19.33210619 | LN31: 145.5175165 | LO31: 48.53973008 | LP31: 55.69705699 | LQ31: 14.00836131 | LR31: 80.58725653 | LS31: 32.48246746 | LT31: 28.74773295 | LU31: 56.16864962 | LV31: 35.55842851 | LW31: 33.57435406 | LX31: 162.9771854 | LY31: 34.86070687 | LZ31: 95.23215059 | MA31: 56.61390657 | MB31: 45.23110647 | MC31: 37.91694152 | MD31: 32.4750464 | ME31: 66.03400383 | MF31: 18.56063526 | MG31: 57.76719506 | MH31: 105.4204014 | MI31: 34.96476743 | MJ31: 12.41612505 | MK31: 25.19700811 | ML31: 42.7185173 | MM31: 37.56571877 | MN31: 137.6573657 | MO31: 39.99427492 | MP31: 16.02523289 | MQ31: 57.67410261 | MR31: 63.7489907 | MS31: 26.06120475 | MT31: 15.405179 | MU31: 171.0696104 | MV31: 44.7580861 | MW31: 21.58822596 | MX31: 46.34002208 | MY31: 84.02997979 | MZ31: 14.83477254 | NA31: 38.71425224 | NB31: 26.72744167 | NC31: 45.27793264 | ND31: 17.9379583 | NE31: 50.19124458 | NF31: 17.8244123 | NG31: 100.7608085 | NH31: 57.07963246 | NI31: 12.37926308 | NJ31: 27.05296778 | NK31: 74.94270101 | NL31: 8.240233774 | NM31: 15.53952949 | NN31: 208.4368933 | NO31: 64.76345569 | NP31: 58.99205917 | NQ31: 29.74072643 | NR31: 49.87632571 | NS31: 164.8090736 | NT31: 46.14016513 | NU31: 58.97822198 | NV31: 189.3998575 | NW31: 68.24236301 | NX31: 46.83690802 | NY31: 51.62908919 | NZ31: 127.127563 | OA31: 23.65362752 | OB31: 55.16191282 | OC31: 15.99534734 | OD31: 9.181461617 | OE31: 111.9490566 | OF31: 23.76623057 | OG31: 21.91899743 | OH31: 37.82508387 | OI31: 15.74412094 | OJ31: 21.14226578 | OK31: 106.0235892 | OL31: 36.96572647 | OM31: 32.87626921 | ON31: 24.83668209 | OO31: 40.71672636 | OP31: 86.6231435 | OQ31: 34.47083575 | OR31: 88.48863009 | OS31: 37.15921429 | OT31: 51.38052206 | OU31: 54.18325273 | OV31: 3.086275581 | OW31: 14.61792657 | OX31: 25.8775321 | OY31: 12.41332227 | OZ31: 11.20038493 | PA31: 102.5827536 | PB31: 27.75398671 | PC31: 46.25309054 | PD31: 99.58863322 | PE31: 25.23937475 | PF31: 25.35003808 | PG31: 30.82601032 | PH31: 106.2785501 | PI31: 56.25903171 | PJ31: 13.74469495 | PK31: 54.8776839 | PL31: 37.97608207 | PM31: 198.0238157 | PN31: 28.07194204 | PO31: 112.062131 | PP31: 42.75052881 | PQ31: 14.19951761 | PR31: 35.28369732 | PS31: 36.3891164 | PT31: 32.31900551 | PU31: 14.65884418 | PV31: 16.73838888 | PW31: 78.63797334 | PX31: 71.56818378 | PY31: 103.1229874 | PZ31: 50.18719791 | QA31: 87.70130907 | QB31: 15.76192593 | QC31: 33.77872602 | QD31: 56.18899141 | QE31: 25.03694147 | QF31: 21.66409046 | QG31: 42.83414718 | QH31: 21.74670106 | QI31: 57.63929467 | QJ31: 29.72117239 | QK31: 25.1964259 | QL31: 105.968098 | QM31: 178.9614622 | QN31: 12.5938779 | QO31: 13.0328051 | QP31: 32.93173099 | QQ31: 32.50078548 | QR31: 52.17973533 | QS31: 38.36228848 | QT31: 28.73320328 | QU31: 35.64564705 | QV31: 43.03233096 | QW31: 26.19115231 | QX31: 18.44641888 | QY31: 15.38152487 | QZ31: 78.87397877 | RA31: 25.33604215 | RB31: 20.77315237 | RC31: 84.36232476 | RD31: 66.43807128 | RE31: 48.97011423 | RF31: 104.2953225 | RG31: 106.5840678 | RH31: 54.59788643 | RI31: 42.29728389 | RJ31: 11.06631176 | RK31: 109.3268919 | RL31: 45.52438686 | RM31: 31.76705625 | RN31: 118.0745332 | RO31: 17.4466686 | RP31: 12.05905022 | RQ31: 13.3406606 | RR31: 8.760560276 | RS31: 54.08184248 | RT31: 79.46091153 | RU31: 88.88781829 | RV31: 17.79306218 | RW31: 111.1195324 | RX31: 85.81797111 | RY31: 347.1512274 | RZ31: 69.77711918 | SA31: 68.87962852 | SB31: 3.564669022 | SC31: 67.46976183 | SD31: 52.5757224 | SE31: 9.091607553 | SF31: 42.18656924 | SG31: 18.1882881 | SH31: 38.18450464 | SI31: 125.3312548 | SJ31: 49.83060072 | SK31: 15.75761627 | SL31: 60.02709113 | SM31: 23.7960691 | SN31: 119.9604795 | SO31: 38.7494478 | SP31: 89.94897335 | SQ31: 29.66823213 | SR31: 22.84682078 | SS31: 28.60324024 | ST31: 155.0963919 | SU31: 26.4609984 | SV31: 41.31225904 | SW31: 33.10792954 | SX31: 62.34764264 | SY31: 21.09547029 | SZ31: 89.91007677 | TA31: 18.1823352 | TB31: 49.38130278 | TC31: 63.23720661 | TD31: 49.1200555 | TE31: 158.7770227 | TF31: 14.43954946 | TG31: 38.4804547 | TH31: 53.64162611 | TI31: 59.50059243 | TJ31: 171.9555164 | TK31: 28.42228495 | TL31: 26.25639273 | TM31: 26.40024115 | TN31: 76.49180702 | TO31: 11.33301379 | TP31: 50.8338616 | TQ31: 22.5743065 | TR31: 13.44781281 | TS31: 14.45845175 | TT31: 87.51724057 | TU31: 44.80785005 | TV31: 31.28876621 | TW31: 44.56604851 | TX31: 51.93327896 | TY31: 74.44524247 | TZ31: 48.53532327 | UA31: 95.34241732 | UB31: 42.16892335 | UC31: 125.620484 | UD31: 26.10095759 | UE31: 28.85688226 | UF31: 28.13621329 | UG31: 29.03318472 | UH31: 33.24329611 | UI31: 59.26933809 | UJ31: 41.47425087 | UK31: 21.11004791 | UL31: 42.61225823 | UM31: 51.89783692 | UN31: 71.90587129 | UO31: 47.21289559 | UP31: 103.5021183 | UQ31: 38.61468015 | UR31: 9.118124162 | US31: 59.93225915 | UT31: 43.66810392 | UU31: 19.91088802 | UV31: 48.21966154 | UW31: 28.30896537 | UX31: 79.27144518 | UY31: 119.3890301 | UZ31: 127.0467255 | VA31: 102.3925961 | VB31: 151.1486904 | VC31: 17.69244651 | VD31: 106.4434277 | VE31: 10.72654635 | VF31: 106.4414757 | VG31: 10.19802594 | VH31: 38.23876851 | VI31: 17.05201545 | VJ31: 32.1001348 | VK31: 67.73571305 | VL31: 82.22815994 | VM31: 68.840268 | VN31: 33.40703262 | VO31: 23.64949657 | VP31: 113.5165796 | VQ31: 41.77182835 | VR31: 19.65735143 | VS31: 126.7113611 | VT31: 45.72914792 | VU31: 53.79987424 | VV31: 157.3350136 | VW31: 78.3758372 | VX31: 15.42135561 | VY31: 29.65058868 | VZ31: 13.3304313 | WA31: 22.52403532 | WB31: 35.64060712 | WC31: 36.340739 | WD31: 9.322806145 | WE31: 22.81783769 | WF31: 27.6657285
A32: 14.23706729 | B32: 100.4735837 | C32: 51.54569106 | D32: 16 | E32: 2.732386747 | F32: 102.659145 | G32: 41.58664178 | H32: 39.35848241 | I32: 61.81274677 | J32: 19.79141978 | K32: 44.87033727 | L32: 60.97019027 | M32: 126.8423376 | N32: 13.68402666 | O32: 33.56304214 | P32: 11.80008041 | Q32: 100.410474 | R32: 33.77532966 | S32: 10.50432385 | T32: 16.69997348 | U32: 57.68931027 | V32: 35.32445242 | W32: 37.06279289 | X32: 36.83969679 | Y32: 91.69569191 | Z32: 20.46876342 | AA32: 245.3282426 | AB32: 51.44352256 | AC32: 21.86213557 | AD32: 46.53849619 | AE32: 25.12352904 | AF32: 7.602578226 | AG32: 32.66547749 | AH32: 69.76897529 | AI32: 21.8445732 | AJ32: 20.88350683 | AK32: 7.665711366 | AL32: 92.46765094 | AM32: 227.7043167 | AN32: 12.46370387 | AO32: 89.48883312 | AP32: 66.58543011 | AQ32: 47.37280438 | AR32: 69.26964322 | AS32: 129.3300643 | AT32: 36.80376183 | AU32: 79.50979363 | AV32: 44.89505874 | AW32: 60.11012168 | AX32: 50.57046016 | AY32: 25.80569303 | AZ32: 29.0457056 | BA32: 27.97948387 | BB32: 39.88438247 | BC32: 73.85363794 | BD32: 114.9126014 | BE32: 113.0486509 | BF32: 106.239385 | BG32: 79.40846238 | BH32: 7.135094268 | BI32: 30.89361233 | BJ32: 49.44868299 | BK32: 40.41815083 | BL32: 48.9095899 | BM32: 40.90145754 | BN32: 118.0621155 | BO32: 29.12798457 | BP32: 31.36662494 | BQ32: 8.432232153 | BR32: 53.12944877 | BS32: 29.08235891 | BT32: 38.69997849 | BU32: 35.75781671 | BV32: 61.64253054 | BW32: 87.34887405 | BX32: 27.27456356 | BY32: 101.9665995 | BZ32: 6.612462126 | CA32: 129.6087924 | CB32: 35.7975482 | CC32: 107.3429418 | CD32: 17.97119012 | CE32: 116.6103819 | CF32: 30.39327744 | CG32: 19.00746823 | CH32: 20.81559915 | CI32: 53.74889469 | CJ32: 41.29036398 | CK32: 48.08049991 | CL32: 10.89860564 | CM32: 25.99945117 | CN32: 84.39941935 | CO32: 26.08729483 | CP32: 57.43936025 | CQ32: 13.30600951 | CR32: 52.38273076 | CS32: 19.75961693 | CT32: 46.61377025 | CU32: 31.80359987 | CV32: 57.65157886 | CW32: 39.42539947 | CX32: 38.52223099 | CY32: 15.23924903 | CZ32: 93.54604208 | DA32: 40.22987323 | DB32: 15.82404072 | DC32: 39.45083103 | DD32: 41.37120259 | DE32: 18.82896367 | DF32: 29.59553487 | DG32: 23.12137849 | DH32: 48.17397997 | DI32: 105.22999 | DJ32: 32.6796003 | DK32: 23.9553875 | DL32: 13.80259776 | DM32: 59.82758291 | DN32: 27.93597349 | DO32: 48.34692688 | DP32: 7.040338822 | DQ32: 118.5838089 | DR32: 59.80014234 | DS32: 48.34201038 | DT32: 22.92830928 | DU32: 57.03305923 | DV32: 33.10674307 | DW32: 91.08321229 | DX32: 71.14538813 | DY32: 35.37553231 | DZ32: 26.28847127 | EA32: 60.82462295 | EB32: 6.509889746 | EC32: 92.84794841 | ED32: 37.22938268 | EE32: 50.14765596 | EF32: 25.38857202 | EG32: 8.418980606 | EH32: 117.9681491 | EI32: 25.0094376 | EJ32: 37.2502447 | EK32: 24.4667653 | EL32: 43.53457676 | EM32: 293.8627533 | EN32: 66.00121509 | EO32: 38.67414295 | EP32: 44.03709054 | EQ32: 28.21825132 | ER32: 42.06700034 | ES32: 18.63650106 | ET32: 53.05392562 | EU32: 8.176014595 | EV32: 39.2336192 | EW32: 5.109693066 | EX32: 38.3400018 | EY32: 28.171242 | EZ32: 37.73695354 | FA32: 46.36990107 | FB32: 76.43428167 | FC32: 46.7516344 | FD32: 150.4918112 | FE32: 37.22143939 | FF32: 26.11856649 | FG32: 41.45104356 | FH32: 41.44102669 | FI32: 47.46266831 | FJ32: 25.34704486 | FK32: 26.46789877 | FL32: 11.56842883 | FM32: 17.77639889 | FN32: 109.9289913 | FO32: 30.91606901 | FP32: 41.61676382 | FQ32: 30.30857294 | FR32: 140.3565786 | FS32: 84.33441817 | FT32: 19.37735684 | FU32: 56.00803503 | FV32: 15.77416424 | FW32: 16.73810322 | FX32: 58.41528488 | FY32: 12.86770312 | FZ32: 45.4699034 | GA32: 29.80872216 | GB32: 17.93703775 | GC32: 246.9128508 | GD32: 7.2865088 | GE32: 25.55336365 | GF32: 26.91576088 | GG32: 44.17824957 | GH32: 91.60251072 | GI32: 54.90605989 | GJ32: 53.72842263 | GK32: 96.28120402 | GL32: 20.72094083 | GM32: 27.08850511 | GN32: 60.54797013 | GO32: 21.59323495 | GP32: 17.17677341 | GQ32: 35.99222005 | GR32: 127.3643946 | GS32: 12.30818458 | GT32: 226.6920074 | GU32: 73.09097926 | GV32: 48.62787842 | GW32: 105.5580038 | GX32: 19.20340181 | GY32: 86.21088083 | GZ32: 25.37588131 | HA32: 39.78825134 | HB32: 27.56847042 | HC32: 30.00854176 | HD32: 31.16373652 | HE32: 28.38442728 | HF32: 100.3657342 | HG32: 41.89099786 | HH32: 24.90480288 | HI32: 15.92542926 | HJ32: 20.99748583 | HK32: 18.78480382 | HL32: 27.72738714 | HM32: 35.87226741 | HN32: 28.11329272 | HO32: 101.4743053 | HP32: 25.98663085 | HQ32: 71.12916707 | HR32: 35.83352802 | HS32: 26.5879256 | HT32: 20.02227903 | HU32: 29.00461067 | HV32: 60.92498918 | HW32: 56.98668516 | HX32: 29.25201566 | HY32: 33.41766607 | HZ32: 16.51039637 | IA32: 66.8577352 | IB32: 42.67274245 | IC32: 16.53187718 | ID32: 18.87874259 | IE32: 67.01954222 | IF32: 45.52131251 | IG32: 22.63102561 | IH32: 50.05089187 | II32: 21.63958122 | IJ32: 106.5002312 | IK32: 25.37036615 | IL32: 33.34213304 | IM32: 26.37690579 | IN32: 34.00533167 | IO32: 12.34572849 | IP32: 32.65781287 | IQ32: 30.68093265 | IR32: 45.87224782 | IS32: 12.81683892 | IT32: 117.9260998 | IU32: 84.66513306 | IV32: 43.34434377 | IW32: 48.57904439 | IX32: 23.76861119 | IY32: 319.893601 | IZ32: 60.46609422 | JA32: 204.8571594 | JB32: 25.75003186 | JC32: 10.23801657 | JD32: 70.97555704 | JE32: 13.25764941 | JF32: 4.915147736 | JG32: 5.416017281 | JH32: 27.46327438 | JI32: 129.7374799 | JJ32: 62.22443509 | JK32: 47.97334188 | JL32: 54.29349877 | JM32: 34.35628353 | JN32: 37.7400038 | JO32: 59.66664353 | JP32: 13.97887661 | JQ32: 56.3023964 | JR32: 174.9075996 | JS32: 116.8909557 | JT32: 6.623611052 | JU32: 47.55049656 | JV32: 16.36505177 | JW32: 28.53279835 | JX32: 66.17717269 | JY32: 46.21387621 | JZ32: 26.94623722 | KA32: 66.16881168 | KB32: 17.67925777 | KC32: 27.23548196 | KD32: 53.22870597 | KE32: 65.60267728 | KF32: 20.95272818 | KG32: 61.55457587 | KH32: 67.86021067 | KI32: 13.40429554 | KJ32: 19.38950231 | KK32: 28.10707785 | KL32: 32.1451728 | KM32: 37.03288818 | KN32: 114.6314701 | KO32: 25.27358099 | KP32: 35.36889883 | KQ32: 39.64988303 | KR32: 35.29542751 | KS32: 17.81417157 | KT32: 38.96800323 | KU32: 50.39416177 | KV32: 47.35447024 | KW32: 87.6855155 | KX32: 79.25767049 | KY32: 21.62928192 | KZ32: 69.46716211 | LA32: 17.76279366 | LB32: 29.50944569 | LC32: 56.42281144 | LD32: 100.3088061 | LE32: 44.96734379 | LF32: 63.8068082 | LG32: 43.14854978 | LH32: 59.24579742 | LI32: 35.48387771 | LJ32: 36.12570328 | LK32: 20.07483009 | LL32: 21.36952696 | LM32: 13.983965 | LN32: 155.1246145 | LO32: 32.20303095 | LP32: 44.83953261 | LQ32: 12.01207864 | LR32: 78.8783815 | LS32: 45.09265672 | LT32: 46.90721264 | LU32: 94.48224907 | LV32: 48.52000848 | LW32: 28.72759881 | LX32: 145.4324037 | LY32: 25.40655973 | LZ32: 76.54894559 | MA32: 65.1866316 | MB32: 29.11131645 | MC32: 32.9058109 | MD32: 42.4027347 | ME32: 54.69044962 | MF32: 18.52922634 | MG32: 55.6413876 | MH32: 94.19841521 | MI32: 55.72128806 | MJ32: 8.043164612 | MK32: 16.8542492 | ML32: 21.10889068 | MM32: 44.89350908 | MN32: 182.5318134 | MO32: 53.55104212 | MP32: 14.16216729 | MQ32: 40.76385466 | MR32: 51.44849742 | MS32: 30.38599095 | MT32: 15.98251132 | MU32: 144.4201812 | MV32: 39.77135332 | MW32: 28.66903325 | MX32: 54.32347424 | MY32: 89.24132142 | MZ32: 10.95057045 | NA32: 35.77517529 | NB32: 16.33062324 | NC32: 42.5215368 | ND32: 17.63381003 | NE32: 48.50433371 | NF32: 21.68482715 | NG32: 77.48873093 | NH32: 64.61259102 | NI32: 19.58606883 | NJ32: 23.43289575 | NK32: 70.62329575 | NL32: 11.01327912 | NM32: 13.41395678 | NN32: 213.4282941 | NO32: 49.25921364 | NP32: 51.72834431 | NQ32: 35.05322706 | NR32: 64.61959959 | NS32: 236.4738361 | NT32: 50.54271722 | NU32: 42.3626767 | NV32: 322.562592 | NW32: 77.50937514 | NX32: 48.00707278 | NY32: 34.06009416 | NZ32: 100.0400487 | OA32: 31.75935969 | OB32: 39.46310627 | OC32: 14.32647886 | OD32: 8.790392559 | OE32: 119.3682556 | OF32: 17.57977904 | OG32: 22.53350093 | OH32: 38.41301621 | OI32: 13.09459284 | OJ32: 22.65907789 | OK32: 113.5379223 | OL32: 33.56261201 | OM32: 37.84891455 | ON32: 37.68055984 | OO32: 59.28664158 | OP32: 86.95345084 | OQ32: 27.53755121 | OR32: 67.97084434 | OS32: 38.19052181 | OT32: 36.08165477 | OU32: 61.56438661 | OV32: 2.139923976 | OW32: 18.89639536 | OX32: 33.38765347 | OY32: 11.24767809 | OZ32: 15.07997133 | PA32: 93.09350859 | PB32: 18.62575371 | PC32: 42.23656865 | PD32: 140.0677814 | PE32: 43.51566287 | PF32: 27.37847808 | PG32: 27.65959689 | PH32: 101.0415719 | PI32: 56.30685281 | PJ32: 11.54369209 | PK32: 68.65664791 | PL32: 16.48520288 | PM32: 111.6883255 | PN32: 18.3324781 | PO32: 112.6330636 | PP32: 61.68584168 | PQ32: 14.09281027 | PR32: 33.84902262 | PS32: 39.55475689 | PT32: 22.84773729 | PU32: 13.93006992 | PV32: 21.62967169 | PW32: 50.79292875 | PX32: 85.90303282 | PY32: 132.231616 | PZ32: 52.28190327 | QA32: 62.98840008 | QB32: 14.95321003 | QC32: 30.93503325 | QD32: 52.22475631 | QE32: 19.31767477 | QF32: 17.26094263 | QG32: 39.22706218 | QH32: 15.48718879 | QI32: 74.9321892 | QJ32: 27.39564913 | QK32: 21.54038575 | QL32: 66.36504187 | QM32: 159.1101384 | QN32: 12.11481288 | QO32: 18.87820398 | QP32: 35.62539726 | QQ32: 18.98111044 | QR32: 47.15554914 | QS32: 37.76343568 | QT32: 22.63211232 | QU32: 42.31890708 | QV32: 68.9454834 | QW32: 23.04221163 | QX32: 20.78201628 | QY32: 14.24538951 | QZ32: 81.23922602 | RA32: 16.67831788 | RB32: 14.95877674 | RC32: 97.84459127 | RD32: 87.85924793 | RE32: 41.31885754 | RF32: 98.10904573 | RG32: 71.01057318 | RH32: 39.56727427 | RI32: 43.40134828 | RJ32: 6.91209269 | RK32: 79.5292597 | RL32: 43.40818515 | RM32: 36.92217162 | RN32: 83.13908641 | RO32: 18.30206266 | RP32: 18.04482998 | RQ32: 10.21561995 | RR32: 8.678236342 | RS32: 66.3839944 | RT32: 41.53049092 | RU32: 60.97910811 | RV32: 19.07124791 | RW32: 83.57212998 | RX32: 69.71581296 | RY32: 472.8545325 | RZ32: 49.64939723 | SA32: 72.38318146 | SB32: 2.237254239 | SC32: 62.40313132 | SD32: 98.61190033 | SE32: 10.24134248 | SF32: 60.64684306 | SG32: 18.06791612 | SH32: 49.52582339 | SI32: 155.5544422 | SJ32: 60.30316186 | SK32: 9.2809353 | SL32: 54.8730393 | SM32: 16.86525928 | SN32: 95.07071159 | SO32: 42.6776453 | SP32: 103.3084338 | SQ32: 25.71305136 | SR32: 18.77981677 | SS32: 33.22298517 | ST32: 118.0680281 | SU32: 20.26137955 | SV32: 59.59545279 | SW32: 38.31157115 | SX32: 38.38721261 | SY32: 38.79002079 | SZ32: 82.23334171 | TA32: 14.73777679 | TB32: 61.01997029 | TC32: 71.59328707 | TD32: 33.12308701 | TE32: 136.446872 | TF32: 12.50140122 | TG32: 33.78941841 | TH32: 41.11201976 | TI32: 82.55797521 | TJ32: 165.1691969 | TK32: 24.54151935 | TL32: 19.49325374 | TM32: 22.11601563 | TN32: 46.77461091 | TO32: 11.23931911 | TP32: 66.38858548 | TQ32: 25.17564214 | TR32: 13.10161271 | TS32: 20.51109874 | TT32: 62.11619238 | TU32: 48.84357439 | TV32: 44.3033782 | TW32: 46.06795099 | TX32: 51.33408374 | TY32: 71.55835362 | TZ32: 58.69171381 | UA32: 79.63948575 | UB32: 25.08031114 | UC32: 106.2742455 | UD32: 24.21449241 | UE32: 20.82562536 | UF32: 15.02040455 | UG32: 26.98517316 | UH32: 33.74136205 | UI32: 58.68554023 | UJ32: 28.80010892 | UK32: 12.34204702 | UL32: 46.85166666 | UM32: 35.15923568 | UN32: 63.63822834 | UO32: 55.09315333 | UP32: 115.9283569 | UQ32: 52.67658973 | UR32: 9.707347335 | US32: 91.92436657 | UT32: 91.61498937 | UU32: 14.60299772 | UV32: 41.54198357 | UW32: 36.45866622 | UX32: 87.5489199 | UY32: 81.35153236 | UZ32: 86.46361327 | VA32: 85.41716477 | VB32: 243.2152865 | VC32: 20.97181745 | VD32: 93.07935482 | VE32: 12.04222103 | VF32: 52.92773699 | VG32: 6.90107253 | VH32: 23.10068641 | VI32: 16.63092388 | VJ32: 39.39738958 | VK32: 57.38781152 | VL32: 61.73330615 | VM32: 99.58921737 | VN32: 39.83950192 | VO32: 15.4326918 | VP32: 142.3247183 | VQ32: 44.07843632 | VR32: 15.12174222 | VS32: 178.5945126 | VT32: 49.07664232 | VU32: 80.92271082 | VV32: 134.0597244 | VW32: 83.52382635 | VX32: 19.19890567 | VY32: 38.42536848 | VZ32: 18.34860176 | WA32: 21.87807344 | WB32: 29.99560614 | WC32: 41.60465171 | WD32: 10.36449558 | WE32: 21.54098375 | WF32: 37.71143907
A33: 13.73935487 | B33: 96.79613277 | C33: 52.21548949 | D33: 17 | E33: 2.183469935 | F33: 101.0198108 | G33: 36.00297438 | H33: 35.26021989 | I33: 55.5650925 | J33: 16.03114695 | K33: 36.47517705 | L33: 73.76104676 | M33: 155.2866104 | N33: 18.42550121 | O33: 32.43045749 | P33: 14.59270769 | Q33: 91.57359676 | R33: 32.73790392 | S33: 9.823503897 | T33: 22.89988037 | U33: 79.97737036 | V33: 24.3542662 | W33: 48.57274011 | X33: 29.756161 | Y33: 53.79483263 | Z33: 15.58249718 | AA33: 254.9179149 | AB33: 51.23209884 | AC33: 22.0622205 | AD33: 50.89504157 | AE33: 22.24028432 | AF33: 7.910518693 | AG33: 50.93085717 | AH33: 55.12419839 | AI33: 24.32396401 | AJ33: 22.08772751 | AK33: 5.104700918 | AL33: 76.56649359 | AM33: 238.2827088 | AN33: 15.14224415 | AO33: 71.94623475 | AP33: 59.89170999 | AQ33: 41.95332858 | AR33: 116.7304765 | AS33: 144.3050562 | AT33: 55.83746766 | AU33: 96.64847462 | AV33: 62.47774555 | AW33: 38.12523557 | AX33: 31.90430256 | AY33: 31.67195204 | AZ33: 57.26438062 | BA33: 28.76185178 | BB33: 56.33157225 | BC33: 60.46677851 | BD33: 102.0910098 | BE33: 83.72708767 | BF33: 126.6394941 | BG33: 56.21134741 | BH33: 8.003975195 | BI33: 20.35645206 | BJ33: 52.71141636 | BK33: 41.3182848 | BL33: 84.84117201 | BM33: 47.18534811 | BN33: 187.1201144 | BO33: 19.87713929 | BP33: 43.23316018 | BQ33: 7.210639228 | BR33: 26.97349927 | BS33: 28.55734559 | BT33: 42.15963438 | BU33: 38.85654551 | BV33: 50.22888324 | BW33: 90.75490436 | BX33: 57.95525821 | BY33: 126.7755858 | BZ33: 8.862765738 | CA33: 179.0146193 | CB33: 24.24439381 | CC33: 76.72278226 | CD33: 20.85366559 | CE33: 107.9277719 | CF33: 54.80923288 | CG33: 33.16990599 | CH33: 18.12501539 | CI33: 76.79353849 | CJ33: 34.24852052 | CK33: 39.60138597 | CL33: 10.0842831 | CM33: 33.50414872 | CN33: 102.4526517 | CO33: 29.51997476 | CP33: 53.47233535 | CQ33: 13.75314972 | CR33: 32.16663455 | CS33: 27.23737527 | CT33: 63.65045834 | CU33: 37.55741146 | CV33: 26.1015324 | CW33: 22.85119558 | CX33: 29.77361524 | CY33: 16.52991963 | CZ33: 105.8672111 | DA33: 30.38562092 | DB33: 13.22981022 | DC33: 37.28128112 | DD33: 76.31534347 | DE33: 22.70380423 | DF33: 31.28889725 | DG33: 28.94013628 | DH33: 56.11446563 | DI33: 83.28127455 | DJ33: 35.06862593 | DK33: 20.88201386 | DL33: 22.77356903 | DM33: 80.33560626 | DN33: 41.93614581 | DO33: 52.66102727 | DP33: 6.068343349 | DQ33: 67.62419087 | DR33: 50.5225844 | DS33: 50.00070939 | DT33: 28.47690889 | DU33: 50.57886659 | DV33: 36.0601049 | DW33: 81.59961587 | DX33: 120.3570854 | DY33: 36.27187685 | DZ33: 31.7424488 | EA33: 80.34163885 | EB33: 3.996453844 | EC33: 93.09791465 | ED33: 38.80310611 | EE33: 40.78817437 | EF33: 40.36235355 | EG33: 13.04512154 | EH33: 91.07815105 | EI33: 17.25709056 | EJ33: 47.11899579 | EK33: 28.24264412 | EL33: 56.72127559 | EM33: 278.9663038 | EN33: 75.25748861 | EO33: 28.15184134 | EP33: 35.65243754 | EQ33: 19.82629017 | ER33: 66.17022029 | ES33: 20.1071093 | ET33: 71.60047677 | EU33: 10.45324973 | EV33: 42.2249169 | EW33: 6.039399816 | EX33: 32.18420336 | EY33: 48.72122012 | EZ33: 37.3730407 | FA33: 32.52908291 | FB33: 59.29136264 | FC33: 26.23046536 | FD33: 191.9653145 | FE33: 40.30438421 | FF33: 33.95296664 | FG33: 44.9503506 | FH33: 42.79072404 | FI33: 51.85797237 | FJ33: 29.4521404 | FK33: 23.93641899 | FL33: 14.70479444 | FM33: 13.75512838 | FN33: 92.58789543 | FO33: 30.48540711 | FP33: 30.21545632 | FQ33: 38.66733723 | FR33: 159.7947911 | FS33: 83.25853659 | FT33: 15.72878631 | FU33: 52.56955784 | FV33: 19.11748601 | FW33: 13.53374433 | FX33: 44.33412548 | FY33: 17.65715028 | FZ33: 70.06106248 | GA33: 31.82281164 | GB33: 25.30594626 | GC33: 211.4767775 | GD33: 8.774528925 | GE33: 52.49725054 | GF33: 28.37595381 | GG33: 35.57460459 | GH33: 87.85133735 | GI33: 42.91896231 | GJ33: 76.12419992 | GK33: 127.5132133 | GL33: 31.04330256 | GM33: 27.40588254 | GN33: 81.12129386 | GO33: 21.66459579 | GP33: 17.98969805 | GQ33: 30.65168483 | GR33: 332.2246392 | GS33: 12.09065918 | GT33: 163.441924 | GU33: 88.83928704 | GV33: 66.05919298 | GW33: 126.5696547 | GX33: 26.19202135 | GY33: 78.48485516 | GZ33: 30.56458976 | HA33: 40.50620864 | HB33: 25.95791022 | HC33: 23.25191678 | HD33: 20.34953279 | HE33: 41.95870657 | HF33: 115.7362231 | HG33: 60.64268439 | HH33: 31.0312745 | HI33: 20.58700648 | HJ33: 21.76840322 | HK33: 21.20476606 | HL33: 27.31787686 | HM33: 31.74150901 | HN33: 29.95155683 | HO33: 86.88198421 | HP33: 22.42330475 | HQ33: 94.18749279 | HR33: 47.60218347 | HS33: 32.27215793 | HT33: 19.79372315 | HU33: 28.29489297 | HV33: 94.98683215 | HW33: 59.30665461 | HX33: 15.27959961 | HY33: 22.16596982 | HZ33: 12.12644082 | IA33: 70.20196509 | IB33: 44.04805395 | IC33: 14.89022263 | ID33: 15.56346364 | IE33: 88.21229305 | IF33: 34.00642718 | IG33: 16.82817631 | IH33: 32.93387138 | II33: 31.45651447 | IJ33: 134.7789745 | IK33: 27.80721845 | IL33: 33.95203087 | IM33: 32.23558565 | IN33: 28.69093279 | IO33: 11.03518655 | IP33: 21.73912172 | IQ33: 40.34156756 | IR33: 28.14962004 | IS33: 11.01090154 | IT33: 69.22610748 | IU33: 87.50089201 | IV33: 48.45695772 | IW33: 51.49092494 | IX33: 31.07089798 | IY33: 300.0563368 | IZ33: 66.31249569 | JA33: 161.5773305 | JB33: 16.51025337 | JC33: 7.791408195 | JD33: 53.11854877 | JE33: 16.0613222 | JF33: 4.427203691 | JG33: 5.595457916 | JH33: 14.20543584 | JI33: 135.4812607 | JJ33: 60.18487319 | JK33: 46.19599859 | JL33: 57.00385839 | JM33: 33.51465229 | JN33: 43.3941948 | JO33: 67.03245027 | JP33: 17.01171759 | JQ33: 67.39462029 | JR33: 239.8847656 | JS33: 132.1157541 | JT33: 8.959090329 | JU33: 48.41463068 | JV33: 13.6152012 | JW33: 26.53146389 | JX33: 68.14852384 | JY33: 24.63803969 | JZ33: 28.15509616 | KA33: 81.46262291 | KB33: 13.55310546 | KC33: 28.15844062 | KD33: 72.01083834 | KE33: 75.1664833 | KF33: 24.48358967 | KG33: 57.75741612 | KH33: 54.01140943 | KI33: 10.57108714 | KJ33: 19.53660208 | KK33: 44.30351459 | KL33: 37.40878965 | KM33: 56.2640873 | KN33: 91.16758398 | KO33: 25.23590321 | KP33: 35.07999748 | KQ33: 38.89467062 | KR33: 37.59478009 | KS33: 15.95846204 | KT33: 53.91109914 | KU33: 68.8182144 | KV33: 36.40139345 | KW33: 109.2528789 | KX33: 107.4080126 | KY33: 14.97756225 | KZ33: 85.93491262 | LA33: 17.06627201 | LB33: 21.02701002 | LC33: 46.80346677 | LD33: 78.12838174 | LE33: 34.72276565 | LF33: 59.35658183 | LG33: 47.46061834 | LH33: 31.93058614 | LI33: 38.34858361 | LJ33: 40.32675534 | LK33: 31.73614581 | LL33: 27.7816396 | LM33: 9.880685355 | LN33: 123.1102559 | LO33: 31.65651804 | LP33: 34.36001012 | LQ33: 14.07386828 | LR33: 94.20635721 | LS33: 50.77954814 | LT33: 79.2175867 | LU33: 95.51844369 | LV33: 38.25931814 | LW33: 24.87672079 | LX33: 134.5492388 | LY33: 33.09911 | LZ33: 80.54672436 | MA33: 67.49293706 | MB33: 30.33496111 | MC33: 36.77186142 | MD33: 56.54917614 | ME33: 84.17675001 | MF33: 25.48947652 | MG33: 46.79534148 | MH33: 79.9155744 | MI33: 46.38291305 | MJ33: 9.139833532 | MK33: 17.13712355 | ML33: 25.40659466 | MM33: 43.11499884 | MN33: 78.48751388 | MO33: 70.86513584 | MP33: 16.21789526 | MQ33: 45.20442521 | MR33: 61.543572 | MS33: 21.18695117 | MT33: 10.54730681 | MU33: 93.86358039 | MV33: 27.08973895 | MW33: 34.33409033 | MX33: 75.72577579 | MY33: 121.2914717 | MZ33: 9.183018153 | NA33: 26.07604857 | NB33: 17.22005919 | NC33: 43.84543934 | ND33: 19.66648265 | NE33: 51.45480774 | NF33: 23.41784539 | NG33: 117.6650903 | NH33: 69.78179453 | NI33: 21.85212433 | NJ33: 23.35924563 | NK33: 95.38180902 | NL33: 14.17528962 | NM33: 9.530842791 | NN33: 166.5086254 | NO33: 43.73347898 | NP33: 42.43812869 | NQ33: 29.57672868 | NR33: 58.45770395 | NS33: 167.7272332 | NT33: 55.53447291 | NU33: 46.89191199 | NV33: 304.1012658 | NW33: 87.18470112 | NX33: 51.14311563 | NY33: 39.84029129 | NZ33: 105.8922542 | OA33: 34.37273954 | OB33: 46.49287302 | OC33: 9.239510783 | OD33: 7.548918634 | OE33: 84.48450359 | OF33: 15.2201225 | OG33: 19.93060979 | OH33: 69.25680822 | OI33: 12.15032896 | OJ33: 19.0337064 | OK33: 98.12505615 | OL33: 30.29079785 | OM33: 38.83065632 | ON33: 36.64777205 | OO33: 56.98932032 | OP33: 70.22771636 | OQ33: 21.54018941 | OR33: 55.04443153 | OS33: 68.33652402 | OT33: 51.24535442 | OU33: 50.28916258 | OV33: 1.472465056 | OW33: 22.27838598 | OX33: 25.76231662 | OY33: 10.19673615 | OZ33: 16.5696007 | PA33: 89.29597972 | PB33: 25.40280473 | PC33: 84.68110289 | PD33: 144.1771575 | PE33: 37.86571266 | PF33: 33.94358514 | PG33: 33.69142117 | PH33: 141.459587 | PI33: 31.424524 | PJ33: 9.689276 | PK33: 54.39409634 | PL33: 17.91409395 | PM33: 86.80343044 | PN33: 40.68771328 | PO33: 92.96063486 | PP33: 43.32246863 | PQ33: 17.12256292 | PR33: 32.30537716 | PS33: 41.06224334 | PT33: 22.15432324 | PU33: 8.43522587 | PV33: 12.65489137 | PW33: 39.37044343 | PX33: 70.39616145 | PY33: 174.3050734 | PZ33: 73.85294494 | QA33: 106.0046736 | QB33: 12.22116237 | QC33: 28.5302347 | QD33: 52.41009408 | QE33: 18.77816041 | QF33: 17.95834775 | QG33: 33.13671835 | QH33: 32.41843076 | QI33: 42.00516574 | QJ33: 25.64813078 | QK33: 27.07063239 | QL33: 64.64132271 | QM33: 169.1813005 | QN33: 15.22001598 | QO33: 26.28597815 | QP33: 34.47326827 | QQ33: 15.87326876 | QR33: 46.64753311 | QS33: 30.59987858 | QT33: 41.80208036 | QU33: 45.75365119 | QV33: 58.52875483 | QW33: 28.57815675 | QX33: 22.05963371 | QY33: 14.80157543 | QZ33: 94.74748199 | RA33: 12.74073639 | RB33: 11.94771841 | RC33: 80.84971878 | RD33: 74.08031909 | RE33: 28.85095373 | RF33: 110.7544827 | RG33: 91.21880188 | RH33: 30.80071887 | RI33: 33.56426054 | RJ33: 6.056724447 | RK33: 82.12556866 | RL33: 55.23893087 | RM33: 35.11599893 | RN33: 56.82566052 | RO33: 10.25069787 | RP33: 14.8360502 | RQ33: 13.31006099 | RR33: 9.522078809 | RS33: 82.88866578 | RT33: 22.34414348 | RU33: 40.90425698 | RV33: 15.98498753 | RW33: 78.49083619 | RX33: 71.0297088 | RY33: 372.9977112 | RZ33: 54.33319042 | SA33: 71.34832608 | SB33: 2.418413287 | SC33: 66.35256697 | SD33: 103.4472077 | SE33: 9.494792904 | SF33: 68.18310075 | SG33: 13.03383776 | SH33: 29.76400832 | SI33: 100.1914372 | SJ33: 41.91489557 | SK33: 12.97976183 | SL33: 55.75417585 | SM33: 19.47925993 | SN33: 129.0412812 | SO33: 39.41980181 | SP33: 72.55213392 | SQ33: 33.10427817 | SR33: 12.54225558 | SS33: 42.98121952 | ST33: 125.2277899 | SU33: 19.74492164 | SV33: 78.44253567 | SW33: 23.81711228 | SX33: 53.33248458 | SY33: 29.78122093 | SZ33: 72.76940635 | TA33: 20.269611 | TB33: 40.71722992 | TC33: 64.44025565 | TD33: 37.82252808 | TE33: 84.73886341 | TF33: 16.12249737 | TG33: 38.5600694 | TH33: 25.22172572 | TI33: 57.82243749 | TJ33: 159.4825725 | TK33: 24.60112107 | TL33: 15.44969082 | TM33: 18.22981228 | TN33: 70.82618014 | TO33: 14.59098319 | TP33: 71.23147622 | TQ33: 19.13094487 | TR33: 11.91055679 | TS33: 13.89731647 | TT33: 64.04961082 | TU33: 63.29717957 | TV33: 41.6644641 | TW33: 47.84980314 | TX33: 68.73744649 | TY33: 77.43336408 | TZ33: 81.51550753 | UA33: 53.92230044 | UB33: 37.5452179 | UC33: 115.4785827 | UD33: 25.97917293 | UE33: 18.97306282 | UF33: 15.5996297 | UG33: 21.7301072 | UH33: 36.59090376 | UI33: 74.21226459 | UJ33: 19.8647138 | UK33: 20.1387195 | UL33: 29.63103889 | UM33: 35.92443541 | UN33: 80.00985275 | UO33: 51.14557021 | UP33: 141.8483025 | UQ33: 43.64451956 | UR33: 11.36997455 | US33: 69.85320422 | UT33: 77.32020234 | UU33: 10.82577197 | UV33: 41.52383158 | UW33: 37.35461908 | UX33: 76.92748539 | UY33: 47.06206257 | UZ33: 93.38456495 | VA33: 72.25690164 | VB33: 350.9952357 | VC33: 15.68798552 | VD33: 131.6857121 | VE33: 10.60584881 | VF33: 58.36090561 | VG33: 4.874250403 | VH33: 28.62693908 | VI33: 13.05410569 | VJ33: 29.48719834 | VK33: 52.92562601 | VL33: 70.04340509 | VM33: 87.78228082 | VN33: 53.15906809 | VO33: 16.22584069 | VP33: 193.015153 | VQ33: 49.9410263 | VR33: 8.417171601 | VS33: 146.3880323 | VT33: 34.99546608 | VU33: 91.2072974 | VV33: 107.4877563 | VW33: 72.86668315 | VX33: 16.6740028 | VY33: 31.78411705 | VZ33: 27.33570758 | WA33: 33.99994478 | WB33: 29.85077301 | WC33: 39.57457451 | WD33: 9.919069065 | WE33: 14.42521255 | WF33: 19.20149769
A34: 12.47259195 | B34: 103.6626458 | C34: 52.08394539 | D34: 18 | E34: 1.528178051 | F34: 49.81992039 | G34: 24.94093152 | H34: 36.29658724 | I34: 65.75783741 | J34: 11.1804401 | K34: 30.35257539 | L34: 63.53571617 | M34: 164.8445321 | N34: 14.31014691 | O34: 49.12553796 | P34: 14.98459414 | Q34: 88.67196251 | R34: 27.92046609 | S34: 6.794833681 | T34: 16.42082687 | U34: 61.53559778 | V34: 15.21452695 | W34: 63.40129252 | X34: 36.02558275 | Y34: 61.25986941 | Z34: 12.46848796 | AA34: 208.1148322 | AB34: 46.11579326 | AC34: 25.50654324 | AD34: 43.62181269 | AE34: 26.89561463 | AF34: 7.171886443 | AG34: 41.14863823 | AH34: 72.04906198 | AI34: 16.73481966 | AJ34: 28.30074298 | AK34: 6.014186334 | AL34: 65.6549604 | AM34: 323.9402383 | AN34: 8.70870169 | AO34: 81.96567478 | AP34: 63.23192945 | AQ34: 67.77194319 | AR34: 69.39689679 | AS34: 140.3804141 | AT34: 66.09206358 | AU34: 91.89789635 | AV34: 60.67711729 | AW34: 38.57059445 | AX34: 32.95471229 | AY34: 38.34171295 | AZ34: 50.3635495 | BA34: 38.28614961 | BB34: 41.16326098 | BC34: 43.71973909 | BD34: 103.4141537 | BE34: 69.38140721 | BF34: 89.07803347 | BG34: 46.80306774 | BH34: 10.94998132 | BI34: 13.92127261 | BJ34: 49.3135813 | BK34: 33.13636643 | BL34: 67.33981143 | BM34: 65.39700752 | BN34: 131.248983 | BO34: 16.85488751 | BP34: 44.8662771 | BQ34: 9.858472128 | BR34: 39.46003136 | BS34: 24.65018895 | BT34: 58.1743915 | BU34: 33.40414479 | BV34: 54.92094572 | BW34: 115.5971418 | BX34: 49.85873486 | BY34: 104.5101693 | BZ34: 6.654625995 | CA34: 133.9121608 | CB34: 32.85154046 | CC34: 107.878579 | CD34: 20.77074071 | CE34: 85.34583522 | CF34: 45.67222074 | CG34: 14.98113848 | CH34: 16.18483076 | CI34: 94.50973625 | CJ34: 33.48739365 | CK34: 44.34858644 | CL34: 19.03473696 | CM34: 31.4286353 | CN34: 117.6726348 | CO34: 33.75485101 | CP34: 46.81548795 | CQ34: 11.02868339 | CR34: 34.50225884 | CS34: 30.43034294 | CT34: 38.77359019 | CU34: 37.02837872 | CV34: 40.08609756 | CW34: 23.33994983 | CX34: 34.18061122 | CY34: 10.81693481 | CZ34: 101.7354308 | DA34: 28.92345013 | DB34: 19.24042416 | DC34: 28.7366836 | DD34: 64.76792294 | DE34: 24.74684368 | DF34: 28.5214045 | DG34: 36.158597 | DH34: 48.02873936 | DI34: 65.76164159 | DJ34: 35.00899955 | DK34: 29.58521181 | DL34: 19.44349198 | DM34: 73.1626276 | DN34: 31.32290594 | DO34: 43.03990371 | DP34: 8.707127751 | DQ34: 54.24338881 | DR34: 50.81609257 | DS34: 57.24652862 | DT34: 24.44855719 | DU34: 36.28510649 | DV34: 37.35931338 | DW34: 75.18473208 | DX34: 103.9598001 | DY34: 29.00330498 | DZ34: 23.32878105 | EA34: 66.68975032 | EB34: 5.06892007 | EC34: 106.754775 | ED34: 17.43172415 | EE34: 63.35049133 | EF34: 33.55699834 | EG34: 11.26123139 | EH34: 78.23411408 | EI34: 28.90496237 | EJ34: 47.64229454 | EK34: 29.95049184 | EL34: 54.93383418 | EM34: 248.4814064 | EN34: 52.05889442 | EO34: 20.35395953 | EP34: 42.72294515 | EQ34: 18.97872045 | ER34: 73.50748398 | ES34: 13.28816281 | ET34: 58.69233063 | EU34: 11.72287365 | EV34: 26.84912987 | EW34: 8.17757611 | EX34: 31.34853871 | EY34: 49.45008161 | EZ34: 38.39877224 | FA34: 30.67109492 | FB34: 50.78538787 | FC34: 30.32559677 | FD34: 194.0548626 | FE34: 55.20419418 | FF34: 32.70665012 | FG34: 55.40151221 | FH34: 34.15610591 | FI34: 48.13069834 | FJ34: 23.98111109 | FK34: 27.86500487 | FL34: 22.64146304 | FM34: 9.9691068 | FN34: 63.6579942 | FO34: 33.44334809 | FP34: 35.91739292 | FQ34: 30.67196273 | FR34: 89.2238678 | FS34: 103.5702221 | FT34: 13.61087654 | FU34: 48.81773058 | FV34: 21.53012151 | FW34: 13.94530752 | FX34: 43.03142193 | FY34: 23.10010249 | FZ34: 105.2592791 | GA34: 33.87792371 | GB34: 19.31981076 | GC34: 203.2694261 | GD34: 5.804291075 | GE34: 44.05918355 | GF34: 22.70896192 | GG34: 28.3231089 | GH34: 85.51751905 | GI34: 57.91822486 | GJ34: 57.8014745 | GK34: 120.1452091 | GL34: 43.74102305 | GM34: 21.7189654 | GN34: 78.73962805 | GO34: 11.85801437 | GP34: 14.67442621 | GQ34: 33.69625671 | GR34: 340.4219527 | GS34: 19.55293168 | GT34: 204.5715647 | GU34: 81.32696554 | GV34: 110.4507097 | GW34: 115.3969725 | GX34: 34.65180643 | GY34: 60.07535176 | GZ34: 29.48853457 | HA34: 30.96509759 | HB34: 20.89349336 | HC34: 25.2208396 | HD34: 22.08630287 | HE34: 43.82857034 | HF34: 98.49545256 | HG34: 42.14723675 | HH34: 24.97431607 | HI34: 10.90969241 | HJ34: 13.52400781 | HK34: 16.75610432 | HL34: 23.6303721 | HM34: 29.83520857 | HN34: 48.79788506 | HO34: 94.06031054 | HP34: 22.66417599 | HQ34: 72.71063052 | HR34: 41.01000231 | HS34: 19.14872976 | HT34: 13.87722286 | HU34: 20.93462902 | HV34: 92.92213096 | HW34: 76.42757903 | HX34: 19.52743776 | HY34: 24.52122307 | HZ34: 12.17368357 | IA34: 112.3392234 | IB34: 30.99742738 | IC34: 15.61459834 | ID34: 17.554173 | IE34: 80.72371852 | IF34: 27.61512611 | IG34: 14.17498891 | IH34: 31.41209412 | II34: 33.70381373 | IJ34: 243.5793029 | IK34: 37.57846067 | IL34: 54.68315415 | IM34: 40.15976396 | IN34: 41.02742514 | IO34: 6.57107002 | IP34: 20.4970491 | IQ34: 35.56643643 | IR34: 36.51855896 | IS34: 17.1379046 | IT34: 59.84734077 | IU34: 78.75873662 | IV34: 40.77909359 | IW34: 47.87209218 | IX34: 63.03693929 | IY34: 235.066166 | IZ34: 49.04168957 | JA34: 167.7346464 | JB34: 14.43199684 | JC34: 7.170697499 | JD34: 55.4791192 | JE34: 12.07914768 | JF34: 4.540414165 | JG34: 11.49176012 | JH34: 14.94671533 | JI34: 223.9993566 | JJ34: 60.71173221 | JK34: 58.1106569 | JL34: 39.68844409 | JM34: 35.00279805 | JN34: 35.8251252 | JO34: 66.63810374 | JP34: 11.35676354 | JQ34: 79.6190438 | JR34: 201.7862982 | JS34: 133.8746352 | JT34: 9.238264273 | JU34: 73.83211651 | JV34: 16.88443184 | JW34: 17.72681212 | JX34: 78.03816457 | JY34: 28.61697212 | JZ34: 36.37129447 | KA34: 64.77644538 | KB34: 18.25475154 | KC34: 18.06382885 | KD34: 80.99722995 | KE34: 73.24555964 | KF34: 34.65293413 | KG34: 73.86683493 | KH34: 50.3167214 | KI34: 11.37060795 | KJ34: 12.49780633 | KK34: 39.36352499 | KL34: 29.57629445 | KM34: 39.73464431 | KN34: 139.533176 | KO34: 15.25731449 | KP34: 33.86322851 | KQ34: 43.41633771 | KR34: 44.02754863 | KS34: 14.5924559 | KT34: 52.08047489 | KU34: 82.76579312 | KV34: 52.73345378 | KW34: 97.01895402 | KX34: 65.59781912 | KY34: 16.46047817 | KZ34: 77.01143868 | LA34: 21.03513668 | LB34: 21.76594352 | LC34: 50.84002897 | LD34: 48.70773245 | LE34: 37.34366411 | LF34: 66.61333265 | LG34: 30.77007568 | LH34: 50.30926389 | LI34: 17.92524135 | LJ34: 48.28334889 | LK34: 30.43314752 | LL34: 31.48493047 | LM34: 8.082001045 | LN34: 160.5673054 | LO34: 25.47387767 | LP34: 40.56930661 | LQ34: 14.65021741 | LR34: 68.14486367 | LS34: 20.30155066 | LT34: 68.17906624 | LU34: 109.7054518 | LV34: 37.53433939 | LW34: 23.42702485 | LX34: 127.9059612 | LY34: 30.9841228 | LZ34: 90.14767493 | MA34: 51.26761278 | MB34: 27.50475541 | MC34: 34.65940522 | MD34: 24.06624797 | ME34: 76.09827344 | MF34: 15.38505988 | MG34: 49.35101588 | MH34: 57.87007808 | MI34: 43.79883551 | MJ34: 11.76160528 | MK34: 14.9717672 | ML34: 21.66165947 | MM34: 54.46747772 | MN34: 118.1907992 | MO34: 94.40767453 | MP34: 13.83080038 | MQ34: 24.9515675 | MR34: 61.04567506 | MS34: 15.07946887 | MT34: 8.951948325 | MU34: 95.09225445 | MV34: 27.85144936 | MW34: 30.57806754 | MX34: 65.86477024 | MY34: 91.26060067 | MZ34: 7.926027396 | NA34: 31.84590939 | NB34: 16.97651411 | NC34: 55.99825856 | ND34: 21.99479311 | NE34: 39.42910778 | NF34: 23.32319518 | NG34: 110.3556544 | NH34: 56.645222 | NI34: 18.66526508 | NJ34: 22.67131731 | NK34: 75.20439603 | NL34: 13.93256483 | NM34: 10.53911236 | NN34: 198.8594176 | NO34: 45.82078968 | NP34: 25.52098252 | NQ34: 27.6026039 | NR34: 52.84522327 | NS34: 169.1712937 | NT34: 37.43867749 | NU34: 49.69282757 | NV34: 275.4345434 | NW34: 83.58150783 | NX34: 54.72562993 | NY34: 72.36713978 | NZ34: 136.4521365 | OA34: 26.82907222 | OB34: 38.67401389 | OC34: 9.219038013 | OD34: 10.29190601 | OE34: 63.28071732 | OF34: 25.03929363 | OG34: 14.11233132 | OH34: 108.6515598 | OI34: 19.49274279 | OJ34: 27.03565607 | OK34: 115.3559 | OL34: 22.73332334 | OM34: 33.13232869 | ON34: 34.02324474 | OO34: 38.57323729 | OP34: 57.27894184 | OQ34: 35.79472613 | OR34: 52.2037345 | OS34: 86.13864094 | OT34: 40.38386424 | OU34: 38.11240098 | OV34: 0.9823767537 | OW34: 17.23019046 | OX34: 20.53650029 | OY34: 7.824489245 | OZ34: 21.92463345 | PA34: 99.34822402 | PB34: 14.02733626 | PC34: 73.54648802 | PD34: 137.3186394 | PE34: 43.0773205 | PF34: 31.99221117 | PG34: 42.06488466 | PH34: 151.0764993 | PI34: 26.27489407 | PJ34: 11.78943362 | PK34: 49.25441855 | PL34: 22.44215742 | PM34: 48.9185001 | PN34: 42.72536422 | PO34: 125.8208229 | PP34: 45.23714319 | PQ34: 20.37960047 | PR34: 38.00444588 | PS34: 41.15574853 | PT34: 13.22978196 | PU34: 10.54437526 | PV34: 9.621181049 | PW34: 43.89770564 | PX34: 59.92280543 | PY34: 204.7980111 | PZ34: 52.43608728 | QA34: 118.0208165 | QB34: 10.14799957 | QC34: 39.1740127 | QD34: 93.77112802 | QE34: 21.10325045 | QF34: 18.54477605 | QG34: 31.9862462 | QH34: 17.12648341 | QI34: 40.62056589 | QJ34: 21.08127759 | QK34: 30.74440796 | QL34: 62.64180006 | QM34: 165.604287 | QN34: 14.15144208 | QO34: 19.34472576 | QP34: 33.11758749 | QQ34: 20.42068207 | QR34: 51.24769394 | QS34: 29.51440606 | QT34: 37.1589153 | QU34: 43.14836694 | QV34: 47.16167977 | QW34: 25.60549526 | QX34: 29.53358241 | QY34: 13.47452069 | QZ34: 162.7607112 | RA34: 15.78190756 | RB34: 9.564964278 | RC34: 83.49849232 | RD34: 70.50765023 | RE34: 26.34855547 | RF34: 77.60548757 | RG34: 68.29131657 | RH34: 36.98892619 | RI34: 31.1067329 | RJ34: 8.422883209 | RK34: 70.82858112 | RL34: 85.81416356 | RM34: 25.84118506 | RN34: 126.4784325 | RO34: 8.368676448 | RP34: 9.68753994 | RQ34: 18.31320377 | RR34: 6.987740989 | RS34: 98.53440395 | RT34: 15.80561188 | RU34: 56.14923356 | RV34: 13.23431863 | RW34: 108.3621515 | RX34: 93.89804706 | RY34: 566.7867547 | RZ34: 47.09122775 | SA34: 71.47121743 | SB34: 1.888206659 | SC34: 59.12767158 | SD34: 119.718896 | SE34: 7.456477732 | SF34: 93.35179218 | SG34: 14.44465566 | SH34: 33.78123816 | SI34: 56.88412392 | SJ34: 40.38642548 | SK34: 5.126202785 | SL34: 83.35249875 | SM34: 13.23911835 | SN34: 154.8117333 | SO34: 36.80281693 | SP34: 77.82031332 | SQ34: 31.30271651 | SR34: 14.23425713 | SS34: 33.80080515 | ST34: 171.3659109 | SU34: 11.32787854 | SV34: 62.37366186 | SW34: 17.45935001 | SX34: 64.8028516 | SY34: 29.49631228 | SZ34: 58.71173384 | TA34: 14.20153692 | TB34: 61.8941026 | TC34: 85.39672219 | TD34: 31.77174481 | TE34: 69.56474848 | TF34: 17.70004929 | TG34: 32.66408693 | TH34: 23.49807794 | TI34: 97.97709221 | TJ34: 103.6296287 | TK34: 20.07094045 | TL34: 10.82465265 | TM34: 17.61604288 | TN34: 89.8927656 | TO34: 16.11248962 | TP34: 79.59839902 | TQ34: 23.83835887 | TR34: 11.73605342 | TS34: 19.30881384 | TT34: 47.4620433 | TU34: 64.71571415 | TV34: 35.94867357 | TW34: 40.37154237 | TX34: 76.15359031 | TY34: 61.68703658 | TZ34: 46.03773135 | UA34: 69.42292238 | UB34: 34.93274461 | UC34: 96.02288964 | UD34: 24.64909656 | UE34: 16.05434533 | UF34: 13.54717387 | UG34: 30.94365206 | UH34: 26.86162374 | UI34: 115.8151519 | UJ34: 24.42584705 | UK34: 11.62309061 | UL34: 27.94775862 | UM34: 53.50308042 | UN34: 77.7760845 | UO34: 55.76082788 | UP34: 94.16418287 | UQ34: 36.27339456 | UR34: 10.20557983 | US34: 53.64444794 | UT34: 101.2896203 | UU34: 16.78466809 | UV34: 39.52106777 | UW34: 38.70063702 | UX34: 72.45836788 | UY34: 45.10528595 | UZ34: 135.5633552 | VA34: 48.3329259 | VB34: 433.3268815 | VC34: 32.18418107 | VD34: 128.0287177 | VE34: 18.32112504 | VF34: 40.30468737 | VG34: 5.478870213 | VH34: 27.99356327 | VI34: 14.34732908 | VJ34: 20.75514108 | VK34: 63.11884939 | VL34: 86.79004946 | VM34: 74.75162565 | VN34: 67.67305894 | VO34: 9.232525719 | VP34: 129.9200053 | VQ34: 49.46345622 | VR34: 5.502780241 | VS34: 184.4534727 | VT34: 24.66034119 | VU34: 89.27534645 | VV34: 126.1138413 | VW34: 42.92690652 | VX34: 12.47304795 | VY34: 20.81341887 | VZ34: 31.65114991 | WA34: 35.56926171 | WB34: 22.59102307 | WC34: 34.9739573 | WD34: 9.128751148 | WE34: 19.20839218 | WF34: 20.01502492
A35: 12.30135941 | B35: 110.6347985 | C35: 52.49107458 | D35: 19 | E35: 1.858376849 | F35: 88.23460521 | G35: 25.84757735 | H35: 31.65467285 | I35: 67.16066023 | J35: 12.08306211 | K35: 28.23111939 | L35: 78.91156563 | M35: 254.4248233 | N35: 11.55476292 | O35: 41.07903158 | P35: 14.41951841 | Q35: 67.94598458 | R35: 30.18598334 | S35: 11.72386842 | T35: 12.30985864 | U35: 55.22727384 | V35: 15.23218373 | W35: 74.79469314 | X35: 41.8670034 | Y35: 59.52027028 | Z35: 20.41422164 | AA35: 209.1950975 | AB35: 58.93002256 | AC35: 25.32821515 | AD35: 38.32830444 | AE35: 33.66698412 | AF35: 4.468368351 | AG35: 45.99693688 | AH35: 94.74489438 | AI35: 18.64436791 | AJ35: 27.37139798 | AK35: 4.600937083 | AL35: 77.26109511 | AM35: 389.8589113 | AN35: 11.02695244 | AO35: 85.81691797 | AP35: 53.26337675 | AQ35: 66.59594286 | AR35: 66.93015375 | AS35: 110.4882844 | AT35: 59.3669598 | AU35: 77.12593363 | AV35: 33.56542907 | AW35: 32.21010871 | AX35: 29.27011597 | AY35: 45.61814456 | AZ35: 32.32760694 | BA35: 45.99935639 | BB35: 31.75838495 | BC35: 37.60807204 | BD35: 95.92629249 | BE35: 51.40979067 | BF35: 96.18114429 | BG35: 33.06635593 | BH35: 11.85941071 | BI35: 16.34084174 | BJ35: 39.67045955 | BK35: 34.90888104 | BL35: 64.11990001 | BM35: 77.84287572 | BN35: 134.6065093 | BO35: 19.53003085 | BP35: 31.54646403 | BQ35: 11.24183634 | BR35: 36.03796271 | BS35: 11.53032067 | BT35: 56.66979368 | BU35: 32.66357392 | BV35: 39.39951998 | BW35: 163.6978092 | BX35: 42.60046961 | BY35: 74.47206845 | BZ35: 5.375475537 | CA35: 161.4618699 | CB35: 30.59517959 | CC35: 120.5296373 | CD35: 15.09190138 | CE35: 93.53575394 | CF35: 33.62913084 | CG35: 14.60324491 | CH35: 18.19387363 | CI35: 69.57728356 | CJ35: 35.87384694 | CK35: 57.0490929 | CL35: 11.54725335 | CM35: 31.40331815 | CN35: 98.8320198 | CO35: 23.0081987 | CP35: 42.28950786 | CQ35: 9.512367276 | CR35: 45.2355975 | CS35: 20.68686836 | CT35: 26.89601433 | CU35: 39.82657463 | CV35: 35.9808351 | CW35: 24.41939061 | CX35: 38.82752645 | CY35: 16.69479018 | CZ35: 79.51387033 | DA35: 25.40584031 | DB35: 14.934197 | DC35: 43.25360504 | DD35: 72.03966805 | DE35: 13.34553797 | DF35: 41.51012376 | DG35: 44.58016263 | DH35: 48.34090928 | DI35: 54.73855794 | DJ35: 34.80569181 | DK35: 22.73807599 | DL35: 18.76538508 | DM35: 82.73191561 | DN35: 31.98587018 | DO35: 48.17266375 | DP35: 8.834913752 | DQ35: 60.14483672 | DR35: 35.33466586 | DS35: 69.46808435 | DT35: 18.24695179 | DU35: 42.51318896 | DV35: 41.69778709 | DW35: 47.54275358 | DX35: 114.3736146 | DY35: 25.55245865 | DZ35: 16.64527938 | EA35: 53.29520836 | EB35: 6.629253206 | EC35: 123.3204139 | ED35: 16.10255476 | EE35: 54.36278334 | EF35: 17.94869368 | EG35: 9.9469992 | EH35: 112.2917502 | EI35: 25.36186912 | EJ35: 44.22594241 | EK35: 23.15904195 | EL35: 58.28155335 | EM35: 191.9463752 | EN35: 70.268993 | EO35: 17.74508719 | EP35: 69.81530205 | EQ35: 24.5754033 | ER35: 68.86544183 | ES35: 13.93557543 | ET35: 70.33961031 | EU35: 10.86669635 | EV35: 20.6326524 | EW35: 4.705974997 | EX35: 26.7662953 | EY35: 49.05580698 | EZ35: 45.09869421 | FA35: 29.02649275 | FB35: 68.20685924 | FC35: 23.56337994 | FD35: 140.3878907 | FE35: 41.05933621 | FF35: 57.46728232 | FG35: 40.58713146 | FH35: 44.35155599 | FI35: 52.05964383 | FJ35: 29.75833308 | FK35: 46.65092847 | FL35: 16.23397399 | FM35: 8.752428345 | FN35: 82.30934519 | FO35: 28.25561849 | FP35: 35.95046747 | FQ35: 19.53837824 | FR35: 90.25816494 | FS35: 104.6244243 | FT35: 13.82465144 | FU35: 43.09693356 | FV35: 21.01119359 | FW35: 25.9671629 | FX35: 28.74937248 | FY35: 14.91458196 | FZ35: 97.50454304 | GA35: 21.96590222 | GB35: 22.68050474 | GC35: 183.329561 | GD35: 4.550364391 | GE35: 28.634305 | GF35: 22.34378902 | GG35: 22.07423105 | GH35: 148.5728355 | GI35: 43.6286696 | GJ35: 55.17709032 | GK35: 134.5566542 | GL35: 29.78334363 | GM35: 22.34886644 | GN35: 64.61570595 | GO35: 22.3294651 | GP35: 13.54984737 | GQ35: 25.08096918 | GR35: 371.0187602 | GS35: 23.00035224 | GT35: 181.703069 | GU35: 51.74269487 | GV35: 103.6943517 | GW35: 126.3382883 | GX35: 21.92633662 | GY35: 61.48016208 | GZ35: 39.42309172 | HA35: 21.2492293 | HB35: 18.87231106 | HC35: 32.74897425 | HD35: 25.25173309 | HE35: 44.0579982 | HF35: 128.9150509 | HG35: 51.32447792 | HH35: 21.12515835 | HI35: 15.72284531 | HJ35: 13.74342908 | HK35: 12.99754916 | HL35: 23.84684227 | HM35: 35.21898159 | HN35: 35.53892595 | HO35: 97.48918357 | HP35: 19.38193819 | HQ35: 127.3832833 | HR35: 39.62029556 | HS35: 15.31270148 | HT35: 8.636757912 | HU35: 16.01616796 | HV35: 76.51408552 | HW35: 68.26342342 | HX35: 20.37251652 | HY35: 20.8422097 | HZ35: 14.66280125 | IA35: 45.15626005 | IB35: 32.01674177 | IC35: 17.48717186 | ID35: 11.96865538 | IE35: 59.01279386 | IF35: 39.80327785 | IG35: 17.27986565 | IH35: 22.48467786 | II35: 21.57303429 | IJ35: 221.0797509 | IK35: 30.20481882 | IL35: 58.65752468 | IM35: 30.13971251 | IN35: 41.40062721 | IO35: 9.765375966 | IP35: 27.03689985 | IQ35: 39.48721663 | IR35: 53.2733239 | IS35: 16.6785206 | IT35: 113.5696089 | IU35: 59.33489166 | IV35: 47.6599298 | IW35: 36.21193157 | IX35: 28.82955494 | IY35: 318.8554311 | IZ35: 39.0726885 | JA35: 152.3352254 | JB35: 15.18187152 | JC35: 6.893644639 | JD35: 94.24482824 | JE35: 11.51318838 | JF35: 3.351121481 | JG35: 15.40810245 | JH35: 16.07747602 | JI35: 178.4111685 | JJ35: 73.78899091 | JK35: 55.51891967 | JL35: 54.26372421 | JM35: 35.86603196 | JN35: 37.65437244 | JO35: 57.5996091 | JP35: 14.54759372 | JQ35: 56.07480616 | JR35: 177.7075395 | JS35: 153.9622367 | JT35: 11.65640015 | JU35: 106.1071035 | JV35: 15.23445894 | JW35: 14.660007 | JX35: 65.78387911 | JY35: 21.84017007 | JZ35: 41.23265099 | KA35: 106.3819812 | KB35: 15.38636316 | KC35: 14.95269991 | KD35: 95.14174311 | KE35: 49.98138489 | KF35: 33.60472684 | KG35: 61.96996926 | KH35: 49.60961954 | KI35: 8.980923706 | KJ35: 14.19906304 | KK35: 30.38551047 | KL35: 27.79919345 | KM35: 39.91475677 | KN35: 129.9308382 | KO35: 28.70909566 | KP35: 37.46724122 | KQ35: 28.52393238 | KR35: 38.34479959 | KS35: 8.618555999 | KT35: 48.83887126 | KU35: 103.0713578 | KV35: 31.87559132 | KW35: 132.7085454 | KX35: 79.30691957 | KY35: 14.737064 | KZ35: 59.41559283 | LA35: 18.50379305 | LB35: 28.43633869 | LC35: 75.28177405 | LD35: 58.09384465 | LE35: 31.30572686 | LF35: 76.66316697 | LG35: 32.13126037 | LH35: 50.95190102 | LI35: 22.6320141 | LJ35: 32.24657651 | LK35: 44.5611045 | LL35: 30.30749083 | LM35: 8.671714443 | LN35: 207.9244163 | LO35: 29.78059807 | LP35: 31.65630819 | LQ35: 11.17142761 | LR35: 67.72223999 | LS35: 17.33832873 | LT35: 50.01380346 | LU35: 126.6671067 | LV35: 21.19798484 | LW35: 27.35247863 | LX35: 117.7568952 | LY35: 22.45650078 | LZ35: 108.9713805 | MA35: 50.61775995 | MB35: 43.61792895 | MC35: 26.9754782 | MD35: 19.16092606 | ME35: 116.2495355 | MF35: 16.06859367 | MG35: 45.75253721 | MH35: 80.89527768 | MI35: 42.19413645 | MJ35: 10.10877064 | MK35: 14.81798675 | ML35: 21.77810224 | MM35: 53.58645254 | MN35: 126.8857641 | MO35: 99.01267949 | MP35: 17.97954109 | MQ35: 26.67908076 | MR35: 36.56563302 | MS35: 8.844891216 | MT35: 9.514813415 | MU35: 82.35997143 | MV35: 41.97223548 | MW35: 44.78278278 | MX35: 40.42460779 | MY35: 168.5325657 | MZ35: 7.190019342 | NA35: 29.5782731 | NB35: 19.96984102 | NC35: 101.8109228 | ND35: 19.3583061 | NE35: 55.06084052 | NF35: 18.96876794 | NG35: 88.62878142 | NH35: 53.6992179 | NI35: 16.52912487 | NJ35: 13.75387953 | NK35: 68.83471447 | NL35: 15.4949054 | NM35: 9.417966367 | NN35: 172.323968 | NO35: 43.47150292 | NP35: 32.43591283 | NQ35: 26.87332896 | NR35: 71.17695349 | NS35: 193.1493083 | NT35: 18.02583589 | NU35: 56.23543142 | NV35: 212.5398064 | NW35: 91.95764909 | NX35: 42.1929319 | NY35: 59.57042562 | NZ35: 130.2642247 | OA35: 20.90036106 | OB35: 40.97954659 | OC35: 8.757837607 | OD35: 7.463270872 | OE35: 59.40012462 | OF35: 23.71312614 | OG35: 15.33086419 | OH35: 60.35418955 | OI35: 16.88721789 | OJ35: 26.84948479 | OK35: 102.8712497 | OL35: 17.35154003 | OM35: 36.41369364 | ON35: 37.88358281 | OO35: 43.61707437 | OP35: 94.06481675 | OQ35: 36.22307984 | OR35: 38.56273306 | OS35: 107.6492105 | OT35: 37.11693922 | OU35: 47.44424811 | OV35: 1.292525053 | OW35: 20.66564887 | OX35: 20.34748667 | OY35: 4.877333864 | OZ35: 14.81556555 | PA35: 84.43532141 | PB35: 17.61476121 | PC35: 60.00318892 | PD35: 110.943212 | PE35: 71.61431781 | PF35: 22.56710531 | PG35: 39.69483635 | PH35: 145.8735398 | PI35: 29.81852305 | PJ35: 15.25197656 | PK35: 44.02061292 | PL35: 13.21955972 | PM35: 25.60178468 | PN35: 35.14269942 | PO35: 115.8534027 | PP35: 46.64501659 | PQ35: 19.63268155 | PR35: 61.47541604 | PS35: 41.07513368 | PT35: 17.11010583 | PU35: 6.726199321 | PV35: 9.073265721 | PW35: 49.11687017 | PX35: 85.99205665 | PY35: 217.1253622 | PZ35: 50.45733378 | QA35: 75.57470089 | QB35: 13.0607817 | QC35: 24.09031873 | QD35: 101.8270026 | QE35: 18.91457708 | QF35: 14.71500329 | QG35: 24.88117887 | QH35: 15.043682 | QI35: 41.89246175 | QJ35: 18.85804577 | QK35: 32.02104132 | QL35: 84.94150825 | QM35: 176.6578466 | QN35: 8.137309894 | QO35: 19.58907206 | QP35: 30.48004831 | QQ35: 24.64989114 | QR35: 60.93393971 | QS35: 24.84817131 | QT35: 29.17152844 | QU35: 47.73762305 | QV35: 34.32266171 | QW35: 32.12705444 | QX35: 23.22575774 | QY35: 13.99204754 | QZ35: 158.0613992 | RA35: 19.18761156 | RB35: 8.760909799 | RC35: 50.72033493 | RD35: 52.02188035 | RE35: 19.53169664 | RF35: 113.7509425 | RG35: 62.90721104 | RH35: 34.67634939 | RI35: 30.33004645 | RJ35: 6.138609949 | RK35: 71.76724653 | RL35: 90.36007097 | RM35: 27.47203648 | RN35: 183.5486773 | RO35: 10.86953363 | RP35: 9.85861953 | RQ35: 18.17336294 | RR35: 5.996541787 | RS35: 89.94954359 | RT35: 19.20899238 | RU35: 56.34773042 | RV35: 22.6063129 | RW35: 116.1918006 | RX35: 55.73398498 | RY35: 619.2862047 | RZ35: 57.99447188 | SA35: 79.85142162 | SB35: 2.589021926 | SC35: 67.30834449 | SD35: 92.74183932 | SE35: 4.958562383 | SF35: 62.17154809 | SG35: 11.37154717 | SH35: 37.39218899 | SI35: 57.9807419 | SJ35: 64.18583897 | SK35: 4.017560015 | SL35: 72.02333029 | SM35: 18.96059766 | SN35: 161.3570922 | SO35: 45.04712284 | SP35: 99.15515399 | SQ35: 39.304905 | SR35: 16.25518129 | SS35: 34.31477093 | ST35: 155.6965733 | SU35: 14.33289181 | SV35: 45.90329474 | SW35: 19.9870908 | SX35: 42.47988172 | SY35: 29.24557831 | SZ35: 81.2683601 | TA35: 10.26896842 | TB35: 42.71723277 | TC35: 110.6005303 | TD35: 29.73993658 | TE35: 71.41485664 | TF35: 12.14225582 | TG35: 37.7549503 | TH35: 31.66362187 | TI35: 117.4459647 | TJ35: 87.59879772 | TK35: 17.97984791 | TL35: 12.22486634 | TM35: 17.69198155 | TN35: 58.64241797 | TO35: 13.31688034 | TP35: 87.99272985 | TQ35: 38.84563804 | TR35: 16.80529016 | TS35: 14.18802646 | TT35: 43.91767066 | TU35: 62.27037976 | TV35: 48.44294174 | TW35: 49.5404411 | TX35: 64.17248985 | TY35: 81.33551635 | TZ35: 61.59639682 | UA35: 56.63805931 | UB35: 57.31637556 | UC35: 197.4720324 | UD35: 21.83896734 | UE35: 13.29761565 | UF35: 21.17684107 | UG35: 24.61654909 | UH35: 30.46590905 | UI35: 106.3464643 | UJ35: 15.50520061 | UK35: 9.970371273 | UL35: 35.12928513 | UM35: 29.9550113 | UN35: 68.43231717 | UO35: 43.60733206 | UP35: 121.4817981 | UQ35: 50.00803969 | UR35: 7.7312472 | US35: 41.54755258 | UT35: 101.122288 | UU35: 13.54149298 | UV35: 33.49701042 | UW35: 52.76790379 | UX35: 88.55900157 | UY35: 65.33507362 | UZ35: 230.4554712 | VA35: 93.3289531 | VB35: 404.2014513 | VC35: 18.34250117 | VD35: 111.2268573 | VE35: 21.27730081 | VF35: 52.17512761 | VG35: 6.486727577 | VH35: 30.98465122 | VI35: 18.28639602 | VJ35: 15.50966123 | VK35: 43.9470422 | VL35: 44.7701034 | VM35: 67.40002308 | VN35: 58.65240879 | VO35: 9.356379202 | VP35: 222.6243432 | VQ35: 47.01801435 | VR35: 8.046538924 | VS35: 162.507003 | VT35: 18.00761928 | VU35: 82.38078949 | VV35: 112.8895188 | VW35: 38.36206075 | VX35: 22.17232922 | VY35: 18.8530575 | VZ35: 19.00809498 | WA35: 28.01527556 | WB35: 13.41911056 | WC35: 28.98305898 | WD35: 14.74560396 | WE35: 12.864364 | WF35: 21.63888456
A36: 11.78208861 | B36: 106.9736509 | C36: 51.31449686 | D36: 20 | E36: 1.487268751 | F36: 77.03702005 | G36: 32.56851723 | H36: 21.80360276 | I36: 68.47524179 | J36: 12.82693817 | K36: 38.10403816 | L36: 101.5331559 | M36: 289.2682763 | N36: 12.71701313 | O36: 28.59836156 | P36: 16.83025489 | Q36: 33.14826323 | R36: 32.89077085 | S36: 9.640475404 | T36: 11.62335539 | U36: 80.38583039 | V36: 24.13157884 | W36: 76.73214869 | X36: 43.26966183 | Y36: 83.26335943 | Z36: 18.73528139 | AA36: 156.3399077 | AB36: 69.98712027 | AC36: 23.1688778 | AD36: 41.13022911 | AE36: 28.34274862 | AF36: 4.271167308 | AG36: 47.32856511 | AH36: 106.6513459 | AI36: 21.71637585 | AJ36: 28.34611502 | AK36: 6.058297657 | AL36: 65.41455503 | AM36: 556.3842801 | AN36: 11.30600435 | AO36: 67.25428122 | AP36: 50.05029755 | AQ36: 41.78052064 | AR36: 38.56983674 | AS36: 90.99976934 | AT36: 52.5639186 | AU36: 121.7159087 | AV36: 26.15452832 | AW36: 39.62727468 | AX36: 20.58277021 | AY36: 34.49425456 | AZ36: 24.86023185 | BA36: 42.7360949 | BB36: 39.16341015 | BC36: 41.67835971 | BD36: 95.68232819 | BE36: 46.19900273 | BF36: 78.82738895 | BG36: 51.06091729 | BH36: 11.3157546 | BI36: 19.5353803 | BJ36: 33.58549465 | BK36: 57.36030126 | BL36: 48.10499584 | BM36: 49.51999341 | BN36: 115.4992366 | BO36: 14.27051817 | BP36: 23.63326765 | BQ36: 8.347477432 | BR36: 25.25108135 | BS36: 14.84297355 | BT36: 86.17765351 | BU36: 32.13796365 | BV36: 47.83264505 | BW36: 167.8369795 | BX36: 54.63419082 | BY36: 71.68170282 | BZ36: 4.606107639 | CA36: 131.9244521 | CB36: 39.92016793 | CC36: 128.9239422 | CD36: 18.03934397 | CE36: 86.45733036 | CF36: 26.73606366 | CG36: 17.24281273 | CH36: 23.6722353 | CI36: 81.85779613 | CJ36: 36.14923079 | CK36: 43.97052045 | CL36: 11.04395156 | CM36: 20.51166052 | CN36: 130.4902704 | CO36: 23.0185452 | CP36: 36.6993679 | CQ36: 8.709216193 | CR36: 37.37553511 | CS36: 23.53766636 | CT36: 33.07973487 | CU36: 34.32051522 | CV36: 30.55844337 | CW36: 31.24017448 | CX36: 29.1406056 | CY36: 15.45694369 | CZ36: 92.52599005 | DA36: 25.45484297 | DB36: 11.61459519 | DC36: 38.94152844 | DD36: 50.47062983 | DE36: 15.74732127 | DF36: 35.74943539 | DG36: 63.43008269 | DH36: 31.36367027 | DI36: 58.220649 | DJ36: 40.15662923 | DK36: 17.18535541 | DL36: 22.92245427 | DM36: 49.03864168 | DN36: 39.47385329 | DO36: 38.09607934 | DP36: 8.63975622 | DQ36: 93.74408182 | DR36: 55.32436458 | DS36: 67.8384711 | DT36: 25.45018436 | DU36: 28.3752882 | DV36: 29.17524351 | DW36: 97.99440181 | DX36: 150.9340103 | DY36: 26.7246682 | DZ36: 19.7121369 | EA36: 44.10627527 | EB36: 3.904667911 | EC36: 127.2912167 | ED36: 18.86336667 | EE36: 43.3333216 | EF36: 21.24501126 | EG36: 9.832706072 | EH36: 159.1696535 | EI36: 24.97830998 | EJ36: 52.23356586 | EK36: 21.30469855 | EL36: 46.89529555 | EM36: 128.9552815 | EN36: 105.9528025 | EO36: 18.58029537 | EP36: 49.01680064 | EQ36: 32.80246435 | ER36: 51.14793366 | ES36: 14.60176028 | ET36: 85.03603396 | EU36: 15.4657707 | EV36: 20.93720689 | EW36: 3.720351357 | EX36: 17.75529392 | EY36: 45.95795129 | EZ36: 45.73443293 | FA36: 22.08529676 | FB36: 60.48619631 | FC36: 22.9527359 | FD36: 100.2990205 | FE36: 43.99597786 | FF36: 44.10186376 | FG36: 54.34665793 | FH36: 35.72576244 | FI36: 63.61461228 | FJ36: 19.16767532 | FK36: 30.91660289 | FL36: 14.69178413 | FM36: 7.017320556 | FN36: 71.89757437 | FO36: 30.34804894 | FP36: 33.72828918 | FQ36: 27.54182245 | FR36: 148.5579753 | FS36: 115.7176302 | FT36: 14.28267388 | FU36: 28.00675558 | FV36: 18.01295279 | FW36: 16.98409416 | FX36: 37.50518465 | FY36: 17.97960058 | FZ36: 94.76061789 | GA36: 19.87788378 | GB36: 19.72423263 | GC36: 200.6672139 | GD36: 6.046613873 | GE36: 24.71134211 | GF36: 26.35754284 | GG36: 34.97027007 | GH36: 94.0281414 | GI36: 29.75399531 | GJ36: 58.64568592 | GK36: 122.1168101 | GL36: 28.74761489 | GM36: 16.44833237 | GN36: 55.79847718 | GO36: 18.37408757 | GP36: 13.37961531 | GQ36: 25.5503453 | GR36: 323.1099164 | GS36: 28.29527015 | GT36: 142.9304564 | GU36: 48.80043182 | GV36: 99.78246611 | GW36: 104.5560573 | GX36: 19.97366164 | GY36: 65.47402985 | GZ36: 21.56109891 | HA36: 23.27045751 | HB36: 16.20252827 | HC36: 34.84174899 | HD36: 19.27195358 | HE36: 46.56112013 | HF36: 52.74201896 | HG36: 37.65674131 | HH36: 29.3303367 | HI36: 9.514043345 | HJ36: 16.50345053 | HK36: 13.62616467 | HL36: 10.38963909 | HM36: 29.45591426 | HN36: 25.70622675 | HO36: 104.474886 | HP36: 28.76052134 | HQ36: 103.3583978 | HR36: 68.21003272 | HS36: 25.69644725 | HT36: 11.09106286 | HU36: 19.60999215 | HV36: 89.80351621 | HW36: 54.97791499 | HX36: 30.58163575 | HY36: 22.56005539 | HZ36: 17.68430967 | IA36: 56.84091342 | IB36: 37.08315746 | IC36: 16.73438691 | ID36: 12.9360349 | IE36: 42.69942379 | IF36: 50.65404366 | IG36: 15.83910616 | IH36: 21.63420438 | II36: 21.71299084 | IJ36: 193.4041627 | IK36: 33.61152049 | IL36: 51.65526574 | IM36: 29.41056257 | IN36: 33.5587489 | IO36: 7.048038368 | IP36: 33.48818086 | IQ36: 27.64321639 | IR36: 41.80889812 | IS36: 15.42187997 | IT36: 79.16762343 | IU36: 41.75797428 | IV36: 53.94527826 | IW36: 48.05500842 | IX36: 26.71317544 | IY36: 224.0516273 | IZ36: 42.62949286 | JA36: 155.8840046 | JB36: 11.96253497 | JC36: 9.990557027 | JD36: 77.94849581 | JE36: 12.61683203 | JF36: 2.922586439 | JG36: 14.65688189 | JH36: 15.96161842 | JI36: 141.7741862 | JJ36: 51.05136224 | JK36: 39.90420249 | JL36: 65.72715911 | JM36: 35.11238653 | JN36: 33.05200055 | JO36: 100.2041651 | JP36: 13.30054496 | JQ36: 62.32366054 | JR36: 148.9720438 | JS36: 164.5156796 | JT36: 11.07939182 | JU36: 94.56106299 | JV36: 10.31668686 | JW36: 17.10667849 | JX36: 68.6106475 | JY36: 18.53964025 | JZ36: 30.93111078 | KA36: 98.9021512 | KB36: 12.84507406 | KC36: 21.25415065 | KD36: 49.97335632 | KE36: 44.99144475 | KF36: 56.99432343 | KG36: 78.88843759 | KH36: 50.70490733 | KI36: 9.554518336 | KJ36: 17.85804003 | KK36: 29.81151718 | KL36: 22.11140904 | KM36: 35.56526776 | KN36: 102.8225184 | KO36: 52.98471997 | KP36: 23.39782553 | KQ36: 28.86340486 | KR36: 32.21583048 | KS36: 12.78125046 | KT36: 57.19488576 | KU36: 86.06431329 | KV36: 38.44535056 | KW36: 146.0619496 | KX36: 76.68771094 | KY36: 13.22183134 | KZ36: 77.1863569 | LA36: 22.80378408 | LB36: 26.41231193 | LC36: 98.12400411 | LD36: 70.52260705 | LE36: 29.77090717 | LF36: 58.49787401 | LG36: 42.70233129 | LH36: 63.36423431 | LI36: 25.24289333 | LJ36: 26.38307071 | LK36: 39.35902337 | LL36: 28.15666399 | LM36: 6.959686572 | LN36: 138.0701213 | LO36: 34.31216966 | LP36: 37.53581842 | LQ36: 11.78684627 | LR36: 55.0558994 | LS36: 24.90806281 | LT36: 67.67858743 | LU36: 93.98110928 | LV36: 19.2481059 | LW36: 28.23142548 | LX36: 120.7320698 | LY36: 18.1782742 | LZ36: 80.31683757 | MA36: 66.64289157 | MB36: 33.19301014 | MC36: 47.6781703 | MD36: 14.0417145 | ME36: 105.0699511 | MF36: 26.54127603 | MG36: 57.10337612 | MH36: 89.84077478 | MI36: 41.2491211 | MJ36: 10.12067809 | MK36: 19.58697188 | ML36: 26.31728338 | MM36: 40.73442634 | MN36: 156.0621725 | MO36: 106.9219253 | MP36: 14.71260568 | MQ36: 39.83549573 | MR36: 47.94160547 | MS36: 11.67045024 | MT36: 11.02217638 | MU36: 91.12542456 | MV36: 50.18157055 | MW36: 47.70679606 | MX36: 46.92126667 | MY36: 145.4131378 | MZ36: 9.277552446 | NA36: 34.87712749 | NB36: 18.6556174 | NC36: 117.8906801 | ND36: 20.32928851 | NE36: 43.95247843 | NF36: 19.27203301 | NG36: 104.3842388 | NH36: 59.17338442 | NI36: 15.29913834 | NJ36: 11.06799328 | NK36: 84.25010678 | NL36: 13.827576 | NM36: 6.68961969 | NN36: 152.8968117 | NO36: 44.16645423 | NP36: 30.42856279 | NQ36: 37.94447008 | NR36: 39.99636 | NS36: 212.2114458 | NT36: 33.85274746 | NU36: 59.73519268 | NV36: 249.0047281 | NW36: 80.00155765 | NX36: 39.34370026 | NY36: 50.89506141 | NZ36: 86.87801827 | OA36: 25.53942131 | OB36: 34.014204 | OC36: 7.830257398 | OD36: 5.339539411 | OE36: 55.86587285 | OF36: 16.89651904 | OG36: 19.98788779 | OH36: 62.23096114 | OI36: 15.65269132 | OJ36: 28.65220027 | OK36: 128.2747922 | OL36: 18.82534989 | OM36: 29.07232778 | ON36: 45.09316802 | OO36: 47.22268659 | OP36: 81.73042767 | OQ36: 53.8416984 | OR36: 53.22058887 | OS36: 116.5636343 | OT36: 34.53300107 | OU36: 50.25299287 | OV36: 1.363513438 | OW36: 18.31574028 | OX36: 15.47201565 | OY36: 5.653762016 | OZ36: 15.48399526 | PA36: 91.4997697 | PB36: 16.38081477 | PC36: 44.04064543 | PD36: 154.0292509 | PE36: 60.49824962 | PF36: 20.97884853 | PG36: 48.1309599 | PH36: 153.6389881 | PI36: 29.47318127 | PJ36: 11.7240865 | PK36: 51.08083222 | PL36: 15.60863679 | PM36: 27.94359556 | PN36: 28.37863172 | PO36: 109.9758472 | PP36: 40.94182989 | PQ36: 29.8630975 | PR36: 37.99624201 | PS36: 41.50086577 | PT36: 23.18318025 | PU36: 9.622059099 | PV36: 11.42276596 | PW36: 39.92390412 | PX36: 119.0021319 | PY36: 236.6177858 | PZ36: 48.27000874 | QA36: 63.4821872 | QB36: 13.85139778 | QC36: 32.80594191 | QD36: 65.42946262 | QE36: 21.64055027 | QF36: 9.35891814 | QG36: 27.88248301 | QH36: 21.74329925 | QI36: 38.54148894 | QJ36: 25.45839348 | QK36: 38.9197214 | QL36: 81.15532647 | QM36: 167.2838194 | QN36: 12.32635394 | QO36: 17.20707427 | QP36: 31.77079597 | QQ36: 40.03951081 | QR36: 72.25105187 | QS36: 23.1879681 | QT36: 24.11697743 | QU36: 63.6573852 | QV36: 43.35516181 | QW36: 33.60038055 | QX36: 18.95759198 | QY36: 14.3729823 | QZ36: 144.5035336 | RA36: 16.08988735 | RB36: 8.165894751 | RC36: 57.39670808 | RD36: 51.82137117 | RE36: 32.58542426 | RF36: 106.2056135 | RG36: 90.69473935 | RH36: 44.59594484 | RI36: 37.59486196 | RJ36: 5.54298418 | RK36: 82.32174887 | RL36: 94.77578727 | RM36: 24.82437247 | RN36: 138.3421599 | RO36: 13.91241544 | RP36: 7.341192809 | RQ36: 13.63946237 | RR36: 4.47236264 | RS36: 79.75214553 | RT36: 15.35579713 | RU36: 70.89975399 | RV36: 25.53194326 | RW36: 114.6747684 | RX36: 84.90396114 | RY36: 529.2829801 | RZ36: 70.25753156 | SA36: 63.12751172 | SB36: 3.37926782 | SC36: 72.03811395 | SD36: 71.15886112 | SE36: 7.742350789 | SF36: 79.63016181 | SG36: 13.85163134 | SH36: 21.53111891 | SI36: 26.40240016 | SJ36: 70.65277893 | SK36: 4.212700921 | SL36: 68.98767381 | SM36: 18.73066847 | SN36: 139.0031183 | SO36: 41.97482309 | SP36: 78.02099152 | SQ36: 42.57519064 | SR36: 14.44510324 | SS36: 28.60147599 | ST36: 140.9524143 | SU36: 11.06219597 | SV36: 37.67849359 | SW36: 18.26566414 | SX36: 61.29137068 | SY36: 21.14549885 | SZ36: 113.8507635 | TA36: 10.000697 | TB36: 38.17052117 | TC36: 95.19134375 | TD36: 30.74760227 | TE36: 72.41731948 | TF36: 14.90823925 | TG36: 38.43590955 | TH36: 26.32833707 | TI36: 107.4391811 | TJ36: 74.23234405 | TK36: 16.6525402 | TL36: 15.99246571 | TM36: 11.73926964 | TN36: 44.92392828 | TO36: 8.309148694 | TP36: 143.4240495 | TQ36: 37.4747713 | TR36: 10.77348206 | TS36: 18.95569086 | TT36: 42.44851938 | TU36: 64.83221323 | TV36: 40.45331325 | TW36: 38.60969688 | TX36: 60.3133101 | TY36: 69.53773529 | TZ36: 51.35485725 | UA36: 48.96794678 | UB36: 61.45998761 | UC36: 142.0949542 | UD36: 14.14097187 | UE36: 20.5262816 | UF36: 23.52772585 | UG36: 19.8634416 | UH36: 35.78019678 | UI36: 94.20425701 | UJ36: 12.98890425 | UK36: 9.894545161 | UL36: 21.60265335 | UM36: 23.49827256 | UN36: 118.6701104 | UO36: 42.05164315 | UP36: 87.00631691 | UQ36: 56.46369182 | UR36: 10.6580671 | US36: 61.97389298 | UT36: 135.2981243 | UU36: 14.38430709 | UV36: 30.76844104 | UW36: 37.73580828 | UX36: 85.30721225 | UY36: 43.43322611 | UZ36: 227.5800302 | VA36: 64.87581954 | VB36: 377.8518524 | VC36: 29.80192103 | VD36: 124.2414426 | VE36: 25.53999294 | VF36: 35.70170141 | VG36: 5.817579621 | VH36: 16.84818515 | VI36: 14.57329987 | VJ36: 11.08411364 | VK36: 21.60668145 | VL36: 62.81631 | VM36: 45.33323389 | VN36: 42.74330698 | VO36: 9.593004313 | VP36: 183.5276262 | VQ36: 42.81686902 | VR36: 14.54366933 | VS36: 158.4766598 | VT36: 18.40041112 | VU36: 107.9538439 | VV36: 81.99208336 | VW36: 24.02050763 | VX36: 17.60330622 | VY36: 12.98938727 | VZ36: 17.40382091 | WA36: 17.27974966 | WB36: 14.86074973 | WC36: 36.82699114 | WD36: 8.987553395 | WE36: 19.13202188 | WF36: 13.6914206
